Workbook

Sheet AVISO LEGAL
H2: Fecha de actualización: | J2: 2018-04-03
J23: www.ree.es

Sheet Balance nacional mensual
A1: mensual
M4: Sistema eléctrico
M5: Horizonte temporal
M6: Periodo
C8: Ene. | D8: Feb. | E8: Mar. | F8: Abr. | G8: May. | H8: Jun. | I8: Jul. | J8: Ago. | K8: Sep. | L8: Oct. | M8: Nov. | N8: Dic. | O8: =OFFSET(Año!C19,($A$104-1),0) -> 2018
B10: Hidráulica | C10: =OFFSET(Balance!C85,0,($A$104-1)*12) -> 2195.419985 | D10: =OFFSET(Balance!D85,0,($A$104-1)*12) -> 2386.650425 | E10: =OFFSET(Balance!E85,0,($A$104-1)*12) -> 4379.9547 | F10: =OFFSET(Balance!F85,0,($A$104-1)*12) -> - | G10: =OFFSET(Balance!G85,0,($A$104-1)*12) -> - | H10: =OFFSET(Balance!H85,0,($A$104-1)*12) -> - | I10: =OFFSET(Balance!I85,0,($A$104-1)*12) -> - | J10: =OFFSET(Balance!J85,0,($A$104-1)*12) -> - | K10: =OFFSET(Balance!K85,0,($A$104-1)*12) -> - | L10: =OFFSET(Balance!L85,0,($A$104-1)*12) -> - | M10: =OFFSET(Balance!M85,0,($A$104-1)*12) -> - | N10: =OFFSET(Balance!N85,0,($A$104-1)*12) -> - | O10: =IF(SUM(C10:N10)=0,"-",SUM(C10:N10)) -> 8962.02511
B11: Turbinación bombeo | C11: =OFFSET(Balance!C86,0,($A$104-1)*12) -> 273.4352352 | D11: =OFFSET(Balance!D86,0,($A$104-1)*12) -> 180.6230236 | E11: =OFFSET(Balance!E86,0,($A$104-1)*12) -> 283.7773 | F11: =OFFSET(Balance!F86,0,($A$104-1)*12) -> - | G11: =OFFSET(Balance!G86,0,($A$104-1)*12) -> - | H11: =OFFSET(Balance!H86,0,($A$104-1)*12) -> - | I11: =OFFSET(Balance!I86,0,($A$104-1)*12) -> - | J11: =OFFSET(Balance!J86,0,($A$104-1)*12) -> - | K11: =OFFSET(Balance!K86,0,($A$104-1)*12) -> - | L11: =OFFSET(Balance!L86,0,($A$104-1)*12) -> - | M11: =OFFSET(Balance!M86,0,($A$104-1)*12) -> - | N11: =OFFSET(Balance!N86,0,($A$104-1)*12) -> - | O11: =IF(SUM(C11:N11)=0,"-",SUM(C11:N11)) -> 737.8355589
B12: Nuclear | C12: =OFFSET(Balance!C87,0,($A$104-1)*12) -> 5098.707 | D12: =OFFSET(Balance!D87,0,($A$104-1)*12) -> 4594.563 | E12: =OFFSET(Balance!E87,0,($A$104-1)*12) -> 4486.4691 | F12: =OFFSET(Balance!F87,0,($A$104-1)*12) -> - | G12: =OFFSET(Balance!G87,0,($A$104-1)*12) -> - | H12: =OFFSET(Balance!H87,0,($A$104-1)*12) -> - | I12: =OFFSET(Balance!I87,0,($A$104-1)*12) -> - | J12: =OFFSET(Balance!J87,0,($A$104-1)*12) -> - | K12: =OFFSET(Balance!K87,0,($A$104-1)*12) -> - | L12: =OFFSET(Balance!L87,0,($A$104-1)*12) -> - | M12: =OFFSET(Balance!M87,0,($A$104-1)*12) -> - | N12: =OFFSET(Balance!N87,0,($A$104-1)*12) -> - | O12: 14179.7391
B13: Carbón | C13: =OFFSET(Balance!C88,0,($A$104-1)*12) -> 3240.092986 | D13: =OFFSET(Balance!D88,0,($A$104-1)*12) -> 3693.523891 | E13: =OFFSET(Balance!E88,0,($A$104-1)*12) -> 1520.622408 | F13: =OFFSET(Balance!F88,0,($A$104-1)*12) -> - | G13: =OFFSET(Balance!G88,0,($A$104-1)*12) -> - | H13: =OFFSET(Balance!H88,0,($A$104-1)*12) -> - | I13: =OFFSET(Balance!I88,0,($A$104-1)*12) -> - | J13: =OFFSET(Balance!J88,0,($A$104-1)*12) -> - | K13: =OFFSET(Balance!K88,0,($A$104-1)*12) -> - | L13: =OFFSET(Balance!L88,0,($A$104-1)*12) -> - | M13: =OFFSET(Balance!M88,0,($A$104-1)*12) -> - | N13: =OFFSET(Balance!N88,0,($A$104-1)*12) -> - | O13: 8454.239285
B14: Fuel + Gas | C14: =OFFSET(Balance!C89,0,($A$104-1)*12) -> 573.458262 | D14: =OFFSET(Balance!D89,0,($A$104-1)*12) -> 533.376233 | E14: =OFFSET(Balance!E89,0,($A$104-1)*12) -> 528.171851 | F14: =OFFSET(Balance!F89,0,($A$104-1)*12) -> - | G14: =OFFSET(Balance!G89,0,($A$104-1)*12) -> - | H14: =OFFSET(Balance!H89,0,($A$104-1)*12) -> - | I14: =OFFSET(Balance!I89,0,($A$104-1)*12) -> - | J14: =OFFSET(Balance!J89,0,($A$104-1)*12) -> - | K14: =OFFSET(Balance!K89,0,($A$104-1)*12) -> - | L14: =OFFSET(Balance!L89,0,($A$104-1)*12) -> - | M14: =OFFSET(Balance!M89,0,($A$104-1)*12) -> - | N14: =OFFSET(Balance!N89,0,($A$104-1)*12) -> - | O14: 1635.006346
B15: Ciclo combinado (2) | C15: =OFFSET(Balance!C90,0,($A$104-1)*12) -> 2544.337974 | D15: =OFFSET(Balance!D90,0,($A$104-1)*12) -> 2238.17592 | E15: =OFFSET(Balance!E90,0,($A$104-1)*12) -> 1524.52914 | F15: =OFFSET(Balance!F90,0,($A$104-1)*12) -> - | G15: =OFFSET(Balance!G90,0,($A$104-1)*12) -> - | H15: =OFFSET(Balance!H90,0,($A$104-1)*12) -> - | I15: =OFFSET(Balance!I90,0,($A$104-1)*12) -> - | J15: =OFFSET(Balance!J90,0,($A$104-1)*12) -> - | K15: =OFFSET(Balance!K90,0,($A$104-1)*12) -> - | L15: =OFFSET(Balance!L90,0,($A$104-1)*12) -> - | M15: =OFFSET(Balance!M90,0,($A$104-1)*12) -> - | N15: =OFFSET(Balance!N90,0,($A$104-1)*12) -> - | O15: 6307.043034
B16: Régimen ordinario | C16: =OFFSET(Balance!C91,0,($A$104-1)*12) -> - | D16: =OFFSET(Balance!D91,0,($A$104-1)*12) -> - | E16: =OFFSET(Balance!E91,0,($A$104-1)*12) -> - | F16: =OFFSET(Balance!F91,0,($A$104-1)*12) -> - | G16: =OFFSET(Balance!G91,0,($A$104-1)*12) -> - | H16: =OFFSET(Balance!H91,0,($A$104-1)*12) -> - | I16: =OFFSET(Balance!I91,0,($A$104-1)*12) -> - | J16: =OFFSET(Balance!J91,0,($A$104-1)*12) -> - | K16: =OFFSET(Balance!K91,0,($A$104-1)*12) -> - | L16: =OFFSET(Balance!L91,0,($A$104-1)*12) -> - | M16: =OFFSET(Balance!M91,0,($A$104-1)*12) -> - | N16: =OFFSET(Balance!N91,0,($A$104-1)*12) -> - | O16: -
B18: Hidroeólica | C18: =OFFSET(Balance!C92,0,($A$104-1)*12) -> 2.262851 | D18: =OFFSET(Balance!D92,0,($A$104-1)*12) -> 1.768028 | E18: =OFFSET(Balance!E92,0,($A$104-1)*12) -> 1.685079 | F18: =OFFSET(Balance!F92,0,($A$104-1)*12) -> - | G18: =OFFSET(Balance!G92,0,($A$104-1)*12) -> - | H18: =OFFSET(Balance!H92,0,($A$104-1)*12) -> - | I18: =OFFSET(Balance!I92,0,($A$104-1)*12) -> - | J18: =OFFSET(Balance!J92,0,($A$104-1)*12) -> - | K18: =OFFSET(Balance!K92,0,($A$104-1)*12) -> - | L18: =OFFSET(Balance!L92,0,($A$104-1)*12) -> - | M18: =OFFSET(Balance!M92,0,($A$104-1)*12) -> - | N18: =OFFSET(Balance!N92,0,($A$104-1)*12) -> - | O18: =IF(SUM(C18:N18)=0,"-",SUM(C18:N18)) -> 5.715958
B19: Resto hidráulica (3) | C19: =OFFSET(Balance!C93,0,($A$104-1)*12) -> - | D19: =OFFSET(Balance!D93,0,($A$104-1)*12) -> - | E19: =OFFSET(Balance!E93,0,($A$104-1)*12) -> - | F19: =OFFSET(Balance!F93,0,($A$104-1)*12) -> - | G19: =OFFSET(Balance!G93,0,($A$104-1)*12) -> - | H19: =OFFSET(Balance!H93,0,($A$104-1)*12) -> - | I19: =OFFSET(Balance!I93,0,($A$104-1)*12) -> - | J19: =OFFSET(Balance!J93,0,($A$104-1)*12) -> - | K19: =OFFSET(Balance!K93,0,($A$104-1)*12) -> - | L19: =OFFSET(Balance!L93,0,($A$104-1)*12) -> - | M19: =OFFSET(Balance!M93,0,($A$104-1)*12) -> - | N19: =OFFSET(Balance!N93,0,($A$104-1)*12) -> - | O19: -
B20: Eólica | C20: =OFFSET(Balance!C94,0,($A$104-1)*12) -> 5333.657 | D20: =OFFSET(Balance!D94,0,($A$104-1)*12) -> 4669.497 | E20: =OFFSET(Balance!E94,0,($A$104-1)*12) -> 7744.215036 | F20: =OFFSET(Balance!F94,0,($A$104-1)*12) -> - | G20: =OFFSET(Balance!G94,0,($A$104-1)*12) -> - | H20: =OFFSET(Balance!H94,0,($A$104-1)*12) -> - | I20: =OFFSET(Balance!I94,0,($A$104-1)*12) -> - | J20: =OFFSET(Balance!J94,0,($A$104-1)*12) -> - | K20: =OFFSET(Balance!K94,0,($A$104-1)*12) -> - | L20: =OFFSET(Balance!L94,0,($A$104-1)*12) -> - | M20: =OFFSET(Balance!M94,0,($A$104-1)*12) -> - | N20: =OFFSET(Balance!N94,0,($A$104-1)*12) -> - | O20: 17747.36904
B21: Solar fotovoltaica | C21: =OFFSET(Balance!C95,0,($A$104-1)*12) -> 442.296 | D21: =OFFSET(Balance!D95,0,($A$104-1)*12) -> 508.148 | E21: =OFFSET(Balance!E95,0,($A$104-1)*12) -> 587.50707 | F21: =OFFSET(Balance!F95,0,($A$104-1)*12) -> - | G21: =OFFSET(Balance!G95,0,($A$104-1)*12) -> - | H21: =OFFSET(Balance!H95,0,($A$104-1)*12) -> - | I21: =OFFSET(Balance!I95,0,($A$104-1)*12) -> - | J21: =OFFSET(Balance!J95,0,($A$104-1)*12) -> - | K21: =OFFSET(Balance!K95,0,($A$104-1)*12) -> - | L21: =OFFSET(Balance!L95,0,($A$104-1)*12) -> - | M21: =OFFSET(Balance!M95,0,($A$104-1)*12) -> - | N21: =OFFSET(Balance!N95,0,($A$104-1)*12) -> - | O21: 1537.95107
B22: Solar térmica | C22: =OFFSET(Balance!C96,0,($A$104-1)*12) -> 112.388 | D22: =OFFSET(Balance!D96,0,($A$104-1)*12) -> 229.808 | E22: =OFFSET(Balance!E96,0,($A$104-1)*12) -> 227.9056 | F22: =OFFSET(Balance!F96,0,($A$104-1)*12) -> - | G22: =OFFSET(Balance!G96,0,($A$104-1)*12) -> - | H22: =OFFSET(Balance!H96,0,($A$104-1)*12) -> - | I22: =OFFSET(Balance!I96,0,($A$104-1)*12) -> - | J22: =OFFSET(Balance!J96,0,($A$104-1)*12) -> - | K22: =OFFSET(Balance!K96,0,($A$104-1)*12) -> - | L22: =OFFSET(Balance!L96,0,($A$104-1)*12) -> - | M22: =OFFSET(Balance!M96,0,($A$104-1)*12) -> - | N22: =OFFSET(Balance!N96,0,($A$104-1)*12) -> - | O22: 570.1016
B23: Otras renovables | C23: =OFFSET(Balance!C97,0,($A$104-1)*12) -> 297.473 | D23: =OFFSET(Balance!D97,0,($A$104-1)*12) -> 302.444 | E23: =OFFSET(Balance!E97,0,($A$104-1)*12) -> 279.40367 | F23: =OFFSET(Balance!F97,0,($A$104-1)*12) -> - | G23: =OFFSET(Balance!G97,0,($A$104-1)*12) -> - | H23: =OFFSET(Balance!H97,0,($A$104-1)*12) -> - | I23: =OFFSET(Balance!I97,0,($A$104-1)*12) -> - | J23: =OFFSET(Balance!J97,0,($A$104-1)*12) -> - | K23: =OFFSET(Balance!K97,0,($A$104-1)*12) -> - | L23: =OFFSET(Balance!L97,0,($A$104-1)*12) -> - | M23: =OFFSET(Balance!M97,0,($A$104-1)*12) -> - | N23: =OFFSET(Balance!N97,0,($A$104-1)*12) -> - | O23: 879.32067
B24: Cogeneración | C24: =OFFSET(Balance!C98,0,($A$104-1)*12) -> 2477.919 | D24: =OFFSET(Balance!D98,0,($A$104-1)*12) -> 2246.507 | E24: =OFFSET(Balance!E98,0,($A$104-1)*12) -> 2501.460196 | F24: =OFFSET(Balance!F98,0,($A$104-1)*12) -> - | G24: =OFFSET(Balance!G98,0,($A$104-1)*12) -> - | H24: =OFFSET(Balance!H98,0,($A$104-1)*12) -> - | I24: =OFFSET(Balance!I98,0,($A$104-1)*12) -> - | J24: =OFFSET(Balance!J98,0,($A$104-1)*12) -> - | K24: =OFFSET(Balance!K98,0,($A$104-1)*12) -> - | L24: =OFFSET(Balance!L98,0,($A$104-1)*12) -> - | M24: =OFFSET(Balance!M98,0,($A$104-1)*12) -> - | N24: =OFFSET(Balance!N98,0,($A$104-1)*12) -> - | O24: 7225.886196
B25: Residuos no renovables | C25: =OFFSET(Balance!C99,0,($A$104-1)*12) -> 234.574 | D25: =OFFSET(Balance!D99,0,($A$104-1)*12) -> 206.9435 | E25: =OFFSET(Balance!E99,0,($A$104-1)*12) -> 229.7746 | F25: =OFFSET(Balance!F99,0,($A$104-1)*12) -> - | G25: =OFFSET(Balance!G99,0,($A$104-1)*12) -> - | H25: =OFFSET(Balance!H99,0,($A$104-1)*12) -> - | I25: =OFFSET(Balance!I99,0,($A$104-1)*12) -> - | J25: =OFFSET(Balance!J99,0,($A$104-1)*12) -> - | K25: =OFFSET(Balance!K99,0,($A$104-1)*12) -> - | L25: =OFFSET(Balance!L99,0,($A$104-1)*12) -> - | M25: =OFFSET(Balance!M99,0,($A$104-1)*12) -> - | N25: =OFFSET(Balance!N99,0,($A$104-1)*12) -> - | O25: 671.2921
B26: Residuos renovables | C26: =OFFSET(Balance!C100,0,($A$104-1)*12) -> 77.266 | D26: =OFFSET(Balance!D100,0,($A$104-1)*12) -> 67.3795 | E26: =OFFSET(Balance!E100,0,($A$104-1)*12) -> 78.7195 | F26: =OFFSET(Balance!F100,0,($A$104-1)*12) -> - | G26: =OFFSET(Balance!G100,0,($A$104-1)*12) -> - | H26: =OFFSET(Balance!H100,0,($A$104-1)*12) -> - | I26: =OFFSET(Balance!I100,0,($A$104-1)*12) -> - | J26: =OFFSET(Balance!J100,0,($A$104-1)*12) -> - | K26: =OFFSET(Balance!K100,0,($A$104-1)*12) -> - | L26: =OFFSET(Balance!L100,0,($A$104-1)*12) -> - | M26: =OFFSET(Balance!M100,0,($A$104-1)*12) -> - | N26: =OFFSET(Balance!N100,0,($A$104-1)*12) -> - | O26: =IF(SUM(C26:N26)=0,"-",SUM(C26:N26)) -> 223.365
B27: Régimen especial | C27: =OFFSET(Balance!C101,0,($A$104-1)*12) -> - | D27: =OFFSET(Balance!D101,0,($A$104-1)*12) -> - | E27: =OFFSET(Balance!E101,0,($A$104-1)*12) -> - | F27: =OFFSET(Balance!F101,0,($A$104-1)*12) -> - | G27: =OFFSET(Balance!G101,0,($A$104-1)*12) -> - | H27: =OFFSET(Balance!H101,0,($A$104-1)*12) -> - | I27: =OFFSET(Balance!I101,0,($A$104-1)*12) -> - | J27: =OFFSET(Balance!J101,0,($A$104-1)*12) -> - | K27: =OFFSET(Balance!K101,0,($A$104-1)*12) -> - | L27: =OFFSET(Balance!L101,0,($A$104-1)*12) -> - | M27: =OFFSET(Balance!M101,0,($A$104-1)*12) -> - | N27: =OFFSET(Balance!N101,0,($A$104-1)*12) -> - | O27: -
B28: Generación | C28: =OFFSET(Balance!C102,0,($A$104-1)*12) -> 22903.28729 | D28: =OFFSET(Balance!D102,0,($A$104-1)*12) -> 21859.40752 | E28: =OFFSET(Balance!E102,0,($A$104-1)*12) -> 24374.19525 | F28: =OFFSET(Balance!F102,0,($A$104-1)*12) -> - | G28: =OFFSET(Balance!G102,0,($A$104-1)*12) -> - | H28: =OFFSET(Balance!H102,0,($A$104-1)*12) -> - | I28: =OFFSET(Balance!I102,0,($A$104-1)*12) -> - | J28: =OFFSET(Balance!J102,0,($A$104-1)*12) -> - | K28: =OFFSET(Balance!K102,0,($A$104-1)*12) -> - | L28: =OFFSET(Balance!L102,0,($A$104-1)*12) -> - | M28: =OFFSET(Balance!M102,0,($A$104-1)*12) -> - | N28: =OFFSET(Balance!N102,0,($A$104-1)*12) -> - | O28: =IF(SUM(C28:N28)=0,"-",SUM(C28:N28)) -> 69136.89006
B29: Consumos en bombeo | C29: =OFFSET(Balance!C103,0,($A$104-1)*12) -> -390.733979 | D29: =OFFSET(Balance!D103,0,($A$104-1)*12) -> -253.253662 | E29: =OFFSET(Balance!E103,0,($A$104-1)*12) -> -728.7519 | F29: =OFFSET(Balance!F103,0,($A$104-1)*12) -> - | G29: =OFFSET(Balance!G103,0,($A$104-1)*12) -> - | H29: =OFFSET(Balance!H103,0,($A$104-1)*12) -> - | I29: =OFFSET(Balance!I103,0,($A$104-1)*12) -> - | J29: =OFFSET(Balance!J103,0,($A$104-1)*12) -> - | K29: =OFFSET(Balance!K103,0,($A$104-1)*12) -> - | L29: =OFFSET(Balance!L103,0,($A$104-1)*12) -> - | M29: =OFFSET(Balance!M103,0,($A$104-1)*12) -> - | N29: =OFFSET(Balance!N103,0,($A$104-1)*12) -> - | O29: -1372.739541
B30: Saldo intercambios internacionales (4) | C30: =OFFSET(Balance!C104,0,($A$104-1)*12) -> 1340.296642 | D30: =OFFSET(Balance!D104,0,($A$104-1)*12) -> 857.102993 | E30: =OFFSET(Balance!E104,0,($A$104-1)*12) -> -292.8016 | F30: =OFFSET(Balance!F104,0,($A$104-1)*12) -> - | G30: =OFFSET(Balance!G104,0,($A$104-1)*12) -> - | H30: =OFFSET(Balance!H104,0,($A$104-1)*12) -> - | I30: =OFFSET(Balance!I104,0,($A$104-1)*12) -> - | J30: =OFFSET(Balance!J104,0,($A$104-1)*12) -> - | K30: =OFFSET(Balance!K104,0,($A$104-1)*12) -> - | L30: =OFFSET(Balance!L104,0,($A$104-1)*12) -> - | M30: =OFFSET(Balance!M104,0,($A$104-1)*12) -> - | N30: =OFFSET(Balance!N104,0,($A$104-1)*12) -> - | O30: 1904.598035
B31: Demanda transporte (b.c.) | C31: =OFFSET(Balance!C105,0,($A$104-1)*12) -> 23852.84996 | D31: =OFFSET(Balance!D105,0,($A$104-1)*12) -> 22463.25685 | E31: =OFFSET(Balance!E105,0,($A$104-1)*12) -> 23352.64175 | F31: =OFFSET(Balance!F105,0,($A$104-1)*12) -> - | G31: =OFFSET(Balance!G105,0,($A$104-1)*12) -> - | H31: =OFFSET(Balance!H105,0,($A$104-1)*12) -> - | I31: =OFFSET(Balance!I105,0,($A$104-1)*12) -> - | J31: =OFFSET(Balance!J105,0,($A$104-1)*12) -> - | K31: =OFFSET(Balance!K105,0,($A$104-1)*12) -> - | L31: =OFFSET(Balance!L105,0,($A$104-1)*12) -> - | M31: =OFFSET(Balance!M105,0,($A$104-1)*12) -> - | N31: =OFFSET(Balance!N105,0,($A$104-1)*12) -> - | O31: =IF(SUM(C31:N31)=0,"-",SUM(C31:N31)) -> 69668.74856
B32: (1) Asignación de unidades de producción según combustible principal.
B33: (2) Incluye funcionamiento en ciclo abierto.
B35: (3) Incluye todas aquellas unidades menores de 50 MW que no pertenecen a ninguna unidad de gestión hidráulica (UGH).
B36: (4) Valor positivo: saldo importador; valor negativo: saldo exportador.
B37: (5) Incluye residuos.
B38: =IF(MONTH('AVISO LEGAL'!J2)=1,CONCATENATE("Datos definitivos hasta el 31/03/2017. Datos provisionales del 01/04/2017 al ",TEXT(EOMONTH('AVISO LEGAL'!J2-60,0),"dd/mm/aaaa"),". Datos programados del 01/12/",YEAR('AVISO LEGAL'!J2)-1," al ",TEXT(EOMONTH('AVISO LEGAL'!J2-30,0),"dd/mm/aaaa"),"."),CONCATENATE("Datos definitivos hasta el 31/03/2017. Datos provisionales del 01/04/2017 al ",TEXT(EOMONTH('AVISO LEGAL'!J2-60,0),"dd/mm/aaaa"),". Datos programados del 01/",TEXT(MONTH('AVISO LEGAL'!J2)-1,"00"),"/",YEAR('AVISO LEGAL'!J2)," al ",TEXT(EOMONTH('AVISO LEGAL'!J2-30,0),"dd/mm/aaaa"),".")) -> Datos definitivos hasta el 31/03/2017. Datos provisionales del 01/04/2017 al 28/02/2018. Datos programados del 01/03/2018 al 31/03/2018.
A102: 2
A103: 11
A104: 12
A105: 11

Sheet Balance nacional anual
I1: 2
H4: Sistema eléctrico
H5: Horizonte temporal
H6: Periodo
C8: =OFFSET(Balance!C189,0,($I$1-1)*7) -> 2014 | D8: =OFFSET(Balance!D189,0,($I$1-1)*7) -> 2015 | E8: =OFFSET(Balance!E189,0,($I$1-1)*7) -> 2016 | F8: =OFFSET(Balance!F189,0,($I$1-1)*7) -> 2017 | G8: =OFFSET(Balance!G189,0,($I$1-1)*7) -> 2018 | H8: =OFFSET(Balance!H189,0,($I$1-1)*7) -> 2019 | I8: =OFFSET(Balance!I189,0,($I$1-1)*7) -> 2020
B10: Hidráulica | C10: =OFFSET(Balance!C190,0,($I$1-1)*7) -> 32042.87851 | D10: =OFFSET(Balance!D190,0,($I$1-1)*7) -> 28326.00948 | E10: =OFFSET(Balance!E190,0,($I$1-1)*7) -> 36042.62572 | F10: =OFFSET(Balance!F190,0,($I$1-1)*7) -> 18363.78215 | G10: =OFFSET(Balance!G190,0,($I$1-1)*7) -> 8962.02511 | H10: =OFFSET(Balance!H190,0,($I$1-1)*7) -> - | I10: =OFFSET(Balance!I190,0,($I$1-1)*7) -> -
B11: Turbinación bombeo | C11: =OFFSET(Balance!C191,0,($I$1-1)*7) -> 3415.996027 | D11: =OFFSET(Balance!D191,0,($I$1-1)*7) -> 2895.365788 | E11: =OFFSET(Balance!E191,0,($I$1-1)*7) -> 3134.32891 | F11: =OFFSET(Balance!F191,0,($I$1-1)*7) -> 2248.993858 | G11: =OFFSET(Balance!G191,0,($I$1-1)*7) -> 737.8355589 | H11: =OFFSET(Balance!H191,0,($I$1-1)*7) -> - | I11: =OFFSET(Balance!I191,0,($I$1-1)*7) -> -
B12: Nuclear | C12: =OFFSET(Balance!C192,0,($I$1-1)*7) -> 54870.239 | D12: =OFFSET(Balance!D192,0,($I$1-1)*7) -> 54754.83905 | E12: =OFFSET(Balance!E192,0,($I$1-1)*7) -> 56098.972 | F12: =OFFSET(Balance!F192,0,($I$1-1)*7) -> 55608.922 | G12: =OFFSET(Balance!G192,0,($I$1-1)*7) -> 14179.7391 | H12: =OFFSET(Balance!H192,0,($I$1-1)*7) -> - | I12: =OFFSET(Balance!I192,0,($I$1-1)*7) -> -
B13: Carbón | C13: =OFFSET(Balance!C193,0,($I$1-1)*7) -> 43320.3028 | D13: =OFFSET(Balance!D193,0,($I$1-1)*7) -> 52789.04066 | E13: =OFFSET(Balance!E193,0,($I$1-1)*7) -> 37491.2723 | F13: =OFFSET(Balance!F193,0,($I$1-1)*7) -> 45196.26842 | G13: =OFFSET(Balance!G193,0,($I$1-1)*7) -> 8454.239285 | H13: =OFFSET(Balance!H193,0,($I$1-1)*7) -> - | I13: =OFFSET(Balance!I193,0,($I$1-1)*7) -> -
B14: Fuel + Gas | C14: =OFFSET(Balance!C194,0,($I$1-1)*7) -> 6256.727592 | D14: =OFFSET(Balance!D194,0,($I$1-1)*7) -> 6496.651977 | E14: =OFFSET(Balance!E194,0,($I$1-1)*7) -> 6764.54844 | F14: =OFFSET(Balance!F194,0,($I$1-1)*7) -> 7011.069325 | G14: =OFFSET(Balance!G194,0,($I$1-1)*7) -> 1635.006346 | H14: =OFFSET(Balance!H194,0,($I$1-1)*7) -> - | I14: =OFFSET(Balance!I194,0,($I$1-1)*7) -> -
B15: Ciclo combinado (2) | C15: =OFFSET(Balance!C195,0,($I$1-1)*7) -> 25075.12755 | D15: =OFFSET(Balance!D195,0,($I$1-1)*7) -> 29290.74944 | E15: =OFFSET(Balance!E195,0,($I$1-1)*7) -> 29260.40139 | F15: =OFFSET(Balance!F195,0,($I$1-1)*7) -> 37296.48862 | G15: =OFFSET(Balance!G195,0,($I$1-1)*7) -> 6307.043034 | H15: =OFFSET(Balance!H195,0,($I$1-1)*7) -> - | I15: =OFFSET(Balance!I195,0,($I$1-1)*7) -> -
B16: Régimen ordinario | C16: =OFFSET(Balance!C196,0,($I$1-1)*7) -> - | D16: =OFFSET(Balance!D196,0,($I$1-1)*7) -> - | E16: =OFFSET(Balance!E196,0,($I$1-1)*7) -> - | F16: =OFFSET(Balance!F196,0,($I$1-1)*7) -> - | G16: =OFFSET(Balance!G196,0,($I$1-1)*7) -> - | H16: =OFFSET(Balance!H196,0,($I$1-1)*7) -> - | I16: =OFFSET(Balance!I196,0,($I$1-1)*7) -> -
B18: Hidroeólica | C18: =OFFSET(Balance!C197,0,($I$1-1)*7) -> 1.071861 | D18: =OFFSET(Balance!D197,0,($I$1-1)*7) -> 8.557066 | E18: =OFFSET(Balance!E197,0,($I$1-1)*7) -> 18.102639 | F18: =OFFSET(Balance!F197,0,($I$1-1)*7) -> 20.398516 | G18: =OFFSET(Balance!G197,0,($I$1-1)*7) -> 5.715958 | H18: =OFFSET(Balance!H197,0,($I$1-1)*7) -> - | I18: =OFFSET(Balance!I197,0,($I$1-1)*7) -> -
B19: Resto hidráulica (3) | C19: =OFFSET(Balance!C198,0,($I$1-1)*7) -> 7072.999021 | D19: =OFFSET(Balance!D198,0,($I$1-1)*7) -> - | E19: =OFFSET(Balance!E198,0,($I$1-1)*7) -> - | F19: =OFFSET(Balance!F198,0,($I$1-1)*7) -> - | G19: =OFFSET(Balance!G198,0,($I$1-1)*7) -> - | H19: =OFFSET(Balance!H198,0,($I$1-1)*7) -> - | I19: =OFFSET(Balance!I198,0,($I$1-1)*7) -> -
B20: Eólica | C20: =OFFSET(Balance!C199,0,($I$1-1)*7) -> 51030.693 | D20: =OFFSET(Balance!D199,0,($I$1-1)*7) -> 48115.12807 | E20: =OFFSET(Balance!E199,0,($I$1-1)*7) -> 47696.67064 | F20: =OFFSET(Balance!F199,0,($I$1-1)*7) -> 47897.01017 | G20: =OFFSET(Balance!G199,0,($I$1-1)*7) -> 17747.36904 | H20: =OFFSET(Balance!H199,0,($I$1-1)*7) -> - | I20: =OFFSET(Balance!I199,0,($I$1-1)*7) -> -
B21: Solar fotovoltaica | C21: =OFFSET(Balance!C200,0,($I$1-1)*7) -> 8207.573 | D21: =OFFSET(Balance!D200,0,($I$1-1)*7) -> 8243.075641 | E21: =OFFSET(Balance!E200,0,($I$1-1)*7) -> 7977.5988 | F21: =OFFSET(Balance!F200,0,($I$1-1)*7) -> 8385.036 | G21: =OFFSET(Balance!G200,0,($I$1-1)*7) -> 1537.95107 | H21: =OFFSET(Balance!H200,0,($I$1-1)*7) -> - | I21: =OFFSET(Balance!I200,0,($I$1-1)*7) -> -
B22: Solar térmica | C22: =OFFSET(Balance!C201,0,($I$1-1)*7) -> 4958.915 | D22: =OFFSET(Balance!D201,0,($I$1-1)*7) -> 5085.235 | E22: =OFFSET(Balance!E201,0,($I$1-1)*7) -> 5071.204 | F22: =OFFSET(Balance!F201,0,($I$1-1)*7) -> 5347.949 | G22: =OFFSET(Balance!G201,0,($I$1-1)*7) -> 570.1016 | H22: =OFFSET(Balance!H201,0,($I$1-1)*7) -> - | I22: =OFFSET(Balance!I201,0,($I$1-1)*7) -> -
B23: Térmica renovable(6)/Otras renovables | C23: =OFFSET(Balance!C202,0,($I$1-1)*7) -> 4728.728722 | D23: =OFFSET(Balance!D202,0,($I$1-1)*7) -> 3183.976766 | E23: =OFFSET(Balance!E202,0,($I$1-1)*7) -> 3424.55952 | F23: =OFFSET(Balance!F202,0,($I$1-1)*7) -> 3614.103 | G23: =OFFSET(Balance!G202,0,($I$1-1)*7) -> 879.32067 | H23: =OFFSET(Balance!H202,0,($I$1-1)*7) -> - | I23: =OFFSET(Balance!I202,0,($I$1-1)*7) -> -
B24: Cogeneración y resto(6)/Cogeneración | C24: =OFFSET(Balance!C203,0,($I$1-1)*7) -> 25885.824 | D24: =OFFSET(Balance!D203,0,($I$1-1)*7) -> 25449.49432 | E24: =OFFSET(Balance!E203,0,($I$1-1)*7) -> 25906.61085 | F24: =OFFSET(Balance!F203,0,($I$1-1)*7) -> 28170.445 | G24: =OFFSET(Balance!G203,0,($I$1-1)*7) -> 7225.886196 | H24: =OFFSET(Balance!H203,0,($I$1-1)*7) -> - | I24: =OFFSET(Balance!I203,0,($I$1-1)*7) -> -
B25: Residuos no renovables | C25: =OFFSET(Balance!C204,0,($I$1-1)*7) -> - | D25: =OFFSET(Balance!D204,0,($I$1-1)*7) -> 2480.1095 | E25: =OFFSET(Balance!E204,0,($I$1-1)*7) -> 2606.965 | F25: =OFFSET(Balance!F204,0,($I$1-1)*7) -> 2607.6645 | G25: =OFFSET(Balance!G204,0,($I$1-1)*7) -> 671.2921 | H25: =OFFSET(Balance!H204,0,($I$1-1)*7) -> - | I25: =OFFSET(Balance!I204,0,($I$1-1)*7) -> -
B26: Residuos renovables | C26: =OFFSET(Balance!C205,0,($I$1-1)*7) -> - | D26: =OFFSET(Balance!D205,0,($I$1-1)*7) -> 818.0485 | E26: =OFFSET(Balance!E205,0,($I$1-1)*7) -> 785.397 | F26: =OFFSET(Balance!F205,0,($I$1-1)*7) -> 877.0065 | G26: =OFFSET(Balance!G205,0,($I$1-1)*7) -> 223.365 | H26: =OFFSET(Balance!H205,0,($I$1-1)*7) -> - | I26: =OFFSET(Balance!I205,0,($I$1-1)*7) -> -
B27: Régimen especial | C27: =OFFSET(Balance!C206,0,($I$1-1)*7) -> - | D27: =OFFSET(Balance!D206,0,($I$1-1)*7) -> - | E27: =OFFSET(Balance!E206,0,($I$1-1)*7) -> - | F27: =OFFSET(Balance!F206,0,($I$1-1)*7) -> - | G27: =OFFSET(Balance!G206,0,($I$1-1)*7) -> - | H27: =OFFSET(Balance!H206,0,($I$1-1)*7) -> - | I27: =OFFSET(Balance!I206,0,($I$1-1)*7) -> -
B28: Generación | C28: =OFFSET(Balance!C207,0,($I$1-1)*7) -> 266867.0761 | D28: =OFFSET(Balance!D207,0,($I$1-1)*7) -> 267936.2813 | E28: =OFFSET(Balance!E207,0,($I$1-1)*7) -> 262279.2572 | F28: =OFFSET(Balance!F207,0,($I$1-1)*7) -> 262645.1371 | G28: =OFFSET(Balance!G207,0,($I$1-1)*7) -> 69136.89006 | H28: =OFFSET(Balance!H207,0,($I$1-1)*7) -> - | I28: =OFFSET(Balance!I207,0,($I$1-1)*7) -> -
B29: Consumos en bombeo | C29: =OFFSET(Balance!C208,0,($I$1-1)*7) -> -5329.590051 | D29: =OFFSET(Balance!D208,0,($I$1-1)*7) -> -4520.094179 | E29: =OFFSET(Balance!E208,0,($I$1-1)*7) -> -4819.413075 | F29: =OFFSET(Balance!F208,0,($I$1-1)*7) -> -3675.237904 | G29: =OFFSET(Balance!G208,0,($I$1-1)*7) -> -1372.739541 | H29: =OFFSET(Balance!H208,0,($I$1-1)*7) -> - | I29: =OFFSET(Balance!I208,0,($I$1-1)*7) -> -
B30: Saldo intercambios internacionales (4) | C30: =OFFSET(Balance!C209,0,($I$1-1)*7) -> -3406.124929 | D30: =OFFSET(Balance!D209,0,($I$1-1)*7) -> -133.163225 | E30: =OFFSET(Balance!E209,0,($I$1-1)*7) -> 7667.313553 | F30: =OFFSET(Balance!F209,0,($I$1-1)*7) -> 9170.583643 | G30: =OFFSET(Balance!G209,0,($I$1-1)*7) -> 1904.598035 | H30: =OFFSET(Balance!H209,0,($I$1-1)*7) -> - | I30: =OFFSET(Balance!I209,0,($I$1-1)*7) -> -
B31: Demanda transporte (b.c.) | C31: =OFFSET(Balance!C210,0,($I$1-1)*7) -> 258131.3611 | D31: =OFFSET(Balance!D210,0,($I$1-1)*7) -> 263283.0239 | E31: =OFFSET(Balance!E210,0,($I$1-1)*7) -> 265127.1577 | F31: =OFFSET(Balance!F210,0,($I$1-1)*7) -> 268140.4828 | G31: =OFFSET(Balance!G210,0,($I$1-1)*7) -> 69668.74856 | H31: =OFFSET(Balance!H210,0,($I$1-1)*7) -> - | I31: =OFFSET(Balance!I210,0,($I$1-1)*7) -> -
B32: (1) Asignación de unidades de producción según combustible principal.
B33: (2) Incluye funcionamiento en ciclo abierto.
B35: (3) Incluye todas aquellas unidades menores de 50 MW que no pertenecen a ninguna unidad de gestión hidráulica (UGH).
B36: (4) Valor positivo: saldo importador; valor negativo: saldo exportador.
B37: (5) Incluye residuos.
B38: (6) Hasta 2014 e incluye residuos.
B39: =IF(MONTH(FACT)=1,"",CONCATENATE("Para el año ",YEAR(FACT), " valores acumulados hasta ",TEXT(FACT-30,"mmmm")," de ",YEAR(FACT),".")) -> Para el año 2018 valores acumulados hasta marzo de 2018.
B40: ='Balance nacional mensual'!B38 -> Datos definitivos hasta el 31/03/2017. Datos provisionales del 01/04/2017 al 28/02/2018. Datos programados del 01/03/2018 al 31/03/2018.

Sheet Balance Peninsular mensual
O1: 29
M4: Sistema eléctrico
M5: Horizonte temporal
M6: Periodo
C8: Ene. | D8: Feb. | E8: Mar. | F8: Abr. | G8: May. | H8: Jun. | I8: Jul. | J8: Ago. | K8: Sep. | L8: Oct. | M8: Nov. | N8: Dic. | O8: =OFFSET(Año!C2,($O$1-1),0) -> 2018
B10: Hidráulica | C10: =OFFSET(Balance!C3,0,($O$1-1)*12) -> 2195.140985 | D10: =OFFSET(Balance!D3,0,($O$1-1)*12) -> 2386.615425 | E10: =OFFSET(Balance!E3,0,($O$1-1)*12) -> 4379.9547 | F10: =OFFSET(Balance!F3,0,($O$1-1)*12) -> - | G10: =OFFSET(Balance!G3,0,($O$1-1)*12) -> - | H10: =OFFSET(Balance!H3,0,($O$1-1)*12) -> - | I10: =OFFSET(Balance!I3,0,($O$1-1)*12) -> - | J10: =OFFSET(Balance!J3,0,($O$1-1)*12) -> - | K10: =OFFSET(Balance!K3,0,($O$1-1)*12) -> - | L10: =OFFSET(Balance!L3,0,($O$1-1)*12) -> - | M10: =OFFSET(Balance!M3,0,($O$1-1)*12) -> - | N10: =OFFSET(Balance!N3,0,($O$1-1)*12) -> - | O10: =IF(SUM(C10:N10)=0,"-",SUM(C10:N10)) -> 8961.71111
B11: Turbinación bombeo | C11: =OFFSET(Balance!C4,0,($O$1-1)*12) -> 273.4352352 | D11: =OFFSET(Balance!D4,0,($O$1-1)*12) -> 180.6230236 | E11: =OFFSET(Balance!E4,0,($O$1-1)*12) -> 283.7773 | F11: =OFFSET(Balance!F4,0,($O$1-1)*12) -> - | G11: =OFFSET(Balance!G4,0,($O$1-1)*12) -> - | H11: =OFFSET(Balance!H4,0,($O$1-1)*12) -> - | I11: =OFFSET(Balance!I4,0,($O$1-1)*12) -> - | J11: =OFFSET(Balance!J4,0,($O$1-1)*12) -> - | K11: =OFFSET(Balance!K4,0,($O$1-1)*12) -> - | L11: =OFFSET(Balance!L4,0,($O$1-1)*12) -> - | M11: =OFFSET(Balance!M4,0,($O$1-1)*12) -> - | N11: =OFFSET(Balance!N4,0,($O$1-1)*12) -> - | O11: =IF(SUM(C11:N11)=0,"-",SUM(C11:N11)) -> 737.8355589
B12: Nuclear | C12: =OFFSET(Balance!C5,0,($O$1-1)*12) -> 5098.707 | D12: =OFFSET(Balance!D5,0,($O$1-1)*12) -> 4594.563 | E12: =OFFSET(Balance!E5,0,($O$1-1)*12) -> 4486.4691 | F12: =OFFSET(Balance!F5,0,($O$1-1)*12) -> - | G12: =OFFSET(Balance!G5,0,($O$1-1)*12) -> - | H12: =OFFSET(Balance!H5,0,($O$1-1)*12) -> - | I12: =OFFSET(Balance!I5,0,($O$1-1)*12) -> - | J12: =OFFSET(Balance!J5,0,($O$1-1)*12) -> - | K12: =OFFSET(Balance!K5,0,($O$1-1)*12) -> - | L12: =OFFSET(Balance!L5,0,($O$1-1)*12) -> - | M12: =OFFSET(Balance!M5,0,($O$1-1)*12) -> - | N12: =OFFSET(Balance!N5,0,($O$1-1)*12) -> - | O12: =IF(SUM(C12:N12)=0,"-",SUM(C12:N12)) -> 14179.7391
B13: Carbón | C13: =OFFSET(Balance!C6,0,($O$1-1)*12) -> 3041.538 | D13: =OFFSET(Balance!D6,0,($O$1-1)*12) -> 3500.729 | E13: =OFFSET(Balance!E6,0,($O$1-1)*12) -> 1320.4065 | F13: =OFFSET(Balance!F6,0,($O$1-1)*12) -> - | G13: =OFFSET(Balance!G6,0,($O$1-1)*12) -> - | H13: =OFFSET(Balance!H6,0,($O$1-1)*12) -> - | I13: =OFFSET(Balance!I6,0,($O$1-1)*12) -> - | J13: =OFFSET(Balance!J6,0,($O$1-1)*12) -> - | K13: =OFFSET(Balance!K6,0,($O$1-1)*12) -> - | L13: =OFFSET(Balance!L6,0,($O$1-1)*12) -> - | M13: =OFFSET(Balance!M6,0,($O$1-1)*12) -> - | N13: =OFFSET(Balance!N6,0,($O$1-1)*12) -> - | O13: 7862.6735
B14: Fuel + Gas | C14: =OFFSET(Balance!C7,0,($O$1-1)*12) -> 0 | D14: =OFFSET(Balance!D7,0,($O$1-1)*12) -> 0 | E14: =OFFSET(Balance!E7,0,($O$1-1)*12) -> 0 | F14: =OFFSET(Balance!F7,0,($O$1-1)*12) -> - | G14: =OFFSET(Balance!G7,0,($O$1-1)*12) -> - | H14: =OFFSET(Balance!H7,0,($O$1-1)*12) -> - | I14: =OFFSET(Balance!I7,0,($O$1-1)*12) -> - | J14: =OFFSET(Balance!J7,0,($O$1-1)*12) -> - | K14: =OFFSET(Balance!K7,0,($O$1-1)*12) -> - | L14: =OFFSET(Balance!L7,0,($O$1-1)*12) -> - | M14: =OFFSET(Balance!M7,0,($O$1-1)*12) -> - | N14: =OFFSET(Balance!N7,0,($O$1-1)*12) -> - | O14: -
B15: Ciclo combinado (2) | C15: =OFFSET(Balance!C8,0,($O$1-1)*12) -> 2277.659 | D15: =OFFSET(Balance!D8,0,($O$1-1)*12) -> 1973.229 | E15: =OFFSET(Balance!E8,0,($O$1-1)*12) -> 1219.2908 | F15: =OFFSET(Balance!F8,0,($O$1-1)*12) -> - | G15: =OFFSET(Balance!G8,0,($O$1-1)*12) -> - | H15: =OFFSET(Balance!H8,0,($O$1-1)*12) -> - | I15: =OFFSET(Balance!I8,0,($O$1-1)*12) -> - | J15: =OFFSET(Balance!J8,0,($O$1-1)*12) -> - | K15: =OFFSET(Balance!K8,0,($O$1-1)*12) -> - | L15: =OFFSET(Balance!L8,0,($O$1-1)*12) -> - | M15: =OFFSET(Balance!M8,0,($O$1-1)*12) -> - | N15: =OFFSET(Balance!N8,0,($O$1-1)*12) -> - | O15: 5470.1788
B16: Régimen ordinario | C16: =OFFSET(Balance!C9,0,($O$1-1)*12) -> - | D16: =OFFSET(Balance!D9,0,($O$1-1)*12) -> - | E16: =OFFSET(Balance!E9,0,($O$1-1)*12) -> - | F16: =OFFSET(Balance!F9,0,($O$1-1)*12) -> - | G16: =OFFSET(Balance!G9,0,($O$1-1)*12) -> - | H16: =OFFSET(Balance!H9,0,($O$1-1)*12) -> - | I16: =OFFSET(Balance!I9,0,($O$1-1)*12) -> - | J16: =OFFSET(Balance!J9,0,($O$1-1)*12) -> - | K16: =OFFSET(Balance!K9,0,($O$1-1)*12) -> - | L16: =OFFSET(Balance!L9,0,($O$1-1)*12) -> - | M16: =OFFSET(Balance!M9,0,($O$1-1)*12) -> - | N16: =OFFSET(Balance!N9,0,($O$1-1)*12) -> - | O16: =SUM(O10:O15) -> 37212.13807
B18: Resto hidráulica (3) | C18: =OFFSET(Balance!C10,0,($O$1-1)*12) -> - | D18: =OFFSET(Balance!D10,0,($O$1-1)*12) -> - | E18: =OFFSET(Balance!E10,0,($O$1-1)*12) -> - | F18: =OFFSET(Balance!F10,0,($O$1-1)*12) -> - | G18: =OFFSET(Balance!G10,0,($O$1-1)*12) -> - | H18: =OFFSET(Balance!H10,0,($O$1-1)*12) -> - | I18: =OFFSET(Balance!I10,0,($O$1-1)*12) -> - | J18: =OFFSET(Balance!J10,0,($O$1-1)*12) -> - | K18: =OFFSET(Balance!K10,0,($O$1-1)*12) -> - | L18: =OFFSET(Balance!L10,0,($O$1-1)*12) -> - | M18: =OFFSET(Balance!M10,0,($O$1-1)*12) -> - | N18: =OFFSET(Balance!N10,0,($O$1-1)*12) -> - | O18: -
B19: Eólica | C19: =OFFSET(Balance!C11,0,($O$1-1)*12) -> 5276.365 | D19: =OFFSET(Balance!D11,0,($O$1-1)*12) -> 4622.957 | E19: =OFFSET(Balance!E11,0,($O$1-1)*12) -> 7689.680294 | F19: =OFFSET(Balance!F11,0,($O$1-1)*12) -> - | G19: =OFFSET(Balance!G11,0,($O$1-1)*12) -> - | H19: =OFFSET(Balance!H11,0,($O$1-1)*12) -> - | I19: =OFFSET(Balance!I11,0,($O$1-1)*12) -> - | J19: =OFFSET(Balance!J11,0,($O$1-1)*12) -> - | K19: =OFFSET(Balance!K11,0,($O$1-1)*12) -> - | L19: =OFFSET(Balance!L11,0,($O$1-1)*12) -> - | M19: =OFFSET(Balance!M11,0,($O$1-1)*12) -> - | N19: =OFFSET(Balance!N11,0,($O$1-1)*12) -> - | O19: 17589.00229
B20: Solar fotovoltaica | C20: =OFFSET(Balance!C12,0,($O$1-1)*12) -> 416.288 | D20: =OFFSET(Balance!D12,0,($O$1-1)*12) -> 484.916 | E20: =OFFSET(Balance!E12,0,($O$1-1)*12) -> 553.144 | F20: =OFFSET(Balance!F12,0,($O$1-1)*12) -> - | G20: =OFFSET(Balance!G12,0,($O$1-1)*12) -> - | H20: =OFFSET(Balance!H12,0,($O$1-1)*12) -> - | I20: =OFFSET(Balance!I12,0,($O$1-1)*12) -> - | J20: =OFFSET(Balance!J12,0,($O$1-1)*12) -> - | K20: =OFFSET(Balance!K12,0,($O$1-1)*12) -> - | L20: =OFFSET(Balance!L12,0,($O$1-1)*12) -> - | M20: =OFFSET(Balance!M12,0,($O$1-1)*12) -> - | N20: =OFFSET(Balance!N12,0,($O$1-1)*12) -> - | O20: 1454.348
B21: Solar térmica | C21: =OFFSET(Balance!C13,0,($O$1-1)*12) -> 112.388 | D21: =OFFSET(Balance!D13,0,($O$1-1)*12) -> 229.808 | E21: =OFFSET(Balance!E13,0,($O$1-1)*12) -> 227.9056 | F21: =OFFSET(Balance!F13,0,($O$1-1)*12) -> - | G21: =OFFSET(Balance!G13,0,($O$1-1)*12) -> - | H21: =OFFSET(Balance!H13,0,($O$1-1)*12) -> - | I21: =OFFSET(Balance!I13,0,($O$1-1)*12) -> - | J21: =OFFSET(Balance!J13,0,($O$1-1)*12) -> - | K21: =OFFSET(Balance!K13,0,($O$1-1)*12) -> - | L21: =OFFSET(Balance!L13,0,($O$1-1)*12) -> - | M21: =OFFSET(Balance!M13,0,($O$1-1)*12) -> - | N21: =OFFSET(Balance!N13,0,($O$1-1)*12) -> - | O21: 570.1016
B22: Otras renovables (4) | C22: =OFFSET(Balance!C14,0,($O$1-1)*12) -> 296.492 | D22: =OFFSET(Balance!D14,0,($O$1-1)*12) -> 301.631 | E22: =OFFSET(Balance!E14,0,($O$1-1)*12) -> 279.1826 | F22: =OFFSET(Balance!F14,0,($O$1-1)*12) -> - | G22: =OFFSET(Balance!G14,0,($O$1-1)*12) -> - | H22: =OFFSET(Balance!H14,0,($O$1-1)*12) -> - | I22: =OFFSET(Balance!I14,0,($O$1-1)*12) -> - | J22: =OFFSET(Balance!J14,0,($O$1-1)*12) -> - | K22: =OFFSET(Balance!K14,0,($O$1-1)*12) -> - | L22: =OFFSET(Balance!L14,0,($O$1-1)*12) -> - | M22: =OFFSET(Balance!M14,0,($O$1-1)*12) -> - | N22: =OFFSET(Balance!N14,0,($O$1-1)*12) -> - | O22: 877.3056
B23: Cogeneración | C23: =OFFSET(Balance!C15,0,($O$1-1)*12) -> 2474.736 | D23: =OFFSET(Balance!D15,0,($O$1-1)*12) -> 2243.423 | E23: =OFFSET(Balance!E15,0,($O$1-1)*12) -> 2499.064706 | F23: =OFFSET(Balance!F15,0,($O$1-1)*12) -> - | G23: =OFFSET(Balance!G15,0,($O$1-1)*12) -> - | H23: =OFFSET(Balance!H15,0,($O$1-1)*12) -> - | I23: =OFFSET(Balance!I15,0,($O$1-1)*12) -> - | J23: =OFFSET(Balance!J15,0,($O$1-1)*12) -> - | K23: =OFFSET(Balance!K15,0,($O$1-1)*12) -> - | L23: =OFFSET(Balance!L15,0,($O$1-1)*12) -> - | M23: =OFFSET(Balance!M15,0,($O$1-1)*12) -> - | N23: =OFFSET(Balance!N15,0,($O$1-1)*12) -> - | O23: 7217.223706
B24: Residuos no renovables | C24: =OFFSET(Balance!C16,0,($O$1-1)*12) -> 226.5715 | D24: =OFFSET(Balance!D16,0,($O$1-1)*12) -> 202.003 | E24: =OFFSET(Balance!E16,0,($O$1-1)*12) -> 217.50215 | F24: =OFFSET(Balance!F16,0,($O$1-1)*12) -> - | G24: =OFFSET(Balance!G16,0,($O$1-1)*12) -> - | H24: =OFFSET(Balance!H16,0,($O$1-1)*12) -> - | I24: =OFFSET(Balance!I16,0,($O$1-1)*12) -> - | J24: =OFFSET(Balance!J16,0,($O$1-1)*12) -> - | K24: =OFFSET(Balance!K16,0,($O$1-1)*12) -> - | L24: =OFFSET(Balance!L16,0,($O$1-1)*12) -> - | M24: =OFFSET(Balance!M16,0,($O$1-1)*12) -> - | N24: =OFFSET(Balance!N16,0,($O$1-1)*12) -> - | O24: 646.07665
B25: Residuos renovables | C25: =OFFSET(Balance!C17,0,($O$1-1)*12) -> 69.2635 | D25: =OFFSET(Balance!D17,0,($O$1-1)*12) -> 62.439 | E25: =OFFSET(Balance!E17,0,($O$1-1)*12) -> 66.44705 | F25: =OFFSET(Balance!F17,0,($O$1-1)*12) -> - | G25: =OFFSET(Balance!G17,0,($O$1-1)*12) -> - | H25: =OFFSET(Balance!H17,0,($O$1-1)*12) -> - | I25: =OFFSET(Balance!I17,0,($O$1-1)*12) -> - | J25: =OFFSET(Balance!J17,0,($O$1-1)*12) -> - | K25: =OFFSET(Balance!K17,0,($O$1-1)*12) -> - | L25: =OFFSET(Balance!L17,0,($O$1-1)*12) -> - | M25: =OFFSET(Balance!M17,0,($O$1-1)*12) -> - | N25: =OFFSET(Balance!N17,0,($O$1-1)*12) -> - | O25: =IF(SUM(C25:N25)=0,"-",SUM(C25:N25)) -> 198.14955
B26: Régimen especial | C26: =OFFSET(Balance!C18,0,($O$1-1)*12) -> - | D26: =OFFSET(Balance!D18,0,($O$1-1)*12) -> - | E26: =OFFSET(Balance!E18,0,($O$1-1)*12) -> - | F26: =OFFSET(Balance!F18,0,($O$1-1)*12) -> - | G26: =OFFSET(Balance!G18,0,($O$1-1)*12) -> - | H26: =OFFSET(Balance!H18,0,($O$1-1)*12) -> - | I26: =OFFSET(Balance!I18,0,($O$1-1)*12) -> - | J26: =OFFSET(Balance!J18,0,($O$1-1)*12) -> - | K26: =OFFSET(Balance!K18,0,($O$1-1)*12) -> - | L26: =OFFSET(Balance!L18,0,($O$1-1)*12) -> - | M26: =OFFSET(Balance!M18,0,($O$1-1)*12) -> - | N26: =OFFSET(Balance!N18,0,($O$1-1)*12) -> - | O26: =SUM(O18:O23) -> 27707.9812
B27: Generación | C27: =OFFSET(Balance!C19,0,($O$1-1)*12) -> 21758.58422 | D27: =OFFSET(Balance!D19,0,($O$1-1)*12) -> 20782.93645 | E27: =OFFSET(Balance!E19,0,($O$1-1)*12) -> 23222.8248 | F27: =OFFSET(Balance!F19,0,($O$1-1)*12) -> - | G27: =OFFSET(Balance!G19,0,($O$1-1)*12) -> - | H27: =OFFSET(Balance!H19,0,($O$1-1)*12) -> - | I27: =OFFSET(Balance!I19,0,($O$1-1)*12) -> - | J27: =OFFSET(Balance!J19,0,($O$1-1)*12) -> - | K27: =OFFSET(Balance!K19,0,($O$1-1)*12) -> - | L27: =OFFSET(Balance!L19,0,($O$1-1)*12) -> - | M27: =OFFSET(Balance!M19,0,($O$1-1)*12) -> - | N27: =OFFSET(Balance!N19,0,($O$1-1)*12) -> - | O27: =IF(SUM(C27:N27)=0,"-",SUM(C27:N27)) -> 65764.34547
B28: Consumos en bombeo | C28: =OFFSET(Balance!C20,0,($O$1-1)*12) -> -390.733979 | D28: =OFFSET(Balance!D20,0,($O$1-1)*12) -> -253.253662 | E28: =OFFSET(Balance!E20,0,($O$1-1)*12) -> -728.7519 | F28: =OFFSET(Balance!F20,0,($O$1-1)*12) -> - | G28: =OFFSET(Balance!G20,0,($O$1-1)*12) -> - | H28: =OFFSET(Balance!H20,0,($O$1-1)*12) -> - | I28: =OFFSET(Balance!I20,0,($O$1-1)*12) -> - | J28: =OFFSET(Balance!J20,0,($O$1-1)*12) -> - | K28: =OFFSET(Balance!K20,0,($O$1-1)*12) -> - | L28: =OFFSET(Balance!L20,0,($O$1-1)*12) -> - | M28: =OFFSET(Balance!M20,0,($O$1-1)*12) -> - | N28: =OFFSET(Balance!N20,0,($O$1-1)*12) -> - | O28: -1372.739541
B29: Enlace Península-Baleares (6) | C29: =OFFSET(Balance!C21,0,($O$1-1)*12) -> -86.203829 | D29: =OFFSET(Balance!D21,0,($O$1-1)*12) -> -99.993399 | E29: =OFFSET(Balance!E21,0,($O$1-1)*12) -> -90.1067 | F29: =OFFSET(Balance!F21,0,($O$1-1)*12) -> - | G29: =OFFSET(Balance!G21,0,($O$1-1)*12) -> - | H29: =OFFSET(Balance!H21,0,($O$1-1)*12) -> - | I29: =OFFSET(Balance!I21,0,($O$1-1)*12) -> - | J29: =OFFSET(Balance!J21,0,($O$1-1)*12) -> - | K29: =OFFSET(Balance!K21,0,($O$1-1)*12) -> - | L29: =OFFSET(Balance!L21,0,($O$1-1)*12) -> - | M29: =OFFSET(Balance!M21,0,($O$1-1)*12) -> - | N29: =OFFSET(Balance!N21,0,($O$1-1)*12) -> - | O29: =IF(SUM(C29:N29)=0,"-",SUM(C29:N29)) -> -276.303928
B30: Saldo intercambios internacionales (7) | C30: =OFFSET(Balance!C22,0,($O$1-1)*12) -> 1340.296642 | D30: =OFFSET(Balance!D22,0,($O$1-1)*12) -> 857.102993 | E30: =OFFSET(Balance!E22,0,($O$1-1)*12) -> -292.8016 | F30: =OFFSET(Balance!F22,0,($O$1-1)*12) -> - | G30: =OFFSET(Balance!G22,0,($O$1-1)*12) -> - | H30: =OFFSET(Balance!H22,0,($O$1-1)*12) -> - | I30: =OFFSET(Balance!I22,0,($O$1-1)*12) -> - | J30: =OFFSET(Balance!J22,0,($O$1-1)*12) -> - | K30: =OFFSET(Balance!K22,0,($O$1-1)*12) -> - | L30: =OFFSET(Balance!L22,0,($O$1-1)*12) -> - | M30: =OFFSET(Balance!M22,0,($O$1-1)*12) -> - | N30: =OFFSET(Balance!N22,0,($O$1-1)*12) -> - | O30: 1904.598035
B31: Demanda transporte (b.c.) | C31: =OFFSET(Balance!C23,0,($O$1-1)*12) -> 22621.94305 | D31: =OFFSET(Balance!D23,0,($O$1-1)*12) -> 21286.79238 | E31: =OFFSET(Balance!E23,0,($O$1-1)*12) -> 22111.1646 | F31: =OFFSET(Balance!F23,0,($O$1-1)*12) -> - | G31: =OFFSET(Balance!G23,0,($O$1-1)*12) -> - | H31: =OFFSET(Balance!H23,0,($O$1-1)*12) -> - | I31: =OFFSET(Balance!I23,0,($O$1-1)*12) -> - | J31: =OFFSET(Balance!J23,0,($O$1-1)*12) -> - | K31: =OFFSET(Balance!K23,0,($O$1-1)*12) -> - | L31: =OFFSET(Balance!L23,0,($O$1-1)*12) -> - | M31: =OFFSET(Balance!M23,0,($O$1-1)*12) -> - | N31: =OFFSET(Balance!N23,0,($O$1-1)*12) -> - | O31: =IF(SUM(C31:N31)=0,"-",SUM(C31:N31)) -> 66019.90003
B32: (1) Asignación de unidades de producción según combustible principal.
B33: (2) Incluye funcionamiento en ciclo abierto.
B34: (3) Incluye todas aquellas unidades menores de 50 MW que no pertenecen a ninguna unidad de gestión hidráulica (UGH).
B35: (4) Otras renovables incluyen biogás, biomasa, hidráulica marina y geotérmica. Los valores incluyen residuos hasta el 31/12/2014.
B36: (5) Incluye residuos.
B37: (6) Valor positivo: entrada de energía en el sistema; valor negativo: salida de energía del sistema. Enlace funcionando al mínimo técnico de seguridad hasta el 13/08/2012.
B38: (7) Valor positivo: saldo importador; valor negativo: saldo exportador.
B39: ='Balance nacional mensual'!B38 -> Datos definitivos hasta el 31/03/2017. Datos provisionales del 01/04/2017 al 28/02/2018. Datos programados del 01/03/2018 al 31/03/2018.

Sheet Balance Peninsular anual
J1: 4 | L1: 1
H4: Sistema eléctrico
H5: Horizonte temporal
H6: Periodo
C8: =OFFSET(Balance!C107,0,($J$1-1)*8) -> 2014 | D8: =OFFSET(Balance!D107,0,($J$1-1)*8) -> 2015 | E8: =OFFSET(Balance!E107,0,($J$1-1)*8) -> 2016 | F8: =OFFSET(Balance!F107,0,($J$1-1)*8) -> 2017 | G8: =OFFSET(Balance!G107,0,($J$1-1)*8) -> 2018 | H8: =OFFSET(Balance!H107,0,($J$1-1)*8) -> 2019 | I8: =OFFSET(Balance!I107,0,($J$1-1)*8) -> 2020 | J8: =OFFSET(Balance!J107,0,($J$1-1)*8) -> 2021
B10: Hidráulica | C10: =OFFSET(Balance!C108,0,($J$1-1)*8) -> 32042.87851 | D10: =OFFSET(Balance!D108,0,($J$1-1)*8) -> 28322.42428 | E10: =OFFSET(Balance!E108,0,($J$1-1)*8) -> 36039.15372 | F10: =OFFSET(Balance!F108,0,($J$1-1)*8) -> 18360.50015 | G10: =OFFSET(Balance!G108,0,($J$1-1)*8) -> 8961.71111 | H10: =OFFSET(Balance!H108,0,($J$1-1)*8) -> - | I10: =OFFSET(Balance!I108,0,($J$1-1)*8) -> - | J10: =OFFSET(Balance!J108,0,($J$1-1)*8) -> -
B11: Turbinación bombeo | C11: =OFFSET(Balance!C109,0,($J$1-1)*8) -> 3415.996027 | D11: =OFFSET(Balance!D109,0,($J$1-1)*8) -> 2895.365788 | E11: =OFFSET(Balance!E109,0,($J$1-1)*8) -> 3134.32891 | F11: =OFFSET(Balance!F109,0,($J$1-1)*8) -> 2248.993858 | G11: =OFFSET(Balance!G109,0,($J$1-1)*8) -> 737.8355589 | H11: =OFFSET(Balance!H109,0,($J$1-1)*8) -> - | I11: =OFFSET(Balance!I109,0,($J$1-1)*8) -> - | J11: =OFFSET(Balance!J109,0,($J$1-1)*8) -> -
B12: Nuclear | C12: =OFFSET(Balance!C110,0,($J$1-1)*8) -> 54870.239 | D12: =OFFSET(Balance!D110,0,($J$1-1)*8) -> 54754.83905 | E12: =OFFSET(Balance!E110,0,($J$1-1)*8) -> 56098.972 | F12: =OFFSET(Balance!F110,0,($J$1-1)*8) -> 55608.922 | G12: =OFFSET(Balance!G110,0,($J$1-1)*8) -> 14179.7391 | H12: =OFFSET(Balance!H110,0,($J$1-1)*8) -> - | I12: =OFFSET(Balance!I110,0,($J$1-1)*8) -> - | J12: =OFFSET(Balance!J110,0,($J$1-1)*8) -> -
B13: Carbón | C13: =OFFSET(Balance!C111,0,($J$1-1)*8) -> 41132.677 | D13: =OFFSET(Balance!D111,0,($J$1-1)*8) -> 50923.77237 | E13: =OFFSET(Balance!E111,0,($J$1-1)*8) -> 35187.504 | F13: =OFFSET(Balance!F111,0,($J$1-1)*8) -> 42592.92446 | G13: =OFFSET(Balance!G111,0,($J$1-1)*8) -> 7862.6735 | H13: =OFFSET(Balance!H111,0,($J$1-1)*8) -> - | I13: =OFFSET(Balance!I111,0,($J$1-1)*8) -> - | J13: =OFFSET(Balance!J111,0,($J$1-1)*8) -> -
B14: Fuel + Gas | C14: =OFFSET(Balance!C112,0,($J$1-1)*8) -> 0 | D14: =OFFSET(Balance!D112,0,($J$1-1)*8) -> 0 | E14: =OFFSET(Balance!E112,0,($J$1-1)*8) -> 0 | F14: =OFFSET(Balance!F112,0,($J$1-1)*8) -> 0 | G14: =OFFSET(Balance!G112,0,($J$1-1)*8) -> 0 | H14: =OFFSET(Balance!H112,0,($J$1-1)*8) -> - | I14: =OFFSET(Balance!I112,0,($J$1-1)*8) -> - | J14: =OFFSET(Balance!J112,0,($J$1-1)*8) -> -
B15: Ciclo combinado (2) | C15: =OFFSET(Balance!C113,0,($J$1-1)*8) -> 21336.7539 | D15: =OFFSET(Balance!D113,0,($J$1-1)*8) -> 25268.468 | E15: =OFFSET(Balance!E113,0,($J$1-1)*8) -> 25686.14879 | F15: =OFFSET(Balance!F113,0,($J$1-1)*8) -> 33854.52793 | G15: =OFFSET(Balance!G113,0,($J$1-1)*8) -> 5470.1788 | H15: =OFFSET(Balance!H113,0,($J$1-1)*8) -> - | I15: =OFFSET(Balance!I113,0,($J$1-1)*8) -> - | J15: =OFFSET(Balance!J113,0,($J$1-1)*8) -> -
B16: Régimen ordinario | C16: =OFFSET(Balance!C114,0,($L$1-1)*8) -> 134378.673 | D16: =OFFSET(Balance!D114,0,($L$1-1)*8) -> 138739.239 | E16: =OFFSET(Balance!E114,0,($L$1-1)*8) -> 139159.899 | F16: =OFFSET(Balance!F114,0,($L$1-1)*8) -> 136129.529 | G16: =OFFSET(Balance!G114,0,($L$1-1)*8) -> 137533.135 | H16: =OFFSET(Balance!H114,0,($L$1-1)*8) -> 139730.269 | I16: =OFFSET(Balance!I114,0,($L$1-1)*8) -> 143015.335 | J16: =OFFSET(Balance!J114,0,($L$1-1)*8) -> 151034.574
B18: Resto hidráulica (3) | C18: =OFFSET(Balance!C115,0,($J$1-1)*8) -> 7069.52 | D18: =OFFSET(Balance!D115,0,($J$1-1)*8) -> - | E18: =OFFSET(Balance!E115,0,($J$1-1)*8) -> - | F18: =OFFSET(Balance!F115,0,($J$1-1)*8) -> - | G18: =OFFSET(Balance!G115,0,($J$1-1)*8) -> - | H18: =OFFSET(Balance!H115,0,($J$1-1)*8) -> - | I18: =OFFSET(Balance!I115,0,($J$1-1)*8) -> - | J18: =OFFSET(Balance!J115,0,($J$1-1)*8) -> -
B19: Eólica | C19: =OFFSET(Balance!C116,0,($J$1-1)*8) -> 50634.89 | D19: =OFFSET(Balance!D116,0,($J$1-1)*8) -> 47713.15 | E19: =OFFSET(Balance!E116,0,($J$1-1)*8) -> 47298.17 | F19: =OFFSET(Balance!F116,0,($J$1-1)*8) -> 47498.142 | G19: =OFFSET(Balance!G116,0,($J$1-1)*8) -> 17589.00229 | H19: =OFFSET(Balance!H116,0,($J$1-1)*8) -> - | I19: =OFFSET(Balance!I116,0,($J$1-1)*8) -> - | J19: =OFFSET(Balance!J116,0,($J$1-1)*8) -> -
B20: Solar fotovoltaica | C20: =OFFSET(Balance!C117,0,($J$1-1)*8) -> 7802.424 | D20: =OFFSET(Balance!D117,0,($J$1-1)*8) -> 7844.798 | E20: =OFFSET(Balance!E117,0,($J$1-1)*8) -> 7579.313 | F20: =OFFSET(Balance!F117,0,($J$1-1)*8) -> 7988.216 | G20: =OFFSET(Balance!G117,0,($J$1-1)*8) -> 1454.348 | H20: =OFFSET(Balance!H117,0,($J$1-1)*8) -> - | I20: =OFFSET(Balance!I117,0,($J$1-1)*8) -> - | J20: =OFFSET(Balance!J117,0,($J$1-1)*8) -> -
B21: Solar térmica | C21: =OFFSET(Balance!C118,0,($J$1-1)*8) -> 4958.915 | D21: =OFFSET(Balance!D118,0,($J$1-1)*8) -> 5085.235 | E21: =OFFSET(Balance!E118,0,($J$1-1)*8) -> 5071.204 | F21: =OFFSET(Balance!F118,0,($J$1-1)*8) -> 5347.949 | G21: =OFFSET(Balance!G118,0,($J$1-1)*8) -> 570.1016 | H21: =OFFSET(Balance!H118,0,($J$1-1)*8) -> - | I21: =OFFSET(Balance!I118,0,($J$1-1)*8) -> - | J21: =OFFSET(Balance!J118,0,($J$1-1)*8) -> -
B22: Térmica renovable(4)/Otras renovables | C22: =OFFSET(Balance!C119,0,($J$1-1)*8) -> 4717.978 | D22: =OFFSET(Balance!D119,0,($J$1-1)*8) -> 3173.951 | E22: =OFFSET(Balance!E119,0,($J$1-1)*8) -> 3413.914 | F22: =OFFSET(Balance!F119,0,($J$1-1)*8) -> 3602.913 | G22: =OFFSET(Balance!G119,0,($J$1-1)*8) -> 877.3056 | H22: =OFFSET(Balance!H119,0,($J$1-1)*8) -> - | I22: =OFFSET(Balance!I119,0,($J$1-1)*8) -> - | J22: =OFFSET(Balance!J119,0,($J$1-1)*8) -> -
B23: Cogeneración y resto(4)/Cogeneración | C23: =OFFSET(Balance!C120,0,($J$1-1)*8) -> 25595.536 | D23: =OFFSET(Balance!D120,0,($J$1-1)*8) -> 25417.975 | E23: =OFFSET(Balance!E120,0,($J$1-1)*8) -> 25871.912 | F23: =OFFSET(Balance!F120,0,($J$1-1)*8) -> 28134.276 | G23: =OFFSET(Balance!G120,0,($J$1-1)*8) -> 7217.223706 | H23: =OFFSET(Balance!H120,0,($J$1-1)*8) -> - | I23: =OFFSET(Balance!I120,0,($J$1-1)*8) -> - | J23: =OFFSET(Balance!J120,0,($J$1-1)*8) -> -
B24: Residuos no renovables | C24: =OFFSET(Balance!C121,0,($J$1-1)*8) -> - | D24: =OFFSET(Balance!D121,0,($J$1-1)*8) -> 2324.716 | E24: =OFFSET(Balance!E121,0,($J$1-1)*8) -> 2471.3095 | F24: =OFFSET(Balance!F121,0,($J$1-1)*8) -> 2458.8085 | G24: =OFFSET(Balance!G121,0,($J$1-1)*8) -> 646.07665 | H24: =OFFSET(Balance!H121,0,($J$1-1)*8) -> - | I24: =OFFSET(Balance!I121,0,($J$1-1)*8) -> - | J24: =OFFSET(Balance!J121,0,($J$1-1)*8) -> -
B25: Residuos renovables | C25: =OFFSET(Balance!C122,0,($J$1-1)*8) -> - | D25: =OFFSET(Balance!D122,0,($J$1-1)*8) -> 662.655 | E25: =OFFSET(Balance!E122,0,($J$1-1)*8) -> 649.7415 | F25: =OFFSET(Balance!F122,0,($J$1-1)*8) -> 728.1505 | G25: =OFFSET(Balance!G122,0,($J$1-1)*8) -> 198.14955 | H25: =OFFSET(Balance!H122,0,($J$1-1)*8) -> - | I25: =OFFSET(Balance!I122,0,($J$1-1)*8) -> - | J25: =OFFSET(Balance!J122,0,($J$1-1)*8) -> -
B26: Régimen especial | C26: =OFFSET(Balance!C123,0,($L$1-1)*8) -> 1639.676 | D26: =OFFSET(Balance!D123,0,($L$1-1)*8) -> 3144.484 | E26: =OFFSET(Balance!E123,0,($L$1-1)*8) -> 4030.621 | F26: =OFFSET(Balance!F123,0,($L$1-1)*8) -> 5697.322 | G26: =OFFSET(Balance!G123,0,($L$1-1)*8) -> 8197.865 | H26: =OFFSET(Balance!H123,0,($L$1-1)*8) -> 9595.815 | I26: =OFFSET(Balance!I123,0,($L$1-1)*8) -> 13655.767 | J26: =OFFSET(Balance!J123,0,($L$1-1)*8) -> 16160.998
B27: Generación | C27: =OFFSET(Balance!C124,0,($J$1-1)*8) -> 253577.8074 | D27: =OFFSET(Balance!D124,0,($J$1-1)*8) -> 254387.3495 | E27: =OFFSET(Balance!E124,0,($J$1-1)*8) -> 248501.6714 | F27: =OFFSET(Balance!F124,0,($J$1-1)*8) -> 248424.3234 | G27: =OFFSET(Balance!G124,0,($J$1-1)*8) -> 65764.34547 | H27: =OFFSET(Balance!H124,0,($J$1-1)*8) -> - | I27: =OFFSET(Balance!I124,0,($J$1-1)*8) -> - | J27: =OFFSET(Balance!J124,0,($J$1-1)*8) -> -
B28: Consumos en bombeo | C28: =OFFSET(Balance!C125,0,($J$1-1)*8) -> -5329.590051 | D28: =OFFSET(Balance!D125,0,($J$1-1)*8) -> -4520.094179 | E28: =OFFSET(Balance!E125,0,($J$1-1)*8) -> -4819.413075 | F28: =OFFSET(Balance!F125,0,($J$1-1)*8) -> -3675.237904 | G28: =OFFSET(Balance!G125,0,($J$1-1)*8) -> -1372.739541 | H28: =OFFSET(Balance!H125,0,($J$1-1)*8) -> - | I28: =OFFSET(Balance!I125,0,($J$1-1)*8) -> - | J28: =OFFSET(Balance!J125,0,($J$1-1)*8) -> -
B29: Enlace Península-Baleares (6) | C29: =OFFSET(Balance!C126,0,($J$1-1)*8) -> -1298.264404 | D29: =OFFSET(Balance!D126,0,($J$1-1)*8) -> -1335.782802 | E29: =OFFSET(Balance!E126,0,($J$1-1)*8) -> -1250.582501 | F29: =OFFSET(Balance!F126,0,($J$1-1)*8) -> -1179.300653 | G29: =OFFSET(Balance!G126,0,($J$1-1)*8) -> -276.303928 | H29: =OFFSET(Balance!H126,0,($J$1-1)*8) -> - | I29: =OFFSET(Balance!I126,0,($J$1-1)*8) -> - | J29: =OFFSET(Balance!J126,0,($J$1-1)*8) -> -
B30: Saldo intercambios internacionales (7) | C30: =OFFSET(Balance!C127,0,($J$1-1)*8) -> -3406.124929 | D30: =OFFSET(Balance!D127,0,($J$1-1)*8) -> -133.163225 | E30: =OFFSET(Balance!E127,0,($J$1-1)*8) -> 7667.313553 | F30: =OFFSET(Balance!F127,0,($J$1-1)*8) -> 9170.583643 | G30: =OFFSET(Balance!G127,0,($J$1-1)*8) -> 1904.598035 | H30: =OFFSET(Balance!H127,0,($J$1-1)*8) -> - | I30: =OFFSET(Balance!I127,0,($J$1-1)*8) -> - | J30: =OFFSET(Balance!J127,0,($J$1-1)*8) -> -
B31: Demanda transporte (b.c.) | C31: =OFFSET(Balance!C128,0,($J$1-1)*8) -> 243543.8281 | D31: =OFFSET(Balance!D128,0,($J$1-1)*8) -> 248398.3093 | E31: =OFFSET(Balance!E128,0,($J$1-1)*8) -> 250098.9894 | F31: =OFFSET(Balance!F128,0,($J$1-1)*8) -> 252740.3685 | G31: =OFFSET(Balance!G128,0,($J$1-1)*8) -> 66019.90003 | H31: =OFFSET(Balance!H128,0,($J$1-1)*8) -> - | I31: =OFFSET(Balance!I128,0,($J$1-1)*8) -> - | J31: =OFFSET(Balance!J128,0,($J$1-1)*8) -> -
B32: (1) Asignación de unidades de producción según combustible principal.
B33: (2) Incluye funcionamiento en ciclo abierto.
B34: (3) Incluye todas aquellas unidades menores de 50 MW que no pertenecen a ninguna unidad de gestión hidráulica (UGH).
B35: (4) Incluye residuos hasta el 31/12/2014.
B36: (5) Incluye biogás, biomasa, hidráulica marina y geotérmica.
B37: (6) Valor positivo: entrada de energía en el sistema; valor negativo: salida de energía del sistema. Enlace funcionando al mínimo técnico de seguridad hasta el 13/08/2012.
B38: (7) Valor positivo: saldo importador; valor negativo: saldo exportador.
B39: =IF(MONTH(FACT)=1,"",CONCATENATE("Para el año ",YEAR(FACT), " valores acumulados hasta ",TEXT(FACT-30,"mmmm")," de ",YEAR(FACT),".")) -> Para el año 2018 valores acumulados hasta marzo de 2018.
B40: ='Balance nacional mensual'!B38 -> Datos definitivos hasta el 31/03/2017. Datos provisionales del 01/04/2017 al 28/02/2018. Datos programados del 01/03/2018 al 31/03/2018.

Sheet Balance Baleares mensual
O1: 13
M4: Sistema eléctrico
M5: Horizonte temporal
M6: Periodo
C8: Ene. | D8: Feb. | E8: Mar. | F8: Abr. | G8: May. | H8: Jun. | I8: Jul. | J8: Ago. | K8: Sep. | L8: Oct. | M8: Nov. | N8: Dic. | O8: =OFFSET(Año!C18,($O$1-1),0) -> 2018
B10: Carbón | C10: =OFFSET(Balance!C26,0,($O$1-1)*12) -> 198554.986 | D10: =OFFSET(Balance!D26,0,($O$1-1)*12) -> 192794.891 | E10: =OFFSET(Balance!E26,0,($O$1-1)*12) -> 200215.908 | F10: =OFFSET(Balance!F26,0,($O$1-1)*12) -> - | G10: =OFFSET(Balance!G26,0,($O$1-1)*12) -> - | H10: =OFFSET(Balance!H26,0,($O$1-1)*12) -> - | I10: =OFFSET(Balance!I26,0,($O$1-1)*12) -> - | J10: =OFFSET(Balance!J26,0,($O$1-1)*12) -> - | K10: =OFFSET(Balance!K26,0,($O$1-1)*12) -> - | L10: =OFFSET(Balance!L26,0,($O$1-1)*12) -> - | M10: =OFFSET(Balance!M26,0,($O$1-1)*12) -> - | N10: =OFFSET(Balance!N26,0,($O$1-1)*12) -> - | O10: =IF(SUM(C10:N10)=0,"-",SUM(C10:N10)) -> 591565.785
B11: Motores diesel | C11: =OFFSET(Balance!C27,0,($O$1-1)*12) -> 35374.103 | D11: =OFFSET(Balance!D27,0,($O$1-1)*12) -> 39245.297 | E11: =OFFSET(Balance!E27,0,($O$1-1)*12) -> 40276.341 | F11: =OFFSET(Balance!F27,0,($O$1-1)*12) -> - | G11: =OFFSET(Balance!G27,0,($O$1-1)*12) -> - | H11: =OFFSET(Balance!H27,0,($O$1-1)*12) -> - | I11: =OFFSET(Balance!I27,0,($O$1-1)*12) -> - | J11: =OFFSET(Balance!J27,0,($O$1-1)*12) -> - | K11: =OFFSET(Balance!K27,0,($O$1-1)*12) -> - | L11: =OFFSET(Balance!L27,0,($O$1-1)*12) -> - | M11: =OFFSET(Balance!M27,0,($O$1-1)*12) -> - | N11: =OFFSET(Balance!N27,0,($O$1-1)*12) -> - | O11: 114895.741
B12: Turbina de gas | C12: =OFFSET(Balance!C28,0,($O$1-1)*12) -> 59556.202 | D12: =OFFSET(Balance!D28,0,($O$1-1)*12) -> 59632.27 | E12: =OFFSET(Balance!E28,0,($O$1-1)*12) -> 61588.868 | F12: =OFFSET(Balance!F28,0,($O$1-1)*12) -> - | G12: =OFFSET(Balance!G28,0,($O$1-1)*12) -> - | H12: =OFFSET(Balance!H28,0,($O$1-1)*12) -> - | I12: =OFFSET(Balance!I28,0,($O$1-1)*12) -> - | J12: =OFFSET(Balance!J28,0,($O$1-1)*12) -> - | K12: =OFFSET(Balance!K28,0,($O$1-1)*12) -> - | L12: =OFFSET(Balance!L28,0,($O$1-1)*12) -> - | M12: =OFFSET(Balance!M28,0,($O$1-1)*12) -> - | N12: =OFFSET(Balance!N28,0,($O$1-1)*12) -> - | O12: 180777.34
B13: Fuel + Gas | C13: =OFFSET(Balance!C29,0,($O$1-1)*12) -> 94930.305 | D13: =OFFSET(Balance!D29,0,($O$1-1)*12) -> 98877.567 | E13: =OFFSET(Balance!E29,0,($O$1-1)*12) -> 101865.209 | F13: =OFFSET(Balance!F29,0,($O$1-1)*12) -> - | G13: =OFFSET(Balance!G29,0,($O$1-1)*12) -> - | H13: =OFFSET(Balance!H29,0,($O$1-1)*12) -> - | I13: =OFFSET(Balance!I29,0,($O$1-1)*12) -> - | J13: =OFFSET(Balance!J29,0,($O$1-1)*12) -> - | K13: =OFFSET(Balance!K29,0,($O$1-1)*12) -> - | L13: =OFFSET(Balance!L29,0,($O$1-1)*12) -> - | M13: =OFFSET(Balance!M29,0,($O$1-1)*12) -> - | N13: =OFFSET(Balance!N29,0,($O$1-1)*12) -> - | O13: =SUM(O11:O12) -> 295673.081
B14: Ciclo combinado (2) | C14: =OFFSET(Balance!C30,0,($O$1-1)*12) -> 31199.051 | D14: =OFFSET(Balance!D30,0,($O$1-1)*12) -> 48598.584 | E14: =OFFSET(Balance!E30,0,($O$1-1)*12) -> 38884.349 | F14: =OFFSET(Balance!F30,0,($O$1-1)*12) -> - | G14: =OFFSET(Balance!G30,0,($O$1-1)*12) -> - | H14: =OFFSET(Balance!H30,0,($O$1-1)*12) -> - | I14: =OFFSET(Balance!I30,0,($O$1-1)*12) -> - | J14: =OFFSET(Balance!J30,0,($O$1-1)*12) -> - | K14: =OFFSET(Balance!K30,0,($O$1-1)*12) -> - | L14: =OFFSET(Balance!L30,0,($O$1-1)*12) -> - | M14: =OFFSET(Balance!M30,0,($O$1-1)*12) -> - | N14: =OFFSET(Balance!N30,0,($O$1-1)*12) -> - | O14: =IF(SUM(C14:N14)=0,"-",SUM(C14:N14)) -> 118681.984
B15: Generación auxiliar (3) | C15: =OFFSET(Balance!C31,0,($O$1-1)*12) -> 0 | D15: =OFFSET(Balance!D31,0,($O$1-1)*12) -> 0 | E15: =OFFSET(Balance!E31,0,($O$1-1)*12) -> 0 | F15: =OFFSET(Balance!F31,0,($O$1-1)*12) -> - | G15: =OFFSET(Balance!G31,0,($O$1-1)*12) -> - | H15: =OFFSET(Balance!H31,0,($O$1-1)*12) -> - | I15: =OFFSET(Balance!I31,0,($O$1-1)*12) -> - | J15: =OFFSET(Balance!J31,0,($O$1-1)*12) -> - | K15: =OFFSET(Balance!K31,0,($O$1-1)*12) -> - | L15: =OFFSET(Balance!L31,0,($O$1-1)*12) -> - | M15: =OFFSET(Balance!M31,0,($O$1-1)*12) -> - | N15: =OFFSET(Balance!N31,0,($O$1-1)*12) -> - | O15: =IF(SUM(C15:N15)=0,"-",SUM(C15:N15)) -> -
B16: Régimen ordinario | C16: =OFFSET(Balance!C32,0,($O$1-1)*12) -> - | D16: =OFFSET(Balance!D32,0,($O$1-1)*12) -> - | E16: =OFFSET(Balance!E32,0,($O$1-1)*12) -> - | F16: =OFFSET(Balance!F32,0,($O$1-1)*12) -> - | G16: =OFFSET(Balance!G32,0,($O$1-1)*12) -> - | H16: =OFFSET(Balance!H32,0,($O$1-1)*12) -> - | I16: =OFFSET(Balance!I32,0,($O$1-1)*12) -> - | J16: =OFFSET(Balance!J32,0,($O$1-1)*12) -> - | K16: =OFFSET(Balance!K32,0,($O$1-1)*12) -> - | L16: =OFFSET(Balance!L32,0,($O$1-1)*12) -> - | M16: =OFFSET(Balance!M32,0,($O$1-1)*12) -> - | N16: =OFFSET(Balance!N32,0,($O$1-1)*12) -> - | O16: =SUM(O10,O13:O15) -> 1005920.85
B18: Eólica | C18: =OFFSET(Balance!C33,0,($O$1-1)*12) -> 253 | D18: =OFFSET(Balance!D33,0,($O$1-1)*12) -> 324 | E18: =OFFSET(Balance!E33,0,($O$1-1)*12) -> 368.49 | F18: =OFFSET(Balance!F33,0,($O$1-1)*12) -> - | G18: =OFFSET(Balance!G33,0,($O$1-1)*12) -> - | H18: =OFFSET(Balance!H33,0,($O$1-1)*12) -> - | I18: =OFFSET(Balance!I33,0,($O$1-1)*12) -> - | J18: =OFFSET(Balance!J33,0,($O$1-1)*12) -> - | K18: =OFFSET(Balance!K33,0,($O$1-1)*12) -> - | L18: =OFFSET(Balance!L33,0,($O$1-1)*12) -> - | M18: =OFFSET(Balance!M33,0,($O$1-1)*12) -> - | N18: =OFFSET(Balance!N33,0,($O$1-1)*12) -> - | O18: 945.49
B19: Solar fotovoltaica | C19: =OFFSET(Balance!C34,0,($O$1-1)*12) -> 7015 | D19: =OFFSET(Balance!D34,0,($O$1-1)*12) -> 5358 | E19: =OFFSET(Balance!E34,0,($O$1-1)*12) -> 9721 | F19: =OFFSET(Balance!F34,0,($O$1-1)*12) -> - | G19: =OFFSET(Balance!G34,0,($O$1-1)*12) -> - | H19: =OFFSET(Balance!H34,0,($O$1-1)*12) -> - | I19: =OFFSET(Balance!I34,0,($O$1-1)*12) -> - | J19: =OFFSET(Balance!J34,0,($O$1-1)*12) -> - | K19: =OFFSET(Balance!K34,0,($O$1-1)*12) -> - | L19: =OFFSET(Balance!L34,0,($O$1-1)*12) -> - | M19: =OFFSET(Balance!M34,0,($O$1-1)*12) -> - | N19: =OFFSET(Balance!N34,0,($O$1-1)*12) -> - | O19: 22094
B20: Otras renovables | C20: =OFFSET(Balance!C35,0,($O$1-1)*12) -> 219 | D20: =OFFSET(Balance!D35,0,($O$1-1)*12) -> 166 | E20: =OFFSET(Balance!E35,0,($O$1-1)*12) -> 221.07 | F20: =OFFSET(Balance!F35,0,($O$1-1)*12) -> - | G20: =OFFSET(Balance!G35,0,($O$1-1)*12) -> - | H20: =OFFSET(Balance!H35,0,($O$1-1)*12) -> - | I20: =OFFSET(Balance!I35,0,($O$1-1)*12) -> - | J20: =OFFSET(Balance!J35,0,($O$1-1)*12) -> - | K20: =OFFSET(Balance!K35,0,($O$1-1)*12) -> - | L20: =OFFSET(Balance!L35,0,($O$1-1)*12) -> - | M20: =OFFSET(Balance!M35,0,($O$1-1)*12) -> - | N20: =OFFSET(Balance!N35,0,($O$1-1)*12) -> - | O20: 606.07
B21: Cogeneración | C21: =OFFSET(Balance!C36,0,($O$1-1)*12) -> 3183 | D21: =OFFSET(Balance!D36,0,($O$1-1)*12) -> 3084 | E21: =OFFSET(Balance!E36,0,($O$1-1)*12) -> 2395.49 | F21: =OFFSET(Balance!F36,0,($O$1-1)*12) -> - | G21: =OFFSET(Balance!G36,0,($O$1-1)*12) -> - | H21: =OFFSET(Balance!H36,0,($O$1-1)*12) -> - | I21: =OFFSET(Balance!I36,0,($O$1-1)*12) -> - | J21: =OFFSET(Balance!J36,0,($O$1-1)*12) -> - | K21: =OFFSET(Balance!K36,0,($O$1-1)*12) -> - | L21: =OFFSET(Balance!L36,0,($O$1-1)*12) -> - | M21: =OFFSET(Balance!M36,0,($O$1-1)*12) -> - | N21: =OFFSET(Balance!N36,0,($O$1-1)*12) -> - | O21: 8662.49
B22: Residuos no renovables | C22: =OFFSET(Balance!C37,0,($O$1-1)*12) -> 7481.5 | D22: =OFFSET(Balance!D37,0,($O$1-1)*12) -> 4456 | E22: =OFFSET(Balance!E37,0,($O$1-1)*12) -> 11877 | F22: =OFFSET(Balance!F37,0,($O$1-1)*12) -> - | G22: =OFFSET(Balance!G37,0,($O$1-1)*12) -> - | H22: =OFFSET(Balance!H37,0,($O$1-1)*12) -> - | I22: =OFFSET(Balance!I37,0,($O$1-1)*12) -> - | J22: =OFFSET(Balance!J37,0,($O$1-1)*12) -> - | K22: =OFFSET(Balance!K37,0,($O$1-1)*12) -> - | L22: =OFFSET(Balance!L37,0,($O$1-1)*12) -> - | M22: =OFFSET(Balance!M37,0,($O$1-1)*12) -> - | N22: =OFFSET(Balance!N37,0,($O$1-1)*12) -> - | O22: =IF(SUM(C22:N22)=0,"-",SUM(C22:N22)) -> 23814.5
B23: Residuos renovables | C23: =OFFSET(Balance!C38,0,($O$1-1)*12) -> 7481.5 | D23: =OFFSET(Balance!D38,0,($O$1-1)*12) -> 4456 | E23: =OFFSET(Balance!E38,0,($O$1-1)*12) -> 11877 | F23: =OFFSET(Balance!F38,0,($O$1-1)*12) -> - | G23: =OFFSET(Balance!G38,0,($O$1-1)*12) -> - | H23: =OFFSET(Balance!H38,0,($O$1-1)*12) -> - | I23: =OFFSET(Balance!I38,0,($O$1-1)*12) -> - | J23: =OFFSET(Balance!J38,0,($O$1-1)*12) -> - | K23: =OFFSET(Balance!K38,0,($O$1-1)*12) -> - | L23: =OFFSET(Balance!L38,0,($O$1-1)*12) -> - | M23: =OFFSET(Balance!M38,0,($O$1-1)*12) -> - | N23: =OFFSET(Balance!N38,0,($O$1-1)*12) -> - | O23: =IF(SUM(C23:N23)=0,"-",SUM(C23:N23)) -> 23814.5
B24: Régimen especial | C24: =OFFSET(Balance!C39,0,($O$1-1)*12) -> - | D24: =OFFSET(Balance!D39,0,($O$1-1)*12) -> - | E24: =OFFSET(Balance!E39,0,($O$1-1)*12) -> - | F24: =OFFSET(Balance!F39,0,($O$1-1)*12) -> - | G24: =OFFSET(Balance!G39,0,($O$1-1)*12) -> - | H24: =OFFSET(Balance!H39,0,($O$1-1)*12) -> - | I24: =OFFSET(Balance!I39,0,($O$1-1)*12) -> - | J24: =OFFSET(Balance!J39,0,($O$1-1)*12) -> - | K24: =OFFSET(Balance!K39,0,($O$1-1)*12) -> - | L24: =OFFSET(Balance!L39,0,($O$1-1)*12) -> - | M24: =OFFSET(Balance!M39,0,($O$1-1)*12) -> - | N24: =OFFSET(Balance!N39,0,($O$1-1)*12) -> - | O24: =SUM(O18:O23) -> 79937.05
B25: Generación | C25: =OFFSET(Balance!C40,0,($O$1-1)*12) -> 350317.342 | D25: =OFFSET(Balance!D40,0,($O$1-1)*12) -> 358115.042 | E25: =OFFSET(Balance!E40,0,($O$1-1)*12) -> 377425.516 | F25: =OFFSET(Balance!F40,0,($O$1-1)*12) -> - | G25: =OFFSET(Balance!G40,0,($O$1-1)*12) -> - | H25: =OFFSET(Balance!H40,0,($O$1-1)*12) -> - | I25: =OFFSET(Balance!I40,0,($O$1-1)*12) -> - | J25: =OFFSET(Balance!J40,0,($O$1-1)*12) -> - | K25: =OFFSET(Balance!K40,0,($O$1-1)*12) -> - | L25: =OFFSET(Balance!L40,0,($O$1-1)*12) -> - | M25: =OFFSET(Balance!M40,0,($O$1-1)*12) -> - | N25: =OFFSET(Balance!N40,0,($O$1-1)*12) -> - | O25: =SUM(O16:O17,O24) -> 1085857.9
B26: Enlace Península-Baleares (5) | C26: =OFFSET(Balance!C41,0,($O$1-1)*12) -> 86203.829 | D26: =OFFSET(Balance!D41,0,($O$1-1)*12) -> 99993.399 | E26: =OFFSET(Balance!E41,0,($O$1-1)*12) -> 90106.7 | F26: =OFFSET(Balance!F41,0,($O$1-1)*12) -> - | G26: =OFFSET(Balance!G41,0,($O$1-1)*12) -> - | H26: =OFFSET(Balance!H41,0,($O$1-1)*12) -> - | I26: =OFFSET(Balance!I41,0,($O$1-1)*12) -> - | J26: =OFFSET(Balance!J41,0,($O$1-1)*12) -> - | K26: =OFFSET(Balance!K41,0,($O$1-1)*12) -> - | L26: =OFFSET(Balance!L41,0,($O$1-1)*12) -> - | M26: =OFFSET(Balance!M41,0,($O$1-1)*12) -> - | N26: =OFFSET(Balance!N41,0,($O$1-1)*12) -> - | O26: 276303.928
B27: Demanda transporte (b.c.) | C27: =OFFSET(Balance!C42,0,($O$1-1)*12) -> 436521.171 | D27: =OFFSET(Balance!D42,0,($O$1-1)*12) -> 458108.441 | E27: =OFFSET(Balance!E42,0,($O$1-1)*12) -> 467532.216 | F27: =OFFSET(Balance!F42,0,($O$1-1)*12) -> - | G27: =OFFSET(Balance!G42,0,($O$1-1)*12) -> - | H27: =OFFSET(Balance!H42,0,($O$1-1)*12) -> - | I27: =OFFSET(Balance!I42,0,($O$1-1)*12) -> - | J27: =OFFSET(Balance!J42,0,($O$1-1)*12) -> - | K27: =OFFSET(Balance!K42,0,($O$1-1)*12) -> - | L27: =OFFSET(Balance!L42,0,($O$1-1)*12) -> - | M27: =OFFSET(Balance!M42,0,($O$1-1)*12) -> - | N27: =OFFSET(Balance!N42,0,($O$1-1)*12) -> - | O27: =SUM(O25:O26) -> 1362161.828
B28: (1) Asignación de unidades de producción según combustible principal.
B29: (2) Incluye funcionamiento en ciclo abierto.
B30: (3) Grupos de emergencia que se instalan de forma transitoria en determinadas zonas para cubrir un déficit de generación.
B31: (4) Incluye residuos.
B32: (5) Valor positivo: entrada de energía en el sistema; valor negativo: salida de energía del sistema. Enlace funcionando al mínimo técnico de seguridad hasta el 13/08/2012.
B33: ='Balance nacional mensual'!B38 -> Datos definitivos hasta el 31/03/2017. Datos provisionales del 01/04/2017 al 28/02/2018. Datos programados del 01/03/2018 al 31/03/2018.

Sheet Balance Baleares anual
J1: 2
I4: Sistema eléctrico
I5: Horizonte temporal
I6: Periodo
C8: =OFFSET(Balance!C130,0,($J$1-1)*8) -> 2014 | D8: =OFFSET(Balance!D130,0,($J$1-1)*8) -> 2015 | E8: =OFFSET(Balance!E130,0,($J$1-1)*8) -> 2016 | F8: =OFFSET(Balance!F130,0,($J$1-1)*8) -> 2017 | G8: =OFFSET(Balance!G130,0,($J$1-1)*8) -> 2018 | H8: =OFFSET(Balance!H130,0,($J$1-1)*8) -> 2019 | I8: =OFFSET(Balance!I130,0,($J$1-1)*8) -> 2020 | J8: =OFFSET(Balance!J130,0,($J$1-1)*8) -> 2021
B10: Carbón | C10: =OFFSET(Balance!C131,0,($J$1-1)*8) -> 2187625.804 | D10: =OFFSET(Balance!D131,0,($J$1-1)*8) -> 1865268.297 | E10: =OFFSET(Balance!E131,0,($J$1-1)*8) -> 2303768.302 | F10: =OFFSET(Balance!F131,0,($J$1-1)*8) -> 2603343.964 | G10: =OFFSET(Balance!G131,0,($J$1-1)*8) -> 591565.785 | H10: =OFFSET(Balance!H131,0,($J$1-1)*8) -> - | I10: =OFFSET(Balance!I131,0,($J$1-1)*8) -> - | J10: =OFFSET(Balance!J131,0,($J$1-1)*8) -> -
B11: Motores diesel | C11: =OFFSET(Balance!C132,0,($J$1-1)*8) -> 671248.327 | D11: =OFFSET(Balance!D132,0,($J$1-1)*8) -> 729765.874 | E11: =OFFSET(Balance!E132,0,($J$1-1)*8) -> 963404.144 | F11: =OFFSET(Balance!F132,0,($J$1-1)*8) -> 798894.043 | G11: =OFFSET(Balance!G132,0,($J$1-1)*8) -> 114895.741 | H11: =OFFSET(Balance!H132,0,($J$1-1)*8) -> - | I11: =OFFSET(Balance!I132,0,($J$1-1)*8) -> - | J11: =OFFSET(Balance!J132,0,($J$1-1)*8) -> -
B12: Turbina de gas | C12: =OFFSET(Balance!C133,0,($J$1-1)*8) -> 581727.707 | D12: =OFFSET(Balance!D133,0,($J$1-1)*8) -> 582137.982 | E12: =OFFSET(Balance!E133,0,($J$1-1)*8) -> 338287.831 | F12: =OFFSET(Balance!F133,0,($J$1-1)*8) -> 554119.88 | G12: =OFFSET(Balance!G133,0,($J$1-1)*8) -> 180777.34 | H12: =OFFSET(Balance!H133,0,($J$1-1)*8) -> - | I12: =OFFSET(Balance!I133,0,($J$1-1)*8) -> - | J12: =OFFSET(Balance!J133,0,($J$1-1)*8) -> -
B13: Fuel + Gas | C13: =OFFSET(Balance!C134,0,($J$1-1)*8) -> 1252976.034 | D13: =OFFSET(Balance!D134,0,($J$1-1)*8) -> 1311903.856 | E13: =OFFSET(Balance!E134,0,($J$1-1)*8) -> 1301691.975 | F13: =OFFSET(Balance!F134,0,($J$1-1)*8) -> 1353013.923 | G13: =OFFSET(Balance!G134,0,($J$1-1)*8) -> 295673.081 | H13: =OFFSET(Balance!H134,0,($J$1-1)*8) -> - | I13: =OFFSET(Balance!I134,0,($J$1-1)*8) -> - | J13: =OFFSET(Balance!J134,0,($J$1-1)*8) -> -
B14: Ciclo combinado (2) | C14: =OFFSET(Balance!C135,0,($J$1-1)*8) -> 426924.704 | D14: =OFFSET(Balance!D135,0,($J$1-1)*8) -> 809239.368 | E14: =OFFSET(Balance!E135,0,($J$1-1)*8) -> 542553.096 | F14: =OFFSET(Balance!F135,0,($J$1-1)*8) -> 426188.671 | G14: =OFFSET(Balance!G135,0,($J$1-1)*8) -> 118681.984 | H14: =OFFSET(Balance!H135,0,($J$1-1)*8) -> - | I14: =OFFSET(Balance!I135,0,($J$1-1)*8) -> - | J14: =OFFSET(Balance!J135,0,($J$1-1)*8) -> -
B15: Generación auxiliar (3) | C15: =OFFSET(Balance!C136,0,($J$1-1)*8) -> 7695.201 | D15: =OFFSET(Balance!D136,0,($J$1-1)*8) -> 10581.855 | E15: =OFFSET(Balance!E136,0,($J$1-1)*8) -> 10091.755 | F15: =OFFSET(Balance!F136,0,($J$1-1)*8) -> 14745.847 | G15: =OFFSET(Balance!G136,0,($J$1-1)*8) -> 0 | H15: =OFFSET(Balance!H136,0,($J$1-1)*8) -> - | I15: =OFFSET(Balance!I136,0,($J$1-1)*8) -> - | J15: =OFFSET(Balance!J136,0,($J$1-1)*8) -> -
B16: Régimen ordinario | C16: =OFFSET(Balance!C137,0,($J$1-1)*8) -> - | D16: =OFFSET(Balance!D137,0,($J$1-1)*8) -> - | E16: =OFFSET(Balance!E137,0,($J$1-1)*8) -> - | F16: =OFFSET(Balance!F137,0,($J$1-1)*8) -> - | G16: =OFFSET(Balance!G137,0,($J$1-1)*8) -> - | H16: =OFFSET(Balance!H137,0,($J$1-1)*8) -> - | I16: =OFFSET(Balance!I137,0,($J$1-1)*8) -> - | J16: =OFFSET(Balance!J137,0,($J$1-1)*8) -> -
B18: Eólica | C18: =OFFSET(Balance!C138,0,($J$1-1)*8) -> 5839 | D18: =OFFSET(Balance!D138,0,($J$1-1)*8) -> 5317.02 | E18: =OFFSET(Balance!E138,0,($J$1-1)*8) -> 5414.64 | F18: =OFFSET(Balance!F138,0,($J$1-1)*8) -> 2925 | G18: =OFFSET(Balance!G138,0,($J$1-1)*8) -> 945.49 | H18: =OFFSET(Balance!H138,0,($J$1-1)*8) -> - | I18: =OFFSET(Balance!I138,0,($J$1-1)*8) -> - | J18: =OFFSET(Balance!J138,0,($J$1-1)*8) -> -
B19: Solar fotovoltaica | C19: =OFFSET(Balance!C139,0,($J$1-1)*8) -> 122773 | D19: =OFFSET(Balance!D139,0,($J$1-1)*8) -> 122645.48 | E19: =OFFSET(Balance!E139,0,($J$1-1)*8) -> 120533.8 | F19: =OFFSET(Balance!F139,0,($J$1-1)*8) -> 123205 | G19: =OFFSET(Balance!G139,0,($J$1-1)*8) -> 22094 | H19: =OFFSET(Balance!H139,0,($J$1-1)*8) -> - | I19: =OFFSET(Balance!I139,0,($J$1-1)*8) -> - | J19: =OFFSET(Balance!J139,0,($J$1-1)*8) -> -
B20: Térmica renovable(4)/Otras renovables | C20: =OFFSET(Balance!C140,0,($J$1-1)*8) -> 1944 | D20: =OFFSET(Balance!D140,0,($J$1-1)*8) -> 1972.55 | E20: =OFFSET(Balance!E140,0,($J$1-1)*8) -> 1309.52 | F20: =OFFSET(Balance!F140,0,($J$1-1)*8) -> 1625 | G20: =OFFSET(Balance!G140,0,($J$1-1)*8) -> 606.07 | H20: =OFFSET(Balance!H140,0,($J$1-1)*8) -> - | I20: =OFFSET(Balance!I140,0,($J$1-1)*8) -> - | J20: =OFFSET(Balance!J140,0,($J$1-1)*8) -> -
B21: Cogeneración y resto(4)/Cogeneración | C21: =OFFSET(Balance!C141,0,($J$1-1)*8) -> 281390 | D21: =OFFSET(Balance!D141,0,($J$1-1)*8) -> 31519.32 | E21: =OFFSET(Balance!E141,0,($J$1-1)*8) -> 34698.85 | F21: =OFFSET(Balance!F141,0,($J$1-1)*8) -> 36169 | G21: =OFFSET(Balance!G141,0,($J$1-1)*8) -> 8662.49 | H21: =OFFSET(Balance!H141,0,($J$1-1)*8) -> - | I21: =OFFSET(Balance!I141,0,($J$1-1)*8) -> - | J21: =OFFSET(Balance!J141,0,($J$1-1)*8) -> -
B22: Residuos no renovables | C22: =OFFSET(Balance!C142,0,($J$1-1)*8) -> - | D22: =OFFSET(Balance!D142,0,($J$1-1)*8) -> 151098 | E22: =OFFSET(Balance!E142,0,($J$1-1)*8) -> 130805.5 | F22: =OFFSET(Balance!F142,0,($J$1-1)*8) -> 143878.5 | G22: =OFFSET(Balance!G142,0,($J$1-1)*8) -> 23814.5 | H22: =OFFSET(Balance!H142,0,($J$1-1)*8) -> - | I22: =OFFSET(Balance!I142,0,($J$1-1)*8) -> - | J22: =OFFSET(Balance!J142,0,($J$1-1)*8) -> -
B23: Residuos renovables | C23: =OFFSET(Balance!C143,0,($J$1-1)*8) -> - | D23: =OFFSET(Balance!D143,0,($J$1-1)*8) -> 151098 | E23: =OFFSET(Balance!E143,0,($J$1-1)*8) -> 130805.5 | F23: =OFFSET(Balance!F143,0,($J$1-1)*8) -> 143878.5 | G23: =OFFSET(Balance!G143,0,($J$1-1)*8) -> 23814.5 | H23: =OFFSET(Balance!H143,0,($J$1-1)*8) -> - | I23: =OFFSET(Balance!I143,0,($J$1-1)*8) -> - | J23: =OFFSET(Balance!J143,0,($J$1-1)*8) -> -
B24: Régimen especial | C24: =OFFSET(Balance!C144,0,($J$1-1)*8) -> - | D24: =OFFSET(Balance!D144,0,($J$1-1)*8) -> - | E24: =OFFSET(Balance!E144,0,($J$1-1)*8) -> - | F24: =OFFSET(Balance!F144,0,($J$1-1)*8) -> - | G24: =OFFSET(Balance!G144,0,($J$1-1)*8) -> - | H24: =OFFSET(Balance!H144,0,($J$1-1)*8) -> - | I24: =OFFSET(Balance!I144,0,($J$1-1)*8) -> - | J24: =OFFSET(Balance!J144,0,($J$1-1)*8) -> -
B25: Generación | C25: =OFFSET(Balance!C145,0,($J$1-1)*8) -> 4287167.743 | D25: =OFFSET(Balance!D145,0,($J$1-1)*8) -> 4460643.746 | E25: =OFFSET(Balance!E145,0,($J$1-1)*8) -> 4581672.938 | F25: =OFFSET(Balance!F145,0,($J$1-1)*8) -> 4848973.405 | G25: =OFFSET(Balance!G145,0,($J$1-1)*8) -> 1085857.9 | H25: =OFFSET(Balance!H145,0,($J$1-1)*8) -> - | I25: =OFFSET(Balance!I145,0,($J$1-1)*8) -> - | J25: =OFFSET(Balance!J145,0,($J$1-1)*8) -> -
B26: Enlace Península-Baleares (5) | C26: =OFFSET(Balance!C146,0,($J$1-1)*8) -> 1298257.466 | D26: =OFFSET(Balance!D146,0,($J$1-1)*8) -> 1335791.802 | E26: =OFFSET(Balance!E146,0,($J$1-1)*8) -> 1250582.501 | F26: =OFFSET(Balance!F146,0,($J$1-1)*8) -> 1179300.653 | G26: =OFFSET(Balance!G146,0,($J$1-1)*8) -> 276303.928 | H26: =OFFSET(Balance!H146,0,($J$1-1)*8) -> - | I26: =OFFSET(Balance!I146,0,($J$1-1)*8) -> - | J26: =OFFSET(Balance!J146,0,($J$1-1)*8) -> -
B27: Demanda transporte (b.c.) | C27: =OFFSET(Balance!C147,0,($J$1-1)*8) -> 5585425.209 | D27: =OFFSET(Balance!D147,0,($J$1-1)*8) -> 5796435.548 | E27: =OFFSET(Balance!E147,0,($J$1-1)*8) -> 5832255.439 | F27: =OFFSET(Balance!F147,0,($J$1-1)*8) -> 6028274.058 | G27: =OFFSET(Balance!G147,0,($J$1-1)*8) -> 1362161.828 | H27: =OFFSET(Balance!H147,0,($J$1-1)*8) -> - | I27: =OFFSET(Balance!I147,0,($J$1-1)*8) -> - | J27: =OFFSET(Balance!J147,0,($J$1-1)*8) -> -
B28: (1) Asignación de unidades de producción según combustible principal.
B29: (2) Incluye funcionamiento en ciclo abierto.
B30: (3) Grupos de emergencia que se instalan de forma transitoria en determinadas zonas para cubrir un déficit de generación.
B31: (4) Hasta 2014 e incluye residuos.
B32: (4) Incluye residuos.
B33: (5) Valor positivo: entrada de energía en el sistema; valor negativo: salida de energía del sistema. Enlace funcionando al mínimo técnico de seguridad hasta el 13/08/2012.
B34: =IF(MONTH(FACT)=1,"",CONCATENATE("Para el año ",YEAR(FACT), " valores acumulados hasta ",TEXT(FACT-30,"mmmm")," de ",YEAR(FACT),".")) -> Para el año 2018 valores acumulados hasta marzo de 2018.
B35: ='Balance nacional mensual'!B38 -> Datos definitivos hasta el 31/03/2017. Datos provisionales del 01/04/2017 al 28/02/2018. Datos programados del 01/03/2018 al 31/03/2018.

Sheet Balance Canarias mensual
O1: 13
M4: Sistema eléctrico
M5: Horizonte temporal
M6: Periodo
C8: Ene. | D8: Feb. | E8: Mar. | F8: Abr. | G8: May. | H8: Jun. | I8: Jul. | J8: Ago. | K8: Sep. | L8: Oct. | M8: Nov. | N8: Dic. | O8: =OFFSET(Año!C18,($O$1-1),0) -> 2018
B10: Hidráulica | C10: =OFFSET(Balance!C45,0,($O$1-1)*12) -> 279 | D10: =OFFSET(Balance!D45,0,($O$1-1)*12) -> 35 | E10: =OFFSET(Balance!E45,0,($O$1-1)*12) -> 0 | F10: =OFFSET(Balance!F45,0,($O$1-1)*12) -> - | G10: =OFFSET(Balance!G45,0,($O$1-1)*12) -> - | H10: =OFFSET(Balance!H45,0,($O$1-1)*12) -> - | I10: =OFFSET(Balance!I45,0,($O$1-1)*12) -> - | J10: =OFFSET(Balance!J45,0,($O$1-1)*12) -> - | K10: =OFFSET(Balance!K45,0,($O$1-1)*12) -> - | L10: =OFFSET(Balance!L45,0,($O$1-1)*12) -> - | M10: =OFFSET(Balance!M45,0,($O$1-1)*12) -> - | N10: =OFFSET(Balance!N45,0,($O$1-1)*12) -> - | O10: =IF(SUM(C10:N10)=0,"-",SUM(C10:N10)) -> 314
B11: Motores diesel | C11: =OFFSET(Balance!C46,0,($O$1-1)*12) -> 213634.499 | D11: =OFFSET(Balance!D46,0,($O$1-1)*12) -> 192487.907 | E11: =OFFSET(Balance!E46,0,($O$1-1)*12) -> 181035.595 | F11: =OFFSET(Balance!F46,0,($O$1-1)*12) -> - | G11: =OFFSET(Balance!G46,0,($O$1-1)*12) -> - | H11: =OFFSET(Balance!H46,0,($O$1-1)*12) -> - | I11: =OFFSET(Balance!I46,0,($O$1-1)*12) -> - | J11: =OFFSET(Balance!J46,0,($O$1-1)*12) -> - | K11: =OFFSET(Balance!K46,0,($O$1-1)*12) -> - | L11: =OFFSET(Balance!L46,0,($O$1-1)*12) -> - | M11: =OFFSET(Balance!M46,0,($O$1-1)*12) -> - | N11: =OFFSET(Balance!N46,0,($O$1-1)*12) -> - | O11: =IF(SUM(C11:N11)=0,"-",SUM(C11:N11)) -> 587158.001
B12: Turbina de gas | C12: =OFFSET(Balance!C47,0,($O$1-1)*12) -> 16383.045 | D12: =OFFSET(Balance!D47,0,($O$1-1)*12) -> 17868.262 | E12: =OFFSET(Balance!E47,0,($O$1-1)*12) -> 16518.833 | F12: =OFFSET(Balance!F47,0,($O$1-1)*12) -> - | G12: =OFFSET(Balance!G47,0,($O$1-1)*12) -> - | H12: =OFFSET(Balance!H47,0,($O$1-1)*12) -> - | I12: =OFFSET(Balance!I47,0,($O$1-1)*12) -> - | J12: =OFFSET(Balance!J47,0,($O$1-1)*12) -> - | K12: =OFFSET(Balance!K47,0,($O$1-1)*12) -> - | L12: =OFFSET(Balance!L47,0,($O$1-1)*12) -> - | M12: =OFFSET(Balance!M47,0,($O$1-1)*12) -> - | N12: =OFFSET(Balance!N47,0,($O$1-1)*12) -> - | O12: =IF(SUM(C12:N12)=0,"-",SUM(C12:N12)) -> 50770.14
B13: Turbina de vapor | C13: =OFFSET(Balance!C48,0,($O$1-1)*12) -> 212818.004 | D13: =OFFSET(Balance!D48,0,($O$1-1)*12) -> 190979.338 | E13: =OFFSET(Balance!E48,0,($O$1-1)*12) -> 193576.767 | F13: =OFFSET(Balance!F48,0,($O$1-1)*12) -> - | G13: =OFFSET(Balance!G48,0,($O$1-1)*12) -> - | H13: =OFFSET(Balance!H48,0,($O$1-1)*12) -> - | I13: =OFFSET(Balance!I48,0,($O$1-1)*12) -> - | J13: =OFFSET(Balance!J48,0,($O$1-1)*12) -> - | K13: =OFFSET(Balance!K48,0,($O$1-1)*12) -> - | L13: =OFFSET(Balance!L48,0,($O$1-1)*12) -> - | M13: =OFFSET(Balance!M48,0,($O$1-1)*12) -> - | N13: =OFFSET(Balance!N48,0,($O$1-1)*12) -> - | O13: =IF(SUM(C13:N13)=0,"-",SUM(C13:N13)) -> 597374.109
B14: Fuel + Gas | C14: =OFFSET(Balance!C49,0,($O$1-1)*12) -> 442835.548 | D14: =OFFSET(Balance!D49,0,($O$1-1)*12) -> 401335.507 | E14: =OFFSET(Balance!E49,0,($O$1-1)*12) -> 391131.195 | F14: =OFFSET(Balance!F49,0,($O$1-1)*12) -> - | G14: =OFFSET(Balance!G49,0,($O$1-1)*12) -> - | H14: =OFFSET(Balance!H49,0,($O$1-1)*12) -> - | I14: =OFFSET(Balance!I49,0,($O$1-1)*12) -> - | J14: =OFFSET(Balance!J49,0,($O$1-1)*12) -> - | K14: =OFFSET(Balance!K49,0,($O$1-1)*12) -> - | L14: =OFFSET(Balance!L49,0,($O$1-1)*12) -> - | M14: =OFFSET(Balance!M49,0,($O$1-1)*12) -> - | N14: =OFFSET(Balance!N49,0,($O$1-1)*12) -> - | O14: =IF(SUM(C14:N14)=0,"-",SUM(C14:N14)) -> 1235302.25
B15: Ciclo combinado (2) | C15: =OFFSET(Balance!C50,0,($O$1-1)*12) -> 235479.923 | D15: =OFFSET(Balance!D50,0,($O$1-1)*12) -> 216348.336 | E15: =OFFSET(Balance!E50,0,($O$1-1)*12) -> 266353.991 | F15: =OFFSET(Balance!F50,0,($O$1-1)*12) -> - | G15: =OFFSET(Balance!G50,0,($O$1-1)*12) -> - | H15: =OFFSET(Balance!H50,0,($O$1-1)*12) -> - | I15: =OFFSET(Balance!I50,0,($O$1-1)*12) -> - | J15: =OFFSET(Balance!J50,0,($O$1-1)*12) -> - | K15: =OFFSET(Balance!K50,0,($O$1-1)*12) -> - | L15: =OFFSET(Balance!L50,0,($O$1-1)*12) -> - | M15: =OFFSET(Balance!M50,0,($O$1-1)*12) -> - | N15: =OFFSET(Balance!N50,0,($O$1-1)*12) -> - | O15: 718182.25
B16: Generación auxiliar (3) | C16: =OFFSET(Balance!C51,0,($O$1-1)*12) -> 0 | D16: =OFFSET(Balance!D51,0,($O$1-1)*12) -> 0 | E16: =OFFSET(Balance!E51,0,($O$1-1)*12) -> 0 | F16: =OFFSET(Balance!F51,0,($O$1-1)*12) -> - | G16: =OFFSET(Balance!G51,0,($O$1-1)*12) -> - | H16: =OFFSET(Balance!H51,0,($O$1-1)*12) -> - | I16: =OFFSET(Balance!I51,0,($O$1-1)*12) -> - | J16: =OFFSET(Balance!J51,0,($O$1-1)*12) -> - | K16: =OFFSET(Balance!K51,0,($O$1-1)*12) -> - | L16: =OFFSET(Balance!L51,0,($O$1-1)*12) -> - | M16: =OFFSET(Balance!M51,0,($O$1-1)*12) -> - | N16: =OFFSET(Balance!N51,0,($O$1-1)*12) -> - | O16: -
B17: Régimen ordinario | C17: =OFFSET(Balance!C52,0,($O$1-1)*12) -> - | D17: =OFFSET(Balance!D52,0,($O$1-1)*12) -> - | E17: =OFFSET(Balance!E52,0,($O$1-1)*12) -> - | F17: =OFFSET(Balance!F52,0,($O$1-1)*12) -> - | G17: =OFFSET(Balance!G52,0,($O$1-1)*12) -> - | H17: =OFFSET(Balance!H52,0,($O$1-1)*12) -> - | I17: =OFFSET(Balance!I52,0,($O$1-1)*12) -> - | J17: =OFFSET(Balance!J52,0,($O$1-1)*12) -> - | K17: =OFFSET(Balance!K52,0,($O$1-1)*12) -> - | L17: =OFFSET(Balance!L52,0,($O$1-1)*12) -> - | M17: =OFFSET(Balance!M52,0,($O$1-1)*12) -> - | N17: =OFFSET(Balance!N52,0,($O$1-1)*12) -> - | O17: =IF(SUM(C17:N17)=0,"-",SUM(C17:N17)) -> -
B19: Hidroeólica | C19: =OFFSET(Balance!C53,0,($O$1-1)*12) -> 2262.851 | D19: =OFFSET(Balance!D53,0,($O$1-1)*12) -> 1768.028 | E19: =OFFSET(Balance!E53,0,($O$1-1)*12) -> 1685.079 | F19: =OFFSET(Balance!F53,0,($O$1-1)*12) -> - | G19: =OFFSET(Balance!G53,0,($O$1-1)*12) -> - | H19: =OFFSET(Balance!H53,0,($O$1-1)*12) -> - | I19: =OFFSET(Balance!I53,0,($O$1-1)*12) -> - | J19: =OFFSET(Balance!J53,0,($O$1-1)*12) -> - | K19: =OFFSET(Balance!K53,0,($O$1-1)*12) -> - | L19: =OFFSET(Balance!L53,0,($O$1-1)*12) -> - | M19: =OFFSET(Balance!M53,0,($O$1-1)*12) -> - | N19: =OFFSET(Balance!N53,0,($O$1-1)*12) -> - | O19: =IF(SUM(C19:N19)=0,"-",SUM(C19:N19)) -> 5715.958
B20: Hidráulica | C20: =OFFSET(Balance!C54,0,($O$1-1)*12) -> - | D20: =OFFSET(Balance!D54,0,($O$1-1)*12) -> - | E20: =OFFSET(Balance!E54,0,($O$1-1)*12) -> - | F20: =OFFSET(Balance!F54,0,($O$1-1)*12) -> - | G20: =OFFSET(Balance!G54,0,($O$1-1)*12) -> - | H20: =OFFSET(Balance!H54,0,($O$1-1)*12) -> - | I20: =OFFSET(Balance!I54,0,($O$1-1)*12) -> - | J20: =OFFSET(Balance!J54,0,($O$1-1)*12) -> - | K20: =OFFSET(Balance!K54,0,($O$1-1)*12) -> - | L20: =OFFSET(Balance!L54,0,($O$1-1)*12) -> - | M20: =OFFSET(Balance!M54,0,($O$1-1)*12) -> - | N20: =OFFSET(Balance!N54,0,($O$1-1)*12) -> - | O20: =IF(SUM(C20:N20)=0,"-",SUM(C20:N20)) -> -
B21: Eólica | C21: =OFFSET(Balance!C55,0,($O$1-1)*12) -> 57039 | D21: =OFFSET(Balance!D55,0,($O$1-1)*12) -> 46216 | E21: =OFFSET(Balance!E55,0,($O$1-1)*12) -> 54166.252 | F21: =OFFSET(Balance!F55,0,($O$1-1)*12) -> - | G21: =OFFSET(Balance!G55,0,($O$1-1)*12) -> - | H21: =OFFSET(Balance!H55,0,($O$1-1)*12) -> - | I21: =OFFSET(Balance!I55,0,($O$1-1)*12) -> - | J21: =OFFSET(Balance!J55,0,($O$1-1)*12) -> - | K21: =OFFSET(Balance!K55,0,($O$1-1)*12) -> - | L21: =OFFSET(Balance!L55,0,($O$1-1)*12) -> - | M21: =OFFSET(Balance!M55,0,($O$1-1)*12) -> - | N21: =OFFSET(Balance!N55,0,($O$1-1)*12) -> - | O21: 157421.252
B22: Solar fotovoltaica | C22: =OFFSET(Balance!C56,0,($O$1-1)*12) -> 18989 | D22: =OFFSET(Balance!D56,0,($O$1-1)*12) -> 17868 | E22: =OFFSET(Balance!E56,0,($O$1-1)*12) -> 24642.07 | F22: =OFFSET(Balance!F56,0,($O$1-1)*12) -> - | G22: =OFFSET(Balance!G56,0,($O$1-1)*12) -> - | H22: =OFFSET(Balance!H56,0,($O$1-1)*12) -> - | I22: =OFFSET(Balance!I56,0,($O$1-1)*12) -> - | J22: =OFFSET(Balance!J56,0,($O$1-1)*12) -> - | K22: =OFFSET(Balance!K56,0,($O$1-1)*12) -> - | L22: =OFFSET(Balance!L56,0,($O$1-1)*12) -> - | M22: =OFFSET(Balance!M56,0,($O$1-1)*12) -> - | N22: =OFFSET(Balance!N56,0,($O$1-1)*12) -> - | O22: 61499.07
B23: Otras renovables | C23: =OFFSET(Balance!C57,0,($O$1-1)*12) -> 762 | D23: =OFFSET(Balance!D57,0,($O$1-1)*12) -> 647 | E23: =OFFSET(Balance!E57,0,($O$1-1)*12) -> 0 | F23: =OFFSET(Balance!F57,0,($O$1-1)*12) -> - | G23: =OFFSET(Balance!G57,0,($O$1-1)*12) -> - | H23: =OFFSET(Balance!H57,0,($O$1-1)*12) -> - | I23: =OFFSET(Balance!I57,0,($O$1-1)*12) -> - | J23: =OFFSET(Balance!J57,0,($O$1-1)*12) -> - | K23: =OFFSET(Balance!K57,0,($O$1-1)*12) -> - | L23: =OFFSET(Balance!L57,0,($O$1-1)*12) -> - | M23: =OFFSET(Balance!M57,0,($O$1-1)*12) -> - | N23: =OFFSET(Balance!N57,0,($O$1-1)*12) -> - | O23: 1409
B24: Cogeneración | C24: =OFFSET(Balance!C58,0,($O$1-1)*12) -> 0 | D24: =OFFSET(Balance!D58,0,($O$1-1)*12) -> 0 | E24: =OFFSET(Balance!E58,0,($O$1-1)*12) -> 0 | F24: =OFFSET(Balance!F58,0,($O$1-1)*12) -> - | G24: =OFFSET(Balance!G58,0,($O$1-1)*12) -> - | H24: =OFFSET(Balance!H58,0,($O$1-1)*12) -> - | I24: =OFFSET(Balance!I58,0,($O$1-1)*12) -> - | J24: =OFFSET(Balance!J58,0,($O$1-1)*12) -> - | K24: =OFFSET(Balance!K58,0,($O$1-1)*12) -> - | L24: =OFFSET(Balance!L58,0,($O$1-1)*12) -> - | M24: =OFFSET(Balance!M58,0,($O$1-1)*12) -> - | N24: =OFFSET(Balance!N58,0,($O$1-1)*12) -> - | O24: -
B25: Régimen especial | C25: =OFFSET(Balance!C59,0,($O$1-1)*12) -> - | D25: =OFFSET(Balance!D59,0,($O$1-1)*12) -> - | E25: =OFFSET(Balance!E59,0,($O$1-1)*12) -> - | F25: =OFFSET(Balance!F59,0,($O$1-1)*12) -> - | G25: =OFFSET(Balance!G59,0,($O$1-1)*12) -> - | H25: =OFFSET(Balance!H59,0,($O$1-1)*12) -> - | I25: =OFFSET(Balance!I59,0,($O$1-1)*12) -> - | J25: =OFFSET(Balance!J59,0,($O$1-1)*12) -> - | K25: =OFFSET(Balance!K59,0,($O$1-1)*12) -> - | L25: =OFFSET(Balance!L59,0,($O$1-1)*12) -> - | M25: =OFFSET(Balance!M59,0,($O$1-1)*12) -> - | N25: =OFFSET(Balance!N59,0,($O$1-1)*12) -> - | O25: =SUM(O20:O24) -> 220329.322
B26: Generación | C26: =OFFSET(Balance!C60,0,($O$1-1)*12) -> 757647.322 | D26: =OFFSET(Balance!D60,0,($O$1-1)*12) -> 684217.871 | E26: =OFFSET(Balance!E60,0,($O$1-1)*12) -> 737978.587 | F26: =OFFSET(Balance!F60,0,($O$1-1)*12) -> - | G26: =OFFSET(Balance!G60,0,($O$1-1)*12) -> - | H26: =OFFSET(Balance!H60,0,($O$1-1)*12) -> - | I26: =OFFSET(Balance!I60,0,($O$1-1)*12) -> - | J26: =OFFSET(Balance!J60,0,($O$1-1)*12) -> - | K26: =OFFSET(Balance!K60,0,($O$1-1)*12) -> - | L26: =OFFSET(Balance!L60,0,($O$1-1)*12) -> - | M26: =OFFSET(Balance!M60,0,($O$1-1)*12) -> - | N26: =OFFSET(Balance!N60,0,($O$1-1)*12) -> - | O26: 2179843.78
B27: Demanda transporte (b.c.) | C27: =OFFSET(Balance!C61,0,($O$1-1)*12) -> 757647.322 | D27: =OFFSET(Balance!D61,0,($O$1-1)*12) -> 684217.871 | E27: =OFFSET(Balance!E61,0,($O$1-1)*12) -> 737978.587 | F27: =OFFSET(Balance!F61,0,($O$1-1)*12) -> - | G27: =OFFSET(Balance!G61,0,($O$1-1)*12) -> - | H27: =OFFSET(Balance!H61,0,($O$1-1)*12) -> - | I27: =OFFSET(Balance!I61,0,($O$1-1)*12) -> - | J27: =OFFSET(Balance!J61,0,($O$1-1)*12) -> - | K27: =OFFSET(Balance!K61,0,($O$1-1)*12) -> - | L27: =OFFSET(Balance!L61,0,($O$1-1)*12) -> - | M27: =OFFSET(Balance!M61,0,($O$1-1)*12) -> - | N27: =OFFSET(Balance!N61,0,($O$1-1)*12) -> - | O27: 2179843.78
B28: (1) Asignación de unidades de producción según combustible principal.
B29: (2) Utiliza fue y gasoil como combustible principal. Incluye funcionamiento en ciclo abierto.
B30: (3) Grupos de emergencia que se instalan de forma transitoria en determinadas zonas para cubrir un déficit de generación.
B31: (4) Incluye todas aquellas unidades menores de 50 MW que no pertenecen a ninguna unidad de gestión hidráulica (UGH).
B32: ='Balance nacional mensual'!B38 -> Datos definitivos hasta el 31/03/2017. Datos provisionales del 01/04/2017 al 28/02/2018. Datos programados del 01/03/2018 al 31/03/2018.

Sheet Balance Canarias anual
J1: 2
I4: Sistema eléctrico
I5: Horizonte temporal
I6: Periodo
C8: =OFFSET(Balance!C149,0,($J$1-1)*8) -> 2014 | D8: =OFFSET(Balance!D149,0,($J$1-1)*8) -> 2015 | E8: =OFFSET(Balance!E149,0,($J$1-1)*8) -> 2016 | F8: =OFFSET(Balance!F149,0,($J$1-1)*8) -> 2017 | G8: =OFFSET(Balance!G149,0,($J$1-1)*8) -> 2018 | H8: =OFFSET(Balance!H149,0,($J$1-1)*8) -> 2019 | I8: =OFFSET(Balance!I149,0,($J$1-1)*8) -> 2020 | J8: =OFFSET(Balance!J149,0,($J$1-1)*8) -> 2021
B10: Hidráulica | C10: =OFFSET(Balance!C150,0,($J$1-1)*8) -> 0 | D10: =OFFSET(Balance!D150,0,($J$1-1)*8) -> 3585.2 | E10: =OFFSET(Balance!E150,0,($J$1-1)*8) -> 3472 | F10: =OFFSET(Balance!F150,0,($J$1-1)*8) -> 3282 | G10: =OFFSET(Balance!G150,0,($J$1-1)*8) -> 314 | H10: =OFFSET(Balance!H150,0,($J$1-1)*8) -> - | I10: =OFFSET(Balance!I150,0,($J$1-1)*8) -> - | J10: =OFFSET(Balance!J150,0,($J$1-1)*8) -> -
B11: Motores diesel | C11: =OFFSET(Balance!C151,0,($J$1-1)*8) -> 2145111.904 | D11: =OFFSET(Balance!D151,0,($J$1-1)*8) -> 2207692.36 | E11: =OFFSET(Balance!E151,0,($J$1-1)*8) -> 2227665.526 | F11: =OFFSET(Balance!F151,0,($J$1-1)*8) -> 2468714.234 | G11: =OFFSET(Balance!G151,0,($J$1-1)*8) -> 587158.001 | H11: =OFFSET(Balance!H151,0,($J$1-1)*8) -> - | I11: =OFFSET(Balance!I151,0,($J$1-1)*8) -> - | J11: =OFFSET(Balance!J151,0,($J$1-1)*8) -> -
B12: Turbina de gas | C12: =OFFSET(Balance!C152,0,($J$1-1)*8) -> 363766.846 | D12: =OFFSET(Balance!D152,0,($J$1-1)*8) -> 330903.786 | E12: =OFFSET(Balance!E152,0,($J$1-1)*8) -> 279139.544 | F12: =OFFSET(Balance!F152,0,($J$1-1)*8) -> 247327.675 | G12: =OFFSET(Balance!G152,0,($J$1-1)*8) -> 50770.14 | H12: =OFFSET(Balance!H152,0,($J$1-1)*8) -> - | I12: =OFFSET(Balance!I152,0,($J$1-1)*8) -> - | J12: =OFFSET(Balance!J152,0,($J$1-1)*8) -> -
B13: Turbina de vapor | C13: =OFFSET(Balance!C153,0,($J$1-1)*8) -> 2074036.072 | D13: =OFFSET(Balance!D153,0,($J$1-1)*8) -> 2225313.529 | E13: =OFFSET(Balance!E153,0,($J$1-1)*8) -> 2536663.647 | F13: =OFFSET(Balance!F153,0,($J$1-1)*8) -> 2523836.907 | G13: =OFFSET(Balance!G153,0,($J$1-1)*8) -> 597374.109 | H13: =OFFSET(Balance!H153,0,($J$1-1)*8) -> - | I13: =OFFSET(Balance!I153,0,($J$1-1)*8) -> - | J13: =OFFSET(Balance!J153,0,($J$1-1)*8) -> -
B14: Fuel + Gas | C14: =OFFSET(Balance!C154,0,($J$1-1)*8) -> 4582914.822 | D14: =OFFSET(Balance!D154,0,($J$1-1)*8) -> 4763910.675 | E14: =OFFSET(Balance!E154,0,($J$1-1)*8) -> 5043468.717 | F14: =OFFSET(Balance!F154,0,($J$1-1)*8) -> 5239878.816 | G14: =OFFSET(Balance!G154,0,($J$1-1)*8) -> 1235302.25 | H14: =OFFSET(Balance!H154,0,($J$1-1)*8) -> - | I14: =OFFSET(Balance!I154,0,($J$1-1)*8) -> - | J14: =OFFSET(Balance!J154,0,($J$1-1)*8) -> -
B15: Ciclo combinado (2) | C15: =OFFSET(Balance!C155,0,($J$1-1)*8) -> 3311448.944 | D15: =OFFSET(Balance!D155,0,($J$1-1)*8) -> 3213042.07 | E15: =OFFSET(Balance!E155,0,($J$1-1)*8) -> 3031699.511 | F15: =OFFSET(Balance!F155,0,($J$1-1)*8) -> 3015772.016 | G15: =OFFSET(Balance!G155,0,($J$1-1)*8) -> 718182.25 | H15: =OFFSET(Balance!H155,0,($J$1-1)*8) -> - | I15: =OFFSET(Balance!I155,0,($J$1-1)*8) -> - | J15: =OFFSET(Balance!J155,0,($J$1-1)*8) -> -
B16: Generación auxiliar (3) | C16: =OFFSET(Balance!C156,0,($J$1-1)*8) -> 0 | D16: =OFFSET(Balance!D156,0,($J$1-1)*8) -> 0 | E16: =OFFSET(Balance!E156,0,($J$1-1)*8) -> 0 | F16: =OFFSET(Balance!F156,0,($J$1-1)*8) -> 0 | G16: =OFFSET(Balance!G156,0,($J$1-1)*8) -> 0 | H16: =OFFSET(Balance!H156,0,($J$1-1)*8) -> - | I16: =OFFSET(Balance!I156,0,($J$1-1)*8) -> - | J16: =OFFSET(Balance!J156,0,($J$1-1)*8) -> -
B17: Régimen ordinario | C17: =OFFSET(Balance!C157,0,($J$1-1)*8) -> - | D17: =OFFSET(Balance!D157,0,($J$1-1)*8) -> - | E17: =OFFSET(Balance!E157,0,($J$1-1)*8) -> - | F17: =OFFSET(Balance!F157,0,($J$1-1)*8) -> - | G17: =OFFSET(Balance!G157,0,($J$1-1)*8) -> - | H17: =OFFSET(Balance!H157,0,($J$1-1)*8) -> - | I17: =OFFSET(Balance!I157,0,($J$1-1)*8) -> - | J17: =OFFSET(Balance!J157,0,($J$1-1)*8) -> -
B19: Hidroeólica | C19: =OFFSET(Balance!C158,0,($J$1-1)*8) -> 1071.861 | D19: =OFFSET(Balance!D158,0,($J$1-1)*8) -> 8557.066 | E19: =OFFSET(Balance!E158,0,($J$1-1)*8) -> 18102.639 | F19: =OFFSET(Balance!F158,0,($J$1-1)*8) -> 20398.516 | G19: =OFFSET(Balance!G158,0,($J$1-1)*8) -> 5715.958 | H19: =OFFSET(Balance!H158,0,($J$1-1)*8) -> - | I19: =OFFSET(Balance!I158,0,($J$1-1)*8) -> - | J19: =OFFSET(Balance!J158,0,($J$1-1)*8) -> -
B20: Resto hidráulica (4) | C20: =OFFSET(Balance!C159,0,($J$1-1)*8) -> 3479.021 | D20: =OFFSET(Balance!D159,0,($J$1-1)*8) -> - | E20: =OFFSET(Balance!E159,0,($J$1-1)*8) -> - | F20: =OFFSET(Balance!F159,0,($J$1-1)*8) -> - | G20: =OFFSET(Balance!G159,0,($J$1-1)*8) -> - | H20: =OFFSET(Balance!H159,0,($J$1-1)*8) -> - | I20: =OFFSET(Balance!I159,0,($J$1-1)*8) -> - | J20: =OFFSET(Balance!J159,0,($J$1-1)*8) -> -
B21: Eólica | C21: =OFFSET(Balance!C160,0,($J$1-1)*8) -> 389964 | D21: =OFFSET(Balance!D160,0,($J$1-1)*8) -> 396661.052 | E21: =OFFSET(Balance!E160,0,($J$1-1)*8) -> 393086 | F21: =OFFSET(Balance!F160,0,($J$1-1)*8) -> 395943.174 | G21: =OFFSET(Balance!G160,0,($J$1-1)*8) -> 157421.252 | H21: =OFFSET(Balance!H160,0,($J$1-1)*8) -> - | I21: =OFFSET(Balance!I160,0,($J$1-1)*8) -> - | J21: =OFFSET(Balance!J160,0,($J$1-1)*8) -> -
B22: Solar fotovoltaica | C22: =OFFSET(Balance!C161,0,($J$1-1)*8) -> 282291 | D22: =OFFSET(Balance!D161,0,($J$1-1)*8) -> 275554.161 | E22: =OFFSET(Balance!E161,0,($J$1-1)*8) -> 277674 | F22: =OFFSET(Balance!F161,0,($J$1-1)*8) -> 273539 | G22: =OFFSET(Balance!G161,0,($J$1-1)*8) -> 61499.07 | H22: =OFFSET(Balance!H161,0,($J$1-1)*8) -> - | I22: =OFFSET(Balance!I161,0,($J$1-1)*8) -> - | J22: =OFFSET(Balance!J161,0,($J$1-1)*8) -> -
B23: Térmica renovable/Otras renovables | C23: =OFFSET(Balance!C162,0,($J$1-1)*8) -> 8806.722 | D23: =OFFSET(Balance!D162,0,($J$1-1)*8) -> 8053.216 | E23: =OFFSET(Balance!E162,0,($J$1-1)*8) -> 9336 | F23: =OFFSET(Balance!F162,0,($J$1-1)*8) -> 9565 | G23: =OFFSET(Balance!G162,0,($J$1-1)*8) -> 1409 | H23: =OFFSET(Balance!H162,0,($J$1-1)*8) -> - | I23: =OFFSET(Balance!I162,0,($J$1-1)*8) -> - | J23: =OFFSET(Balance!J162,0,($J$1-1)*8) -> -
B24: Cogeneración | C24: =OFFSET(Balance!C163,0,($J$1-1)*8) -> 0 | D24: =OFFSET(Balance!D163,0,($J$1-1)*8) -> 0 | E24: =OFFSET(Balance!E163,0,($J$1-1)*8) -> 0 | F24: =OFFSET(Balance!F163,0,($J$1-1)*8) -> 0 | G24: =OFFSET(Balance!G163,0,($J$1-1)*8) -> 0 | H24: =OFFSET(Balance!H163,0,($J$1-1)*8) -> - | I24: =OFFSET(Balance!I163,0,($J$1-1)*8) -> - | J24: =OFFSET(Balance!J163,0,($J$1-1)*8) -> -
B25: Régimen especial | C25: =OFFSET(Balance!C164,0,($J$1-1)*8) -> - | D25: =OFFSET(Balance!D164,0,($J$1-1)*8) -> - | E25: =OFFSET(Balance!E164,0,($J$1-1)*8) -> - | F25: =OFFSET(Balance!F164,0,($J$1-1)*8) -> - | G25: =OFFSET(Balance!G164,0,($J$1-1)*8) -> - | H25: =OFFSET(Balance!H164,0,($J$1-1)*8) -> - | I25: =OFFSET(Balance!I164,0,($J$1-1)*8) -> - | J25: =OFFSET(Balance!J164,0,($J$1-1)*8) -> -
B26: Generación | C26: =OFFSET(Balance!C165,0,($J$1-1)*8) -> 8579976.37 | D26: =OFFSET(Balance!D165,0,($J$1-1)*8) -> 8669362.44 | E26: =OFFSET(Balance!E165,0,($J$1-1)*8) -> 8776838.867 | F26: =OFFSET(Balance!F165,0,($J$1-1)*8) -> 8958378.522 | G26: =OFFSET(Balance!G165,0,($J$1-1)*8) -> 2179843.78 | H26: =OFFSET(Balance!H165,0,($J$1-1)*8) -> - | I26: =OFFSET(Balance!I165,0,($J$1-1)*8) -> - | J26: =OFFSET(Balance!J165,0,($J$1-1)*8) -> -
B27: Demanda transporte (b.c.) | C27: =OFFSET(Balance!C166,0,($J$1-1)*8) -> 8579976.37 | D27: =OFFSET(Balance!D166,0,($J$1-1)*8) -> 8669362.44 | E27: =OFFSET(Balance!E166,0,($J$1-1)*8) -> 8776838.867 | F27: =OFFSET(Balance!F166,0,($J$1-1)*8) -> 8958378.522 | G27: =OFFSET(Balance!G166,0,($J$1-1)*8) -> 2179843.78 | H27: =OFFSET(Balance!H166,0,($J$1-1)*8) -> - | I27: =OFFSET(Balance!I166,0,($J$1-1)*8) -> - | J27: =OFFSET(Balance!J166,0,($J$1-1)*8) -> -
B28: (1) Asignación de unidades de producción según combustible principal.
B29: (2) Utiliza fue y gasoil como combustible principal. Incluye funcionamiento en ciclo abierto.
B30: (3) Grupos de emergencia que se instalan de forma transitoria en determinadas zonas para cubrir un déficit de generación.
B31: (4) Incluye todas aquellas unidades menores de 50 MW que no pertenecen a ninguna unidad de gestión hidráulica (UGH).
B32: =IF(MONTH(FACT)=1,"",CONCATENATE("Para el año ",YEAR(FACT), " valores acumulados hasta ",TEXT(FACT-30,"mmmm")," de ",YEAR(FACT),".")) -> Para el año 2018 valores acumulados hasta marzo de 2018.
B33: ='Balance nacional mensual'!B38 -> Datos definitivos hasta el 31/03/2017. Datos provisionales del 01/04/2017 al 28/02/2018. Datos programados del 01/03/2018 al 31/03/2018.

Sheet Balance Ceuta mensual
O1: 12
M4: Sistema eléctrico
M5: Horizonte temporal
M6: Periodo
C8: Ene. | D8: Feb. | E8: Mar. | F8: Abr. | G8: May. | H8: Jun. | I8: Jul. | J8: Ago. | K8: Sep. | L8: Oct. | M8: Nov. | N8: Dic. | O8: =OFFSET(Año!C19,($O$1-1),0) -> 2018
B10: Motores diesel | C10: =OFFSET(Balance!C64,0,($O$1-1)*12) -> 18543 | D10: =OFFSET(Balance!D64,0,($O$1-1)*12) -> 17094.365 | E10: =OFFSET(Balance!E64,0,($O$1-1)*12) -> 18159.037 | F10: =OFFSET(Balance!F64,0,($O$1-1)*12) -> - | G10: =OFFSET(Balance!G64,0,($O$1-1)*12) -> - | H10: =OFFSET(Balance!H64,0,($O$1-1)*12) -> - | I10: =OFFSET(Balance!I64,0,($O$1-1)*12) -> - | J10: =OFFSET(Balance!J64,0,($O$1-1)*12) -> - | K10: =OFFSET(Balance!K64,0,($O$1-1)*12) -> - | L10: =OFFSET(Balance!L64,0,($O$1-1)*12) -> - | M10: =OFFSET(Balance!M64,0,($O$1-1)*12) -> - | N10: =OFFSET(Balance!N64,0,($O$1-1)*12) -> - | O10: =IF(SUM(C10:N10)=0,"-",SUM(C10:N10)) -> 53796.402
B11: Turbina de gas | C11: =OFFSET(Balance!C65,0,($O$1-1)*12) -> 0.523 | D11: =OFFSET(Balance!D65,0,($O$1-1)*12) -> 5.003 | E11: =OFFSET(Balance!E65,0,($O$1-1)*12) -> 1.367 | F11: =OFFSET(Balance!F65,0,($O$1-1)*12) -> - | G11: =OFFSET(Balance!G65,0,($O$1-1)*12) -> - | H11: =OFFSET(Balance!H65,0,($O$1-1)*12) -> - | I11: =OFFSET(Balance!I65,0,($O$1-1)*12) -> - | J11: =OFFSET(Balance!J65,0,($O$1-1)*12) -> - | K11: =OFFSET(Balance!K65,0,($O$1-1)*12) -> - | L11: =OFFSET(Balance!L65,0,($O$1-1)*12) -> - | M11: =OFFSET(Balance!M65,0,($O$1-1)*12) -> - | N11: =OFFSET(Balance!N65,0,($O$1-1)*12) -> - | O11: 6.893
B12: Fuel + Gas | C12: =OFFSET(Balance!C66,0,($O$1-1)*12) -> 18543.523 | D12: =OFFSET(Balance!D66,0,($O$1-1)*12) -> 17099.368 | E12: =OFFSET(Balance!E66,0,($O$1-1)*12) -> 18160.404 | F12: =OFFSET(Balance!F66,0,($O$1-1)*12) -> - | G12: =OFFSET(Balance!G66,0,($O$1-1)*12) -> - | H12: =OFFSET(Balance!H66,0,($O$1-1)*12) -> - | I12: =OFFSET(Balance!I66,0,($O$1-1)*12) -> - | J12: =OFFSET(Balance!J66,0,($O$1-1)*12) -> - | K12: =OFFSET(Balance!K66,0,($O$1-1)*12) -> - | L12: =OFFSET(Balance!L66,0,($O$1-1)*12) -> - | M12: =OFFSET(Balance!M66,0,($O$1-1)*12) -> - | N12: =OFFSET(Balance!N66,0,($O$1-1)*12) -> - | O12: =SUM(O10:O11) -> 53803.295
B13: Régimen ordinario | C13: =OFFSET(Balance!C67,0,($O$1-1)*12) -> - | D13: =OFFSET(Balance!D67,0,($O$1-1)*12) -> - | E13: =OFFSET(Balance!E67,0,($O$1-1)*12) -> - | F13: =OFFSET(Balance!F67,0,($O$1-1)*12) -> - | G13: =OFFSET(Balance!G67,0,($O$1-1)*12) -> - | H13: =OFFSET(Balance!H67,0,($O$1-1)*12) -> - | I13: =OFFSET(Balance!I67,0,($O$1-1)*12) -> - | J13: =OFFSET(Balance!J67,0,($O$1-1)*12) -> - | K13: =OFFSET(Balance!K67,0,($O$1-1)*12) -> - | L13: =OFFSET(Balance!L67,0,($O$1-1)*12) -> - | M13: =OFFSET(Balance!M67,0,($O$1-1)*12) -> - | N13: =OFFSET(Balance!N67,0,($O$1-1)*12) -> - | O13: =SUM(O12) -> 53803.295
B15: Generación | C15: =OFFSET(Balance!C68,0,($O$1-1)*12) -> 18543.523 | D15: =OFFSET(Balance!D68,0,($O$1-1)*12) -> 17099.368 | E15: =OFFSET(Balance!E68,0,($O$1-1)*12) -> 18160.404 | F15: =OFFSET(Balance!F68,0,($O$1-1)*12) -> - | G15: =OFFSET(Balance!G68,0,($O$1-1)*12) -> - | H15: =OFFSET(Balance!H68,0,($O$1-1)*12) -> - | I15: =OFFSET(Balance!I68,0,($O$1-1)*12) -> - | J15: =OFFSET(Balance!J68,0,($O$1-1)*12) -> - | K15: =OFFSET(Balance!K68,0,($O$1-1)*12) -> - | L15: =OFFSET(Balance!L68,0,($O$1-1)*12) -> - | M15: =OFFSET(Balance!M68,0,($O$1-1)*12) -> - | N15: =OFFSET(Balance!N68,0,($O$1-1)*12) -> - | O15: =SUM(O13:O14) -> 53803.295
B16: Demanda transporte (b.c.) | C16: =OFFSET(Balance!C69,0,($O$1-1)*12) -> 18543.523 | D16: =OFFSET(Balance!D69,0,($O$1-1)*12) -> 17099.368 | E16: =OFFSET(Balance!E69,0,($O$1-1)*12) -> 18160.404 | F16: =OFFSET(Balance!F69,0,($O$1-1)*12) -> - | G16: =OFFSET(Balance!G69,0,($O$1-1)*12) -> - | H16: =OFFSET(Balance!H69,0,($O$1-1)*12) -> - | I16: =OFFSET(Balance!I69,0,($O$1-1)*12) -> - | J16: =OFFSET(Balance!J69,0,($O$1-1)*12) -> - | K16: =OFFSET(Balance!K69,0,($O$1-1)*12) -> - | L16: =OFFSET(Balance!L69,0,($O$1-1)*12) -> - | M16: =OFFSET(Balance!M69,0,($O$1-1)*12) -> - | N16: =OFFSET(Balance!N69,0,($O$1-1)*12) -> - | O16: =O15 -> 53803.295
B17: (1) Asignación de unidades de producción según combustible principal.
B18: =CONCATENATE("Datos definitivos hasta el ",RIGHT('Balance nacional mensual'!B38,59)) -> Datos definitivos hasta el 28/02/2018. Datos programados del 01/03/2018 al 31/03/2018.

Sheet Balance Ceuta anual
I1: 2
H4: Sistema eléctrico
H5: Horizonte temporal
H6: Periodo
C8: =OFFSET(Balance!C168,0,($I$1-1)*7) -> 2014 | D8: =OFFSET(Balance!D168,0,($I$1-1)*7) -> 2015 | E8: =OFFSET(Balance!E168,0,($I$1-1)*7) -> 2016 | F8: =OFFSET(Balance!F168,0,($I$1-1)*7) -> 2017 | G8: =OFFSET(Balance!G168,0,($I$1-1)*7) -> 2018 | H8: =OFFSET(Balance!H168,0,($I$1-1)*7) -> 2019 | I8: =OFFSET(Balance!I168,0,($I$1-1)*7) -> 2020
B10: Motores diesel | C10: =OFFSET(Balance!C169,0,($I$1-1)*7) -> 212164.567 | D10: =OFFSET(Balance!D169,0,($I$1-1)*7) -> 204715.619 | E10: =OFFSET(Balance!E169,0,($I$1-1)*7) -> 210611.989 | F10: =OFFSET(Balance!F169,0,($I$1-1)*7) -> 202665.007 | G10: =OFFSET(Balance!G169,0,($I$1-1)*7) -> 53796.402 | H10: =OFFSET(Balance!H169,0,($I$1-1)*7) -> - | I10: =OFFSET(Balance!I169,0,($I$1-1)*7) -> -
B11: Turbina de gas | C11: =OFFSET(Balance!C170,0,($I$1-1)*7) -> 89.155 | D11: =OFFSET(Balance!D170,0,($I$1-1)*7) -> 723.981 | E11: =OFFSET(Balance!E170,0,($I$1-1)*7) -> 116.158 | F11: =OFFSET(Balance!F170,0,($I$1-1)*7) -> 200.56 | G11: =OFFSET(Balance!G170,0,($I$1-1)*7) -> 6.893 | H11: =OFFSET(Balance!H170,0,($I$1-1)*7) -> - | I11: =OFFSET(Balance!I170,0,($I$1-1)*7) -> -
B12: Fuel + Gas | C12: =OFFSET(Balance!C171,0,($I$1-1)*7) -> 212253.722 | D12: =OFFSET(Balance!D171,0,($I$1-1)*7) -> 205439.6 | E12: =OFFSET(Balance!E171,0,($I$1-1)*7) -> 210728.147 | F12: =OFFSET(Balance!F171,0,($I$1-1)*7) -> 202865.567 | G12: =OFFSET(Balance!G171,0,($I$1-1)*7) -> 53803.295 | H12: =OFFSET(Balance!H171,0,($I$1-1)*7) -> - | I12: =OFFSET(Balance!I171,0,($I$1-1)*7) -> -
B13: Régimen ordinario | C13: =OFFSET(Balance!C172,0,($I$1-1)*7) -> 212253.722 | D13: =OFFSET(Balance!D172,0,($I$1-1)*7) -> - | E13: =OFFSET(Balance!E172,0,($I$1-1)*7) -> - | F13: =OFFSET(Balance!F172,0,($I$1-1)*7) -> - | G13: =OFFSET(Balance!G172,0,($I$1-1)*7) -> - | H13: =OFFSET(Balance!H172,0,($I$1-1)*7) -> - | I13: =OFFSET(Balance!I172,0,($I$1-1)*7) -> -
B15: Generación | C15: =OFFSET(Balance!C173,0,($I$1-1)*7) -> 212253.722 | D15: =OFFSET(Balance!D173,0,($I$1-1)*7) -> 205439.6 | E15: =OFFSET(Balance!E173,0,($I$1-1)*7) -> 210728.147 | F15: =OFFSET(Balance!F173,0,($I$1-1)*7) -> 202865.567 | G15: =OFFSET(Balance!G173,0,($I$1-1)*7) -> 53803.295 | H15: =OFFSET(Balance!H173,0,($I$1-1)*7) -> - | I15: =OFFSET(Balance!I173,0,($I$1-1)*7) -> -
B16: Demanda transporte (b.c.) | C16: =OFFSET(Balance!C174,0,($I$1-1)*7) -> 212253.722 | D16: =OFFSET(Balance!D174,0,($I$1-1)*7) -> 205439.6 | E16: =OFFSET(Balance!E174,0,($I$1-1)*7) -> 210728.147 | F16: =OFFSET(Balance!F174,0,($I$1-1)*7) -> 202865.567 | G16: =OFFSET(Balance!G174,0,($I$1-1)*7) -> 53803.295 | H16: =OFFSET(Balance!H174,0,($I$1-1)*7) -> - | I16: =OFFSET(Balance!I174,0,($I$1-1)*7) -> -
B17: (1) Asignación de unidades de producción según combustible principal.
B18: =IF(MONTH(FACT)=1,"",CONCATENATE("Para el año ",YEAR(FACT), " valores acumulados hasta ",TEXT(FACT-30,"mmmm")," de ",YEAR(FACT),".")) -> Para el año 2018 valores acumulados hasta marzo de 2018.
B19: ='Balance Ceuta mensual'!B18:O18 -> Datos definitivos hasta el 28/02/2018. Datos programados del 01/03/2018 al 31/03/2018.

Sheet Balance Melilla mensual
O1: 12
M4: Sistema eléctrico
M5: Horizonte temporal
M6: Periodo
C8: Ene. | D8: Feb. | E8: Mar. | F8: Abr. | G8: May. | H8: Jun. | I8: Jul. | J8: Ago. | K8: Sep. | L8: Oct. | M8: Nov. | N8: Dic. | O8: =OFFSET(Año!C19,($O$1-1),0) -> 2018
B10: Motores diesel | C10: =OFFSET(Balance!C72,0,($O$1-1)*12) -> 17107.229 | D10: =OFFSET(Balance!D72,0,($O$1-1)*12) -> 16055.702 | E10: =OFFSET(Balance!E72,0,($O$1-1)*12) -> 17014.526 | F10: =OFFSET(Balance!F72,0,($O$1-1)*12) -> - | G10: =OFFSET(Balance!G72,0,($O$1-1)*12) -> - | H10: =OFFSET(Balance!H72,0,($O$1-1)*12) -> - | I10: =OFFSET(Balance!I72,0,($O$1-1)*12) -> - | J10: =OFFSET(Balance!J72,0,($O$1-1)*12) -> - | K10: =OFFSET(Balance!K72,0,($O$1-1)*12) -> - | L10: =OFFSET(Balance!L72,0,($O$1-1)*12) -> - | M10: =OFFSET(Balance!M72,0,($O$1-1)*12) -> - | N10: =OFFSET(Balance!N72,0,($O$1-1)*12) -> - | O10: =IF(SUM(C10:N10)=0,"-",SUM(C10:N10)) -> 50177.457
B11: Turbina de gas | C11: =OFFSET(Balance!C73,0,($O$1-1)*12) -> 41.657 | D11: =OFFSET(Balance!D73,0,($O$1-1)*12) -> 8.089 | E11: =OFFSET(Balance!E73,0,($O$1-1)*12) -> 0.517 | F11: =OFFSET(Balance!F73,0,($O$1-1)*12) -> - | G11: =OFFSET(Balance!G73,0,($O$1-1)*12) -> - | H11: =OFFSET(Balance!H73,0,($O$1-1)*12) -> - | I11: =OFFSET(Balance!I73,0,($O$1-1)*12) -> - | J11: =OFFSET(Balance!J73,0,($O$1-1)*12) -> - | K11: =OFFSET(Balance!K73,0,($O$1-1)*12) -> - | L11: =OFFSET(Balance!L73,0,($O$1-1)*12) -> - | M11: =OFFSET(Balance!M73,0,($O$1-1)*12) -> - | N11: =OFFSET(Balance!N73,0,($O$1-1)*12) -> - | O11: =IF(SUM(C11:N11)=0,"-",SUM(C11:N11)) -> 50.263
B12: Fuel + Gas | C12: =OFFSET(Balance!C74,0,($O$1-1)*12) -> 17148.886 | D12: =OFFSET(Balance!D74,0,($O$1-1)*12) -> 16063.791 | E12: =OFFSET(Balance!E74,0,($O$1-1)*12) -> 17015.043 | F12: =OFFSET(Balance!F74,0,($O$1-1)*12) -> - | G12: =OFFSET(Balance!G74,0,($O$1-1)*12) -> - | H12: =OFFSET(Balance!H74,0,($O$1-1)*12) -> - | I12: =OFFSET(Balance!I74,0,($O$1-1)*12) -> - | J12: =OFFSET(Balance!J74,0,($O$1-1)*12) -> - | K12: =OFFSET(Balance!K74,0,($O$1-1)*12) -> - | L12: =OFFSET(Balance!L74,0,($O$1-1)*12) -> - | M12: =OFFSET(Balance!M74,0,($O$1-1)*12) -> - | N12: =OFFSET(Balance!N74,0,($O$1-1)*12) -> - | O12: =SUM(O10:O11) -> 50227.72
B13: Régimen ordinario | C13: =OFFSET(Balance!C75,0,($O$1-1)*12) -> - | D13: =OFFSET(Balance!D75,0,($O$1-1)*12) -> - | E13: =OFFSET(Balance!E75,0,($O$1-1)*12) -> - | F13: =OFFSET(Balance!F75,0,($O$1-1)*12) -> - | G13: =OFFSET(Balance!G75,0,($O$1-1)*12) -> - | H13: =OFFSET(Balance!H75,0,($O$1-1)*12) -> - | I13: =OFFSET(Balance!I75,0,($O$1-1)*12) -> - | J13: =OFFSET(Balance!J75,0,($O$1-1)*12) -> - | K13: =OFFSET(Balance!K75,0,($O$1-1)*12) -> - | L13: =OFFSET(Balance!L75,0,($O$1-1)*12) -> - | M13: =OFFSET(Balance!M75,0,($O$1-1)*12) -> - | N13: =OFFSET(Balance!N75,0,($O$1-1)*12) -> - | O13: =SUM(O12) -> 50227.72
B15: Solar fotovoltaica | C15: =OFFSET(Balance!C76,0,($O$1-1)*12) -> 4 | D15: =OFFSET(Balance!D76,0,($O$1-1)*12) -> 6 | E15: =OFFSET(Balance!E76,0,($O$1-1)*12) -> 0 | F15: =OFFSET(Balance!F76,0,($O$1-1)*12) -> - | G15: =OFFSET(Balance!G76,0,($O$1-1)*12) -> - | H15: =OFFSET(Balance!H76,0,($O$1-1)*12) -> - | I15: =OFFSET(Balance!I76,0,($O$1-1)*12) -> - | J15: =OFFSET(Balance!J76,0,($O$1-1)*12) -> - | K15: =OFFSET(Balance!K76,0,($O$1-1)*12) -> - | L15: =OFFSET(Balance!L76,0,($O$1-1)*12) -> - | M15: =OFFSET(Balance!M76,0,($O$1-1)*12) -> - | N15: =OFFSET(Balance!N76,0,($O$1-1)*12) -> - | O15: =IF(SUM(C15:N15)=0,"-",SUM(C15:N15)) -> 10
B16: Cogeneración y resto | C16: =OFFSET(Balance!C77,0,($O$1-1)*12) -> 0 | D16: =OFFSET(Balance!D77,0,($O$1-1)*12) -> 0 | E16: =OFFSET(Balance!E77,0,($O$1-1)*12) -> 0 | F16: =OFFSET(Balance!F77,0,($O$1-1)*12) -> - | G16: =OFFSET(Balance!G77,0,($O$1-1)*12) -> - | H16: =OFFSET(Balance!H77,0,($O$1-1)*12) -> - | I16: =OFFSET(Balance!I77,0,($O$1-1)*12) -> - | J16: =OFFSET(Balance!J77,0,($O$1-1)*12) -> - | K16: =OFFSET(Balance!K77,0,($O$1-1)*12) -> - | L16: =OFFSET(Balance!L77,0,($O$1-1)*12) -> - | M16: =OFFSET(Balance!M77,0,($O$1-1)*12) -> - | N16: =OFFSET(Balance!N77,0,($O$1-1)*12) -> - | O16: =IF(SUM(C16:N16)=0,"-",SUM(C16:N16)) -> -
B17: Residuos no renovables | C17: =OFFSET(Balance!C78,0,($O$1-1)*12) -> 521 | D17: =OFFSET(Balance!D78,0,($O$1-1)*12) -> 484.5 | E17: =OFFSET(Balance!E78,0,($O$1-1)*12) -> 395.45 | F17: =OFFSET(Balance!F78,0,($O$1-1)*12) -> - | G17: =OFFSET(Balance!G78,0,($O$1-1)*12) -> - | H17: =OFFSET(Balance!H78,0,($O$1-1)*12) -> - | I17: =OFFSET(Balance!I78,0,($O$1-1)*12) -> - | J17: =OFFSET(Balance!J78,0,($O$1-1)*12) -> - | K17: =OFFSET(Balance!K78,0,($O$1-1)*12) -> - | L17: =OFFSET(Balance!L78,0,($O$1-1)*12) -> - | M17: =OFFSET(Balance!M78,0,($O$1-1)*12) -> - | N17: =OFFSET(Balance!N78,0,($O$1-1)*12) -> - | O17: =IF(SUM(C17:N17)=0,"-",SUM(C17:N17)) -> 1400.95
B18: Residuos renovables | C18: =OFFSET(Balance!C79,0,($O$1-1)*12) -> 521 | D18: =OFFSET(Balance!D79,0,($O$1-1)*12) -> 484.5 | E18: =OFFSET(Balance!E79,0,($O$1-1)*12) -> 395.45 | F18: =OFFSET(Balance!F79,0,($O$1-1)*12) -> - | G18: =OFFSET(Balance!G79,0,($O$1-1)*12) -> - | H18: =OFFSET(Balance!H79,0,($O$1-1)*12) -> - | I18: =OFFSET(Balance!I79,0,($O$1-1)*12) -> - | J18: =OFFSET(Balance!J79,0,($O$1-1)*12) -> - | K18: =OFFSET(Balance!K79,0,($O$1-1)*12) -> - | L18: =OFFSET(Balance!L79,0,($O$1-1)*12) -> - | M18: =OFFSET(Balance!M79,0,($O$1-1)*12) -> - | N18: =OFFSET(Balance!N79,0,($O$1-1)*12) -> - | O18: =IF(SUM(C18:N18)=0,"-",SUM(C18:N18)) -> 1400.95
B19: Régimen especial | C19: =OFFSET(Balance!C80,0,($O$1-1)*12) -> - | D19: =OFFSET(Balance!D80,0,($O$1-1)*12) -> - | E19: =OFFSET(Balance!E80,0,($O$1-1)*12) -> - | F19: =OFFSET(Balance!F80,0,($O$1-1)*12) -> - | G19: =OFFSET(Balance!G80,0,($O$1-1)*12) -> - | H19: =OFFSET(Balance!H80,0,($O$1-1)*12) -> - | I19: =OFFSET(Balance!I80,0,($O$1-1)*12) -> - | J19: =OFFSET(Balance!J80,0,($O$1-1)*12) -> - | K19: =OFFSET(Balance!K80,0,($O$1-1)*12) -> - | L19: =OFFSET(Balance!L80,0,($O$1-1)*12) -> - | M19: =OFFSET(Balance!M80,0,($O$1-1)*12) -> - | N19: =OFFSET(Balance!N80,0,($O$1-1)*12) -> - | O19: =SUM(O15:O18) -> 2811.9
B20: Generación | C20: =OFFSET(Balance!C81,0,($O$1-1)*12) -> 18194.886 | D20: =OFFSET(Balance!D81,0,($O$1-1)*12) -> 17038.791 | E20: =OFFSET(Balance!E81,0,($O$1-1)*12) -> 17805.943 | F20: =OFFSET(Balance!F81,0,($O$1-1)*12) -> - | G20: =OFFSET(Balance!G81,0,($O$1-1)*12) -> - | H20: =OFFSET(Balance!H81,0,($O$1-1)*12) -> - | I20: =OFFSET(Balance!I81,0,($O$1-1)*12) -> - | J20: =OFFSET(Balance!J81,0,($O$1-1)*12) -> - | K20: =OFFSET(Balance!K81,0,($O$1-1)*12) -> - | L20: =OFFSET(Balance!L81,0,($O$1-1)*12) -> - | M20: =OFFSET(Balance!M81,0,($O$1-1)*12) -> - | N20: =OFFSET(Balance!N81,0,($O$1-1)*12) -> - | O20: =SUM(O13:O14,O19) -> 53039.62
B21: Demanda transporte (b.c.) | C21: =OFFSET(Balance!C82,0,($O$1-1)*12) -> 18194.886 | D21: =OFFSET(Balance!D82,0,($O$1-1)*12) -> 17038.791 | E21: =OFFSET(Balance!E82,0,($O$1-1)*12) -> 17805.943 | F21: =OFFSET(Balance!F82,0,($O$1-1)*12) -> - | G21: =OFFSET(Balance!G82,0,($O$1-1)*12) -> - | H21: =OFFSET(Balance!H82,0,($O$1-1)*12) -> - | I21: =OFFSET(Balance!I82,0,($O$1-1)*12) -> - | J21: =OFFSET(Balance!J82,0,($O$1-1)*12) -> - | K21: =OFFSET(Balance!K82,0,($O$1-1)*12) -> - | L21: =OFFSET(Balance!L82,0,($O$1-1)*12) -> - | M21: =OFFSET(Balance!M82,0,($O$1-1)*12) -> - | N21: =OFFSET(Balance!N82,0,($O$1-1)*12) -> - | O21: =O20 -> 53039.62
B22: (1) Asignación de unidades de producción según combustible principal.
B23: ='Balance nacional mensual'!B38 -> Datos definitivos hasta el 31/03/2017. Datos provisionales del 01/04/2017 al 28/02/2018. Datos programados del 01/03/2018 al 31/03/2018.

Sheet Balance Melilla anual
I1: 2
H4: Sistema eléctrico
H5: Horizonte temporal
H6: Periodo
C8: =OFFSET(Balance!C176,0,($I$1-1)*7) -> 2014 | D8: =OFFSET(Balance!D176,0,($I$1-1)*7) -> 2015 | E8: =OFFSET(Balance!E176,0,($I$1-1)*7) -> 2016 | F8: =OFFSET(Balance!F176,0,($I$1-1)*7) -> 2017 | G8: =OFFSET(Balance!G176,0,($I$1-1)*7) -> 2018 | H8: =OFFSET(Balance!H176,0,($I$1-1)*7) -> 2019 | I8: =OFFSET(Balance!I176,0,($I$1-1)*7) -> 2020
B10: Motores diesel | C10: =OFFSET(Balance!C177,0,($I$1-1)*7) -> 200163.61 | D10: =OFFSET(Balance!D177,0,($I$1-1)*7) -> 204228.133 | E10: =OFFSET(Balance!E177,0,($I$1-1)*7) -> 198326.313 | F10: =OFFSET(Balance!F177,0,($I$1-1)*7) -> 200491.943 | G10: =OFFSET(Balance!G177,0,($I$1-1)*7) -> 50177.457 | H10: =OFFSET(Balance!H177,0,($I$1-1)*7) -> - | I10: =OFFSET(Balance!I177,0,($I$1-1)*7) -> -
B11: Turbina de gas | C11: =OFFSET(Balance!C178,0,($I$1-1)*7) -> 724.203 | D11: =OFFSET(Balance!D178,0,($I$1-1)*7) -> 587.858 | E11: =OFFSET(Balance!E178,0,($I$1-1)*7) -> 241.533 | F11: =OFFSET(Balance!F178,0,($I$1-1)*7) -> 73.229 | G11: =OFFSET(Balance!G178,0,($I$1-1)*7) -> 50.263 | H11: =OFFSET(Balance!H178,0,($I$1-1)*7) -> - | I11: =OFFSET(Balance!I178,0,($I$1-1)*7) -> -
B12: Fuel + Gas | C12: =OFFSET(Balance!C179,0,($I$1-1)*7) -> 200887.813 | D12: =OFFSET(Balance!D179,0,($I$1-1)*7) -> 204815.991 | E12: =OFFSET(Balance!E179,0,($I$1-1)*7) -> 198567.846 | F12: =OFFSET(Balance!F179,0,($I$1-1)*7) -> 200565.172 | G12: =OFFSET(Balance!G179,0,($I$1-1)*7) -> 50227.72 | H12: =OFFSET(Balance!H179,0,($I$1-1)*7) -> - | I12: =OFFSET(Balance!I179,0,($I$1-1)*7) -> -
B13: Régimen ordinario | C13: =OFFSET(Balance!C180,0,($I$1-1)*7) -> - | D13: =OFFSET(Balance!D180,0,($I$1-1)*7) -> - | E13: =OFFSET(Balance!E180,0,($I$1-1)*7) -> - | F13: =OFFSET(Balance!F180,0,($I$1-1)*7) -> - | G13: =OFFSET(Balance!G180,0,($I$1-1)*7) -> - | H13: =OFFSET(Balance!H180,0,($I$1-1)*7) -> - | I13: =OFFSET(Balance!I180,0,($I$1-1)*7) -> -
B15: Solar fotovoltaica | C15: =OFFSET(Balance!C181,0,($I$1-1)*7) -> 85 | D15: =OFFSET(Balance!D181,0,($I$1-1)*7) -> 78 | E15: =OFFSET(Balance!E181,0,($I$1-1)*7) -> 78 | F15: =OFFSET(Balance!F181,0,($I$1-1)*7) -> 76 | G15: =OFFSET(Balance!G181,0,($I$1-1)*7) -> 10 | H15: =OFFSET(Balance!H181,0,($I$1-1)*7) -> - | I15: =OFFSET(Balance!I181,0,($I$1-1)*7) -> -
B16: Cogeneración y resto (2) | C16: =OFFSET(Balance!C182,0,($I$1-1)*7) -> 8898 | D16: =OFFSET(Balance!D182,0,($I$1-1)*7) -> - | E16: =OFFSET(Balance!E182,0,($I$1-1)*7) -> - | F16: =OFFSET(Balance!F182,0,($I$1-1)*7) -> - | G16: =OFFSET(Balance!G182,0,($I$1-1)*7) -> - | H16: =OFFSET(Balance!H182,0,($I$1-1)*7) -> - | I16: =OFFSET(Balance!I182,0,($I$1-1)*7) -> -
B17: Residuos no renovables | C17: =OFFSET(Balance!C183,0,($I$1-1)*7) -> - | D17: =OFFSET(Balance!D183,0,($I$1-1)*7) -> 4295.5 | E17: =OFFSET(Balance!E183,0,($I$1-1)*7) -> 4850 | F17: =OFFSET(Balance!F183,0,($I$1-1)*7) -> 4977.5 | G17: =OFFSET(Balance!G183,0,($I$1-1)*7) -> 1400.95 | H17: =OFFSET(Balance!H183,0,($I$1-1)*7) -> - | I17: =OFFSET(Balance!I183,0,($I$1-1)*7) -> -
B18: Residuos renovables | C18: =OFFSET(Balance!C184,0,($I$1-1)*7) -> - | D18: =OFFSET(Balance!D184,0,($I$1-1)*7) -> 4295.5 | E18: =OFFSET(Balance!E184,0,($I$1-1)*7) -> 4850 | F18: =OFFSET(Balance!F184,0,($I$1-1)*7) -> 4977.5 | G18: =OFFSET(Balance!G184,0,($I$1-1)*7) -> 1400.95 | H18: =OFFSET(Balance!H184,0,($I$1-1)*7) -> - | I18: =OFFSET(Balance!I184,0,($I$1-1)*7) -> -
B19: Régimen especial | C19: =OFFSET(Balance!C185,0,($I$1-1)*7) -> - | D19: =OFFSET(Balance!D185,0,($I$1-1)*7) -> - | E19: =OFFSET(Balance!E185,0,($I$1-1)*7) -> - | F19: =OFFSET(Balance!F185,0,($I$1-1)*7) -> - | G19: =OFFSET(Balance!G185,0,($I$1-1)*7) -> - | H19: =OFFSET(Balance!H185,0,($I$1-1)*7) -> - | I19: =OFFSET(Balance!I185,0,($I$1-1)*7) -> -
B20: Generación | C20: =OFFSET(Balance!C186,0,($I$1-1)*7) -> 209870.813 | D20: =OFFSET(Balance!D186,0,($I$1-1)*7) -> 213484.991 | E20: =OFFSET(Balance!E186,0,($I$1-1)*7) -> 208345.846 | F20: =OFFSET(Balance!F186,0,($I$1-1)*7) -> 210596.172 | G20: =OFFSET(Balance!G186,0,($I$1-1)*7) -> 53039.62 | H20: =OFFSET(Balance!H186,0,($I$1-1)*7) -> - | I20: =OFFSET(Balance!I186,0,($I$1-1)*7) -> -
B21: Demanda transporte (b.c.) | C21: =OFFSET(Balance!C187,0,($I$1-1)*7) -> 209870.813 | D21: =OFFSET(Balance!D187,0,($I$1-1)*7) -> 213484.991 | E21: =OFFSET(Balance!E187,0,($I$1-1)*7) -> 208345.846 | F21: =OFFSET(Balance!F187,0,($I$1-1)*7) -> 210596.172 | G21: =OFFSET(Balance!G187,0,($I$1-1)*7) -> 53039.62 | H21: =OFFSET(Balance!H187,0,($I$1-1)*7) -> - | I21: =OFFSET(Balance!I187,0,($I$1-1)*7) -> -
B22: (1) Asignación de unidades de producción según combustible principal.
B23: (2) Incluye residuos.
B24: =IF(MONTH(FACT)=1,"",CONCATENATE("Para el año ",YEAR(FACT), " valores acumulados hasta ",TEXT(FACT-30,"mmmm")," de ",YEAR(FACT),".")) -> Para el año 2018 valores acumulados hasta marzo de 2018.
B25: ='Balance nacional mensual'!B38 -> Datos definitivos hasta el 31/03/2017. Datos provisionales del 01/04/2017 al 28/02/2018. Datos programados del 01/03/2018 al 31/03/2018.

Sheet Balance (hidden)
B2: Balance eléctrico mensual peninsular (GWh) | C2: 1990-01-01 | D2: 1990-02-01 | E2: 1990-03-01 | F2: 1990-04-01 | G2: 1990-05-01 | H2: 1990-06-01 | I2: 1990-07-01 | J2: 1990-08-01 | K2: 1990-09-01 | L2: 1990-10-01 | M2: 1990-11-01 | N2: 1990-12-01 | O2: 1991-01-01 | P2: 1991-02-01 | Q2: 1991-03-01 | R2: 1991-04-01 | S2: 1991-05-01 | T2: 1991-06-01 | U2: 1991-07-01 | V2: 1991-08-01 | W2: 1991-09-01 | X2: 1991-10-01 | Y2: 1991-11-01 | Z2: 1991-12-01 | AA2: 1992-01-01 | AB2: 1992-02-01 | AC2: 1992-03-01 | AD2: 1992-04-01 | AE2: 1992-05-01 | AF2: 1992-06-01 | AG2: 1992-07-01 | AH2: 1992-08-01 | AI2: 1992-09-01 | AJ2: 1992-10-01 | AK2: 1992-11-01 | AL2: 1992-12-01 | AM2: 1993-01-01 | AN2: 1993-02-01 | AO2: 1993-03-01 | AP2: 1993-04-01 | AQ2: 1993-05-01 | AR2: 1993-06-01 | AS2: 1993-07-01 | AT2: 1993-08-01 | AU2: 1993-09-01 | AV2: 1993-10-01 | AW2: 1993-11-01 | AX2: 1993-12-01 | AY2: 1994-01-01 | AZ2: 1994-02-01 | BA2: 1994-03-01 | BB2: 1994-04-01 | BC2: 1994-05-01 | BD2: 1994-06-01 | BE2: 1994-07-01 | BF2: 1994-08-01 | BG2: 1994-09-01 | BH2: 1994-10-01 | BI2: 1994-11-01 | BJ2: 1994-12-01 | BK2: 1995-01-01 | BL2: 1995-02-01 | BM2: 1995-03-01 | BN2: 1995-04-01 | BO2: 1995-05-01 | BP2: 1995-06-01 | BQ2: 1995-07-01 | BR2: 1995-08-01 | BS2: 1995-09-01 | BT2: 1995-10-01 | BU2: 1995-11-01 | BV2: 1995-12-01 | BW2: 1996-01-01 | BX2: 1996-02-01 | BY2: 1996-03-01 | BZ2: 1996-04-01 | CA2: 1996-05-01 | CB2: 1996-06-01 | CC2: 1996-07-01 | CD2: 1996-08-01 | CE2: 1996-09-01 | CF2: 1996-10-01 | CG2: 1996-11-01 | CH2: 1996-12-01 | CI2: 1997-01-01 | CJ2: 1997-02-01 | CK2: 1997-03-01 | CL2: 1997-04-01 | CM2: 1997-05-01 | CN2: 1997-06-01 | CO2: 1997-07-01 | CP2: 1997-08-01 | CQ2: 1997-09-01 | CR2: 1997-10-01 | CS2: 1997-11-01 | CT2: 1997-12-01 | CU2: 1998-01-01 | CV2: 1998-02-01 | CW2: 1998-03-01 | CX2: 1998-04-01 | CY2: 1998-05-01 | CZ2: 1998-06-01 | DA2: 1998-07-01 | DB2: 1998-08-01 | DC2: 1998-09-01 | DD2: 1998-10-01 | DE2: 1998-11-01 | DF2: 1998-12-01 | DG2: 1999-01-01 | DH2: 1999-02-01 | DI2: 1999-03-01 | DJ2: 1999-04-01 | DK2: 1999-05-01 | DL2: 1999-06-01 | DM2: 1999-07-01 | DN2: 1999-08-01 | DO2: 1999-09-01 | DP2: 1999-10-01 | DQ2: 1999-11-01 | DR2: 1999-12-01 | DS2: 2000-01-01 | DT2: 2000-02-01 | DU2: 2000-03-01 | DV2: 2000-04-01 | DW2: 2000-05-01 | DX2: 2000-06-01 | DY2: 2000-07-01 | DZ2: 2000-08-01 | EA2: 2000-09-01 | EB2: 2000-10-01 | EC2: 2000-11-01 | ED2: 2000-12-01 | EE2: 2001-01-01 | EF2: 2001-02-01 | EG2: 2001-03-01 | EH2: 2001-04-01 | EI2: 2001-05-01 | EJ2: 2001-06-01 | EK2: 2001-07-01 | EL2: 2001-08-01 | EM2: 2001-09-01 | EN2: 2001-10-01 | EO2: 2001-11-01 | EP2: 2001-12-01 | EQ2: 2002-01-01 | ER2: 2002-02-01 | ES2: 2002-03-01 | ET2: 2002-04-01 | EU2: 2002-05-01 | EV2: 2002-06-01 | EW2: 2002-07-01 | EX2: 2002-08-01 | EY2: 2002-09-01 | EZ2: 2002-10-01 | FA2: 2002-11-01 | FB2: 2002-12-01 | FC2: 2003-01-01 | FD2: 2003-02-01 | FE2: 2003-03-01 | FF2: 2003-04-01 | FG2: 2003-05-01 | FH2: 2003-06-01 | FI2: 2003-07-01 | FJ2: 2003-08-01 | FK2: 2003-09-01 | FL2: 2003-10-01 | FM2: 2003-11-01 | FN2: 2003-12-01 | FO2: 2004-01-01 | FP2: 2004-02-01 | FQ2: 2004-03-01 | FR2: 2004-04-01 | FS2: 2004-05-01 | FT2: 2004-06-01 | FU2: 2004-07-01 | FV2: 2004-08-01 | FW2: 2004-09-01 | FX2: 2004-10-01 | FY2: 2004-11-01 | FZ2: 2004-12-01 | GA2: 2005-01-01 | GB2: 2005-02-01 | GC2: 2005-03-01 | GD2: 2005-04-01 | GE2: 2005-05-01 | GF2: 2005-06-01 | GG2: 2005-07-01 | GH2: 2005-08-01 | GI2: 2005-09-01 | GJ2: 2005-10-01 | GK2: 2005-11-01 | GL2: 2005-12-01 | GM2: 2006-01-01 | GN2: 2006-02-01 | GO2: 2006-03-01 | GP2: 2006-04-01 | GQ2: 2006-05-01 | GR2: 2006-06-01 | GS2: 2006-07-01 | GT2: 2006-08-01 | GU2: 2006-09-01 | GV2: 2006-10-01 | GW2: 2006-11-01 | GX2: 2006-12-01 | GY2: 2007-01-01 | GZ2: 2007-02-01 | HA2: 2007-03-01 | HB2: 2007-04-01 | HC2: 2007-05-01 | HD2: 2007-06-01 | HE2: 2007-07-01 | HF2: 2007-08-01 | HG2: 2007-09-01 | HH2: 2007-10-01 | HI2: 2007-11-01 | HJ2: 2007-12-01 | HK2: 2008-01-01 | HL2: 2008-02-01 | HM2: 2008-03-01 | HN2: 2008-04-01 | HO2: 2008-05-01 | HP2: 2008-06-01 | HQ2: 2008-07-01 | HR2: 2008-08-01 | HS2: 2008-09-01 | HT2: 2008-10-01 | HU2: 2008-11-01 | HV2: 2008-12-01 | HW2: 2009-01-01 | HX2: 2009-02-01 | HY2: 2009-03-01 | HZ2: 2009-04-01 | IA2: 2009-05-01 | IB2: 2009-06-01 | IC2: 2009-07-01 | ID2: 2009-08-01 | IE2: 2009-09-01 | IF2: 2009-10-01 | IG2: 2009-11-01 | IH2: 2009-12-01 | II2: 2010-01-01 | IJ2: 2010-02-01 | IK2: 2010-03-01 | IL2: 2010-04-01 | IM2: 2010-05-01 | IN2: 2010-06-01 | IO2: 2010-07-01 | IP2: 2010-08-01 | IQ2: 2010-09-01 | IR2: 2010-10-01 | IS2: 2010-11-01 | IT2: 2010-12-01 | IU2: 2011-01-01 | IV2: 2011-02-01 | IW2: 2011-03-01 | IX2: 2011-04-01 | IY2: 2011-05-01 | IZ2: 2011-06-01 | JA2: 2011-07-01 | JB2: 2011-08-01 | JC2: 2011-09-01 | JD2: 2011-10-01 | JE2: 2011-11-01 | JF2: 2011-12-01 | JG2: 2012-01-01 | JH2: 2012-02-01 | JI2: 2012-03-01 | JJ2: 2012-04-01 | JK2: 2012-05-01 | JL2: 2012-06-01 | JM2: 2012-07-01 | JN2: 2012-08-01 | JO2: 2012-09-01 | JP2: 2012-10-01 | JQ2: 2012-11-01 | JR2: 2012-12-01 | JS2: 2013-01-01 | JT2: 2013-02-01 | JU2: 2013-03-01 | JV2: 2013-04-01 | JW2: 2013-05-01 | JX2: 2013-06-01 | JY2: 2013-07-01 | JZ2: 2013-08-01 | KA2: 2013-09-01 | KB2: 2013-10-01 | KC2: 2013-11-01 | KD2: 2013-12-01 | KE2: 2014-01-01 | KF2: 2014-02-01 | KG2: 2014-03-01 | KH2: 2014-04-01 | KI2: 2014-05-01 | KJ2: 2014-06-01 | KK2: 2014-07-01 | KL2: 2014-08-01 | KM2: 2014-09-01 | KN2: 2014-10-01 | KO2: 2014-11-01 | KP2: 2014-12-01 | KQ2: 2015-01-01 | KR2: 2015-02-01 | KS2: 2015-03-01 | KT2: 2015-04-01 | KU2: 2015-05-01 | KV2: 2015-06-01 | KW2: 2015-07-01 | KX2: 2015-08-01 | KY2: 2015-09-01 | KZ2: 2015-10-01 | LA2: 2015-11-01 | LB2: 2015-12-01 | LC2: 2016-01-01 | LD2: 2016-02-01 | LE2: 2016-03-01 | LF2: 2016-04-01 | LG2: 2016-05-01 | LH2: 2016-06-01 | LI2: 2016-07-01 | LJ2: 2016-08-01 | LK2: 2016-09-01 | LL2: 2016-10-01 | LM2: 2016-11-01 | LN2: 2016-12-01 | LO2: 2017-01-01 | LP2: 2017-02-01 | LQ2: 2017-03-01 | LR2: 2017-04-01 | LS2: 2017-05-01 | LT2: 2017-06-01 | LU2: 2017-07-01 | LV2: 2017-08-01 | LW2: 2017-09-01 | LX2: 2017-10-01 | LY2: 2017-11-01 | LZ2: 2017-12-01 | MA2: 2018-01-01 | MB2: 2018-02-01 | MC2: 2018-03-01 | MD2: 2018-04-01 | ME2: 2018-05-01 | MF2: 2018-06-01 | MG2: 2018-07-01 | MH2: 2018-08-01 | MI2: 2018-09-01 | MJ2: 2018-10-01 | MK2: 2018-11-01 | ML2: 2018-12-01
B3: Hidráulica | C3: 3812.6837 | D3: 3241.3314 | E3: 2387.7997 | F3: 1664.4925 | G3: 1752.9018 | H3: 1739.8822 | I3: 1544.0682 | J3: 1169.8984 | K3: 1178.3229 | L3: 1337.0603 | M3: 1868.1971 | N3: 1844.1224 | O3: 2467.4704 | P3: 1919.5629 | Q3: 3614.2048 | R3: 3316.7103 | S3: 2694.8297 | T3: 1973.8522 | U3: 1620.9676 | V3: 1055.456 | W3: 1050.6569 | X3: 1456.6257 | Y3: 1844.0771 | Z3: 1713.5203 | AA3: 1250.8666 | AB3: 723.7795 | AC3: 698.13 | AD3: 1390.8229 | AE3: 1287.4845 | AF3: 1384.7242 | AG3: 1490.8639 | AH3: 1021.2474 | AI3: 1103.2182 | AJ3: 1653.1741 | AK3: 1965.1257 | AL3: 2587.4305 | AM3: 1964.7223 | AN3: 1382.2487 | AO3: 1283.8342 | AP3: 971.6232 | AQ3: 1629.2967 | AR3: 1998.1276 | AS3: 1732.0918 | AT3: 1141.0419 | AU3: 1098.4952 | AV3: 2604.2501 | AW3: 3227.9827 | AX3: 2480.7753 | AY3: 3506.1818 | AZ3: 2871.0269 | BA3: 2559.2107 | BB3: 2180.1567 | BC3: 2397.3125 | BD3: 2261.01 | BE3: 1724.8936 | BF3: 1239.8088 | BG3: 1153.1582 | BH3: 1376.5239 | BI3: 2086.2166 | BJ3: 1653.166 | BK3: 2531.9199 | BL3: 2392.7034 | BM3: 2922.0562 | BN3: 1736.6887 | BO3: 1575.2419 | BP3: 1613.2683 | BQ3: 1506.0025 | BR3: 986.9473 | BS3: 810.2377 | BT3: 876.0217 | BU3: 1104.649 | BV3: 2183.3512 | BW3: 5366.4255 | BX3: 5212.2742 | BY3: 3299.6811 | BZ3: 3427.3589 | CA3: 3565.8544 | CB3: 2717.4453 | CC3: 2133.1412 | CD3: 1426.6442 | CE3: 1653.9289 | CF3: 1642.9637 | CG3: 2028.1707 | CH3: 3850.8693 | CI3: 5243.6578 | CJ3: 3212.0474 | CK3: 2463.6686 | CL3: 2149.8221 | CM3: 2047.0708 | CN3: 2156.1441 | CO3: 1862.2452 | CP3: 1573.6127 | CQ3: 1466.7003 | CR3: 1361.9638 | CS3: 3192.0373 | CT3: 4952.2926 | CU3: 5470.6295 | CV3: 3738.6074 | CW3: 2434.1593 | CX3: 3142.3083 | CY3: 3702.8203 | CZ3: 3175.0884 | DA3: 2392.2329 | DB3: 1887.2715 | DC3: 1699.3458 | DD3: 1791.5409 | DE3: 1342.3168 | DF3: 1079.2141 | DG3: 1111.8596 | DH3: 1083.0403 | DI3: 1671.6503 | DJ3: 1854.1497 | DK3: 2506.3908 | DL3: 2240.7728 | DM3: 1763.4634 | DN3: 1280.9924 | DO3: 1341.8103 | DP3: 1474.7902 | DQ3: 2480.3628 | DR3: 2488.0994 | DS3: 2258.7286 | DT3: 1356.0572 | DU3: 1300.8536 | DV3: 1804.3186 | DW3: 2863.7578 | DX3: 2010.3655 | DY3: 1492.7416 | DZ3: 1557.3933 | EA3: 1681.1606 | EB3: 1511.4157 | EC3: 2137.1221 | ED3: 4083.9202 | EE3: 5842.8609 | EF3: 5371.9687 | EG3: 6098.7381 | EH3: 3956.8407 | EI3: 2967.3583 | EJ3: 2227.5889 | EK3: 1785.2493 | EL3: 1721.3026 | EM3: 1319.4317 | EN3: 1577.8277 | EO3: 1812.4448 | EP3: 1422.9655 | EQ3: 1092.5866 | ER3: 918.6936 | ES3: 1561.1817 | ET3: 1532.7879 | EU3: 1572.4141 | EV3: 1595.1734 | EW3: 1135.2789 | EX3: 844.2856 | EY3: 837.7712 | EZ3: 937.8151 | FA3: 1607.2706 | FB3: 3690.6139 | FC3: 5077.4655 | FD3: 3962.1759 | FE3: 4042.184 | FF3: 3389.938 | FG3: 3195.2093 | FH3: 2009.3285 | FI3: 1705.3562 | FJ3: 1257.8617 | FK3: 1451.1365 | FL3: 1701.9633 | FM3: 2809.7932 | FN3: 4405.9511 | FO3: 3194.3601 | FP3: 2970.821 | FQ3: 2675.6499 | FR3: 2489.1505 | FS3: 2791.3154 | FT3: 2347.6551 | FU3: 1776.8766 | FV3: 1499.0746 | FW3: 1336.6138 | FX3: 1499.4952 | FY3: 2039.2545 | FZ3: 1500.1924 | GA3: 1212.913 | GB3: 1247.2604 | GC3: 1424.3981 | GD3: 1633.995 | GE3: 1748.5584 | GF3: 1526.0681 | GG3: 1063.7019 | GH3: 938.55 | GI3: 667.8684 | GJ3: 638.9878 | GK3: 1022.1013 | GL3: 1306.2117 | GM3: 1233.9693 | GN3: 869.5377 | GO3: 2443.6333 | GP3: 2221.2243 | GQ3: 1775.2779 | GR3: 1255.5403 | GS3: 1280.5138 | GT3: 855.7432 | GU3: 952.0689 | GV3: 1324.1279 | GW3: 2588.5226 | GX3: 4426.2257 | GY3: 1920.0478 | GZ3: 2539.7347 | HA3: 3412.3604 | HB3: 2337.7021 | HC3: 2328.2846 | HD3: 1896.4942 | HE3: 2152.4523 | HF3: 1514.2806 | HG3: 1189.9215 | HH3: 1525.5493 | HI3: 1152.0925 | HJ3: 1010.0581 | HK3: 1052.9718 | HL3: 724.4335 | HM3: 774.5612 | HN3: 2158.8984 | HO3: 2756.8809 | HP3: 2593.9365 | HQ3: 1801.4576 | HR3: 1275.0206 | HS3: 1101.1438 | HT3: 904.6395 | HU3: 1192.6748 | HV3: 1959.02 | HW3: 1753.4291 | HX3: 2852.5815 | HY3: 2234.3776 | HZ3: 1704.1587 | IA3: 2008.6724 | IB3: 1659.6542 | IC3: 1393.0594 | ID3: 1167.1748 | IE3: 750.3409 | IF3: 1028.1299 | IG3: 1560.9613 | IH3: 2619.7629 | II3: 4414.276113 | IJ3: 3450.725562 | IK3: 5031.778044 | IL3: 4029.856131 | IM3: 3174.539048 | IN3: 2946.088153 | IO3: 2437.169407 | IP3: 1695.081813 | IQ3: 1249.407344 | IR3: 1282.613029 | IS3: 2043.858068 | IT3: 3254.061477 | IU3: 4452.617963 | IV3: 2489.544908 | IW3: 3179.37371 | IX3: 2947.928634 | IY3: 2303.819059 | IZ3: 1656.864346 | JA3: 1275.667964 | JB3: 1226.754155 | JC3: 987.6263942 | JD3: 1058.486048 | JE3: 1728.471857 | JF3: 1735.21487 | JG3: 1290.835482 | JH3: 892.930115 | JI3: 986.8804386 | JJ3: 1274.3038 | JK3: 1893.143764 | JL3: 1663.708752 | JM3: 1333.75945 | JN3: 1069.821452 | JO3: 836.6731693 | JP3: 1119.087479 | JQ3: 1575.427305 | JR3: 2041.313123 | JS3: 2346.31781 | JT3: 2863.597682 | JU3: 3778.630535 | JV3: 4543.618732 | JW3: 3031.878054 | JX3: 2542.564554 | JY3: 2184.229283 | JZ3: 1739.652574 | KA3: 1523.942471 | KB3: 1522.366532 | KC3: 2278.714393 | KD3: 1931.991945 | KE3: 3475.899318 | KF3: 5004.809908 | KG3: 4483.110218 | KH3: 4171.236114 | KI3: 2211.675887 | KJ3: 1958.70524 | KK3: 1871.228497 | KL3: 1639.298334 | KM3: 1440.619652 | KN3: 1271.145453 | KO3: 1906.226679 | KP3: 2608.923208 | KQ3: 2566.888279 | KR3: 3559.434092 | KS3: 3844.206084 | KT3: 2655.528439 | KU3: 2946.062628 | KV3: 2485.96415 | KW3: 2054.636694 | KX3: 1634.978237 | KY3: 1601.66808 | KZ3: 1646.579403 | LA3: 1887.691242 | LB3: 1438.786957 | LC3: 3440.584285 | LD3: 4050.869519 | LE3: 4362.851438 | LF3: 5231.309009 | LG3: 5085.119637 | LH3: 2938.060273 | LI3: 2264.816705 | LJ3: 2040.742622 | LK3: 1653.805303 | LL3: 1632.862552 | LM3: 1493.763942 | LN3: 1844.368434 | LO3: 2043.161553 | LP3: 1952.982452 | LQ3: 2696.849923 | LR3: 1714.396743 | LS3: 1923.662508 | LT3: 1637.937685 | LU3: 1193.060808 | LV3: 1085.274119 | LW3: 1188.23951 | LX3: 828.3129254 | LY3: 842.2804915 | LZ3: 1254.341427 | MA3: 2195.140985 | MB3: 2386.615425 | MC3: 4379.9547 | MD3: - | ME3: - | MF3: - | MG3: - | MH3: - | MI3: - | MJ3: - | MK3: - | ML3: -
B4: Turbinación bombeo | C4: =-C20*0.7 -> 161.4753 | D4: =-D20*0.7 -> 85.6016 | E4: 10.0023 | F4: 19.7015 | G4: 30.4402 | H4: 9.1798 | I4: 15.4728 | J4: 34.9846 | K4: 112.4991 | L4: 108.8507 | M4: 31.1549 | N4: 108.1276 | O4: 188.2356 | P4: 152.8681 | Q4: 120.1802 | R4: 8.5407 | S4: 10.9403 | T4: 28.9688 | U4: 40.3984 | V4: 50.463 | W4: 78.9411 | X4: 56.6153 | Y4: 131.9689 | Z4: 134.7927 | AA4: 183.3944 | AB4: 101.0205 | AC4: 119.308 | AD4: 208.3151 | AE4: 139.0305 | AF4: 172.7978 | AG4: 194.1751 | AH4: 192.3446 | AI4: 192.0898 | AJ4: 204.5099 | AK4: 127.2243 | AL4: 119.2835 | AM4: 97.1187 | AN4: 78.8823 | AO4: 132.2958 | AP4: 141.7808 | AQ4: 158.9483 | AR4: 94.0954 | AS4: 97.8922 | AT4: 133.1981 | AU4: 141.6548 | AV4: 133.4529 | AW4: 59.5273 | AX4: 52.4447 | AY4: 212.8532 | AZ4: 87.9431 | BA4: 11.2063 | BB4: 24.2123 | BC4: 37.1035 | BD4: 28 | BE4: 78.9894 | BF4: 20.3042 | BG4: 118.0438 | BH4: 131.6301 | BI4: 78.8214 | BJ4: 112.665 | BK4: 160.9531 | BL4: 106.2796 | BM4: 104.9398 | BN4: 97.3693 | BO4: 88.7621 | BP4: =-BP20*0.7 -> 88.3757 | BQ4: 114.7615 | BR4: 110.0827 | BS4: 122.0093 | BT4: 124.7743 | BU4: 116.683 | BV4: 222.2178 | BW4: 532.9415 | BX4: 133.2898 | BY4: 21.0189 | BZ4: 23.6971 | CA4: 30.8196 | CB4: 51.0097 | CC4: 46.4478 | CD4: 8.4518 | CE4: 16.2421 | CF4: 27.4323 | CG4: 48.7753 | CH4: 125.7067 | CI4: 177.0552 | CJ4: 26.0946 | CK4: 8.5834 | CL4: 15.0479 | CM4: 57.3202 | CN4: 59.8199 | CO4: 82.7148 | CP4: 123.4373 | CQ4: 133.0357 | CR4: 101.2872 | CS4: 186.2427 | CT4: 261.9834 | CU4: 194.0085 | CV4: 94.3866 | CW4: 77.8477 | CX4: 150.4027 | CY4: 127.2327 | CZ4: 80.1906 | DA4: 142.3611 | DB4: 223.9475 | DC4: 135.3632 | DD4: 120.2061 | DE4: 149.6502 | DF4: 315.8309 | DG4: 328.1404 | DH4: 239.9327 | DI4: 164.0667 | DJ4: 151.0313 | DK4: 153.8782 | DL4: 124.3452 | DM4: 150.1626 | DN4: 182.5866 | DO4: 238.6517 | DP4: 342.8348 | DQ4: 221.2182 | DR4: 269.6176 | DS4: 258.0144 | DT4: 219.2778 | DU4: 241.9704 | DV4: 359.5004 | DW4: 432.5482 | DX4: 231.1505 | DY4: 226.4094 | DZ4: 172.4387 | EA4: 179.7824 | EB4: =-EB20*0.7 -> 253.7703 | EC4: 316.1739 | ED4: 543.7838 | EE4: 377.3511 | EF4: 215.1513 | EG4: 271.2479 | EH4: 140.6713 | EI4: 150.2347 | EJ4: 181.0641 | EK4: 212.1077 | EL4: 204.0724 | EM4: 258.1243 | EN4: 254.8693 | EO4: 235.3022 | EP4: 391.6885 | EQ4: 456.9964 | ER4: 354.3694 | ES4: 326.4023 | ET4: 310.3751 | EU4: 391.6199 | EV4: 439.9206 | EW4: 489.8691 | EX4: 400.5904 | EY4: 418.5818 | EZ4: 402.8969 | FA4: 399.2954 | FB4: 478.7601 | FC4: 411.1345 | FD4: 265.8131 | FE4: 258.055 | FF4: 153.09 | FG4: 186.1937 | FH4: 291.0005 | FI4: 293.8908 | FJ4: 330.6233 | FK4: 305.9175 | FL4: 273.2107 | FM4: 225.4868 | FN4: 280.2779 | FO4: 283.3719 | FP4: 193.284 | FQ4: 237.3021 | FR4: 230.2965 | FS4: 275.3646 | FT4: 297.9249 | FU4: 285.8184 | FV4: 270.5094 | FW4: 271.4502 | FX4: 288.0388 | FY4: 251.0025 | FZ4: 338.9316 | GA4: 387.163 | GB4: 303.0566 | GC4: 344.8109 | GD4: 315.434 | GE4: 450.1476 | GF4: 444.1689 | GG4: 485.3191 | GH4: 312.256 | GI4: 363.8026 | GJ4: 337.9432 | GK4: 318.2137 | GL4: 387.5473 | GM4: 410.5087 | GN4: =-GN20*0.7 -> 370.9433 | GO4: 262.4447 | GP4: 214.0607 | GQ4: 219.5921 | GR4: 259.0567 | GS4: 359.3492 | GT4: 280.2478 | GU4: 340.6011 | GV4: 379.0661 | GW4: 379.1004 | GX4: 268.8903 | GY4: 260.2432 | GZ4: 277.1153 | HA4: 268.9176 | HB4: 205.3779 | HC4: 278.3354 | HD4: 249.3778 | HE4: 233.4647 | HF4: 259.9674 | HG4: 242.1475 | HH4: 221.9007 | HI4: 268.9085 | HJ4: 336.8449 | HK4: 301.5852 | HL4: 293.5135 | HM4: 281.2558 | HN4: 153.3406 | HO4: 144.2511 | HP4: 199.6785 | HQ4: 177.6474 | HR4: 133.5614 | HS4: 158.5892 | HT4: 208.0015 | HU4: 287.8792 | HV4: 322.448 | HW4: 344.5589 | HX4: 274.4245 | HY4: 197.0304 | HZ4: 179.0313 | IA4: 173.2486 | IB4: 157.2158 | IC4: 168.7126 | ID4: 171.5042 | IE4: 178.1451 | IF4: 198.8861 | IG4: 278.2507 | IH4: 334.9241 | II4: 529.6098367 | IJ4: 388.3055554 | IK4: 381.2650926 | IL4: 212.2124193 | IM4: 195.9644344 | IN4: 161.1085868 | IO4: 139.417691 | IP4: 161.8007685 | IQ4: 163.5869683 | IR4: 242.2811895 | IS4: 225.5565683 | IT4: 319.3386931 | IU4: 283.9449077 | IV4: 172.1443778 | IW4: 234.3481209 | IX4: 201.5268856 | IY4: 111.1314104 | IZ4: 97.4017276 | JA4: 102.4390861 | JB4: 120.0197351 | JC4: 138.4371618 | JD4: 216.2073107 | JE4: 224.2613774 | JF4: 281.6741296 | JG4: 318.6914518 | JH4: 266.298885 | JI4: 265.7554954 | JJ4: 307.5811599 | JK4: 223.4214838 | JL4: 199.6128536 | JM4: 195.8227263 | JN4: 256.5476817 | JO4: 270.2417067 | JP4: 283.987815 | JQ4: 276.8436295 | JR4: 337.084855 | JS4: 372.3401237 | JT4: 342.6002962 | JU4: 457.1494529 | JV4: 370.5157122 | JW4: 251.1484002 | JX4: 216.4942682 | JY4: 175.2608152 | JZ4: 163.0164395 | KA4: 139.9517451 | KB4: 216.2682905 | KC4: 246.2846074 | KD4: 338.647033 | KE4: 443.6786262 | KF4: 369.2219831 | KG4: 354.7752499 | KH4: 361.1886132 | KI4: 275.9564758 | KJ4: 207.7026544 | KK4: 170.7723553 | KL4: 151.6569418 | KM4: 160.190686 | KN4: 267.5023279 | KO4: 326.9083208 | KP4: 326.4417923 | KQ4: 319.0210306 | KR4: 291.3396455 | KS4: 327.1447372 | KT4: 255.8627235 | KU4: 242.8414769 | KV4: 125.3668387 | KW4: 110.9740453 | KX4: 202.4642589 | KY4: 162.1055381 | KZ4: 249.5772665 | LA4: 276.574928 | LB4: 332.0932989 | LC4: 454.9848761 | LD4: 434.3675924 | LE4: 351.102469 | LF4: 429.2996681 | LG4: 316.0191135 | LH4: 169.5525221 | LI4: 96.84953377 | LJ4: 110.3576521 | LK4: 101.2399776 | LL4: 161.4373624 | LM4: 258.2335668 | LN4: 250.8845765 | LO4: 291.2130177 | LP4: 267.7395801 | LQ4: 241.2235743 | LR4: 199.4334495 | LS4: 162.4549828 | LT4: 91.89774922 | LU4: 98.82669405 | LV4: 112.2051763 | LW4: 118.5238466 | LX4: 133.8173456 | LY4: 222.0893885 | LZ4: 309.5690533 | MA4: 273.4352352 | MB4: 180.6230236 | MC4: 283.7773 | MD4: - | ME4: - | MF4: - | MG4: - | MH4: - | MI4: - | MJ4: - | MK4: - | ML4: -
B5: Nuclear | C5: 5193.267 | D5: 4339.07 | E5: 4257.043 | F5: 4556.652 | G5: 3888.478 | H5: 3340.776 | I5: 4237.203 | J5: 4785.957 | K5: 3922.86 | L5: 3724.698 | M5: 4508.012 | N5: 5151.652 | O5: 5104.171 | P5: 4384.294 | Q5: 4067.27 | R5: 3992.02 | S5: 4552.189 | T5: 4225.19 | U5: 4437.653 | V5: 4942.09 | W5: 4277.073 | X5: 4464.017 | Y5: 4223.282 | Z5: 4493.151 | AA5: 5192.877 | AB5: 4385.729 | AC5: 4026.587 | AD5: 3462.453 | AE5: 4064.541 | AF5: 4293.199 | AG5: 4749.755 | AH5: 4946.147 | AI5: 4034.17 | AJ5: 4813.036 | AK5: 4192.345 | AL5: 5199.221 | AM5: 5201.174 | AN5: 4155.793 | AO5: 4669.188 | AP5: 4062.371 | AQ5: 3893.606 | AR5: 4183.93 | AS5: 4729.246 | AT5: 4829.798 | AU5: 4382.91 | AV5: 4501.306 | AW5: 4049.26 | AX5: 5006.708 | AY5: 4888.214 | AZ5: 3958.138 | BA5: 3900.121 | BB5: 4180.04 | BC5: 4543.501 | BD5: 3955.25 | BE5: 4579.176 | BF5: 5011.767 | BG5: 4867.835 | BH5: 4055.733 | BI5: 3978.734 | BJ5: 5077.294 | BK5: 5146.429 | BL5: 4395.348 | BM5: 4446.422 | BN5: 4134.199 | BO5: 4752.051 | BP5: 4513.055 | BQ5: 4113.75 | BR5: 4140.442 | BS5: 3814.664 | BT5: 4207.821 | BU5: 4297.065 | BV5: 5176.852 | BW5: 5195.754 | BX5: 4737.443 | BY5: 4830.922 | BZ5: 4445.974 | CA5: 5116.925 | CB5: 3774.429 | CC5: 3664.36 | CD5: 3673.057 | CE5: 3886.011 | CF5: 4866.237 | CG5: 4595.546 | CH5: 5326.088 | CI5: 5031.441 | CJ5: 4410.622 | CK5: 3691.562 | CL5: 4062.065 | CM5: 4998.131 | CN5: 4588.075 | CO5: 4734.536 | CP5: 4656.466 | CQ5: 4176.013 | CR5: 4076.844 | CS5: 4225.661 | CT5: 4396.926 | CU5: 4850.357 | CV5: 4864.741 | CW5: 4461.119 | CX5: 4236.956 | CY5: 4651.556 | CZ5: 4934.211 | DA5: 5286.895 | DB5: 5284.746 | DC5: 4524.404 | DD5: 4228.455 | DE5: 4439.546 | DF5: 4809.061 | DG5: 5175.085 | DH5: 3934.949 | DI5: 4011.019 | DJ5: 3517.41 | DK5: 4880.704 | DL5: 4516.897 | DM5: 4677.932 | DN5: 5216.167 | DO5: 4711.526 | DP5: 5076.299 | DQ5: 5278.687 | DR5: 5381.522 | DS5: 5459.17 | DT5: 5121.331 | DU5: 4958.84 | DV5: 4468.136 | DW5: 4874.432 | DX5: 5231.805 | DY5: 5359.431 | DZ5: 5001.26 | EA5: 4030.767 | EB5: 4407.563 | EC5: 5064.955 | ED5: 5552.63 | EE5: 5502.377 | EF5: 4781.093 | EG5: 4681.95 | EH5: 4579.076 | EI5: 5513.328 | EJ5: 5103.848 | EK5: 5432.708 | EL5: 5308.987 | EM5: 4701.936 | EN5: 4737.749 | EO5: 5173.696 | EP5: 5468.465 | EQ5: 5520.427 | ER5: 4774.628 | ES5: 4206.713 | ET5: 4213.842 | EU5: 4779.207 | EV5: 5056.317 | EW5: 5461.048 | EX5: 5342.009 | EY5: 4584.918 | EZ5: 5397.964 | FA5: 5372.254 | FB5: 5579.12 | FC5: 5509.204 | FD5: 4935.939 | FE5: 4672.105 | FF5: 4666.587 | FG5: 4788.816 | FH5: 4456.119 | FI5: 5407.931 | FJ5: 5310.365 | FK5: 4125.64 | FL5: 4543.852 | FM5: 5301.45 | FN5: 5501.582 | FO5: 5460.718 | FP5: 5125.564 | FQ5: 4948.627 | FR5: 5126.832 | FS5: 4825.293 | FT5: 5119.868 | FU5: 5506.266 | FV5: 5391.197 | FW5: 4699.066 | FX5: 4456.99 | FY5: 5064.813 | FZ5: 5150.508 | GA5: 5568.309 | GB5: 4881.149 | GC5: 4397.378 | GD5: 3772.495 | GE5: 3619.368 | GF5: 3778.693 | GG5: 3888.026 | GH5: 4532.116 | GI5: 5109.769 | GJ5: 4710.487 | GK5: 5173.164 | GL5: 5470.879 | GM5: 5421.283 | GN5: 4884.597 | GO5: 5073.241 | GP5: 3528.834 | GQ5: 4300.088 | GR5: 4842.653 | GS5: 4775.66 | GT5: 5164.555 | GU5: 4298.756 | GV5: 4620.297 | GW5: 5068.626 | GX5: 5375.116 | GY5: 5319.158 | GZ5: 4778.305 | HA5: 4947.463 | HB5: 4342.93 | HC5: 3485.058 | HD5: 3161.45 | HE5: 3855.746 | HF5: 3976.62 | HG5: 4877.284 | HH5: 4891.066 | HI5: 3934.346 | HJ5: 5069.501 | HK5: 5322.941 | HL5: 5119.932 | HM5: 5354.706 | HN5: 4039.755 | HO5: 4689.704 | HP5: 4579.733 | HQ5: 4541.035 | HR5: 5013.949 | HS5: 4482.389 | HT5: 4314.462 | HU5: 4045.827 | HV5: 4955.858 | HW5: 5438.39 | HX5: 4335.14 | HY5: 3949.223 | HZ5: 4063.489 | IA5: 3687.607 | IB5: 3530.33 | IC5: 3998.25 | ID5: 5278.162 | IE5: 4387.847 | IF5: 3957.824 | IG5: 3973.495 | IH5: 3949.688 | II5: 4480.61 | IJ5: 4635.983 | IK5: 4877.964647 | IL5: 4894.268 | IM5: 4417.869 | IN5: 4693.97 | IO5: 5399.984 | IP5: 5421.255 | IQ5: 5066.819 | IR5: 5429.769 | IS5: 5094.619 | IT5: 4829.211 | IU5: 4718.777 | IV5: 4271.59 | IW5: 4332.264311 | IX5: 4457.337 | IY5: 3640.74 | IZ5: 4702.229 | JA5: 4823.025 | JB5: 5271.61 | JC5: 4983.123 | JD5: 4499.729 | JE5: 4546.877 | JF5: 4856.63 | JG5: 5171.784 | JH5: 5146.045 | JI5: 5472.373 | JJ5: 5200.715 | JK5: 4487.326 | JL5: 3504.371 | JM5: 5098.692 | JN5: 5457.922 | JO5: 5300.065 | JP5: 5396.02 | JQ5: 4070.386 | JR5: 4361.288 | JS5: 4582.812 | JT5: 4425.602 | JU5: 5210.321 | JV5: 4458.841 | JW5: 3995.289 | JX5: 4334.933 | JY5: 5136.478 | JZ5: 5025.363 | KA5: 4740.614 | KB5: 4342.401 | KC5: 4067.681 | KD5: 3986.552 | KE5: 4535.384 | KF5: 4723.773 | KG5: 5288.506 | KH5: 5057.696 | KI5: 4341.378 | KJ5: 3439.377 | KK5: 4262.548 | KL5: 4221.397 | KM5: 4806.071 | KN5: 5129.582 | KO5: 4369.283 | KP5: 4695.244 | KQ5: 5242.722 | KR5: 4720.861 | KS5: 5205.786 | KT5: 4690.141 | KU5: 3554.401048 | KV5: 3771.769 | KW5: 4798.925 | KX5: 4963.979 | KY5: 4873.917 | KZ5: 4095.259 | LA5: 3973.493 | LB5: 4863.586 | LC5: 4615.686 | LD5: 3973.207 | LE5: 5191.753 | LF5: 5055.57 | LG5: 3891.866 | LH5: 4819.247 | LI5: 5178.065 | LJ5: 5151.821 | LK5: 5009.895 | LL5: 5096.101 | LM5: 3774.597 | LN5: 4341.164 | LO5: 5285.374 | LP5: 4768.268 | LQ5: 5270.734 | LR5: 4928.754 | LS5: 4143.784 | LT5: 4049.538 | LU5: 4393.409 | LV5: 5080.293 | LW5: 4725.631 | LX5: 4310.226 | LY5: 3615.671 | LZ5: 5037.24 | MA5: 5098.707 | MB5: 4594.563 | MC5: 4486.4691 | MD5: - | ME5: - | MF5: - | MG5: - | MH5: - | MI5: - | MJ5: - | MK5: - | ML5: -
B6: Carbón | C6: 3554.713 | D6: 2808.93 | E6: 4652.699 | F6: 4136.543 | G6: 4587.111 | H6: 5321.432 | I6: 5250.706 | J6: 3947.904 | K6: 5387.902 | L6: 5510.969 | M6: 4915.063 | N6: 5264.836 | O6: 5224.28 | P6: 5296.625 | Q6: 3495.028 | R6: 3481.849 | S6: 3671.818 | T6: 4256.693 | U6: 4980.173 | V6: 4086.721 | W6: 5208.071 | X6: 5263.247 | Y6: 5335.63 | Z6: 5504.172 | AA6: 5944.99 | AB6: 5738.336 | AC6: 6103.602 | AD6: 5201.309 | AE6: 4697.456 | AF6: 4286.62 | AG6: 5015.971 | AH6: 4074.345 | AI6: 5319.274 | AJ6: 4625.697 | AK6: 4904.899 | AL6: 3913.396 | AM6: 5346.884 | AN6: 5513.03 | AO6: 5612.2 | AP6: 5170.295 | AQ6: 4777.482 | AR6: 4212.786 | AS6: 4707.795 | AT6: 4404.015 | AU6: 5167.946 | AV6: 4033.755 | AW6: 4331.081 | AX6: 4573.829 | AY6: 3978.51 | AZ6: 4574.626 | BA6: 4772.031 | BB6: 4414.084 | BC6: 3947.582 | BD6: 4969.916 | BE6: 5461.822 | BF6: 4646.473 | BG6: 4986.63 | BH6: 5297.803 | BI6: 4989.803 | BJ6: 5135.429 | BK6: 4961.543 | BL6: 4086.702 | BM6: 4543.376 | BN6: 4764.923 | BO6: 4849.966 | BP6: 4988.427 | BQ6: 5813.121 | BR6: 5715.288 | BS6: 5955.434 | BT6: 5452.807 | BU6: 5627.412 | BV6: 4475.713 | BW6: 2360.506 | BX6: 2530.396 | BY6: 3906.415 | BZ6: 2566.183 | CA6: 2468.016 | CB6: 4802.957 | CC6: 6075.884 | CD6: 5718.72 | CE6: 5483.271 | CF6: 5300.673 | CG6: 5235.796 | CH6: 3019.852 | CI6: 3369.965 | CJ6: 3440.405 | CK6: 5261.442 | CL6: 5405.207 | CM6: 4764.108 | CN6: 4851.495 | CO6: 5510.269 | CP6: 5458.799 | CQ6: 6182.282 | CR6: 6159.891 | CS6: 4489.942 | CT6: 3626.001 | CU6: 2784.997 | CV6: 3170.357 | CW6: 5292.931 | CX6: 4252.312 | CY6: 3309.682 | CZ6: 4052.584 | DA6: 5346.399 | DB6: 4423.574 | DC6: 5801.128 | DD6: 6013.634 | DE6: 6005.669 | DF6: 6472.708 | DG6: 6340.864 | DH6: 5930.681 | DI6: 6145.65 | DJ6: 5483.532 | DK6: 4405.944 | DL6: 5287.699 | DM6: 6323.383 | DN6: 5275.55 | DO6: 6366.487 | DP6: 5855.647 | DQ6: 5280.283 | DR6: 5709.913 | DS6: 6646.727 | DT6: 6309.58 | DU6: 6444.9 | DV6: 5440.619 | DW6: 4905.92 | DX6: 5885.038 | DY6: 6534.355 | DZ6: 6262.804 | EA6: 6674.877 | EB6: 6592.702 | EC6: 6222.237 | ED6: 4308.412 | EE6: 3864.127 | EF6: 3418.344 | EG6: 3396.487 | EH6: 3806.208 | EI6: 4867.444 | EJ6: 5835.146 | EK6: 6385.937 | EL6: 6261.54 | EM6: 6593.664 | EN6: 6585.913 | EO6: 6448.018 | EP6: 6986.076 | EQ6: 6959.422 | ER6: 6404.216 | ES6: 6858.526 | ET6: 6465.355 | EU6: 6436.551 | EV6: 6061.064 | EW6: 6297.098 | EX6: 6142.676 | EY6: 6405.984 | EZ6: 5954.988 | FA6: 6040.416 | FB6: 4529.395 | FC6: 4692.41 | FD6: 5217.618 | FE6: 5238.538 | FF6: 4917.42 | FG6: 5208.806 | FH6: 6150.093 | FI6: 6649.875 | FJ6: 6645.774 | FK6: 6560.467 | FL6: 6463.724 | FM6: 5574.144 | FN6: 4974.297 | FO6: 5656.455 | FP6: 5871.244 | FQ6: 6356.156 | FR6: 5163.093 | FS6: 5313.855 | FT6: 5886.91 | FU6: 6545.987 | FV6: 6332.239 | FW6: 6239.248 | FX6: 6190.806 | FY6: 5967.052 | FZ6: 6597.061 | GA6: 6811.043 | GB6: 6089.217 | GC6: 6168.657 | GD6: 5506.63 | GE6: 5676.776 | GF6: 5758.908 | GG6: 6257.933 | GH6: 5758.177 | GI6: 5916.067 | GJ6: 6141.552 | GK6: 6328.211 | GL6: 6580.918 | GM6: 6886.589 | GN6: 5775.369 | GO6: 4765.658 | GP6: 3496.492 | GQ6: 5080.473 | GR6: 5562.59 | GS6: 6510.018 | GT6: 5286.591 | GU6: 5409.01 | GV6: 4807.43 | GW6: 4258.214 | GX6: 4287.631 | GY6: 6102.67 | GZ6: 4895.344 | HA6: 4863.635 | HB6: 5834.914 | HC6: 5991.804 | HD6: 5773.713 | HE6: 5941.476 | HF6: 5886.238 | HG6: 5490.184 | HH6: 5348.828 | HI6: 5486.22 | HJ6: 6071.222 | HK6: 4980.962 | HL6: 4597.712 | HM6: 3661.907 | HN6: 3107.048 | HO6: 2174.694 | HP6: 2041.751 | HQ6: 3682.365 | HR6: 3065.986 | HS6: 3445.736 | HT6: 4099.561 | HU6: 4098.351 | HV6: 4453.464 | HW6: 4585.163 | HX6: 3015.414 | HY6: 2964.835 | HZ6: 1785.362 | IA6: 2230.875 | IB6: 2454.086 | IC6: 3212.927 | ID6: 1795.094 | IE6: 2689.472 | IF6: 3054.298 | IG6: 1997.712 | IH6: 1837.324 | II6: 1696.094 | IJ6: 1367.276 | IK6: 844.196834 | IL6: 633.698 | IM6: 823.906 | IN6: 1322.563 | IO6: 2450.416 | IP6: 2835.734 | IQ6: 2971.126 | IR6: 1987.136 | IS6: 1627.231 | IT6: 2039.879 | IU6: 2046.91 | IV6: 2465.985 | IW6: 2981.859407 | IX6: 2442.991 | IY6: 2961.694 | IZ6: 2727.028 | JA6: 4186.613 | JB6: 4069.807 | JC6: 4665.65 | JD6: 4282.619 | JE6: 3880.549 | JF6: 3790.122 | JG6: 5155.723 | JH6: 5284.447 | JI6: 4450.686 | JJ6: 2519.977 | JK6: 3786.125 | JL6: 5062.384 | JM6: 4674.929 | JN6: 4819.269 | JO6: 3811.017 | JP6: 4058.458037 | JQ6: 3915.724 | JR6: 3592.147 | JS6: 2887.249 | JT6: 2416.603 | JU6: 1257.787 | JV6: 904.232 | JW6: 1901.736 | JX6: 2464.334 | JY6: 5226.978 | JZ6: 4374.253 | KA6: 4539.962 | KB6: 4032.012 | KC6: 2511.31 | KD6: 4660.427 | KE6: 2116.608 | KF6: 756.298 | KG6: 1149.219 | KH6: 1222.699 | KI6: 3177.691 | KJ6: 5007.983 | KK6: 5378.171 | KL6: 5052.89 | KM6: 5684.267 | KN6: 4391.006 | KO6: 3148.079 | KP6: 4047.766 | KQ6: 4900.113 | KR6: 2941.508 | KS6: 2591.26 | KT6: 2955.792 | KU6: 2829.463 | KV6: 5330.826 | KW6: 6063.442 | KX6: 5202.15 | KY6: 4598.276 | KZ6: 4304.632 | LA6: 4578.015 | LB6: 4628.295367 | LC6: 2561.026 | LD6: 1806.484 | LE6: 1690.627 | LF6: 903.561 | LG6: 1036.145 | LH6: 2053.368 | LI6: 3659.521 | LJ6: 3398.391 | LK6: 4304.271 | LL6: 4283.707 | LM6: 4457.428 | LN6: 5032.975 | LO6: 5166.139 | LP6: 3326.569 | LQ6: 1791.503 | LR6: 1901.821458 | LS6: 3538.877 | LT6: 4289.04 | LU6: 4040.016 | LV6: 2977.327 | LW6: 2835.523 | LX6: 3910.402 | LY6: 4674.415 | LZ6: 4141.292 | MA6: 3041.538 | MB6: 3500.729 | MC6: 1320.4065 | MD6: - | ME6: - | MF6: - | MG6: - | MH6: - | MI6: - | MJ6: - | MK6: - | ML6: -
B7: Fuel + Gas | C7: 204.218 | D7: 106.632 | E7: 108.531 | F7: 79.792 | G7: 202.105 | H7: 384.878 | I7: 413.754 | J7: 154.664 | K7: 238.912 | L7: 286.886 | M7: 267.439 | N7: 418.135 | O7: 255.223 | P7: 330.269 | Q7: 128.713 | R7: 181.603 | S7: 200.854 | T7: 278.568 | U7: 687.282 | V7: 178.961 | W7: 651.77 | X7: 308.139 | Y7: 371.593 | Z7: 468.71 | AA7: 1299.375 | AB7: 1787.73 | AC7: 1434.253 | AD7: 698.915 | AE7: 614.411 | AF7: 147.673 | AG7: 415.723 | AH7: 221.515 | AI7: 529.484 | AJ7: 185.837 | AK7: 87.533 | AL7: 41.134 | AM7: 95.265 | AN7: 339.473 | AO7: 343.836 | AP7: 259.45 | AQ7: 99.405 | AR7: 120.458 | AS7: 38.927 | AT7: 88.599 | AU7: 185.272 | AV7: 52.688 | AW7: 79.194 | AX7: 74.58 | AY7: 99.884 | AZ7: 90.411 | BA7: 115.894 | BB7: 122.311 | BC7: 19.071 | BD7: 97.452 | BE7: 377.674 | BF7: 54.8 | BG7: 84.704 | BH7: 118.869 | BI7: 64.49 | BJ7: 166.625 | BK7: 152.781 | BL7: 37.526 | BM7: 143.05 | BN7: 120.69 | BO7: 108.382 | BP7: 288.232 | BQ7: 593.743 | BR7: 231.724 | BS7: 578.349 | BT7: 658.579 | BU7: 432.286 | BV7: 315.821 | BW7: 15.11 | BX7: 185.81 | BY7: 257.11 | BZ7: 138.064 | CA7: 30.668 | CB7: 162.97 | CC7: 265.834 | CD7: 140.586 | CE7: 231.84 | CF7: 97.463 | CG7: 243.305 | CH7: 274.57 | CI7: 261.459 | CJ7: 382.801 | CK7: 453.163 | CL7: 496.788 | CM7: 437.559 | CN7: 493.385 | CO7: 819.472 | CP7: 582.312 | CQ7: 735.84 | CR7: 822.644 | CS7: 542.729 | CT7: 524.389 | CU7: 69.924 | CV7: 100.933 | CW7: 152.994 | CX7: 52.482 | CY7: 36.298 | CZ7: 200.457 | DA7: 473.969 | DB7: 507.113 | DC7: 713.855 | DD7: 389.214 | DE7: 997.22 | DF7: 1644.422 | DG7: 1502.458 | DH7: 1861.304 | DI7: 1086.079 | DJ7: 532.757 | DK7: 168.644 | DL7: 532.41 | DM7: 1127.99 | DN7: 686.731 | DO7: 596.713 | DP7: 154.831 | DQ7: 413.447 | DR7: 687.299 | DS7: 1113.669 | DT7: 491.264 | DU7: 1132.887 | DV7: 724.643 | DW7: 174.013 | DX7: 674.131 | DY7: 890.41 | DZ7: 736.769 | EA7: 1450.383 | EB7: 931.175 | EC7: 755.077 | ED7: 490.878 | EE7: 502.29 | EF7: 406.874 | EG7: 415.246 | EH7: 162.849 | EI7: 332.142 | EJ7: 1148.567 | EK7: 1351.695 | EL7: 1201.89 | EM7: 1299.134 | EN7: 1281.455 | EO7: 1320.459 | EP7: 2157.018 | EQ7: 2663.572 | ER7: 1619.697 | ES7: 1419.443 | ET7: 1389.165 | EU7: 1086.731 | EV7: 1639.803 | EW7: 1896.914 | EX7: 889.726 | EY7: 1207.86 | EZ7: 878.513 | FA7: 477.951 | FB7: 376.307 | FC7: 581.383 | FD7: 499.107 | FE7: 206.448 | FF7: 78.708 | FG7: 237.103 | FH7: 1224.425 | FI7: 1186.803 | FJ7: 1068.492 | FK7: 943.468 | FL7: 648.372 | FM7: 347.553 | FN7: 409.78 | FO7: 431.414 | FP7: 344.906 | FQ7: 608.288 | FR7: 174.5 | FS7: 312.653 | FT7: 737.545 | FU7: 1090.75 | FV7: 714.632 | FW7: 946.658 | FX7: 578.892 | FY7: 466.279 | FZ7: 682.951 | GA7: 916.314 | GB7: 1095.09 | GC7: 1363.62 | GD7: 371.743 | GE7: 521.771 | GF7: 1160.585 | GG7: 1354.295 | GH7: 407.675 | GI7: 515.482 | GJ7: 357.865 | GK7: 420.929 | GL7: 808.949 | GM7: 760.536 | GN7: 627.523 | GO7: 291.553 | GP7: 282.347 | GQ7: 230.671 | GR7: 521.586 | GS7: 1004.05 | GT7: 339.096 | GU7: 760.597 | GV7: 340.628 | GW7: 131.166 | GX7: 106.305 | GY7: 102.61 | GZ7: 220.437 | HA7: 191.126 | HB7: 113.172 | HC7: 166.474 | HD7: 83.596 | HE7: 272.951 | HF7: 212.661 | HG7: 233.035 | HH7: 127.132 | HI7: 199.016 | HJ7: 168.555 | HK7: 142.142 | HL7: 124.255 | HM7: 70.555 | HN7: 137.2 | HO7: 147.767 | HP7: 248.855 | HQ7: 154.963 | HR7: 242.519 | HS7: 189.069 | HT7: 200.066 | HU7: 227.266 | HV7: 190.238 | HW7: 128.807 | HX7: 119.209 | HY7: 191.562 | HZ7: 137.769 | IA7: 91.484 | IB7: 147.091 | IC7: 212.322 | ID7: 171.65 | IE7: 154.518 | IF7: 104.516 | IG7: 165.878 | IH7: 164.784 | II7: 153.209 | IJ7: 126.666 | IK7: 22.518 | IL7: 105.508 | IM7: 163.869 | IN7: 165.569 | IO7: 138.492 | IP7: 113.152 | IQ7: 138.319 | IR7: 124.903 | IS7: 166.811 | IT7: 147.007 | IU7: 0 | IV7: 0 | IW7: 0 | IX7: 0 | IY7: 0 | IZ7: 0 | JA7: 0 | JB7: 0 | JC7: 0 | JD7: 0 | JE7: 0 | JF7: 0 | JG7: 0 | JH7: 0 | JI7: 0 | JJ7: 0 | JK7: 0 | JL7: 0 | JM7: 0 | JN7: 0 | JO7: 0 | JP7: 0 | JQ7: 0 | JR7: 0 | JS7: 0 | JT7: 0 | JU7: 0 | JV7: 0 | JW7: 0 | JX7: 0 | JY7: 0 | JZ7: 0 | KA7: 0 | KB7: 0 | KC7: 0 | KD7: 0 | KE7: 0 | KF7: 0 | KG7: 0 | KH7: 0 | KI7: 0 | KJ7: 0 | KK7: 0 | KL7: 0 | KM7: 0 | KN7: 0 | KO7: 0 | KP7: 0 | KQ7: 0 | KR7: 0 | KS7: 0 | KT7: 0 | KU7: 0 | KV7: 0 | KW7: 0 | KX7: 0 | KY7: 0 | KZ7: 0 | LA7: 0 | LB7: 0 | LC7: 0 | LD7: 0 | LE7: 0 | LF7: 0 | LG7: 0 | LH7: 0 | LI7: 0 | LJ7: 0 | LK7: 0 | LL7: 0 | LM7: 0 | LN7: 0 | LO7: 0 | LP7: 0 | LQ7: 0 | LR7: 0 | LS7: 0 | LT7: 0 | LU7: 0 | LV7: 0 | LW7: 0 | LX7: 0 | LY7: 0 | LZ7: 0 | MA7: 0 | MB7: 0 | MC7: 0 | MD7: - | ME7: - | MF7: - | MG7: - | MH7: - | MI7: - | MJ7: - | MK7: - | ML7: -
B8: Ciclo combinado | C8: - | D8: - | E8: - | F8: - | G8: - | H8: - | I8: - | J8: - | K8: - | L8: - | M8: - | N8: - | O8: - | P8: - | Q8: - | R8: - | S8: - | T8: - | U8: - | V8: - | W8: - | X8: - | Y8: - | Z8: - | AA8: - | AB8: - | AC8: - | AD8: - | AE8: - | AF8: - | AG8: - | AH8: - | AI8: - | AJ8: - | AK8: - | AL8: - | AM8: 0.213 | AN8: - | AO8: - | AP8: - | AQ8: - | AR8: - | AS8: - | AT8: - | AU8: - | AV8: - | AW8: - | AX8: - | AY8: - | AZ8: - | BA8: - | BB8: - | BC8: - | BD8: - | BE8: - | BF8: - | BG8: - | BH8: - | BI8: - | BJ8: - | BK8: - | BL8: - | BM8: - | BN8: - | BO8: - | BP8: - | BQ8: - | BR8: - | BS8: - | BT8: - | BU8: - | BV8: - | BW8: - | BX8: - | BY8: - | BZ8: - | CA8: - | CB8: - | CC8: - | CD8: - | CE8: - | CF8: - | CG8: - | CH8: - | CI8: - | CJ8: - | CK8: - | CL8: - | CM8: - | CN8: - | CO8: - | CP8: - | CQ8: - | CR8: - | CS8: - | CT8: - | CU8: - | CV8: - | CW8: - | CX8: - | CY8: - | CZ8: - | DA8: - | DB8: - | DC8: - | DD8: - | DE8: - | DF8: - | DG8: - | DH8: - | DI8: - | DJ8: - | DK8: - | DL8: - | DM8: - | DN8: - | DO8: - | DP8: - | DQ8: - | DR8: - | DS8: - | DT8: - | DU8: - | DV8: - | DW8: - | DX8: - | DY8: - | DZ8: - | EA8: - | EB8: - | EC8: - | ED8: - | EE8: - | EF8: - | EG8: - | EH8: - | EI8: - | EJ8: - | EK8: - | EL8: - | EM8: - | EN8: - | EO8: - | EP8: - | EQ8: - | ER8: - | ES8: - | ET8: - | EU8: 121.518 | EV8: 305.007 | EW8: 520.594 | EX8: 763.192 | EY8: 1165.914 | EZ8: 1151.137 | FA8: 610.332 | FB8: 517.979 | FC8: 436.832 | FD8: 845.815 | FE8: 761.981 | FF8: 386.589 | FG8: 799.416 | FH8: 1781.138 | FI8: 1927.342 | FJ8: 1793.886 | FK8: 2025.468 | FL8: 1795.77 | FM8: 1208.196 | FN8: 863.653 | FO8: 1541.807 | FP8: 1943.228 | FQ8: 2272.911 | FR8: 1822.15 | FS8: 2011.424 | FT8: 2317.648 | FU8: 2722.288 | FV8: 2333.433 | FW8: 2921.537 | FX8: 2845.403 | FY8: 2763.156 | FZ8: 2817.86 | GA8: 3347.629 | GB8: 3357.813 | GC8: 3345.948 | GD8: 3237.21 | GE8: 3507.254 | GF8: 4645.311 | GG8: 5188.211 | GH8: 4424.916 | GI8: 4433.434 | GJ8: 4074.636 | GK8: 4170.737 | GL8: 4113.69 | GM8: 5549.648 | GN8: 5482.822 | GO8: 4705.139 | GP8: 4650.806 | GQ8: 4929.557 | GR8: 5469.55 | GS8: 6664.457 | GT8: 4828.182 | GU8: 6324.433 | GV8: 5050.22 | GW8: 4256.457 | GX8: 4211.163 | GY8: 6046.649 | GZ8: 3813.023 | HA8: 3823.553 | HB8: 4054.708 | HC8: 4329.247 | HD8: 6168.922 | HE8: 6583.839 | HF8: 5145.517 | HG8: 5637.609 | HH8: 6092.117 | HI8: 7608.162 | HJ8: 7269.522 | HK8: 7999.771 | HL8: 7995.581 | HM8: 6774.804 | HN8: 6899.11 | HO8: 7196.281 | HP8: 7596.274 | HQ8: 8863.531 | HR8: 8223.301 | HS8: 7817.517 | HT8: 7214.455 | HU8: 6826.167 | HV8: 5693.94 | HW8: 5970.275 | HX8: 4444.191 | HY8: 5032.65 | HZ8: 5434.445 | IA8: 5603.483 | IB8: 7620.646 | IC8: 8497.575 | ID8: 8177.814 | IE8: 7385.088 | IF8: 6555.009 | IG8: 5522.15 | IH8: 6135.958 | II8: 5308.095 | IJ8: 4758.78 | IK8: 4086.589928 | IL8: 4360.6161 | IM8: 4552.942 | IN8: 5475.442 | IO8: 6782.456 | IP8: 5736.69 | IQ8: 6235.23 | IR8: 5277.748 | IS8: 5529.094 | IT8: 4851.257217 | IU8: 5017.54814 | IV8: 4626.0791 | IW8: 3936.288283 | IX8: 2780.183 | IY8: 4145.37703 | IZ8: 4837.543 | JA8: 4513.752006 | JB8: 4686.590034 | JC8: 4471.739 | JD8: 3709.547 | JE8: 3346.757 | JF8: 3340.253412 | JG8: 4223.492 | JH8: 3867.639 | JI8: 3070.445 | JJ8: 2221.107431 | JK8: 2396.91303 | JL8: 3094.711 | JM8: 3351.596 | JN8: 3470.291965 | JO8: 2874.596345 | JP8: 3215.303 | JQ8: 2947.85 | JR8: 2797.722 | JS8: 2607.2273 | JT8: 1958.49535 | JU8: 1498.034 | JV8: 1120.755 | JW8: 1635.241296 | JX8: 1378.832001 | JY8: 2221.196817 | JZ8: 2365.594108 | KA8: 2232.158 | KB8: 2535.204 | KC8: 2034.98 | KD8: 2772.864 | KE8: 1551.037019 | KF8: 1268.540247 | KG8: 1284.147 | KH8: 1230.010441 | KI8: 1422.793 | KJ8: 1773.52217 | KK8: 1859.79216 | KL8: 2219.649836 | KM8: 2659.492 | KN8: 2137.49203 | KO8: 1928.739 | KP8: 2001.539 | KQ8: 2227.425 | KR8: 1716.241 | KS8: 1625.308002 | KT8: 1666.992 | KU8: 1600.517 | KV8: 1879.125 | KW8: 3407.078 | KX8: 2337.272 | KY8: 1999.653 | KZ8: 2081.912 | LA8: 2093.551 | LB8: 2633.394 | LC8: 1878.426 | LD8: 1312.371 | LE8: 1344.51 | LF8: 1171.745 | LG8: 1499.554 | LH8: 1891.633495 | LI8: 2381.915 | LJ8: 2023.298293 | LK8: 2143.091 | LL8: 3301.415 | LM8: 3431.904 | LN8: 3306.286 | LO8: 2932.246369 | LP8: 1526.503 | LQ8: 1448.978 | LR8: 1247.397 | LS8: 1617.983 | LT8: 3174.758596 | LU8: 3712.319 | LV8: 3479.842 | LW8: 3215.175965 | LX8: 3873.301 | LY8: 4569.86 | LZ8: 3056.164 | MA8: 2277.659 | MB8: 1973.229 | MC8: 1219.2908 | MD8: - | ME8: - | MF8: - | MG8: - | MH8: - | MI8: - | MJ8: - | MK8: - | ML8: -
B9: Régimen ordinario | C9: 12926.357 | D9: 10581.565 | E9: 11416.075 | F9: 10457.181 | G9: 10461.036 | H9: 10796.148 | I9: 11461.204 | J9: 10093.408 | K9: 10840.496 | L9: 10968.464 | M9: 11589.866 | N9: 12786.873 | O9: 13239.38 | P9: 12083.619 | Q9: 11425.396 | R9: 10980.723 | S9: 11130.631 | T9: 10763.272 | U9: 11766.474 | V9: 10313.691 | W9: 11266.512 | X9: 11548.644 | Y9: 11906.551 | Z9: 12314.346 | AA9: 13871.503 | AB9: 12736.595 | AC9: 12381.88 | AD9: 10961.815 | AE9: 10802.923 | AF9: 10285.014 | AG9: 11866.488 | AH9: 10455.599 | AI9: 11178.236 | AJ9: 11482.254 | AK9: 11277.127 | AL9: 11860.465 | AM9: 12705.377 | AN9: 11469.427 | AO9: 12041.354 | AP9: 10605.52 | AQ9: 10558.738 | AR9: 10609.397 | AS9: 11305.952 | AT9: 10596.652 | AU9: 10976.278 | AV9: 11325.452 | AW9: 11747.045 | AX9: 12188.337 | AY9: 12685.643 | AZ9: 11582.145 | BA9: 11358.463 | BB9: 10920.804 | BC9: 10944.57 | BD9: 11311.628 | BE9: 12222.555 | BF9: 10973.153 | BG9: 11210.371 | BH9: 10980.559 | BI9: 11198.065 | BJ9: 12145.179 | BK9: 12953.626 | BL9: 11018.559 | BM9: 12159.844 | BN9: 10853.87 | BO9: 11374.403 | BP9: 11491.358 | BQ9: 12141.378 | BR9: 11184.484 | BS9: 11280.694 | BT9: 11320.003 | BU9: 11578.095 | BV9: 12373.955 | BW9: 13470.737 | BX9: 12799.213 | BY9: 12315.147 | BZ9: 10601.277 | CA9: 11212.283 | CB9: 11508.811 | CC9: 12185.667 | CD9: 10967.459 | CE9: 11271.293 | CF9: 11934.769 | CG9: 12151.593 | CH9: 12597.086 | CI9: 14083.578 | CJ9: 11471.97 | CK9: 11878.419 | CL9: 12128.93 | CM9: 12304.189 | CN9: 12148.919 | CO9: 13009.237 | CP9: 12394.627 | CQ9: 12693.871 | CR9: 12522.63 | CS9: 12636.612 | CT9: 13761.592 | CU9: 13369.916 | CV9: 11969.025 | CW9: 12419.051 | CX9: 11834.461 | CY9: 11827.589 | CZ9: 12442.531 | DA9: 13641.857 | DB9: 12326.652 | DC9: 12874.096 | DD9: 12543.05 | DE9: 12934.402 | DF9: 14321.236 | DG9: 14458.407 | DH9: 13049.907 | DI9: 13078.465 | DJ9: 11538.88 | DK9: 12115.561 | DL9: 12702.124 | DM9: 14042.931 | DN9: 12642.027 | DO9: 13255.188 | DP9: 12904.402 | DQ9: 13673.998 | DR9: 14536.451 | DS9: 15736.309 | DT9: 13497.51 | DU9: 14079.451 | DV9: 12797.217 | DW9: 13250.671 | DX9: 14032.49 | DY9: 14503.347 | DZ9: 13730.665 | EA9: 14016.97 | EB9: 13696.626 | EC9: 14495.565 | ED9: 14979.624 | EE9: 16089.006 | EF9: 14193.431 | EG9: 14863.669 | EH9: 12645.645 | EI9: 13830.507 | EJ9: 14496.214 | EK9: 15167.697 | EL9: 14697.792 | EM9: 14172.29 | EN9: 14437.814 | EO9: 14989.92 | EP9: 16426.213 | EQ9: 16693.004 | ER9: 14071.604 | ES9: 14372.266 | ET9: 13911.525 | EU9: 14388.041 | EV9: 15097.285 | EW9: 15800.802 | EX9: 14382.479 | EY9: 14621.029 | EZ9: 14723.314 | FA9: 14507.519 | FB9: 15172.175 | FC9: 16708.429 | FD9: 15726.468 | FE9: 15179.311 | FF9: 13592.332 | FG9: 14415.544 | FH9: 15912.104 | FI9: 17171.198 | FJ9: 16407.002 | FK9: 15412.097 | FL9: 15426.892 | FM9: 15466.623 | FN9: 16435.541 | FO9: 16568.126 | FP9: 16449.047 | FQ9: 17098.934 | FR9: 15006.022 | FS9: 15529.905 | FT9: 16707.551 | FU9: 17927.986 | FV9: 16541.085 | FW9: 16414.573 | FX9: 15859.625 | FY9: 16551.557 | FZ9: 17087.504 | GA9: 18243.371 | GB9: 16973.586 | GC9: 17044.812 | GD9: 14837.507 | GE9: 15523.875 | GF9: 17313.734 | GG9: 18237.486 | GH9: 16373.69 | GI9: 17006.423 | GJ9: 16261.471 | GK9: 17433.356 | GL9: 18668.195 | GM9: 20262.534 | GN9: 18010.792 | GO9: 17541.669 | GP9: 14393.764 | GQ9: 16535.659 | GR9: 17910.976 | GS9: 20594.048 | GT9: 16754.415 | GU9: 18085.466 | GV9: 16521.769 | GW9: 16682.086 | GX9: 18675.331 | GY9: 19751.378 | GZ9: 16523.959 | HA9: 17507.055 | HB9: 16888.804 | HC9: 16579.203 | HD9: 17333.553 | HE9: 19039.929 | HF9: 16995.284 | HG9: 17670.181 | HH9: 18206.593 | HI9: 18648.745 | HJ9: 19925.703 | HK9: 19800.373 | HL9: 18855.427 | HM9: 16917.789 | HN9: 16495.352 | HO9: 17109.578 | HP9: 17260.228 | HQ9: 19220.999 | HR9: 17954.337 | HS9: 17194.444 | HT9: 16941.185 | HU9: 16678.165 | HV9: 17574.968 | HW9: 18220.623 | HX9: 15040.96 | HY9: 14569.678 | HZ9: 13304.255 | IA9: 13795.37 | IB9: 15569.023 | IC9: 17482.846 | ID9: 16761.399 | IE9: 15545.411 | IF9: 14898.663 | IG9: 13498.447 | IH9: 15042.441 | II9: 16581.89395 | IJ9: 14727.73612 | IK9: 15244.31255 | IL9: 14236.15865 | IM9: 13329.08948 | IN9: 14764.74074 | IO9: 17347.9351 | IP9: 15963.71358 | IQ9: 15824.48831 | IR9: 14344.45022 | IS9: 14687.16964 | IT9: 15440.75439 | IU9: 16519.79801 | IV9: 14025.34339 | IW9: 14664.13383 | IX9: 12829.96652 | IY9: 13162.7615 | IZ9: 14021.06607 | JA9: 14901.49706 | JB9: 15374.78092 | JC9: 15246.57556 | JD9: 13766.58836 | JE9: 13726.91623 | JF9: 14003.89441 | JG9: 16160.52593 | JH9: 15457.36 | JI9: 14246.13993 | JJ9: 11523.68439 | JK9: 12786.92928 | JL9: 13524.78761 | JM9: 14654.79918 | JN9: 15073.8521 | JO9: 13092.59322 | JP9: 14072.85633 | JQ9: 12786.23093 | JR9: 13129.55498 | JS9: 12795.94623 | JT9: 12006.89833 | JU9: 12201.92199 | JV9: 11397.96244 | JW9: 10815.29275 | JX9: 10937.15782 | JY9: 14944.14292 | JZ9: 13667.87912 | KA9: 13176.62822 | KB9: 12648.25182 | KC9: 11138.97 | KD9: 13690.48198 | KE9: - | KF9: - | KG9: - | KH9: - | KI9: - | KJ9: - | KK9: - | KL9: - | KM9: - | KN9: - | KO9: - | KP9: - | KQ9: - | KR9: - | KS9: - | KT9: - | KU9: - | KV9: - | KW9: - | KX9: - | KY9: - | KZ9: - | LA9: - | LB9: - | LC9: - | LD9: - | LE9: - | LF9: - | LG9: - | LH9: - | LI9: - | LJ9: - | LK9: - | LL9: - | LM9: - | LN9: - | LO9: - | LP9: - | LQ9: - | LR9: - | LS9: - | LT9: - | LU9: - | LV9: - | LW9: - | LX9: - | LY9: - | LZ9: - | MA9: - | MB9: - | MC9: - | MD9: - | ME9: - | MF9: - | MG9: - | MH9: - | MI9: - | MJ9: - | MK9: - | ML9: -
B10: Hidráulica/Resto hidráulica | C10: 105.992 | D10: 92.30599999 | E10: 64.72999999 | F10: 90.82900001 | G10: 84.02299996 | H10: 91.299 | I10: 55.459 | J10: 57.63200001 | K10: 34.01199999 | L10: 69.63399999 | M10: 110.01 | N10: 126.706 | O10: 179.138 | P10: 122.811 | Q10: 215.011 | R10: 190.109 | S10: 195.073 | T10: 144.594 | U10: 99.561 | V10: 80.389 | W10: 78.209 | X10: 93.88 | Y10: 141.988 | Z10: 164.018 | AA10: 125.135 | AB10: 89.669 | AC10: 114.311 | AD10: 191.757 | AE10: 193.59 | AF10: 203.803 | AG10: 181.002 | AH10: 118.066 | AI10: 117.869 | AJ10: 215.527 | AK10: 233.875 | AL10: 297.169 | AM10: 208.395 | AN10: 120.724 | AO10: 171.353 | AP10: 192.554 | AQ10: 247.309 | AR10: 207.114 | AS10: 151.58 | AT10: 102.715 | AU10: 108.434 | AV10: 243.801 | AW10: 228.351 | AX10: 251.898 | AY10: 342.685 | AZ10: 275.549 | BA10: 261.048 | BB10: 218.693 | BC10: 253.366 | BD10: 170.896 | BE10: 113.035 | BF10: 101.443 | BG10: 106.75 | BH10: 171.698 | BI10: 238.982 | BJ10: 221.123 | BK10: 329.748 | BL10: 321.577 | BM10: 299.329 | BN10: 168.033 | BO10: 176.271 | BP10: 142.427 | BQ10: 114.445 | BR10: 86.067 | BS10: 110.54 | BT10: 88.179 | BU10: 129.774 | BV10: 256.484 | BW10: 431.994 | BX10: 394.019 | BY10: 364.698 | BZ10: 371.68 | CA10: 349.161 | CB10: 242.652 | CC10: 197.031 | CD10: 174.123 | CE10: 161.743 | CF10: 181.576 | CG10: 235.112 | CH10: 440.058 | CI10: 440.792 | CJ10: 368.973 | CK10: 267.722 | CL10: 216.182 | CM10: 261.68 | CN10: 278.391 | CO10: 254.605 | CP10: 204.188 | CQ10: 190.687 | CR10: 154.25 | CS10: 310.862 | CT10: 480.663 | CU10: 492.716819 | CV10: 339.410518 | CW10: 327.064365 | CX10: 403.458525 | CY10: 412.076272 | CZ10: 315.956945 | DA10: 207.934447 | DB10: 197.432695 | DC10: 167.836814 | DD10: 248.31533 | DE10: 203.701928 | DF10: 262.569259 | DG10: 323.522396 | DH10: 292.899812 | DI10: 373.902231 | DJ10: 348.717189 | DK10: 443.138313 | DL10: 296.523594 | DM10: 224.706943 | DN10: 189.845427 | DO10: 210.825293 | DP10: 274.411798 | DQ10: 366.447977 | DR10: 395.381639 | DS10: 330.40558 | DT10: 282.436739 | DU10: 249.446216 | DV10: 435.783218 | DW10: 494.627909 | DX10: 357.927451 | DY10: 254.292919 | DZ10: 199.410305 | EA10: 158.612187 | EB10: 230.155185 | EC10: 367.537209 | ED10: 475.465015 | EE10: 558.920303 | EF10: 485.996064 | EG10: 596.948281 | EH10: 489.463965 | EI10: 476.68399 | EJ10: 352.760995 | EK10: 300.49063 | EL10: 227.071678 | EM10: 181.600837 | EN10: 202.508315 | EO10: 222.42957 | EP10: 192.648005 | EQ10: 255.920349 | ER10: 271.46624 | ES10: 345.515552 | ET10: 361.372052 | EU10: 420.062442 | EV10: 357.790122 | EW10: 235.872343 | EX10: 210.054023 | EY10: 204.411097 | EZ10: 280.620946 | FA10: 390.817645 | FB10: 565.549528 | FC10: 581.193939 | FD10: 453.43334 | FE10: 562.61659 | FF10: 532.278526 | FG10: 529.630674 | FH10: 359.335678 | FI10: 277.913169 | FJ10: 209.447635 | FK10: 208.9305 | FL10: 309.717496 | FM10: 485.77286 | FN10: 578.373638 | FO10: 587.995369 | FP10: 427.628958 | FQ10: 507.792138 | FR10: 547.04273 | FS10: 572.541482 | FT10: 412.623003 | FU10: 336.467575 | FV10: 259.270925 | FW10: 199.838133 | FX10: 245.598881 | FY10: 329.701046 | FZ10: 323.078145 | GA10: 350.78451 | GB10: 292.229427 | GC10: 386.56585 | GD10: 465.508544 | GE10: 438.710303 | GF10: 297.453519 | GG10: 244.468044 | GH10: 191.049618 | GI10: 151.162091 | GJ10: 217.906843 | GK10: 377.399041 | GL10: 404.345149 | GM10: 400.558873 | GN10: 320.878335 | GO10: 567.05897 | GP10: 506.039156 | GQ10: 360.074545 | GR10: 248.514 | GS10: 226.349 | GT10: 177.815 | GU10: 164.14 | GV10: 312.404 | GW10: 381.881 | GX10: 482.851 | GY10: 345.489 | GZ10: 478.796 | HA10: 516.028 | HB10: 529.759 | HC10: 509.19 | HD10: 412.917 | HE10: 302.212 | HF10: 256.501 | HG10: 186.134 | HH10: 186.888 | HI10: 189.873 | HJ10: 211.538 | HK10: 340.206 | HL10: 233.218 | HM10: 301.234 | HN10: 581.111 | HO10: 613.279 | HP10: 581.555 | HQ10: 380.409 | HR10: 264.581 | HS10: 212.28 | HT10: 190.523 | HU10: 400.121 | HV10: 539.626 | HW10: 521.055 | HX10: 629.452 | HY10: 559.845 | HZ10: 501.442 | IA10: 577.142 | IB10: 468.387 | IC10: 365.353 | ID10: 282.65 | IE10: 242.869 | IF10: 230.81 | IG10: 466.05 | IH10: 608.618 | II10: 764.37 | IJ10: 616.578 | IK10: 784.76 | IL10: 690.196 | IM10: 688.343 | IN10: 608.948 | IO10: 459.603 | IP10: 341.748 | IQ10: 281.05 | IR10: 318.889 | IS10: 567.66 | IT10: 702.175 | IU10: 663.648 | IV10: 506.22 | IW10: 655.863 | IX10: 588.128 | IY10: 489.538 | IZ10: 405.258 | JA10: 384.186 | JB10: 304.794 | JC10: 235.563 | JD10: 189.002 | JE10: 423.492 | JF10: 448.623 | JG10: 336.823 | JH10: 331.681 | JI10: 324.862 | JJ10: 468.281 | JK10: 642.16 | JL10: 439.563 | JM10: 337.726 | JN10: 264.852 | JO10: 198.808 | JP10: 269.484 | JQ10: 410.351 | JR10: 619.955 | JS10: 667.289 | JT10: 687.923 | JU10: 842.281 | JV10: 845.369 | JW10: 779.847 | JX10: 658.839 | JY10: 534.941 | JZ10: 402.893 | KA10: 302.909 | KB10: 342.663 | KC10: 522.626 | KD10: 511.575 | KE10: 783.351 | KF10: 754.573 | KG10: 806.168 | KH10: 776.295 | KI10: 608.477 | KJ10: 523.418 | KK10: 479.798 | KL10: 401.515 | KM10: 357.392 | KN10: 362.73 | KO10: 544.005 | KP10: 671.798 | KQ10: - | KR10: - | KS10: - | KT10: - | KU10: - | KV10: - | KW10: - | KX10: - | KY10: - | KZ10: - | LA10: - | LB10: - | LC10: - | LD10: - | LE10: - | LF10: - | LG10: - | LH10: - | LI10: - | LJ10: - | LK10: - | LL10: - | LM10: - | LN10: - | LO10: - | LP10: - | LQ10: - | LR10: - | LS10: - | LT10: - | LU10: - | LV10: - | LW10: - | LX10: - | LY10: - | LZ10: - | MA10: - | MB10: - | MC10: - | MD10: - | ME10: - | MF10: - | MG10: - | MH10: - | MI10: - | MJ10: - | MK10: - | ML10: -
B11: Eólica | C11: 0.115 | D11: 0.19899999 | E11: 0.18 | F11: 0.189 | G11: 0.174 | H11: 0.12 | I11: 0.26 | J11: 0.186 | K11: 0.131 | L11: 0.17 | M11: 0.207 | N11: 0.25599999 | O11: 0.192 | P11: 0.143 | Q11: 0.212 | R11: 0.562 | S11: 0.322 | T11: 0.2 | U11: 0.184 | V11: 0.212 | W11: 0.144 | X11: 0.242 | Y11: 0.271 | Z11: 0.181 | AA11: 0.262 | AB11: 0.225 | AC11: 0.313 | AD11: 0.207 | AE11: 0.195 | AF11: 0.163 | AG11: 0.195 | AH11: 0.666 | AI11: 1.295 | AJ11: 2.137 | AK11: 2.507 | AL11: 9.196 | AM11: 7.115 | AN11: 11.386 | AO11: 7.326 | AP11: 6.164 | AQ11: 5.271 | AR11: 7.974 | AS11: 7.391 | AT11: 6.981 | AU11: 5.631 | AV11: 7.198 | AW11: 6.728 | AX11: 5.603 | AY11: 6.899 | AZ11: 4.814 | BA11: 8.769 | BB11: 6.859 | BC11: 4.97 | BD11: 6.462 | BE11: 3.859 | BF11: 5.393 | BG11: 5.047 | BH11: 6.336 | BI11: 7.78 | BJ11: 5.672 | BK11: 7.87 | BL11: 7.675 | BM11: 8.496 | BN11: 11.902 | BO11: 9.211 | BP11: 8.898 | BQ11: 14.465 | BR11: 17.63 | BS11: 14.853 | BT11: 27.623 | BU11: 13.795 | BV11: 17.439 | BW11: 18.83 | BX11: 22.031 | BY11: 24.646 | BZ11: 26.102 | CA11: 23.157 | CB11: 27.099 | CC11: 25.434 | CD11: 15.643 | CE11: 22.706 | CF11: 30.321 | CG11: 31.616 | CH11: 36.544 | CI11: 39.627 | CJ11: 32.179 | CK11: 46.04 | CL11: 56.365 | CM11: 39.41 | CN11: 43.759 | CO11: 57.268 | CP11: 41.053 | CQ11: 45.835 | CR11: 69.47 | CS11: 72.794 | CT11: 76.085 | CU11: 85.726279 | CV11: 73.041771 | CW11: 100.156674 | CX11: 97.154275 | CY11: 87.936697 | CZ11: 72.687051 | DA11: 112.788958 | DB11: 131.013278 | DC11: 104.747635 | DD11: 104.146754 | DE11: 128.518917 | DF11: 138.738417 | DG11: 159.911065 | DH11: 214.375135 | DI11: 206.772797 | DJ11: 190.999426 | DK11: 173.148566 | DL11: 212.214153 | DM11: 177.000959 | DN11: 139.302129 | DO11: 172.17858 | DP11: 199.350315 | DQ11: 312.980648 | DR11: 315.799525 | DS11: 305.024786 | DT11: 295.1137 | DU11: 338.149516 | DV11: 416.021442 | DW11: 226.957358 | DX11: 365.846115 | DY11: 360.052448 | DZ11: 315.707212 | EA11: 276.366005 | EB11: 409.721173 | EC11: 544.093822 | ED11: 609.442473 | EE11: 594.731676 | EF11: 573.654778 | EG11: 654.248611 | EH11: 650.224566 | EI11: 424.361087 | EJ11: 408.907282 | EK11: 400.205723 | EL11: 374.720812 | EM11: 611.542894 | EN11: 574.769948 | EO11: 768.828981 | EP11: 557.951755 | EQ11: 657.009295 | ER11: 782.540758 | ES11: 795.79278 | ET11: 618.787308 | EU11: 820.586332 | EV11: 646.365366 | EW11: 693.582831 | EX11: 598.43409 | EY11: 505.371396 | EZ11: 869.000019 | FA11: 1056.957505 | FB11: 1214.869007 | FC11: 1395.171019 | FD11: 997.62485 | FE11: 837.860626 | FF11: 1138.000866 | FG11: 901.866016 | FH11: 703.483064 | FI11: 727.405981 | FJ11: 543.970839 | FK11: 781.2453 | FL11: 1086.955352 | FM11: 1172.985179 | FN11: 1433.677041 | FO11: 1685.344923 | FP11: 1074.447704 | FQ11: 1281.279462 | FR11: 1519.372767 | FS11: 1019.357853 | FT11: 1048.332716 | FU11: 970.026109 | FV11: 1114.316325 | FW11: 1147.637898 | FX11: 1635.269143 | FY11: 1511.245273 | FZ11: 1747.487596 | GA11: 1879.193348 | GB11: 1745.313957 | GC11: 1763.513597 | GD11: 1926.458081 | GE11: 1492.0682 | GF11: 1261.460764 | GG11: 1611.02847 | GH11: 1640.440853 | GI11: 1271.494533 | GJ11: 1902.724597 | GK11: 1958.532153 | GL11: 2405.437406 | GM11: 1563.700931 | GN11: 1924.867031 | GO11: 2788.267198 | GP11: 1955.917235 | GQ11: 1670.51768 | GR11: 1364.448 | GS11: 1171.791 | GT11: 2177.821 | GU11: 1465.816 | GV11: 2334.802 | GW11: 2279.523 | GX11: 2183.385 | GY11: 2149.807 | GZ11: 2871.919 | HA11: 3086.247 | HB11: 1356.316 | HC11: 2605.873 | HD11: 1786.288 | HE11: 1888.609 | HF11: 2419.819 | HG11: 2028.855 | HH11: 1907.625 | HI11: 2752.312 | HJ11: 2395.485 | HK11: 2651.468 | HL11: 2018.948 | HM11: 4092.55 | HN11: 3352.686 | HO11: 1737.161 | HP11: 2085.509 | HQ11: 2124.237 | HR11: 1972.523 | HS11: 2129.885 | HT11: 2482.013 | HU11: 3462.688 | HV11: 3648.182 | HW11: 3503.799 | HX11: 3226.32 | HY11: 3100.516 | HZ11: 3059.658 | IA11: 2698.004 | IB11: 2332.395 | IC11: 2426.129 | ID11: 2235.837 | IE11: 2466.731 | IF11: 3125.33 | IG11: 4792.63 | IH11: 4921.228 | II11: 4292.092 | IJ11: 4622.435 | IK11: 4546.547 | IL11: 2634.819 | IM11: 3619.334 | IN11: 2576.197 | IO11: 2798.133 | IP11: 2894.744 | IQ11: 2301.323 | IR11: 3952.831 | IS11: 4348.059 | IT11: 4621.882 | IU11: 4018.65 | IV11: 4028.246 | IW11: 4690.99 | IX11: 3399.409 | IY11: 3165.622 | IZ11: 2937.197 | JA11: 3254.705 | JB11: 2729.485 | JC11: 2322.977 | JD11: 3149.505 | JE11: 3819.887 | JF11: 4588.76 | JG11: 3645.515 | JH11: 5014.665 | JI11: 3805.554 | JJ11: 5306.39 | JK11: 3707.879 | JL11: 3429.201 | JM11: 2981.913 | JN11: 3126.895 | JO11: 3937.412 | JP11: 3129.821 | JQ11: 4604.842 | JR11: 5449.978 | JS11: 6291.574 | JT11: 5340.996 | JU11: 5749.103 | JV11: 4396.782 | JW11: 3932.35 | JX11: 3827.052 | JY11: 2844.213 | JZ11: 3410.875 | KA11: 3214.273 | KB11: 3963.88 | KC11: 6429.814 | KD11: 4943.44 | KE11: 6539.485 | KF11: 5884.285 | KG11: 5050.331 | KH11: 3950.218 | KI11: 4134.841 | KJ11: 3275.599 | KK11: 3591.602 | KL11: 2856.841 | KM11: 2132.614 | KN11: 3382.772 | KO11: 5071.981 | KP11: 4764.321 | KQ11: 4912.46 | KR11: 5948.174 | KS11: 4865.124 | KT11: 3904.518 | KU11: 4800.453 | KV11: 2873.288 | KW11: 3053.374 | KX11: 3237.373 | KY11: 3002.695 | KZ11: 3887.249 | LA11: 3699.88 | LB11: 3528.562 | LC11: 5604.844 | LD11: 6068.143 | LE11: 5409.603 | LF11: 4414.653 | LG11: 3902.186 | LH11: 3226.857 | LI11: 3464.679 | LJ11: 3603.863 | LK11: 2666.889 | LL11: 2376.012 | LM11: 3888.75 | LN11: 2671.691 | LO11: 4796.965 | LP11: 4905.537 | LQ11: 4687.839 | LR11: 4177.34 | LS11: 3440.344 | LT11: 3149.38 | LU11: 3336.793 | LV11: 3296.275 | LW11: 2817.243 | LX11: 3186.259 | LY11: 3956.458 | LZ11: 5747.709 | MA11: 5276.365 | MB11: 4622.957 | MC11: 7689.680294 | MD11: - | ME11: - | MF11: - | MG11: - | MH11: - | MI11: - | MJ11: - | MK11: - | ML11: -
B12: Solar fotovoltaica | C12: 0 | D12: 0 | E12: 0 | F12: 0 | G12: 0 | H12: 0 | I12: 0 | J12: 0 | K12: 0 | L12: 0 | M12: 0 | N12: 0 | O12: 0 | P12: 0 | Q12: 0 | R12: 0 | S12: 0 | T12: 0 | U12: 0 | V12: 0 | W12: 0 | X12: 0 | Y12: 0 | Z12: 0 | AA12: 1.01 | AB12: 0.772 | AC12: 0.572 | AD12: 1.289 | AE12: 1.113 | AF12: 1.164 | AG12: 1.307 | AH12: 1.155 | AI12: 1.223 | AJ12: 0.944 | AK12: 0.57 | AL12: 0.937 | AM12: 0.538 | AN12: 0.533 | AO12: 1.252 | AP12: 1.303 | AQ12: 1.05 | AR12: 1.069 | AS12: 1.273 | AT12: 1.193 | AU12: 0.88 | AV12: 0.72 | AW12: 1.263 | AX12: 0.926 | AY12: 0.978 | AZ12: 1.242 | BA12: 1.065 | BB12: 1.208 | BC12: 1.742 | BD12: 1.484 | BE12: 1.635 | BF12: 1.668 | BG12: 1.69 | BH12: 1.521 | BI12: 1.004 | BJ12: 0.0589 | BK12: 0.064 | BL12: 0.068 | BM12: 0.112 | BN12: 0.117 | BO12: 0.132 | BP12: 0.111 | BQ12: 0.105 | BR12: 0.096 | BS12: 0.091 | BT12: 0.048 | BU12: 0.091 | BV12: 0.027 | BW12: 0.024 | BX12: 0.033 | BY12: 0.047 | BZ12: 0.093 | CA12: 0.086 | CB12: 0.117 | CC12: 0.107 | CD12: 0.103 | CE12: 0.096 | CF12: 0.095 | CG12: 0.064 | CH12: 0.026 | CI12: 0.041 | CJ12: 0.088 | CK12: 0.088 | CL12: 0.119 | CM12: 0.093 | CN12: 0.107 | CO12: 0.143 | CP12: 0.087 | CQ12: 0.12 | CR12: 0.096 | CS12: 0.105 | CT12: 0.04 | CU12: 0.049635 | CV12: 0.070578 | CW12: 0.11299 | CX12: 0.11806 | CY12: 0.096177 | CZ12: 0.130517 | DA12: 0.13625 | DB12: 0.110493 | DC12: 0.09651 | DD12: 0.112811 | DE12: 0.069553 | DF12: 0.066723 | DG12: 0.053642 | DH12: 0.107873 | DI12: 0.15288 | DJ12: 0.117727 | DK12: 0.122524 | DL12: 0.14708 | DM12: 0.159277 | DN12: 0.14217 | DO12: 0.121715 | DP12: 0.088742 | DQ12: 0.079734 | DR12: 0.047817 | DS12: -0.026861 | DT12: 0.101559 | DU12: 0.124075 | DV12: 0.012024 | DW12: 0.205484 | DX12: 0.16091 | DY12: 0.019985 | DZ12: 0.298272 | EA12: 0.136951 | EB12: 0.12126 | EC12: 0.072306 | ED12: 0.043852 | EE12: 0.054685 | EF12: 0.098406 | EG12: 0.10854 | EH12: 0.170565 | EI12: 0.156555 | EJ12: 0.197492 | EK12: 0.168866 | EL12: 0.213764 | EM12: 0.128753 | EN12: 0.163998 | EO12: 0.094907 | EP12: 0.083112 | EQ12: 0.126051 | ER12: 0.229529 | ES12: 0.274106 | ET12: 0.396381 | EU12: 0.478436 | EV12: 0.479391 | EW12: 0.538064 | EX12: 0.533652 | EY12: 0.489809 | EZ12: 0.419306 | FA12: 0.317988 | FB12: 0.278739 | FC12: 0.331772 | FD12: 0.405857 | FE12: 0.562187 | FF12: 0.715348 | FG12: 0.856797 | FH12: 0.976934 | FI12: 1.140896 | FJ12: 1.017998 | FK12: 0.915326 | FL12: 0.809065 | FM12: 0.531804 | FN12: 0.666121 | FO12: 0.575979 | FP12: 0.833369 | FQ12: 1.127006 | FR12: 1.376597 | FS12: 1.638065 | FT12: 1.936569 | FU12: 2.015126 | FV12: 2.030072 | FW12: 1.850632 | FX12: 1.706128 | FY12: 1.375854 | FZ12: 1.328614 | GA12: 1.310038 | GB12: 1.59649 | GC12: 2.752105 | GD12: 2.916883 | GE12: 3.637065 | GF12: 4.270227 | GG12: 4.396409 | GH12: 4.542723 | GI12: 4.291025 | GJ12: 3.943208 | GK12: 3.248179 | GL12: 3.183997 | GM12: 2.56564 | GN12: 4.341388 | GO12: 5.163743 | GP12: 7.314716 | GQ12: 8.774512 | GR12: 10.192 | GS12: 11.021 | GT12: 13.52 | GU12: 11.63 | GV12: 9.949 | GW12: 8.077 | GX12: 9.826 | GY12: 9.686 | GZ12: 12.005 | HA12: 20.551 | HB12: 24.491 | HC12: 34.18 | HD12: 38.843 | HE12: 49.655 | HF12: 53.862 | HG12: 58.231 | HH12: 55.535 | HI12: 52.622 | HJ12: 52.916 | HK12: 57.421 | HL12: 70.549 | HM12: 104.433 | HN12: 126.235 | HO12: 131.754 | HP12: 189.707 | HQ12: 232.234 | HR12: 288.112 | HS12: 317.111 | HT12: 320.166 | HU12: 324.321 | HV12: 244.027 | HW12: 248.703 | HX12: 380.174 | HY12: 508.662 | HZ12: 546.455 | IA12: 647.317 | IB12: 618.528 | IC12: 690.862 | ID12: 637.125 | IE12: 492.289 | IF12: 482.285 | IG12: 345.4 | IH12: 231.205 | II12: 248.575 | IJ12: 289.95 | IK12: 458.217 | IL12: 565.84 | IM12: 683.248 | IN12: 656.766 | IO12: 752.89 | IP12: 691.532 | IQ12: 605.388 | IR12: 525.855 | IS12: 364.052 | IT12: 297.469 | IU12: 335.968 | IV12: 481.247 | IW12: 508.384 | IX12: 631.454 | IY12: 716.118 | IZ12: 776.898 | JA12: 821.81 | JB12: 766.368 | JC12: 702.334 | JD12: 601.935 | JE12: 344.356 | JF12: 404.816 | JG12: 482.68 | JH12: 635.514 | JI12: 736.945 | JJ12: 627.604 | JK12: 826.209 | JL12: 839.146 | JM12: 902.627 | JN12: 826.454 | JO12: 658.334 | JP12: 566.62 | JQ12: 350.382 | JR12: 377.386 | JS12: 418.753 | JT12: 500.807 | JU12: 531.456 | JV12: 725.436 | JW12: 832.56 | JX12: 886.252 | JY12: 929.537 | JZ12: 856.806 | KA12: 724.785 | KB12: 603.79 | KC12: 490.228 | KD12: 417.628 | KE12: 352.691 | KF12: 405.785 | KG12: 697.63 | KH12: 753.264 | KI12: 882.487 | KJ12: 862.847 | KK12: 910.009 | KL12: 871.503 | KM12: 655.164 | KN12: 616.974 | KO12: 362.107 | KP12: 431.963 | KQ12: 493.219 | KR12: 469.243 | KS12: 677.682 | KT12: 718.229 | KU12: 880.722 | KV12: 848.48 | KW12: 888.936 | KX12: 793.673 | KY12: 691.739 | KZ12: 510.302 | LA12: 503.195 | LB12: 369.378 | LC12: 337.689 | LD12: 452.545 | LE12: 674.598 | LF12: 686.161 | LG12: 769.207 | LH12: 881.472 | LI12: 875.513 | LJ12: 855.104 | LK12: 730.039 | LL12: 555.787 | LM12: 402.954 | LN12: 358.244 | LO12: 452.34 | LP12: 419.3 | LQ12: 679.833 | LR12: 798.187 | LS12: 833.855 | LT12: 839.82 | LU12: 871.427 | LV12: 778.172 | LW12: 740.761 | LX12: 651.03 | LY12: 515.77 | LZ12: 407.721 | MA12: 416.288 | MB12: 484.916 | MC12: 553.144 | MD12: - | ME12: - | MF12: - | MG12: - | MH12: - | MI12: - | MJ12: - | MK12: - | ML12: -
B13: Solar térmica | C13: - | D13: - | E13: - | F13: - | G13: - | H13: - | I13: - | J13: - | K13: - | L13: - | M13: - | N13: - | O13: - | P13: - | Q13: - | R13: - | S13: - | T13: - | U13: - | V13: - | W13: - | X13: - | Y13: - | Z13: - | AA13: - | AB13: - | AC13: - | AD13: - | AE13: - | AF13: - | AG13: - | AH13: - | AI13: - | AJ13: - | AK13: - | AL13: - | AM13: - | AN13: - | AO13: - | AP13: - | AQ13: - | AR13: - | AS13: - | AT13: - | AU13: - | AV13: - | AW13: - | AX13: - | AY13: - | AZ13: - | BA13: - | BB13: - | BC13: - | BD13: - | BE13: - | BF13: - | BG13: - | BH13: - | BI13: - | BJ13: - | BK13: - | BL13: - | BM13: - | BN13: - | BO13: - | BP13: - | BQ13: - | BR13: - | BS13: - | BT13: - | BU13: - | BV13: - | BW13: - | BX13: - | BY13: - | BZ13: - | CA13: - | CB13: - | CC13: - | CD13: - | CE13: - | CF13: - | CG13: - | CH13: - | CI13: - | CJ13: - | CK13: - | CL13: - | CM13: - | CN13: - | CO13: - | CP13: - | CQ13: - | CR13: - | CS13: - | CT13: - | CU13: - | CV13: - | CW13: - | CX13: - | CY13: - | CZ13: - | DA13: - | DB13: - | DC13: - | DD13: - | DE13: - | DF13: - | DG13: - | DH13: - | DI13: - | DJ13: - | DK13: - | DL13: - | DM13: - | DN13: - | DO13: - | DP13: - | DQ13: - | DR13: - | DS13: - | DT13: - | DU13: - | DV13: - | DW13: - | DX13: - | DY13: - | DZ13: - | EA13: - | EB13: - | EC13: - | ED13: - | EE13: - | EF13: - | EG13: - | EH13: - | EI13: - | EJ13: - | EK13: - | EL13: - | EM13: - | EN13: - | EO13: - | EP13: - | EQ13: - | ER13: - | ES13: - | ET13: - | EU13: - | EV13: - | EW13: - | EX13: - | EY13: - | EZ13: - | FA13: - | FB13: - | FC13: - | FD13: - | FE13: - | FF13: - | FG13: - | FH13: - | FI13: - | FJ13: - | FK13: - | FL13: - | FM13: - | FN13: - | FO13: - | FP13: - | FQ13: - | FR13: - | FS13: - | FT13: - | FU13: - | FV13: - | FW13: - | FX13: - | FY13: - | FZ13: - | GA13: - | GB13: - | GC13: - | GD13: - | GE13: - | GF13: - | GG13: - | GH13: - | GI13: - | GJ13: - | GK13: - | GL13: - | GM13: 0 | GN13: 0 | GO13: 0 | GP13: 0 | GQ13: 0 | GR13: 0 | GS13: 0 | GT13: 0 | GU13: 0 | GV13: 0 | GW13: 0 | GX13: 0 | GY13: 0 | GZ13: 0 | HA13: 0.431 | HB13: 0.342 | HC13: 0.558 | HD13: 0.883 | HE13: 1.256 | HF13: 1.116 | HG13: 0.639 | HH13: 1.214 | HI13: 0.997 | HJ13: 0.191 | HK13: 1.084 | HL13: 0.797 | HM13: 1.461 | HN13: 0.958 | HO13: 0.942 | HP13: 1.963 | HQ13: 2.038 | HR13: 1.98 | HS13: 0.859 | HT13: 0.866 | HU13: 1.27 | HV13: 1.16 | HW13: 0.69 | HX13: 1.236 | HY13: 2.323 | HZ13: 7.204 | IA13: 7.658 | IB13: 6.752 | IC13: 12.414 | ID13: 23.868 | IE13: 17.539 | IF13: 23.446 | IG13: 16.183 | IH13: 10.51 | II13: 13.152 | IJ13: 11.682 | IK13: 23.732 | IL13: 36.92 | IM13: 69.084 | IN13: 72.532 | IO13: 104.59 | IP13: 121.9 | IQ13: 100.917 | IR13: 71.745 | IS13: 31.619 | IT13: 33.747 | IU13: 34.25 | IV13: 88.657 | IW13: 98.457 | IX13: 137.833 | IY13: 154.073 | IZ13: 232.484 | JA13: 284.208 | JB13: 235.329 | JC13: 228.558 | JD13: 172.912 | JE13: 80.437 | JF13: 85.159 | JG13: 117.342 | JH13: 200.342 | JI13: 235.113 | JJ13: 177.777 | JK13: 348.382 | JL13: 414.749 | JM13: 541.317 | JN13: 485.127 | JO13: 368.643 | JP13: 285.795 | JQ13: 133.962 | JR13: 135.585 | JS13: 113.494 | JT13: 204.009 | JU13: 125.37 | JV13: 300.894 | JW13: 499.268 | JX13: 647.33 | JY13: 758.523 | JZ13: 661.856 | KA13: 478.955 | KB13: 294.242 | KC13: 199.224 | KD13: 158.362 | KE13: 79.801 | KF13: 103.265 | KG13: 385.175 | KH13: 435.527 | KI13: 729.936 | KJ13: 687.288 | KK13: 811.153 | KL13: 833.178 | KM13: 389.596 | KN13: 289.337 | KO13: 90.187 | KP13: 124.472 | KQ13: 176.951 | KR13: 190.925 | KS13: 415.829 | KT13: 393.16 | KU13: 694.839 | KV13: 734.054 | KW13: 888.918 | KX13: 607.623 | KY13: 483.25 | KZ13: 188.169 | LA13: 226.818 | LB13: 84.699 | LC13: 59.914 | LD13: 133.01 | LE13: 387.861 | LF13: 408.323 | LG13: 498.795 | LH13: 813.991 | LI13: 825.325 | LJ13: 805.819 | LK13: 595.627 | LL13: 284.703 | LM13: 139.7 | LN13: 118.136 | LO13: 149.212 | LP13: 88.741 | LQ13: 340.845 | LR13: 535.255 | LS13: 607.898 | LT13: 761.902 | LU13: 812.88 | LV13: 692.435 | LW13: 608.14 | LX13: 398.793 | LY13: 220.652 | LZ13: 131.196 | MA13: 112.388 | MB13: 229.808 | MC13: 227.9056 | MD13: - | ME13: - | MF13: - | MG13: - | MH13: - | MI13: - | MJ13: - | MK13: - | ML13: -
B14: Térmica renovable/Otras renovables | C14: - | D14: - | E14: - | F14: - | G14: - | H14: - | I14: - | J14: - | K14: - | L14: - | M14: - | N14: - | O14: - | P14: - | Q14: - | R14: - | S14: - | T14: - | U14: - | V14: - | W14: - | X14: 0.479 | Y14: 0.195 | Z14: 0.18 | AA14: 0.226 | AB14: 0.185 | AC14: 0.209 | AD14: 0.186 | AE14: 0.219 | AF14: 2.491 | AG14: 0.855 | AH14: 1.652 | AI14: 2.195 | AJ14: 3.186 | AK14: 2.852 | AL14: 2.293 | AM14: 2.747 | AN14: 4.291 | AO14: 5.55 | AP14: 5.08 | AQ14: 5.191 | AR14: 4.069 | AS14: 4.405 | AT14: 5.055 | AU14: 4.77 | AV14: 5.999 | AW14: 6.529 | AX14: 5.136 | AY14: 6.182 | AZ14: 4.201 | BA14: 7.788 | BB14: 12.483 | BC14: 22.434 | BD14: 14.593 | BE14: 25.895 | BF14: 34.064 | BG14: 35.963 | BH14: 40.081 | BI14: 55.065 | BJ14: 63.701 | BK14: 52.516 | BL14: 54.169 | BM14: 59.649 | BN14: 59.275 | BO14: 60.63 | BP14: 38.39 | BQ14: 56.09 | BR14: 56.16 | BS14: 55.471 | BT14: 65.761 | BU14: 51.017 | BV14: 62.141 | BW14: 61.97 | BX14: 55.767 | BY14: 73.194 | BZ14: 69.39 | CA14: 67.607 | CB14: 74.481 | CC14: 76.311 | CD14: 76.089 | CE14: 74.905 | CF14: 70.728 | CG14: 57.923 | CH14: 56.715 | CI14: 56.474 | CJ14: 46.637 | CK14: 55.156 | CL14: 57.041 | CM14: 57.334 | CN14: 33.856 | CO14: 57.003 | CP14: 53.272 | CQ14: 57.104 | CR14: 61.066 | CS14: 58.17 | CT14: 55.262 | CU14: 29.002801 | CV14: 53.305843 | CW14: 61.549511 | CX14: 62.649003 | CY14: 69.878224 | CZ14: 68.57453 | DA14: 70.406914 | DB14: 67.345651 | DC14: 60.385234 | DD14: 67.235012 | DE14: 69.010129 | DF14: 69.403475 | DG14: 71.806642 | DH14: 67.740664 | DI14: 76.241169 | DJ14: 70.556648 | DK14: 71.228353 | DL14: 64.031022 | DM14: 80.270443 | DN14: 79.088938 | DO14: 85.153421 | DP14: 84.480839 | DQ14: 82.713458 | DR14: 74.942079 | DS14: 77.705164 | DT14: 72.094493 | DU14: 81.5787 | DV14: 75.639545 | DW14: 57.155141 | DX14: 64.878718 | DY14: 80.062335 | DZ14: 78.219893 | EA14: 86.225769 | EB14: 91.935601 | EC14: 96.959691 | ED14: 98.655336 | EE14: 114.03217 | EF14: 103.259727 | EG14: 115.38466 | EH14: 106.780576 | EI14: 116.226635 | EJ14: 163.253433 | EK14: 164.156034 | EL14: 142.644941 | EM14: 174.912517 | EN14: 184.368091 | EO14: 170.800963 | EP14: 182.638681 | EQ14: 102.326662 | ER14: 103.972908 | ES14: 114.937767 | ET14: 113.405046 | EU14: 116.821017 | EV14: 106.527145 | EW14: 125.927582 | EX14: 138.275534 | EY14: 128.415374 | EZ14: 130.569012 | FA14: 128.796967 | FB14: 143.040272 | FC14: 125.499869 | FD14: 125.666718 | FE14: 141.367661 | FF14: 136.225564 | FG14: 148.434649 | FH14: 135.674954 | FI14: 145.85112 | FJ14: 152.329642 | FK14: 154.938327 | FL14: 162.073384 | FM14: 144.46359 | FN14: 164.51626 | FO14: 165.781692 | FP14: 141.425287 | FQ14: 163.310002 | FR14: 158.001119 | FS14: 158.154288 | FT14: 141.570139 | FU14: 142.667679 | FV14: 139.216976 | FW14: 148.774135 | FX14: 152.856929 | FY14: 147.726873 | FZ14: 158.608513 | GA14: 174.85461 | GB14: 150.827771 | GC14: 176.756115 | GD14: 159.635672 | GE14: 172.117306 | GF14: 162.540982 | GG14: 167.519914 | GH14: 173.003408 | GI14: 160.254506 | GJ14: 152.959924 | GK14: 165.982026 | GL14: 171.405836 | GM14: 172.08672 | GN14: 164.504679 | GO14: 179.217148 | GP14: 172.157263 | GQ14: 184.666872 | GR14: 201.174 | GS14: 194.67 | GT14: 180.725 | GU14: 181.291 | GV14: 197.311 | GW14: 176.127 | GX14: 178.676 | GY14: 195.417 | GZ14: 170.868 | HA14: 196.962 | HB14: 184.118 | HC14: 197.114 | HD14: 193.247 | HE14: 203.052 | HF14: 202.649 | HG14: 191.273 | HH14: 224.429 | HI14: 204.157 | HJ14: 212.399 | HK14: 218.304 | HL14: 215.698 | HM14: 223.7 | HN14: 221.483 | HO14: 218.887 | HP14: 220.451 | HQ14: 223.504 | HR14: 218.31 | HS14: 211.555 | HT14: 229.725 | HU14: 225.656 | HV14: 224.216 | HW14: 243.686 | HX14: 231.253 | HY14: 252.346 | HZ14: 275.297 | IA14: 250.078 | IB14: 229.126 | IC14: 236.274 | ID14: 235.859 | IE14: 264.076 | IF14: 325.339 | IG14: 249.01 | IH14: 251.943 | II14: 250.94 | IJ14: 226.424 | IK14: 245.998 | IL14: 252.761 | IM14: 274.925 | IN14: 268.961 | IO14: 268.03 | IP14: 278.804 | IQ14: 262.937 | IR14: 279.287 | IS14: 269.121 | IT14: 293.611 | IU14: 357.051 | IV14: 328.661 | IW14: 349.277 | IX14: 351.055 | IY14: 328.804 | IZ14: 335.645 | JA14: 357.9 | JB14: 355.299 | JC14: 375.1 | JD14: 383.14 | JE14: 375.338 | JF14: 387.571 | JG14: 393.7 | JH14: 372.92 | JI14: 398.179 | JJ14: 371.93 | JK14: 360.835 | JL14: 406.082 | JM14: 421.354 | JN14: 400.507 | JO14: 373.05 | JP14: 413.074 | JQ14: 400.883 | JR14: 433.635 | JS14: 435.821 | JT14: 414.997 | JU14: 452.924 | JV14: 421.415 | JW14: 437.997 | JX14: 392.453 | JY14: 431.913 | JZ14: 417.438 | KA14: 398.002 | KB14: 404.689 | KC14: 413.637 | KD14: 444.28 | KE14: 423.546 | KF14: 331.354 | KG14: 365.401 | KH14: 338.696 | KI14: 410.022 | KJ14: 406.227 | KK14: 411.334 | KL14: 445.07 | KM14: 422.226 | KN14: 387.615 | KO14: 372.542 | KP14: 403.945 | KQ14: 239.402 | KR14: 205.804 | KS14: 234.044 | KT14: 179.708 | KU14: 226.202 | KV14: 276.375 | KW14: 299.334 | KX14: 311.422 | KY14: 301.429 | KZ14: 310.146 | LA14: 303.686 | LB14: 286.399 | LC14: 268.935 | LD14: 260.668 | LE14: 254.63 | LF14: 209.025 | LG14: 276.212 | LH14: 286.849 | LI14: 310.284 | LJ14: 325.988 | LK14: 306.891 | LL14: 305.479 | LM14: 303.695 | LN14: 305.258 | LO14: 326.246 | LP14: 288.83 | LQ14: 268.626 | LR14: 231.771 | LS14: 297.729 | LT14: 301.451 | LU14: 332.568 | LV14: 316.098 | LW14: 309.254 | LX14: 310.003 | LY14: 307.706 | LZ14: 312.631 | MA14: 296.492 | MB14: 301.631 | MC14: 279.1826 | MD14: - | ME14: - | MF14: - | MG14: - | MH14: - | MI14: - | MJ14: - | MK14: - | ML14: -
B15: Térmica no renovable/Cogeneración y resto/Cogeneración | C15: 35.68500001 | D15: 38.35100002 | E15: 45.94500001 | F15: 29.54299999 | G15: 39.72400004 | H15: 36.554 | I15: 59.266 | J15: 54.41599999 | K15: 70.54800001 | L15: 79.42600001 | M15: 86.14999999 | N15: 79.24899999 | O15: 95.989 | P15: 93.531 | Q15: 115.056 | R15: 116.111 | S15: 113.29 | T15: 97.624 | U15: 119.55 | V15: 109.126 | W15: 134.507 | X15: 150.722 | Y15: 140.301 | Z15: 150.177 | AA15: 158.544 | AB15: 156.649 | AC15: 153.353 | AD15: 133.677 | AE15: 150.357 | AF15: 147.037 | AG15: 147.135 | AH15: 155.598 | AI15: 159.136 | AJ15: 169.633 | AK15: 179.527 | AL15: 192.236 | AM15: 216.233 | AN15: 207.395 | AO15: 238.976 | AP15: 228.409 | AQ15: 230.781 | AR15: 243.422 | AS15: 273.033 | AT15: 222.175 | AU15: 290.868 | AV15: 356.511 | AW15: 393.027 | AX15: 406.674 | AY15: 424.012 | AZ15: 397.51 | BA15: 428.83 | BB15: 427.683 | BC15: 448.762 | BD15: 440.017 | BE15: 418.092 | BF15: 419.04 | BG15: 459.931 | BH15: 463.43 | BI15: 473.756 | BJ15: 510.9281 | BK15: 488.055 | BL15: 461.944 | BM15: 538.602 | BN15: 514.274 | BO15: 531.615 | BP15: 523.037 | BQ15: 524.917 | BR15: 510.664 | BS15: 559.844 | BT15: 605.287 | BU15: 625.356 | BV15: 657.158 | BW15: 649.314 | BX15: 674.235 | BY15: 693.763 | BZ15: 721.263 | CA15: 706.927 | CB15: 708.297 | CC15: 764.043 | CD15: 721.083 | CE15: 746.326 | CF15: 827.944 | CG15: 871.216 | CH15: 907.409 | CI15: 907.43 | CJ15: 826.938 | CK15: 929.049 | CL15: 911.043 | CM15: 932.339 | CN15: 902.096 | CO15: 984.035 | CP15: 910.409 | CQ15: 947.55 | CR15: 1078.514 | CS15: 1050.981 | CT15: 1082.232 | CU15: 1132.463466 | CV15: 1055.32629 | CW15: 1179.48246 | CX15: 1140.456137 | CY15: 1143.38163 | CZ15: 1071.931957 | DA15: 1169.521431 | DB15: 1090.506883 | DC15: 1176.458807 | DD15: 1306.934093 | DE15: 1295.514473 | DF15: 1406.303126 | DG15: 1379.875255 | DH15: 1318.561516 | DI15: 1436.056923 | DJ15: 1384.72701 | DK15: 1425.332244 | DL15: 1390.930151 | DM15: 1434.844378 | DN15: 1350.318336 | DO15: 1395.920991 | DP15: 1537.403306 | DQ15: 1510.153183 | DR15: 1573.14894 | DS15: 1568.016331 | DT15: 1437.863509 | DU15: 1555.596493 | DV15: 1469.593771 | DW15: 1469.027108 | DX15: 1426.760806 | DY15: 1439.926313 | DZ15: 1348.346318 | EA15: 1376.726088 | EB15: 1451.718781 | EC15: 1351.805972 | ED15: 1484.173324 | EE15: 1509.982166 | EF15: 1420.973025 | EG15: 1480.331908 | EH15: 1391.977328 | EI15: 1478.901733 | EJ15: 1418.097798 | EK15: 1481.533747 | EL15: 1315.029805 | EM15: 1436.074999 | EN15: 1554.644648 | EO15: 1587.637579 | EP15: 1581.503447 | EQ15: 1753.946643 | ER15: 1624.383565 | ES15: 1752.277795 | ET15: 1751.529213 | EU15: 1747.522773 | EV15: 1607.281976 | EW15: 1731.76718 | EX15: 1586.239701 | EY15: 1675.706324 | EZ15: 1903.924717 | FA15: 1846.961895 | FB15: 1850.110454 | FC15: 1949.896401 | FD15: 1795.454235 | FE15: 1917.128936 | FF15: 1863.546696 | FG15: 1892.492864 | FH15: 1805.79937 | FI15: 1913.795834 | FJ15: 1744.961886 | FK15: 1903.913547 | FL15: 2075.884703 | FM15: 1958.696567 | FN15: 2023.77594 | FO15: 2046.926037 | FP15: 1962.114682 | FQ15: 2107.656392 | FR15: 1979.842787 | FS15: 1934.491312 | FT15: 1817.996573 | FU15: 1921.340511 | FV15: 1769.469702 | FW15: 1826.677202 | FX15: 1981.941919 | FY15: 2074.231954 | FZ15: 2106.015132 | GA15: 2043.023494 | GB15: 1951.798355 | GC15: 2095.811333 | GD15: 2039.99882 | GE15: 2040.297126 | GF15: 1919.581508 | GG15: 1935.739163 | GH15: 1786.162398 | GI15: 1917.189845 | GJ15: 1838.219428 | GK15: 1867.242601 | GL15: 1828.639612 | GM15: 1998.073836 | GN15: 1940.378567 | GO15: 2060.451941 | GP15: 1910.70463 | GQ15: 1907.436391 | GR15: 1747.218 | GS15: 1731.357 | GT15: 1635.847 | GU15: 1728.153 | GV15: 1850.389 | GW15: 1883.634 | GX15: 1925.296 | GY15: 1984.567 | GZ15: 1757.03 | HA15: 1865.888 | HB15: 1831.562 | HC15: 1829.89 | HD15: 1893.941 | HE15: 1990.347 | HF15: 1868.579 | HG15: 1956.135 | HH15: 2102.763 | HI15: 2100.066 | HJ15: 2146.989 | HK15: 2251.917 | HL15: 2226.859 | HM15: 2271.986 | HN15: 2229.342 | HO15: 2106.663 | HP15: 2078.812 | HQ15: 2217.977 | HR15: 2016.659 | HS15: 2177.9 | HT15: 2358.957 | HU15: 2314.276 | HV15: 2324.628 | HW15: 2421.963 | HX15: 2242.406 | HY15: 2406.646 | HZ15: 2338.367 | IA15: 2351.126 | IB15: 2309.733 | IC15: 2396.594 | ID15: 2034.392 | IE15: 2337.3 | IF15: 2464.42 | IG15: 2571.26 | IH15: 2591.727 | II15: 2661.214 | IJ15: 2477.021 | IK15: 2616.777 | IL15: 2550.354 | IM15: 2581.357 | IN15: 2541.783 | IO15: 2613.673 | IP15: 2153.408 | IQ15: 2523.764 | IR15: 2647.117 | IS15: 2659.682 | IT15: 2762.902 | IU15: 2780.759 | IV15: 2596.086 | IW15: 2880.479 | IX15: 2687.991 | IY15: 2721.65 | IZ15: 2576.579 | JA15: 2636.97 | JB15: 2201.011 | JC15: 2634.476 | JD15: 2759.121 | JE15: 2749.167 | JF15: 2826.723 | JG15: 2930.724 | JH15: 2780.595 | JI15: 2916.443 | JJ15: 2814.673 | JK15: 2845.836 | JL15: 2681.83 | JM15: 2782.808 | JN15: 2350.113 | JO15: 2741.203 | JP15: 2903.628 | JQ15: 2845.644 | JR15: 2899.367 | JS15: 3001.223 | JT15: 2689.526 | JU15: 2882.224 | JV15: 2782.855 | JW15: 2818.268 | JX15: 2650.783 | JY15: 2656.915 | JZ15: 2097.047 | KA15: 2558.014 | KB15: 2616.55 | KC15: 2613.469 | KD15: 2669.851 | KE15: 2680.59 | KF15: 1980.698 | KG15: 1893.632 | KH15: 1709.93 | KI15: 2060.306 | KJ15: 2193.45 | KK15: 2250.899 | KL15: 2101.003 | KM15: 2253.253 | KN15: 2263.274 | KO15: 2067.924 | KP15: 2140.577 | KQ15: 2222.803 | KR15: 1961.531 | KS15: 2117.582 | KT15: 2033.185 | KU15: 2122.167 | KV15: 2073.412 | KW15: 2167.245 | KX15: 2041.69 | KY15: 2153.728 | KZ15: 2214.896 | LA15: 2129.212 | LB15: 2180.524 | LC15: 2128.323 | LD15: 1967.565 | LE15: 2069.474 | LF15: 1992.488 | LG15: 2113.608 | LH15: 2167.73 | LI15: 2239.762 | LJ15: 2120.599 | LK15: 2135.175 | LL15: 2318.648 | LM15: 2296.155 | LN15: 2322.385 | LO15: 2446.964 | LP15: 2203.899 | LQ15: 2388.691 | LR15: 2231.311 | LS15: 2324.427 | LT15: 2312.48 | LU15: 2395.033 | LV15: 2253.788 | LW15: 2268.786 | LX15: 2389.42 | LY15: 2438.362 | LZ15: 2481.115 | MA15: 2474.736 | MB15: 2243.423 | MC15: 2499.064706 | MD15: - | ME15: - | MF15: - | MG15: - | MH15: - | MI15: - | MJ15: - | MK15: - | ML15: -
B16: Residuos no renovables | C16: - | D16: - | E16: - | F16: - | G16: - | H16: - | I16: - | J16: - | K16: - | L16: - | M16: - | N16: - | O16: - | P16: - | Q16: - | R16: - | S16: - | T16: - | U16: - | V16: - | W16: - | X16: - | Y16: - | Z16: - | AA16: - | AB16: - | AC16: - | AD16: - | AE16: - | AF16: - | AG16: - | AH16: - | AI16: - | AJ16: - | AK16: - | AL16: - | AM16: - | AN16: - | AO16: - | AP16: - | AQ16: - | AR16: - | AS16: - | AT16: - | AU16: - | AV16: - | AW16: - | AX16: - | AY16: - | AZ16: - | BA16: - | BB16: - | BC16: - | BD16: - | BE16: - | BF16: - | BG16: - | BH16: - | BI16: - | BJ16: - | BK16: - | BL16: - | BM16: - | BN16: - | BO16: - | BP16: - | BQ16: - | BR16: - | BS16: - | BT16: - | BU16: - | BV16: - | BW16: - | BX16: - | BY16: - | BZ16: - | CA16: - | CB16: - | CC16: - | CD16: - | CE16: - | CF16: - | CG16: - | CH16: - | CI16: - | CJ16: - | CK16: - | CL16: - | CM16: - | CN16: - | CO16: - | CP16: - | CQ16: - | CR16: - | CS16: - | CT16: - | CU16: - | CV16: - | CW16: - | CX16: - | CY16: - | CZ16: - | DA16: - | DB16: - | DC16: - | DD16: - | DE16: - | DF16: - | DG16: - | DH16: - | DI16: - | DJ16: - | DK16: - | DL16: - | DM16: - | DN16: - | DO16: - | DP16: - | DQ16: - | DR16: - | DS16: - | DT16: - | DU16: - | DV16: - | DW16: - | DX16: - | DY16: - | DZ16: - | EA16: - | EB16: - | EC16: - | ED16: - | EE16: - | EF16: - | EG16: - | EH16: - | EI16: - | EJ16: - | EK16: - | EL16: - | EM16: - | EN16: - | EO16: - | EP16: - | EQ16: - | ER16: - | ES16: - | ET16: - | EU16: - | EV16: - | EW16: - | EX16: - | EY16: - | EZ16: - | FA16: - | FB16: - | FC16: - | FD16: - | FE16: - | FF16: - | FG16: - | FH16: - | FI16: - | FJ16: - | FK16: - | FL16: - | FM16: - | FN16: - | FO16: - | FP16: - | FQ16: - | FR16: - | FS16: - | FT16: - | FU16: - | FV16: - | FW16: - | FX16: - | FY16: - | FZ16: - | GA16: - | GB16: - | GC16: - | GD16: - | GE16: - | GF16: - | GG16: - | GH16: - | GI16: - | GJ16: - | GK16: - | GL16: - | GM16: - | GN16: - | GO16: - | GP16: - | GQ16: - | GR16: - | GS16: - | GT16: - | GU16: - | GV16: - | GW16: - | GX16: - | GY16: - | GZ16: - | HA16: - | HB16: - | HC16: - | HD16: - | HE16: - | HF16: - | HG16: - | HH16: - | HI16: - | HJ16: - | HK16: - | HL16: - | HM16: - | HN16: - | HO16: - | HP16: - | HQ16: - | HR16: - | HS16: - | HT16: - | HU16: - | HV16: - | HW16: - | HX16: - | HY16: - | HZ16: - | IA16: - | IB16: - | IC16: - | ID16: - | IE16: - | IF16: - | IG16: - | IH16: - | II16: - | IJ16: - | IK16: - | IL16: - | IM16: - | IN16: - | IO16: - | IP16: - | IQ16: - | IR16: - | IS16: - | IT16: - | IU16: - | IV16: - | IW16: - | IX16: - | IY16: - | IZ16: - | JA16: - | JB16: - | JC16: - | JD16: - | JE16: - | JF16: - | JG16: - | JH16: - | JI16: - | JJ16: - | JK16: - | JL16: - | JM16: - | JN16: - | JO16: - | JP16: - | JQ16: - | JR16: - | JS16: - | JT16: - | JU16: - | JV16: - | JW16: - | JX16: - | JY16: - | JZ16: - | KA16: - | KB16: - | KC16: - | KD16: - | KE16: - | KF16: - | KG16: - | KH16: - | KI16: - | KJ16: - | KK16: - | KL16: - | KM16: - | KN16: - | KO16: - | KP16: - | KQ16: 188.1245 | KR16: 170.3215 | KS16: 195.819 | KT16: 154.012 | KU16: 192.6975 | KV16: 196.3015 | KW16: 210.1965 | KX16: 213.781 | KY16: 202.4165 | KZ16: 215.489 | LA16: 203.287 | LB16: 182.27 | LC16: 200.86 | LD16: 187.606 | LE16: 209.0865 | LF16: 179.4145 | LG16: 136.9975 | LH16: 195.591 | LI16: 242.9445 | LJ16: 243.1545 | LK16: 236.993 | LL16: 230.038 | LM16: 205.3225 | LN16: 203.3015 | LO16: 216.8565 | LP16: 190.885 | LQ16: 209.13 | LR16: 172.6675 | LS16: 175.583 | LT16: 211.3615 | LU16: 200.6275 | LV16: 214.933 | LW16: 213.3155 | LX16: 228.4125 | LY16: 206.5245 | LZ16: 218.512 | MA16: 226.5715 | MB16: 202.003 | MC16: 217.50215 | MD16: - | ME16: - | MF16: - | MG16: - | MH16: - | MI16: - | MJ16: - | MK16: - | ML16: -
B17: Residuos renovables | C17: - | D17: - | E17: - | F17: - | G17: - | H17: - | I17: - | J17: - | K17: - | L17: - | M17: - | N17: - | O17: - | P17: - | Q17: - | R17: - | S17: - | T17: - | U17: - | V17: - | W17: - | X17: - | Y17: - | Z17: - | AA17: - | AB17: - | AC17: - | AD17: - | AE17: - | AF17: - | AG17: - | AH17: - | AI17: - | AJ17: - | AK17: - | AL17: - | AM17: - | AN17: - | AO17: - | AP17: - | AQ17: - | AR17: - | AS17: - | AT17: - | AU17: - | AV17: - | AW17: - | AX17: - | AY17: - | AZ17: - | BA17: - | BB17: - | BC17: - | BD17: - | BE17: - | BF17: - | BG17: - | BH17: - | BI17: - | BJ17: - | BK17: - | BL17: - | BM17: - | BN17: - | BO17: - | BP17: - | BQ17: - | BR17: - | BS17: - | BT17: - | BU17: - | BV17: - | BW17: - | BX17: - | BY17: - | BZ17: - | CA17: - | CB17: - | CC17: - | CD17: - | CE17: - | CF17: - | CG17: - | CH17: - | CI17: - | CJ17: - | CK17: - | CL17: - | CM17: - | CN17: - | CO17: - | CP17: - | CQ17: - | CR17: - | CS17: - | CT17: - | CU17: - | CV17: - | CW17: - | CX17: - | CY17: - | CZ17: - | DA17: - | DB17: - | DC17: - | DD17: - | DE17: - | DF17: - | DG17: - | DH17: - | DI17: - | DJ17: - | DK17: - | DL17: - | DM17: - | DN17: - | DO17: - | DP17: - | DQ17: - | DR17: - | DS17: - | DT17: - | DU17: - | DV17: - | DW17: - | DX17: - | DY17: - | DZ17: - | EA17: - | EB17: - | EC17: - | ED17: - | EE17: - | EF17: - | EG17: - | EH17: - | EI17: - | EJ17: - | EK17: - | EL17: - | EM17: - | EN17: - | EO17: - | EP17: - | EQ17: - | ER17: - | ES17: - | ET17: - | EU17: - | EV17: - | EW17: - | EX17: - | EY17: - | EZ17: - | FA17: - | FB17: - | FC17: - | FD17: - | FE17: - | FF17: - | FG17: - | FH17: - | FI17: - | FJ17: - | FK17: - | FL17: - | FM17: - | FN17: - | FO17: - | FP17: - | FQ17: - | FR17: - | FS17: - | FT17: - | FU17: - | FV17: - | FW17: - | FX17: - | FY17: - | FZ17: - | GA17: - | GB17: - | GC17: - | GD17: - | GE17: - | GF17: - | GG17: - | GH17: - | GI17: - | GJ17: - | GK17: - | GL17: - | GM17: - | GN17: - | GO17: - | GP17: - | GQ17: - | GR17: - | GS17: - | GT17: - | GU17: - | GV17: - | GW17: - | GX17: - | GY17: - | GZ17: - | HA17: - | HB17: - | HC17: - | HD17: - | HE17: - | HF17: - | HG17: - | HH17: - | HI17: - | HJ17: - | HK17: - | HL17: - | HM17: - | HN17: - | HO17: - | HP17: - | HQ17: - | HR17: - | HS17: - | HT17: - | HU17: - | HV17: - | HW17: - | HX17: - | HY17: - | HZ17: - | IA17: - | IB17: - | IC17: - | ID17: - | IE17: - | IF17: - | IG17: - | IH17: - | II17: - | IJ17: - | IK17: - | IL17: - | IM17: - | IN17: - | IO17: - | IP17: - | IQ17: - | IR17: - | IS17: - | IT17: - | IU17: - | IV17: - | IW17: - | IX17: - | IY17: - | IZ17: - | JA17: - | JB17: - | JC17: - | JD17: - | JE17: - | JF17: - | JG17: - | JH17: - | JI17: - | JJ17: - | JK17: - | JL17: - | JM17: - | JN17: - | JO17: - | JP17: - | JQ17: - | JR17: - | JS17: - | JT17: - | JU17: - | JV17: - | JW17: - | JX17: - | JY17: - | JZ17: - | KA17: - | KB17: - | KC17: - | KD17: - | KE17: - | KF17: - | KG17: - | KH17: - | KI17: - | KJ17: - | KK17: - | KL17: - | KM17: - | KN17: - | KO17: - | KP17: - | KQ17: 54.5825 | KR17: 52.2235 | KS17: 60.214 | KT17: 33.476 | KU17: 49.7035 | KV17: 58.9705 | KW17: 60.0015 | KX17: 57.491 | KY17: 55.0675 | KZ17: 60.863 | LA17: 60.057 | LB17: 60.005 | LC17: 57.3 | LD17: 48.104 | LE17: 57.5295 | LF17: 26.7025 | LG17: 24.2785 | LH17: 55.116 | LI17: 63.6465 | LJ17: 60.3155 | LK17: 62.052 | LL17: 60.05 | LM17: 64.7395 | LN17: 69.9075 | LO17: 64.7375 | LP17: 55.999 | LQ17: 59.911 | LR17: 46.5755 | LS17: 34.262 | LT17: 66.9865 | LU17: 68.8895 | LV17: 65.701 | LW17: 62.4295 | LX17: 66.1295 | LY17: 66.5575 | LZ17: 69.972 | MA17: 69.2635 | MB17: 62.439 | MC17: 66.44705 | MD17: - | ME17: - | MF17: - | MG17: - | MH17: - | MI17: - | MJ17: - | MK17: - | ML17: -
B18: Régimen especial | C18: 141.792 | D18: 130.856 | E18: 110.855 | F18: 120.561 | G18: 123.921 | H18: 127.973 | I18: 114.985 | J18: 112.234 | K18: 104.691 | L18: 149.23 | M18: 196.367 | N18: 206.211 | O18: 275.319 | P18: 216.485 | Q18: 330.279 | R18: 306.782 | S18: 308.685 | T18: 242.418 | U18: 219.295 | V18: 189.727 | W18: 212.86 | X18: 245.323 | Y18: 282.755 | Z18: 314.556 | AA18: 285.177 | AB18: 247.5 | AC18: 268.758 | AD18: 327.116 | AE18: 345.474 | AF18: 354.658 | AG18: 330.494 | AH18: 277.137 | AI18: 281.718 | AJ18: 391.427 | AK18: 419.331 | AL18: 501.831 | AM18: 435.028 | AN18: 344.329 | AO18: 424.457 | AP18: 433.51 | AQ18: 489.602 | AR18: 463.648 | AS18: 437.682 | AT18: 338.119 | AU18: 410.583 | AV18: 614.229 | AW18: 635.898 | AX18: 670.237 | AY18: 780.756 | AZ18: 683.316 | BA18: 707.5 | BB18: 666.926 | BC18: 731.274 | BD18: 633.452 | BE18: 562.516 | BF18: 561.608 | BG18: 609.381 | BH18: 683.066 | BI18: 776.587 | BJ18: 801.483 | BK18: 878.253 | BL18: 845.433 | BM18: 906.188 | BN18: 753.601 | BO18: 777.859 | BP18: 712.863 | BQ18: 710.022 | BR18: 670.617 | BS18: 740.799 | BT18: 786.898 | BU18: 820.033 | BV18: 993.249 | BW18: 1162.132 | BX18: 1146.085 | BY18: 1156.348 | BZ18: 1188.528 | CA18: 1146.938 | CB18: 1052.646 | CC18: 1062.926 | CD18: 987.041 | CE18: 1005.776 | CF18: 1110.664 | CG18: 1195.931 | CH18: 1440.752 | CI18: 1444.364 | CJ18: 1274.815 | CK18: 1298.055 | CL18: 1240.75 | CM18: 1290.856 | CN18: 1258.209 | CO18: 1353.054 | CP18: 1209.009 | CQ18: 1241.296 | CR18: 1363.396 | CS18: 1492.912 | CT18: 1694.282 | CU18: 1739.959 | CV18: 1521.155 | CW18: 1668.366 | CX18: 1703.836 | CY18: 1713.369 | CZ18: 1529.281 | DA18: 1560.788 | DB18: 1486.409 | DC18: 1509.525 | DD18: 1726.744 | DE18: 1696.815 | DF18: 1877.081 | DG18: 1935.169 | DH18: 1893.685 | DI18: 2093.126 | DJ18: 1995.118 | DK18: 2112.97 | DL18: 1963.846 | DM18: 1916.982 | DN18: 1758.697 | DO18: 1864.2 | DP18: 2095.735 | DQ18: 2272.375 | DR18: 2359.32 | DS18: 2281.125 | DT18: 2087.61 | DU18: 2224.895 | DV18: 2397.05 | DW18: 2247.973 | DX18: 2215.574 | DY18: 2134.354 | DZ18: 1941.982 | EA18: 1898.067 | EB18: 2183.652 | EC18: 2360.469 | ED18: 2667.78 | EE18: 2777.721 | EF18: 2583.982 | EG18: 2847.022 | EH18: 2638.617 | EI18: 2496.33 | EJ18: 2343.217 | EK18: 2346.555 | EL18: 2059.681 | EM18: 2404.26 | EN18: 2516.455 | EO18: 2749.792 | EP18: 2514.825 | EQ18: 2769.329 | ER18: 2782.593 | ES18: 3008.798 | ET18: 2845.49 | EU18: 3105.471 | EV18: 2718.444 | EW18: 2787.688 | EX18: 2533.537 | EY18: 2514.394 | EZ18: 3184.534 | FA18: 3423.852 | FB18: 3773.848 | FC18: 4052.093 | FD18: 3372.585 | FE18: 3459.536 | FF18: 3670.767 | FG18: 3473.281 | FH18: 3005.27 | FI18: 3066.107 | FJ18: 2651.728 | FK18: 3049.943 | FL18: 3635.44 | FM18: 3762.45 | FN18: 4201.009 | FO18: 4486.624 | FP18: 3606.45 | FQ18: 4061.165 | FR18: 4205.636 | FS18: 3686.183 | FT18: 3422.459 | FU18: 3372.517 | FV18: 3284.304 | FW18: 3324.778 | FX18: 4017.373 | FY18: 4064.281 | FZ18: 4336.518 | GA18: 4449.166 | GB18: 4141.766 | GC18: 4425.399 | GD18: 4594.518 | GE18: 4146.83 | GF18: 3645.307 | GG18: 3963.152 | GH18: 3795.199 | GI18: 3504.392 | GJ18: 4115.754 | GK18: 4372.404 | GL18: 4813.012 | GM18: 4136.986 | GN18: 4354.97 | GO18: 5600.159 | GP18: 4552.133 | GQ18: 4131.47 | GR18: 3571.546 | GS18: 3335.188 | GT18: 4185.728 | GU18: 3551.03 | GV18: 4704.855 | GW18: 4729.242 | GX18: 4780.034 | GY18: 4684.966 | GZ18: 5290.618 | HA18: 5686.107 | HB18: 3926.588 | HC18: 5176.805 | HD18: 4326.119 | HE18: 4435.131 | HF18: 4802.526 | HG18: 4421.267 | HH18: 4478.454 | HI18: 5300.027 | HJ18: 5019.518 | HK18: 5520.4 | HL18: 4766.069 | HM18: 6995.364 | HN18: 6511.815 | HO18: 4808.686 | HP18: 5157.997 | HQ18: 5180.399 | HR18: 4762.165 | HS18: 5049.59 | HT18: 5582.25 | HU18: 6728.332 | HV18: 6981.839 | HW18: 6939.896 | HX18: 6710.841 | HY18: 6830.338 | HZ18: 6728.423 | IA18: 6531.325 | IB18: 5964.921 | IC18: 6127.626 | ID18: 5449.731 | IE18: 5820.804 | IF18: 6651.63 | IG18: 8440.533 | IH18: 8615.231 | II18: 8230.343 | IJ18: 8244.09 | IK18: 8676.031 | IL18: 6730.89 | IM18: 7916.291 | IN18: 6725.187 | IO18: 6996.919 | IP18: 6482.136 | IQ18: 6075.379 | IR18: 7795.724 | IS18: 8240.193 | IT18: 8711.786 | IU18: 8190.326 | IV18: 8029.117 | IW18: 9183.45 | IX18: 7795.87 | IY18: 7575.805 | IZ18: 7264.061 | JA18: 7739.779 | JB18: 6592.286 | JC18: 6499.008 | JD18: 7255.615 | JE18: 7792.677 | JF18: 8741.652 | JG18: 7906.784 | JH18: 9335.717 | JI18: 8417.096 | JJ18: 9766.655 | JK18: 8731.301 | JL18: 8210.571 | JM18: 7967.745 | JN18: 7453.948 | JO18: 8277.45 | JP18: 7568.422 | JQ18: 8746.064 | JR18: 9915.906 | JS18: 10928.154 | JT18: 9838.258 | JU18: 10583.358 | JV18: 9472.751 | JW18: 9300.29 | JX18: 9062.709 | JY18: 8156.042 | JZ18: 7846.915 | KA18: 7676.938 | KB18: 8225.814 | KC18: 10668.998 | KD18: 9145.136 | KE18: - | KF18: - | KG18: - | KH18: - | KI18: - | KJ18: - | KK18: - | KL18: - | KM18: - | KN18: - | KO18: - | KP18: - | KQ18: - | KR18: - | KS18: - | KT18: - | KU18: - | KV18: - | KW18: - | KX18: - | KY18: - | KZ18: - | LA18: - | LB18: - | LC18: - | LD18: - | LE18: - | LF18: - | LG18: - | LH18: - | LI18: - | LJ18: - | LK18: - | LL18: - | LM18: - | LN18: - | LO18: - | LP18: - | LQ18: - | LR18: - | LS18: - | LT18: - | LU18: - | LV18: - | LW18: - | LX18: - | LY18: - | LZ18: - | MA18: - | MB18: - | MC18: - | MD18: - | ME18: - | MF18: - | MG18: - | MH18: - | MI18: - | MJ18: - | MK18: - | ML18: -
B19: Generación | C19: 13068.149 | D19: 10712.421 | E19: 11526.93 | F19: 10577.742 | G19: 10584.957 | H19: 10924.121 | I19: 11576.189 | J19: 10205.642 | K19: 10945.187 | L19: 11117.694 | M19: 11786.233 | N19: 12993.084 | O19: 13514.699 | P19: 12300.104 | Q19: 11755.675 | R19: 11287.505 | S19: 11439.316 | T19: 11005.69 | U19: 11985.769 | V19: 10503.418 | W19: 11479.372 | X19: 11793.967 | Y19: 12189.306 | Z19: 12628.902 | AA19: 14156.68 | AB19: 12984.095 | AC19: 12650.638 | AD19: 11288.931 | AE19: 11148.397 | AF19: 10639.672 | AG19: 12196.982 | AH19: 10732.736 | AI19: 11459.954 | AJ19: 11873.681 | AK19: 11696.458 | AL19: 12362.296 | AM19: 13140.405 | AN19: 11813.756 | AO19: 12465.811 | AP19: 11039.03 | AQ19: 11048.34 | AR19: 11073.045 | AS19: 11743.634 | AT19: 10934.771 | AU19: 11386.861 | AV19: 11939.681 | AW19: 12382.943 | AX19: 12858.574 | AY19: 13466.399 | AZ19: 12265.461 | BA19: 12065.963 | BB19: 11587.73 | BC19: 11675.844 | BD19: 11945.08 | BE19: 12785.071 | BF19: 11534.761 | BG19: 11819.752 | BH19: 11663.625 | BI19: 11974.652 | BJ19: 12946.662 | BK19: 13831.879 | BL19: 11863.992 | BM19: 13066.032 | BN19: 11607.471 | BO19: 12152.262 | BP19: 12204.221 | BQ19: 12851.4 | BR19: 11855.101 | BS19: 12021.493 | BT19: 12106.901 | BU19: 12398.128 | BV19: 13367.204 | BW19: 14632.869 | BX19: 13945.298 | BY19: 13471.495 | BZ19: 11789.805 | CA19: 12359.221 | CB19: 12561.457 | CC19: 13248.593 | CD19: 11954.5 | CE19: 12277.069 | CF19: 13045.433 | CG19: 13347.524 | CH19: 14037.838 | CI19: 15527.942 | CJ19: 12746.785 | CK19: 13176.474 | CL19: 13369.68 | CM19: 13595.045 | CN19: 13407.128 | CO19: 14362.291 | CP19: 13603.636 | CQ19: 13935.167 | CR19: 13886.026 | CS19: 14129.524 | CT19: 15455.874 | CU19: 15109.875 | CV19: 13490.18 | CW19: 14087.417 | CX19: 13538.297 | CY19: 13540.958 | CZ19: 13971.812 | DA19: 15202.645 | DB19: 13813.061 | DC19: 14383.621 | DD19: 14269.794 | DE19: 14631.217 | DF19: 16198.317 | DG19: 16393.576 | DH19: 14943.592 | DI19: 15171.591 | DJ19: 13533.998 | DK19: 14228.531 | DL19: 14665.97 | DM19: 15959.913 | DN19: 14400.724 | DO19: 15119.388 | DP19: 15000.137 | DQ19: 15946.373 | DR19: 16895.771 | DS19: 18017.434 | DT19: 15585.12 | DU19: 16304.346 | DV19: 15194.267 | DW19: 15498.644 | DX19: 16248.064 | DY19: 16637.701 | DZ19: 15672.647 | EA19: 15915.037 | EB19: 15880.278 | EC19: 16856.034 | ED19: 17647.404 | EE19: 18866.727 | EF19: 16777.413 | EG19: 17710.691 | EH19: 15284.262 | EI19: 16326.837 | EJ19: 16839.431 | EK19: 17514.252 | EL19: 16757.473 | EM19: 16576.55 | EN19: 16954.269 | EO19: 17739.712 | EP19: 18941.038 | EQ19: 19462.333 | ER19: 16854.197 | ES19: 17381.064 | ET19: 16757.015 | EU19: 17493.512 | EV19: 17815.729 | EW19: 18588.49 | EX19: 16916.016 | EY19: 17135.423 | EZ19: 17907.848 | FA19: 17931.371 | FB19: 18946.023 | FC19: 20760.522 | FD19: 19099.053 | FE19: 18638.847 | FF19: 17263.099 | FG19: 17888.825 | FH19: 18917.374 | FI19: 20237.305 | FJ19: 19058.73 | FK19: 18462.04 | FL19: 19062.332 | FM19: 19229.073 | FN19: 20636.55 | FO19: 21054.75 | FP19: 20055.497 | FQ19: 21160.099 | FR19: 19211.658 | FS19: 19216.088 | FT19: 20130.01 | FU19: 21300.503 | FV19: 19825.389 | FW19: 19739.351 | FX19: 19876.998 | FY19: 20615.838 | FZ19: 21424.022 | GA19: 22692.537 | GB19: 21115.352 | GC19: 21470.211 | GD19: 19432.025 | GE19: 19670.705 | GF19: 20959.041 | GG19: 22200.638 | GH19: 20168.889 | GI19: 20510.815 | GJ19: 20377.225 | GK19: 21805.76 | GL19: 23481.207 | GM19: 24399.52 | GN19: 22365.762 | GO19: 23141.828 | GP19: 18945.897 | GQ19: 20667.129 | GR19: 21482.522 | GS19: 23929.236 | GT19: 20940.143 | GU19: 21636.496 | GV19: 21226.624 | GW19: 21411.328 | GX19: 23455.365 | GY19: 24436.344 | GZ19: 21814.577 | HA19: 23193.162 | HB19: 20815.392 | HC19: 21756.008 | HD19: 21659.672 | HE19: 23475.06 | HF19: 21797.81 | HG19: 22091.448 | HH19: 22685.047 | HI19: 23948.772 | HJ19: 24945.221 | HK19: 25320.773 | HL19: 23621.496 | HM19: 23913.153 | HN19: 23007.167 | HO19: 21918.264 | HP19: 22418.225 | HQ19: 24401.398 | HR19: 22716.502 | HS19: 22244.034 | HT19: 22523.435 | HU19: 23406.497 | HV19: 24556.807 | HW19: 25160.519 | HX19: 21751.801 | HY19: 21400.016 | HZ19: 20032.678 | IA19: 20326.695 | IB19: 21533.944 | IC19: 23610.472 | ID19: 22211.13 | IE19: 21366.215 | IF19: 21550.293 | IG19: 21938.98 | IH19: 23657.672 | II19: 24812.23695 | IJ19: 22971.82612 | IK19: 23920.34355 | IL19: 20967.04865 | IM19: 21245.38048 | IN19: 21489.92774 | IO19: 24344.8541 | IP19: 22445.84958 | IQ19: 21899.86731 | IR19: 22140.17422 | IS19: 22927.36264 | IT19: 24152.54039 | IU19: 24710.12401 | IV19: 22054.46039 | IW19: 23847.58383 | IX19: 20625.83652 | IY19: 20738.5665 | IZ19: 21285.12707 | JA19: 22641.27606 | JB19: 21967.06692 | JC19: 21745.58356 | JD19: 21022.20336 | JE19: 21519.59323 | JF19: 22745.54641 | JG19: 24067.30993 | JH19: 24793.077 | JI19: 22663.23593 | JJ19: 21290.33939 | JK19: 21518.23028 | JL19: 21735.35861 | JM19: 22622.54418 | JN19: 22527.8001 | JO19: 21370.04322 | JP19: 21641.27833 | JQ19: 21532.29493 | JR19: 23045.46098 | JS19: 23724.10023 | JT19: 21845.15633 | JU19: 22785.27999 | JV19: 20870.71344 | JW19: 20115.58275 | JX19: 19999.86682 | JY19: 23100.18491 | JZ19: 21514.79412 | KA19: 20853.56622 | KB19: 20874.06582 | KC19: 21807.968 | KD19: 22835.61798 | KE19: 22982.07096 | KF19: 21582.60314 | KG19: 21758.09447 | KH19: 20006.76017 | KI19: 20255.56336 | KJ19: 20336.11906 | KK19: 21997.30701 | KL19: 20794.00211 | KM19: 20960.88534 | KN19: 20499.42981 | KO19: 20187.982 | KP19: 22216.99 | KQ19: 23543.71131 | KR19: 22227.60574 | KS19: 22159.99882 | KT19: 19640.60416 | KU19: 20140.06915 | KV19: 20653.93199 | KW19: 24003.06074 | KX19: 21603.8965 | KY19: 20125.94462 | KZ19: 19765.07367 | LA19: 19935.46017 | LB19: 20587.99262 | LC19: 21608.57216 | LD19: 20694.94011 | LE19: 22003.62591 | LF19: 20708.25168 | LG19: 19549.98775 | LH19: 19499.46729 | LI19: 21603.32124 | LJ19: 20739.45357 | LK19: 19945.96828 | LL19: 20606.23991 | LM19: 20717.24251 | LN19: 20824.60101 | LO19: 24171.45494 | LP19: 19995.25303 | LQ19: 20084.1635 | LR19: 18184.90965 | LS19: 19100.85949 | LT19: 20886.55303 | LU19: 21455.8495 | LV19: 20352.3433 | LW19: 19103.02232 | LX19: 20286.10627 | LY19: 21636.34588 | LZ19: 23167.46248 | MA19: 21758.58422 | MB19: 20782.93645 | MC19: 23222.8248 | MD19: - | ME19: - | MF19: - | MG19: - | MH19: - | MI19: - | MJ19: - | MK19: - | ML19: -
B20: Consumos en bombeo | C20: -230.679 | D20: -122.288 | E20: -14.289 | F20: -28.145 | G20: -43.486 | H20: -13.114 | I20: -22.104 | J20: -49.978 | K20: -160.713 | L20: -155.501 | M20: -44.507 | N20: -154.468 | O20: -268.908 | P20: -218.383 | Q20: -171.686 | R20: -12.201 | S20: -15.629 | T20: -41.384 | U20: -57.712 | V20: -72.09 | W20: -112.773 | X20: -80.879 | Y20: -188.527 | Z20: -192.561 | AA20: -261.992 | AB20: -144.315 | AC20: -170.44 | AD20: -297.593 | AE20: -198.615 | AF20: -246.854 | AG20: -277.393 | AH20: -274.778 | AI20: -274.414 | AJ20: -292.157 | AK20: -181.749 | AL20: -170.405 | AM20: -138.741 | AN20: -112.689 | AO20: -188.994 | AP20: -202.544 | AQ20: -227.069 | AR20: -134.422 | AS20: -139.846 | AT20: -190.283 | AU20: -202.364 | AV20: -190.647 | AW20: -85.039 | AX20: -74.921 | AY20: -304.076 | AZ20: -125.633 | BA20: -16.009 | BB20: -34.589 | BC20: -53.005 | BD20: -40 | BE20: -112.842 | BF20: -29.006 | BG20: -168.634 | BH20: -188.043 | BI20: -112.602 | BJ20: -160.95 | BK20: -229.933 | BL20: -151.828 | BM20: -149.914 | BN20: -139.099 | BO20: -126.803 | BP20: -126.251 | BQ20: -163.945 | BR20: -157.261 | BS20: -174.299 | BT20: -178.249 | BU20: -166.69 | BV20: -317.454 | BW20: -761.345 | BX20: -190.414 | BY20: -30.027 | BZ20: -33.853 | CA20: -44.028 | CB20: -72.871 | CC20: -66.354 | CD20: -12.074 | CE20: -23.203 | CF20: -39.189 | CG20: -69.679 | CH20: -179.581 | CI20: -252.936 | CJ20: -37.278 | CK20: -12.262 | CL20: -21.497 | CM20: -81.886 | CN20: -85.457 | CO20: -118.164 | CP20: -176.339 | CQ20: -190.051 | CR20: -144.696 | CS20: -266.061 | CT20: -374.262 | CU20: -277.155 | CV20: -134.838 | CW20: -111.211 | CX20: -214.861 | CY20: -181.761 | CZ20: -114.558 | DA20: -203.373 | DB20: -319.925 | DC20: -193.376 | DD20: -171.723 | DE20: -213.786 | DF20: -451.187 | DG20: -468.772 | DH20: -342.761 | DI20: -234.381 | DJ20: -215.759 | DK20: -219.826 | DL20: -177.636 | DM20: -214.518 | DN20: -260.838 | DO20: -340.931 | DP20: -489.764 | DQ20: -316.026 | DR20: -385.168 | DS20: -368.592 | DT20: -313.254 | DU20: -345.672 | DV20: -513.572 | DW20: -617.926 | DX20: -330.215 | DY20: -323.442 | DZ20: -246.341 | EA20: -256.832 | EB20: -362.529 | EC20: -451.677 | ED20: -776.834 | EE20: -539.073 | EF20: -307.359 | EG20: -387.497 | EH20: -200.959 | EI20: -214.621 | EJ20: -258.663 | EK20: -303.011 | EL20: -291.532 | EM20: -368.749 | EN20: -364.099 | EO20: -336.146 | EP20: -559.555 | EQ20: -652.852 | ER20: -506.242 | ES20: -466.289 | ET20: -443.393 | EU20: -559.457 | EV20: -628.458 | EW20: -699.813 | EX20: -572.272 | EY20: -597.974 | EZ20: -575.567 | FA20: -570.422 | FB20: -683.943 | FC20: -587.335 | FD20: -379.733 | FE20: -368.65 | FF20: -218.7 | FG20: -265.991 | FH20: -415.715 | FI20: -419.844 | FJ20: -472.319 | FK20: -437.025 | FL20: -390.301 | FM20: -322.124 | FN20: -400.397 | FO20: -404.817 | FP20: -276.12 | FQ20: -339.003 | FR20: -328.995 | FS20: -393.378 | FT20: -425.607 | FU20: -408.312 | FV20: -386.442 | FW20: -387.786 | FX20: -411.484 | FY20: -358.575 | FZ20: -484.188 | GA20: -553.09 | GB20: -432.938 | GC20: -492.587 | GD20: -450.62 | GE20: -643.068 | GF20: -634.527 | GG20: -693.313 | GH20: -446.08 | GI20: -519.718 | GJ20: -482.776 | GK20: -454.591 | GL20: -553.639 | GM20: -586.441 | GN20: -529.919 | GO20: -374.921 | GP20: -305.801 | GQ20: -313.703 | GR20: -370.081 | GS20: -513.356 | GT20: -400.354 | GU20: -486.573 | GV20: -541.523 | GW20: -541.572 | GX20: -384.129 | GY20: -371.776 | GZ20: -395.879 | HA20: -384.168 | HB20: -293.397 | HC20: -397.622 | HD20: -356.254 | HE20: -333.521 | HF20: -371.382 | HG20: -345.925 | HH20: -317.001 | HI20: -384.155 | HJ20: -481.207 | HK20: -430.836 | HL20: -419.305 | HM20: -401.794 | HN20: -219.058 | HO20: -206.073 | HP20: -285.255 | HQ20: -253.782 | HR20: -190.802 | HS20: -226.556 | HT20: -297.145 | HU20: -411.256 | HV20: -460.64 | HW20: -492.227 | HX20: -392.035 | HY20: -281.472 | HZ20: -255.759 | IA20: -247.498 | IB20: -224.594 | IC20: -241.018 | ID20: -245.006 | IE20: -254.493 | IF20: -284.123 | IG20: -397.501 | IH20: -478.463 | II20: -756.585481 | IJ20: -554.722222 | IK20: -544.664418 | IL20: -303.160599 | IM20: -279.949192 | IN20: -230.155124 | IO20: -199.16813 | IP20: -231.143955 | IQ20: -233.695669 | IR20: -346.115985 | IS20: -322.223669 | IT20: -456.198133 | IU20: -430.919188 | IV20: -280.664786 | IW20: -347.705771 | IX20: -297.009922 | IY20: -158.925102 | IZ20: -139.951524 | JA20: -173.534306 | JB20: -181.064397 | JC20: -176.063418 | JD20: -301.625919 | JE20: -325.480608 | JF20: -402.014874 | JG20: -448.910674 | JH20: -444.122642 | JI20: -429.066476 | JJ20: -565.841943 | JK20: -360.20399 | JL20: -322.063238 | JM20: -285.671228 | JN20: -365.726053 | JO20: -454.578665 | JP20: -397.034219 | JQ20: -403.311929 | JR20: -546.016731 | JS20: -697.63725 | JT20: -562.656986 | JU20: -1052.422988 | JV20: -872.861874 | JW20: -452.792659 | JX20: -384.579999 | JY20: -256.578637 | JZ20: -231.782928 | KA20: -211.570285 | KB20: -305.596187 | KC20: -348.255885 | KD20: -581.109312 | KE20: -858.014017 | KF20: -633.188315 | KG20: -524.051324 | KH20: -508.09411 | KI20: -434.991199 | KJ20: -325.471928 | KK20: -239.806214 | KL20: -218.068423 | KM20: -215.907819 | KN20: -408.39205 | KO20: -518.487421 | KP20: -445.117231 | KQ20: -479.606489 | KR20: -543.863983 | KS20: -478.82839 | KT20: -406.195685 | KU20: -422.735 | KV20: -154.357195 | KW20: -167.860691 | KX20: -301.471337 | KY20: -245.095511 | KZ20: -374.451597 | LA20: -436.893245 | LB20: -508.735056 | LC20: -897.237227 | LD20: -716.427677 | LE20: -590.255871 | LF20: -584.078535 | LG20: -474.71409 | LH20: -210.517944 | LI20: -141.613625 | LJ20: -157.408583 | LK20: -122.319526 | LL20: -229.380497 | LM20: -352.86669 | LN20: -342.59281 | LO20: -433.831684 | LP20: -560.187406 | LQ20: -335.177776 | LR20: -335.537382 | LS20: -229.065222 | LT20: -192.291352 | LU20: -173.373162 | LV20: -204.270999 | LW20: -165.548557 | LX20: -221.480293 | LY20: -269.553415 | LZ20: -554.920656 | MA20: -390.733979 | MB20: -253.253662 | MC20: -728.7519 | MD20: - | ME20: - | MF20: - | MG20: - | MH20: - | MI20: - | MJ20: - | MK20: - | ML20: -
B21: Enlace Península-Baleares | C21: - | D21: - | E21: - | F21: - | G21: - | H21: - | I21: - | J21: - | K21: - | L21: - | M21: - | N21: - | O21: - | P21: - | Q21: - | R21: - | S21: - | T21: - | U21: - | V21: - | W21: - | X21: - | Y21: - | Z21: - | AA21: - | AB21: - | AC21: - | AD21: - | AE21: - | AF21: - | AG21: - | AH21: - | AI21: - | AJ21: - | AK21: - | AL21: - | AM21: - | AN21: - | AO21: - | AP21: - | AQ21: - | AR21: - | AS21: - | AT21: - | AU21: - | AV21: - | AW21: - | AX21: - | AY21: - | AZ21: - | BA21: - | BB21: - | BC21: - | BD21: - | BE21: - | BF21: - | BG21: - | BH21: - | BI21: - | BJ21: - | BK21: - | BL21: - | BM21: - | BN21: - | BO21: - | BP21: - | BQ21: - | BR21: - | BS21: - | BT21: - | BU21: - | BV21: - | BW21: - | BX21: - | BY21: - | BZ21: - | CA21: - | CB21: - | CC21: - | CD21: - | CE21: - | CF21: - | CG21: - | CH21: - | CI21: - | CJ21: - | CK21: - | CL21: - | CM21: - | CN21: - | CO21: - | CP21: - | CQ21: - | CR21: - | CS21: - | CT21: - | CU21: - | CV21: - | CW21: - | CX21: - | CY21: - | CZ21: - | DA21: - | DB21: - | DC21: - | DD21: - | DE21: - | DF21: - | DG21: - | DH21: - | DI21: - | DJ21: - | DK21: - | DL21: - | DM21: - | DN21: - | DO21: - | DP21: - | DQ21: - | DR21: - | DS21: - | DT21: - | DU21: - | DV21: - | DW21: - | DX21: - | DY21: - | DZ21: - | EA21: - | EB21: - | EC21: - | ED21: - | EE21: - | EF21: - | EG21: - | EH21: - | EI21: - | EJ21: - | EK21: - | EL21: - | EM21: - | EN21: - | EO21: - | EP21: - | EQ21: - | ER21: - | ES21: - | ET21: - | EU21: - | EV21: - | EW21: - | EX21: - | EY21: - | EZ21: - | FA21: - | FB21: - | FC21: - | FD21: - | FE21: - | FF21: - | FG21: - | FH21: - | FI21: - | FJ21: - | FK21: - | FL21: - | FM21: - | FN21: - | FO21: - | FP21: - | FQ21: - | FR21: - | FS21: - | FT21: - | FU21: - | FV21: - | FW21: - | FX21: - | FY21: - | FZ21: - | GA21: - | GB21: - | GC21: - | GD21: - | GE21: - | GF21: - | GG21: - | GH21: - | GI21: - | GJ21: - | GK21: - | GL21: - | GM21: - | GN21: - | GO21: - | GP21: - | GQ21: - | GR21: - | GS21: - | GT21: - | GU21: - | GV21: - | GW21: - | GX21: - | GY21: - | GZ21: - | HA21: - | HB21: - | HC21: - | HD21: - | HE21: - | HF21: - | HG21: - | HH21: - | HI21: - | HJ21: - | HK21: - | HL21: - | HM21: - | HN21: - | HO21: - | HP21: - | HQ21: - | HR21: - | HS21: - | HT21: - | HU21: - | HV21: - | HW21: - | HX21: - | HY21: - | HZ21: - | IA21: - | IB21: - | IC21: - | ID21: - | IE21: - | IF21: - | IG21: - | IH21: - | II21: 0 | IJ21: 0 | IK21: 0 | IL21: 0 | IM21: 0 | IN21: 0 | IO21: 0 | IP21: 0 | IQ21: 0 | IR21: 0 | IS21: 0 | IT21: 0 | IU21: 0 | IV21: 0 | IW21: 0 | IX21: 0 | IY21: 0 | IZ21: 0 | JA21: 0 | JB21: 0 | JC21: 0 | JD21: 0 | JE21: 0.043891 | JF21: -0.5203 | JG21: -2.681381 | JH21: -25.375897 | JI21: -36.694079 | JJ21: -35.112659 | JK21: -27.254534 | JL21: -35.803857 | JM21: -36.379672 | JN21: -68.014382 | JO21: -74.016633 | JP21: -70.230888 | JQ21: -67.437619 | JR21: -91.247602 | JS21: -108.822873 | JT21: -90.838239 | JU21: -84.296937 | JV21: -88.234445 | JW21: -83.693952 | JX21: -112.811098 | JY21: -145.595967 | JZ21: -157.387881 | KA21: -113.878526 | KB21: -108.856743 | KC21: -86.13635 | KD21: -87.955589 | KE21: -98.644522 | KF21: -86.919696 | KG21: -88.247651 | KH21: -80.403574 | KI21: -85.675402 | KJ21: -124.876598 | KK21: -153.194 | KL21: -165.073 | KM21: -146.829629 | KN21: -101.059 | KO21: -79.551937 | KP21: -87.789395 | KQ21: -110.897596 | KR21: -111.884631 | KS21: -100.736395 | KT21: -87.606187 | KU21: -65.672035 | KV21: -123.287107 | KW21: -181.060099 | KX21: -170.384126 | KY21: -119.555349 | KZ21: -99.372747 | LA21: -71.777664 | LB21: -93.548866 | LC21: -89.213443 | LD21: -91.217189 | LE21: -111.467448 | LF21: -86.955768 | LG21: -105.354345 | LH21: -124.743759 | LI21: -144.841694 | LJ21: -152.53868 | LK21: -109.260447 | LL21: -90.882304 | LM21: -58.978757 | LN21: -85.128667 | LO21: -96.651403 | LP21: -64.562012 | LQ21: -78.352012 | LR21: -57.068237 | LS21: -75.027427 | LT21: -114.233415 | LU21: -155.211459 | LV21: -166.876245 | LW21: -116.104623 | LX21: -93.285021 | LY21: -70.161934 | LZ21: -91.766865 | MA21: -86.203829 | MB21: -99.993399 | MC21: -90.1067 | MD21: - | ME21: - | MF21: - | MG21: - | MH21: - | MI21: - | MJ21: - | MK21: - | ML21: -
B22: Saldo intercambios internacionales | C22: -269.297 | D22: 16.551 | E22: -11.987 | F22: -20.997 | G22: 159.398 | H22: 0.442 | I22: -28.161 | J22: -32.036 | K22: 14.863 | L22: -21.733 | M22: -139.47 | N22: -87.152 | O22: -24.533 | P22: 22.889 | Q22: -122.07 | R22: -226.919 | S22: -191.566 | T22: -45.839 | U22: -92.112 | V22: 27.849 | W22: -99.836 | X22: -14.272 | Y22: 56.174 | Z22: 33.649 | AA22: -96.052 | AB22: -312.209 | AC22: -213.216 | AD22: 188.663 | AE22: 271.98 | AF22: 371.259 | AG22: 87.992 | AH22: 216.896 | AI22: 131.307 | AJ22: -16.239 | AK22: 8.023 | AL22: 2.72 | AM22: 95.905 | AN22: 222.438 | AO22: 184.267 | AP22: 48.24 | AQ22: 224.115 | AR22: 217.795 | AS22: 282.58 | AT22: 18.098 | AU22: -4.785 | AV22: -0.854 | AW22: -0.365 | AX22: -20.362 | AY22: -20.455 | AZ22: 19.067 | BA22: 44.103 | BB22: 42.116 | BC22: 71.338 | BD22: 56.383 | BE22: 128.051 | BF22: 134.206 | BG22: 271.501 | BH22: 383.184 | BI22: 371.482 | BJ22: 354.129 | BK22: 382.278 | BL22: 376.395 | BM22: 379.125 | BN22: 353.886 | BO22: 378.616 | BP22: 369.635 | BQ22: 406.479 | BR22: 389.687 | BS22: 389.569 | BT22: 434.896 | BU22: 380.024 | BV22: 248.455 | BW22: -23.15 | BX22: -228.839 | BY22: 95.809 | BZ22: 234.45 | CA22: 175.223 | CB22: 297.359 | CC22: 337.605 | CD22: 288.542 | CE22: 53.531 | CF22: -123.297 | CG22: -16.169 | CH22: -31.698 | CI22: -483.959 | CJ22: -204.565 | CK22: -220.011 | CL22: -410.142 | CM22: -439.194 | CN22: -268.21 | CO22: -397.761 | CP22: -455.005 | CQ22: -103.389 | CR22: 13.219 | CS22: 65.416 | CT22: -169.271 | CU22: 339.841 | CV22: 345.961 | CW22: 404.92 | CX22: 388.819 | CY22: 355.114 | CZ22: 244.862 | DA22: 284.57 | DB22: 320.095 | DC22: -25.49 | DD22: 206.148 | DE22: 283.522 | DF22: 253.502 | DG22: 244.117 | DH22: 366.794 | DI22: 462.856 | DJ22: 712.678 | DK22: 628.458 | DL22: 570.858 | DM22: 515.622 | DN22: 504.84 | DO22: 210.995 | DP22: 438.75 | DQ22: 625.315 | DR22: 437.962 | DS22: 196.386 | DT22: 415.9 | DU22: 422.249 | DV22: 519.17 | DW22: 683.538 | DX22: 173.875 | DY22: 258.827 | DZ22: 208.528 | EA22: 340.728 | EB22: 443.806 | EC22: 516.198 | ED22: 261.39 | EE22: -38.209 | EF22: 21.673 | EG22: -83.964 | EH22: 447.062 | EI22: 578.603 | EJ22: 504.504 | EK22: 431.037 | EL22: 282.045 | EM22: 283.086 | EN22: 139.702 | EO22: 402.852 | EP22: 489.569 | EQ22: 532.016 | ER22: 648.786 | ES22: 721.604 | ET22: 705.349 | EU22: 259.038 | EV22: 187.01 | EW22: 575.936 | EX22: 236.118 | EY22: 428.063 | EZ22: 298.139 | FA22: 490.714 | FB22: 245.995 | FC22: 26.416 | FD22: 50.988 | FE22: 247.018 | FF22: -36.927 | FG22: 134.057 | FH22: 409.345 | FI22: 237.348 | FJ22: 123.487 | FK22: 160.179 | FL22: 55.116 | FM22: -24.058 | FN22: -119.067 | FO22: -318.326 | FP22: -299.787 | FQ22: -234.032 | FR22: -621.22 | FS22: -303.664 | FT22: -321.336 | FU22: -241.462 | FV22: -454.689 | FW22: -53.952 | FX22: -330.99 | FY22: -45.66 | FZ22: 198.1 | GA22: 295.549 | GB22: 299.658 | GC22: 51.223 | GD22: 68.78 | GE22: 176.042 | GF22: 176.29 | GG22: 31.582 | GH22: -174.634 | GI22: -495.369 | GJ22: -662.588 | GK22: -689.605 | GL22: -420.322 | GM22: -365.174 | GN22: -583.775 | GO22: -799.06 | GP22: 41.878 | GQ22: 18.828 | GR22: -262.107 | GS22: -377.879 | GT22: 63.245 | GU22: -310.535 | GV22: -236.933 | GW22: -285.297 | GX22: -175.709 | GY22: 94.565 | GZ22: -235.492 | HA22: -243.362 | HB22: -261.054 | HC22: -494.788 | HD22: -223.463 | HE22: -289.778 | HF22: -314.014 | HG22: -846.576 | HH22: -1153.772 | HI22: -1052.93 | HJ22: -729.801 | HK22: -456.804 | HL22: -655.587 | HM22: -1199.348 | HN22: -1291.615 | HO22: -761.275 | HP22: -1052.342 | HQ22: -907.813 | HR22: -796.073 | HS22: -935.81 | HT22: -1102.016 | HU22: -948.447 | HV22: -932.456 | HW22: -897.628 | HX22: -474.277 | HY22: -192.952 | HZ22: -548.934 | IA22: -437.376 | IB22: -769.161 | IC22: -944.909 | ID22: -817.417 | IE22: -711.168 | IF22: -941.365 | IG22: -897.212 | IH22: -454.015 | II22: -304.713446 | IJ22: -506.196753 | IK22: -560.114046 | IL22: -729.095102 | IM22: -542.815029 | IN22: -821.225751 | IO22: -1000.653567 | IP22: -758.601057 | IQ22: -964.255452 | IR22: -1295.509887 | IS22: -593.210574 | IT22: -256.288394 | IU22: -611.335805 | IV22: -358.842359 | IW22: -762.636009 | IX22: -1074.811317 | IY22: -233.6238 | IZ22: -404.767187 | JA22: -470.93457 | JB22: -197.100881 | JC22: -548.756858 | JD22: -381.584261 | JE22: -579.516633 | JF22: -466.216654 | JG22: -525.290936 | JH22: -1375.793221 | JI22: -869.96907 | JJ22: -1211.919782 | JK22: -939.840381 | JL22: -625.329352 | JM22: -629.525456 | JN22: -646.209749 | JO22: -1047.302604 | JP22: -1457.208903 | JQ22: -791.406931 | JR22: -1080.157206 | JS22: -364.452211 | JT22: -642.393978 | JU22: -430.417258 | JV22: -411.182201 | JW22: -132.055593 | JX22: -358.69515 | JY22: -1060.431631 | JZ22: -517.674522 | KA22: -821.873088 | KB22: -679.119191 | KC22: -892.911319 | KD22: -420.926308 | KE22: 28.099829 | KF22: -490.540624 | KG22: -225.946703 | KH22: -652.232276 | KI22: -256.411483 | KJ22: -285.581113 | KK22: -481.720248 | KL22: -236.69277 | KM22: -336.25484 | KN22: -303.549761 | KO22: 195.372657 | KP22: -360.667597 | KQ22: -259.102957 | KR22: -558.855046 | KS22: -396.756779 | KT22: -295.550736 | KU22: 180.77279 | KV22: 0.889155 | KW22: -184.17543 | KX22: -251.793361 | KY22: -169.941732 | KZ22: 436.527912 | LA22: 453.108449 | LB22: 911.71451 | LC22: 847.590265 | LD22: 960.575773 | LE22: 174.926621 | LF22: -106.684112 | LG22: 762.502365 | LH22: 1083.269212 | LI22: 917.731142 | LJ22: 1034.656114 | LK22: 1130.590642 | LL22: -433.777858 | LM22: 357.211215 | LN22: 938.722174 | LO22: -531.549298 | LP22: 541.133687 | LQ22: 1457.080766 | LR22: 1040.959484 | LS22: 1444.9856 | LT22: 1128.858883 | LU22: 1273.443396 | LV22: 1827.910942 | LW22: 1393.308422 | LX22: 280.228418 | LY22: -346.27278 | LZ22: -339.503877 | MA22: 1340.296642 | MB22: 857.102993 | MC22: -292.8016 | MD22: - | ME22: - | MF22: - | MG22: - | MH22: - | MI22: - | MJ22: - | MK22: - | ML22: -
B23: Demanda transporte (b.c.) | C23: 12568.173 | D23: 10606.684 | E23: 11500.654 | F23: 10528.6 | G23: 10700.869 | H23: 10911.449 | I23: 11525.924 | J23: 10123.628 | K23: 10799.337 | L23: 10940.46 | M23: 11602.256 | N23: 12751.464 | O23: 13221.258 | P23: 12104.61 | Q23: 11461.919 | R23: 11048.385 | S23: 11232.121 | T23: 10918.467 | U23: 11835.945 | V23: 10459.177 | W23: 11266.763 | X23: 11698.816 | Y23: 12056.953 | Z23: 12469.99 | AA23: 13798.636 | AB23: 12527.571 | AC23: 12266.982 | AD23: 11180.001 | AE23: 11221.762 | AF23: 10764.077 | AG23: 12007.581 | AH23: 10674.854 | AI23: 11316.847 | AJ23: 11565.285 | AK23: 11522.732 | AL23: 12194.611 | AM23: 13097.569 | AN23: 11923.505 | AO23: 12461.084 | AP23: 10884.726 | AQ23: 11045.386 | AR23: 11156.418 | AS23: 11886.368 | AT23: 10762.586 | AU23: 11179.712 | AV23: 11748.18 | AW23: 12297.539 | AX23: 12763.291 | AY23: 13141.868 | AZ23: 12158.895 | BA23: 12094.057 | BB23: 11595.257 | BC23: 11694.177 | BD23: 11961.463 | BE23: 12800.28 | BF23: 11639.961 | BG23: 11922.619 | BH23: 11858.766 | BI23: 12233.532 | BJ23: 13139.841 | BK23: 13984.224 | BL23: 12088.559 | BM23: 13295.243 | BN23: 11822.258 | BO23: 12404.075 | BP23: 12447.605 | BQ23: 13093.934 | BR23: 12087.527 | BS23: 12236.763 | BT23: 12363.548 | BU23: 12611.462 | BV23: 13298.205 | BW23: 13848.374 | BX23: 13526.045 | BY23: 13537.277 | BZ23: 11990.402 | CA23: 12490.416 | CB23: 12785.945 | CC23: 13519.844 | CD23: 12230.968 | CE23: 12307.397 | CF23: 12882.947 | CG23: 13261.676 | CH23: 13826.559 | CI23: 14791.047 | CJ23: 12504.942 | CK23: 12944.201 | CL23: 12938.041 | CM23: 13073.965 | CN23: 13053.461 | CO23: 13846.366 | CP23: 12972.292 | CQ23: 13641.727 | CR23: 13754.549 | CS23: 13928.879 | CT23: 14912.341 | CU23: 15172.561 | CV23: 13701.303 | CW23: 14381.126 | CX23: 13712.255 | CY23: 13714.311 | CZ23: 14102.116 | DA23: 15283.842 | DB23: 13813.231 | DC23: 14164.755 | DD23: 14304.219 | DE23: 14700.953 | DF23: 16000.632 | DG23: 16168.921 | DH23: 14967.625 | DI23: 15400.066 | DJ23: 14030.917 | DK23: 14637.163 | DL23: 15059.192 | DM23: 16261.017 | DN23: 14644.726 | DO23: 14989.452 | DP23: 14949.123 | DQ23: 16255.662 | DR23: 16948.565 | DS23: 17845.228 | DT23: 15687.766 | DU23: 16380.923 | DV23: 15199.865 | DW23: 15564.256 | DX23: 16091.724 | DY23: 16573.086 | DZ23: 15634.834 | EA23: 15998.933 | EB23: 15961.555 | EC23: 16920.555 | ED23: 17131.96 | EE23: 18289.445 | EF23: 16491.727 | EG23: 17239.23 | EH23: 15530.365 | EI23: 16690.819 | EJ23: 17085.272 | EK23: 17642.278 | EL23: 16747.986 | EM23: 16490.887 | EN23: 16729.872 | EO23: 17806.418 | EP23: 18871.052 | EQ23: 19341.497 | ER23: 16996.741 | ES23: 17636.379 | ET23: 17018.971 | EU23: 17193.093 | EV23: 17374.281 | EW23: 18464.613 | EX23: 16579.862 | EY23: 16965.512 | EZ23: 17630.42 | FA23: 17851.663 | FB23: 18508.075 | FC23: 20199.603 | FD23: 18770.308 | FE23: 18517.215 | FF23: 17007.472 | FG23: 17756.891 | FH23: 18911.004 | FI23: 20054.809 | FJ23: 18709.898 | FK23: 18185.194 | FL23: 18727.147 | FM23: 18882.891 | FN23: 20117.086 | FO23: 20331.607 | FP23: 19479.59 | FQ23: 20587.064 | FR23: 18261.443 | FS23: 18519.046 | FT23: 19383.067 | FU23: 20650.729 | FV23: 18984.258 | FW23: 19297.613 | FX23: 19134.524 | FY23: 20211.603 | FZ23: 21137.934 | GA23: 22434.996 | GB23: 20982.072 | GC23: 21028.847 | GD23: 19050.185 | GE23: 19203.679 | GF23: 20500.804 | GG23: 21538.907 | GH23: 19548.175 | GI23: 19495.728 | GJ23: 19231.861 | GK23: 20661.564 | GL23: 22507.246 | GM23: 23447.905 | GN23: 21252.068 | GO23: 21967.847 | GP23: 18681.974 | GQ23: 20372.254 | GR23: 20850.334 | GS23: 23038.001 | GT23: 20603.034 | GU23: 20839.388 | GV23: 20448.168 | GW23: 20584.459 | GX23: 22895.527 | GY23: 24159.133 | GZ23: 21183.206 | HA23: 22565.632 | HB23: 20260.941 | HC23: 20863.598 | HD23: 21079.955 | HE23: 22851.761 | HF23: 21112.414 | HG23: 20898.947 | HH23: 21214.274 | HI23: 22511.687 | HJ23: 23734.213 | HK23: 24433.133 | HL23: 22546.604 | HM23: 22312.011 | HN23: 21496.494 | HO23: 20950.916 | HP23: 21080.628 | HQ23: 23239.803 | HR23: 21729.627 | HS23: 21081.668 | HT23: 21124.274 | HU23: 22046.794 | HV23: 23163.711 | HW23: 23770.664 | HX23: 20885.489 | HY23: 20925.592 | HZ23: 19227.985 | IA23: 19641.821 | IB23: 20540.189 | IC23: 22424.545 | ID23: 21148.707 | IE23: 20400.554 | IF23: 20324.805 | IG23: 20644.267 | IH23: 22725.194 | II23: 23750.93802 | IJ23: 21910.90714 | IK23: 22815.56508 | IL23: 19934.79295 | IM23: 20422.61626 | IN23: 20438.54686 | IO23: 23145.0324 | IP23: 21456.10457 | IQ23: 20701.91619 | IR23: 20498.54835 | IS23: 22011.92839 | IT23: 23440.05386 | IU23: 23667.86902 | IV23: 21414.95324 | IW23: 22737.24205 | IX23: 19254.01528 | IY23: 20346.0176 | IZ23: 20740.40836 | JA23: 21996.80718 | JB23: 21588.90165 | JC23: 21020.76328 | JD23: 20338.99318 | JE23: 20614.63988 | JF23: 21876.79458 | JG23: 23090.42694 | JH23: 22947.78524 | JI23: 21327.50631 | JJ23: 19477.46501 | JK23: 20190.93137 | JL23: 20752.16216 | JM23: 21670.96782 | JN23: 21447.84991 | JO23: 19794.14532 | JP23: 19716.80432 | JQ23: 20270.13845 | JR23: 21328.03944 | JS23: 22553.1879 | JT23: 20549.26712 | JU23: 21218.1428 | JV23: 19498.43492 | JW23: 19447.04055 | JX23: 19143.78058 | JY23: 21637.57868 | JZ23: 20607.94879 | KA23: 19706.24432 | KB23: 19780.4937 | KC23: 20480.66445 | KD23: 21745.62677 | KE23: 22053.51225 | KF23: 20371.9545 | KG23: 20919.84879 | KH23: 18766.03021 | KI23: 19478.48528 | KJ23: 19600.18943 | KK23: 21122.58655 | KL23: 20174.16792 | KM23: 20261.89305 | KN23: 19686.429 | KO23: 19785.3153 | KP23: 21323.41578 | KQ23: 22694.10427 | KR23: 21013.00208 | KS23: 21183.67726 | KT23: 18851.25155 | KU23: 19832.43491 | KV23: 20377.17684 | KW23: 23469.96452 | KX23: 20880.24767 | KY23: 19591.35203 | KZ23: 19727.77724 | LA23: 19879.89771 | LB23: 20897.42321 | LC23: 21469.71176 | LD23: 20847.87102 | LE23: 21476.82921 | LF23: 19930.53326 | LG23: 19732.42168 | LH23: 20247.4748 | LI23: 22234.59706 | LJ23: 21464.16242 | LK23: 20844.97895 | LL23: 19852.19926 | LM23: 20662.60828 | LN23: 21335.60171 | LO23: 23109.42256 | LP23: 19911.6373 | LQ23: 21127.71448 | LR23: 18833.26352 | LS23: 20241.75244 | LT23: 21708.88715 | LU23: 22400.70828 | LV23: 21809.10699 | LW23: 20214.67756 | LX23: 20251.56937 | LY23: 20950.35775 | LZ23: 22181.27108 | MA23: 22621.94305 | MB23: 21286.79238 | MC23: 22111.1646 | MD23: - | ME23: - | MF23: - | MG23: - | MH23: - | MI23: - | MJ23: - | MK23: - | ML23: -
B25: Balance eléctrico mensual Islas Baleares (MWh) | C25: 2006-01-01 | D25: 2006-02-01 | E25: 2006-03-01 | F25: 2006-04-01 | G25: 2006-05-01 | H25: 2006-06-01 | I25: 2006-07-01 | J25: 2006-08-01 | K25: 2006-09-01 | L25: 2006-10-01 | M25: 2006-11-01 | N25: 2006-12-01 | O25: 2007-01-01 | P25: 2007-02-01 | Q25: 2007-03-01 | R25: 2007-04-01 | S25: 2007-05-01 | T25: 2007-06-01 | U25: 2007-07-01 | V25: 2007-08-01 | W25: 2007-09-01 | X25: 2007-10-01 | Y25: 2007-11-01 | Z25: 2007-12-01 | AA25: 2008-01-01 | AB25: 2008-02-01 | AC25: 2008-03-01 | AD25: 2008-04-01 | AE25: 2008-05-01 | AF25: 2008-06-01 | AG25: 2008-07-01 | AH25: 2008-08-01 | AI25: 2008-09-01 | AJ25: 2008-10-01 | AK25: 2008-11-01 | AL25: 2008-12-01 | AM25: 2009-01-01 | AN25: 2009-02-01 | AO25: 2009-03-01 | AP25: 2009-04-01 | AQ25: 2009-05-01 | AR25: 2009-06-01 | AS25: 2009-07-01 | AT25: 2009-08-01 | AU25: 2009-09-01 | AV25: 2009-10-01 | AW25: 2009-11-01 | AX25: 2009-12-01 | AY25: 2010-01-01 | AZ25: 2010-02-01 | BA25: 2010-03-01 | BB25: 2010-04-01 | BC25: 2010-05-01 | BD25: 2010-06-01 | BE25: 2010-07-01 | BF25: 2010-08-01 | BG25: 2010-09-01 | BH25: 2010-10-01 | BI25: 2010-11-01 | BJ25: 2010-12-01 | BK25: 2011-01-01 | BL25: 2011-02-01 | BM25: 2011-03-01 | BN25: 2011-04-01 | BO25: 2011-05-01 | BP25: 2011-06-01 | BQ25: 2011-07-01 | BR25: 2011-08-01 | BS25: 2011-09-01 | BT25: 2011-10-01 | BU25: 2011-11-01 | BV25: 2011-12-01 | BW25: 2012-01-01 | BX25: 2012-02-01 | BY25: 2012-03-01 | BZ25: 2012-04-01 | CA25: 2012-05-01 | CB25: 2012-06-01 | CC25: 2012-07-01 | CD25: 2012-08-01 | CE25: 2012-09-01 | CF25: 2012-10-01 | CG25: 2012-11-01 | CH25: 2012-12-01 | CI25: 2013-01-01 | CJ25: 2013-02-01 | CK25: 2013-03-01 | CL25: 2013-04-01 | CM25: 2013-05-01 | CN25: 2013-06-01 | CO25: 2013-07-01 | CP25: 2013-08-01 | CQ25: 2013-09-01 | CR25: 2013-10-01 | CS25: 2013-11-01 | CT25: 2013-12-01 | CU25: 2014-01-01 | CV25: 2014-02-01 | CW25: 2014-03-01 | CX25: 2014-04-01 | CY25: 2014-05-01 | CZ25: 2014-06-01 | DA25: 2014-07-01 | DB25: 2014-08-01 | DC25: 2014-09-01 | DD25: 2014-10-01 | DE25: 2014-11-01 | DF25: 2014-12-01 | DG25: 2015-01-01 | DH25: 2015-02-01 | DI25: 2015-03-01 | DJ25: 2015-04-01 | DK25: 2015-05-01 | DL25: 2015-06-01 | DM25: 2015-07-01 | DN25: 2015-08-01 | DO25: 2015-09-01 | DP25: 2015-10-01 | DQ25: 2015-11-01 | DR25: 2015-12-01 | DS25: 2016-01-01 | DT25: 2016-02-01 | DU25: 2016-03-01 | DV25: 2016-04-01 | DW25: 2016-05-01 | DX25: 2016-06-01 | DY25: 2016-07-01 | DZ25: 2016-08-01 | EA25: 2016-09-01 | EB25: 2016-10-01 | EC25: 2016-11-01 | ED25: 2016-12-01 | EE25: 2017-01-01 | EF25: 2017-02-01 | EG25: 2017-03-01 | EH25: 2017-04-01 | EI25: 2017-05-01 | EJ25: 2017-06-01 | EK25: 2017-07-01 | EL25: 2017-08-01 | EM25: 2017-09-01 | EN25: 2017-10-01 | EO25: 2017-11-01 | EP25: 2017-12-01 | EQ25: 2018-01-01 | ER25: 2018-02-01 | ES25: 2018-03-01 | ET25: 2018-04-01 | EU25: 2018-05-01 | EV25: 2018-06-01 | EW25: 2018-07-01 | EX25: 2018-08-01 | EY25: 2018-09-01 | EZ25: 2018-10-01 | FA25: 2018-11-01 | FB25: 2018-12-01
B26: Carbón | C26: 281585 | D26: 245804 | E26: 280062 | F26: 239665 | G26: 271836 | H26: 287051 | I26: 292771 | J26: 281322 | K26: 254499 | L26: 177022 | M26: 201042 | N26: 264651 | O26: 253259 | P26: 227525 | Q26: 220374 | R26: 263500 | S26: 228127 | T26: 222675 | U26: 278923 | V26: 292687 | W26: 263412 | X26: 229147 | Y26: 201758 | Z26: 262468 | AA26: 287616 | AB26: 269886 | AC26: 265619 | AD26: 216223 | AE26: 246771 | AF26: 279366 | AG26: 294598 | AH26: 301838 | AI26: 286166 | AJ26: 244583 | AK26: 217953 | AL26: 188207 | AM26: 186398 | AN26: 267602 | AO26: 230164 | AP26: 242090 | AQ26: 270324 | AR26: 291327 | AS26: 298599 | AT26: 307579 | AU26: 259941 | AV26: 281704 | AW26: 254121 | AX26: 280614 | AY26: 288628.964 | AZ26: 253130.437 | BA26: 284143.58 | BB26: 270785.11 | BC26: 229324.108 | BD26: 279046.162 | BE26: 292090 | BF26: 286753.928 | BG26: 285293.825 | BH26: 217296.101 | BI26: 192203.667 | BJ26: 222661.684 | BK26: 271039.094 | BL26: 222552.524 | BM26: 133127.452 | BN26: 193302.561 | BO26: 240528.496 | BP26: 255173.844 | BQ26: 292281.729 | BR26: 285531.254 | BS26: 269841.235 | BT26: 199222.629 | BU26: 166762.404 | BV26: 235503.629 | BW26: 265065.642 | BX26: 219166.837 | BY26: 224145.144 | BZ26: 203970.123 | CA26: 227618.822 | CB26: 243421 | CC26: 272060 | CD26: 272045 | CE26: 234898 | CF26: 185556 | CG26: 160648 | CH26: 173937 | CI26: 182300 | CJ26: 172763 | CK26: 186533 | CL26: 175478 | CM26: 187897 | CN26: 200607 | CO26: 246667 | CP26: 248252 | CQ26: 229417 | CR26: 169690.17 | CS26: 168250.602 | CT26: 182826 | CU26: 183089 | CV26: 150083 | CW26: 160256 | CX26: 174013 | CY26: 194494.804 | CZ26: 206570 | DA26: 234613 | DB26: 238509 | DC26: 227703 | DD26: 156196 | DE26: 86830 | DF26: 175269 | DG26: 180780.08 | DH26: 171710.04 | DI26: 173706 | DJ26: 70780.109 | DK26: 127697.454 | DL26: 185477.54 | DM26: 218839.822 | DN26: 250939.772 | DO26: 199152.056 | DP26: 83006.979 | DQ26: 103751.19 | DR26: 99427.255 | DS26: 115147.241 | DT26: 99808.855 | DU26: 105038.973 | DV26: 151496.986 | DW26: 197176.087 | DX26: 225485.472 | DY26: 286133.931 | DZ26: 265479.108 | EA26: 256769.331 | EB26: 224344.495 | EC26: 180604.211 | ED26: 196283.612 | EE26: 221058.214 | EF26: 189456.399 | EG26: 177641.412 | EH26: 189508.621 | EI26: 224832.976 | EJ26: 269448.824 | EK26: 273731.7 | EL26: 264559.049 | EM26: 238125.488 | EN26: 197287.906 | EO26: 153252.114 | EP26: 204441.261 | EQ26: 198554.986 | ER26: 192794.891 | ES26: 200215.908 | ET26: - | EU26: - | EV26: - | EW26: - | EX26: - | EY26: - | EZ26: - | FA26: - | FB26: -
B27: Motores diesel | C27: 79209 | D27: 68329 | E27: 70721 | F27: 64718 | G27: 79303 | H27: 85154 | I27: 104210 | J27: 101456 | K27: 93527 | L27: 79792 | M27: 63493 | N27: 74990 | O27: 78135 | P27: 66061 | Q27: 74782 | R27: 71646 | S27: 84385 | T27: 92577 | U27: 102578 | V27: 105250 | W27: 96624 | X27: 79159 | Y27: 73984 | Z27: 80425 | AA27: 80489 | AB27: 70911 | AC27: 75416 | AD27: 72520 | AE27: 86002 | AF27: 96520 | AG27: 116196 | AH27: 118501 | AI27: 98449 | AJ27: 78246 | AK27: 72700 | AL27: 81131 | AM27: 85013 | AN27: 68206 | AO27: 71555 | AP27: 74273 | AQ27: 75820 | AR27: 91793 | AS27: 105509 | AT27: 106425 | AU27: 86067 | AV27: 70751 | AW27: 62004 | AX27: 74409 | AY27: 80487.338 | AZ27: 71127.049 | BA27: 78081.049 | BB27: 70171.272 | BC27: 83167.909 | BD27: 94393.464 | BE27: 113035.62 | BF27: 113945.387 | BG27: 97806.403 | BH27: 76729.221 | BI27: 67045.222 | BJ27: 81630.112 | BK27: 81369.631 | BL27: 64795.157 | BM27: 77210.809 | BN27: 71556.934 | BO27: 83563.773 | BP27: 89642.911 | BQ27: 96268.777 | BR27: 98322.805 | BS27: 81466.169 | BT27: 55484.905 | BU27: 49587.178 | BV27: 74506.567 | BW27: 80432.366 | BX27: 74636.626 | BY27: 73731.684 | BZ27: 72451.134 | CA27: 83642.36 | CB27: 94717.668 | CC27: 104719.432 | CD27: 103888.321 | CE27: 81520.529 | CF27: 62130.65 | CG27: 47317.415 | CH27: 55581.768 | CI27: 59201.001 | CJ27: 53145.453 | CK27: 52697.134 | CL27: 55012.708 | CM27: 67405.004 | CN27: 69930.771 | CO27: 90133.123 | CP27: 86504.203 | CQ27: 65992.844 | CR27: 50254.603 | CS27: 38564 | CT27: 55111 | CU27: 57916.596 | CV27: 54814.648 | CW27: 38555.431 | CX27: 37428.255 | CY27: 51478.368 | CZ27: 60837.202 | DA27: 69849.784 | DB27: 77074.996 | DC27: 69718.804 | DD27: 50951.88 | DE27: 51297.131 | DF27: 51325.232 | DG27: 56436.176 | DH27: 54370.104 | DI27: 51246.679 | DJ27: 53388.939 | DK27: 63795.299 | DL27: 64962.412 | DM27: 92963.655 | DN27: 83680.463 | DO27: 67767.982 | DP27: 52976.819 | DQ27: 38052.409 | DR27: 50124.937 | DS27: 38443.442 | DT27: 63296.957 | DU27: 77413.166 | DV27: 75104.327 | DW27: 87415.226 | DX27: 92667.362 | DY27: 107561.719 | DZ27: 107599.22 | EA27: 92554.883 | EB27: 88597.956 | EC27: 62253.617 | ED27: 70496.269 | EE27: 84317.429 | EF27: 70875.667 | EG27: 62401.051 | EH27: 72729.669 | EI27: 88030.043 | EJ27: 96848.533 | EK27: 107030.95 | EL27: 88492.99 | EM27: 42503.578 | EN27: 27252.944 | EO27: 25255 | EP27: 33156.189 | EQ27: 35374.103 | ER27: 39245.297 | ES27: 40276.341 | ET27: - | EU27: - | EV27: - | EW27: - | EX27: - | EY27: - | EZ27: - | FA27: - | FB27: -
B28: Turbina de gas | C28: 6947 | D28: 10938 | E28: 22831 | F28: 13569 | G28: 15378 | H28: 29015 | I28: 55976 | J28: 40768 | K28: 31591 | L28: 29413.952 | M28: 18468 | N28: 17160 | O28: 23585 | P28: 20894 | Q28: 20510 | R28: 16976 | S28: 36834 | T28: 31757 | U28: 41358 | V28: 38367 | W28: 21309 | X28: 20978 | Y28: 20783 | Z28: 18090 | AA28: 17521 | AB28: 19944 | AC28: 19984 | AD28: 12615 | AE28: 13376 | AF28: 22615 | AG28: 34364 | AH28: 38299 | AI28: 31566 | AJ28: 20899 | AK28: 19341 | AL28: 21978 | AM28: 18986 | AN28: 20558 | AO28: 19663 | AP28: 12270 | AQ28: 24409 | AR28: 33876 | AS28: 53107 | AT28: 52569 | AU28: 37227 | AV28: 24608 | AW28: 21181 | AX28: 20915 | AY28: 23036.824 | AZ28: 25540.649 | BA28: 22064.977 | BB28: 16837.77 | BC28: 15550.542 | BD28: 20236.732 | BE28: 41379.637 | BF28: 42027.091 | BG28: 26953.492 | BH28: 22516.812 | BI28: 21406.807 | BJ28: 21863.033 | BK28: 16995.936 | BL28: 20869.65 | BM28: 17680.795 | BN28: 13200.816 | BO28: 17102.748 | BP28: 28124.346 | BQ28: 49934.766 | BR28: 59310.271 | BS28: 47553.175 | BT28: 38916.806 | BU28: 31018.1 | BV28: 10217.727 | BW28: 12720.373 | BX28: 24628.482 | BY28: 14603.772 | BZ28: 8007.726 | CA28: 12723.262 | CB28: 29862.118 | CC28: 42997.555 | CD28: 61596.516 | CE28: 39058.876 | CF28: 34035.275 | CG28: 28986.828 | CH28: 31723.758 | CI28: 30572.664 | CJ28: 33019.775 | CK28: 31897.868 | CL28: 25229.128 | CM28: 32068.698 | CN28: 39400.116 | CO28: 61334.674 | CP28: 68281.491 | CQ28: 57303.717 | CR28: 50631.494 | CS28: 41970.712 | CT28: 37596.616 | CU28: 28446.729 | CV28: 24552.033 | CW28: 42849.539 | CX28: 44140.442 | CY28: 47118.787 | CZ28: 57803.787 | DA28: 75697.594 | DB28: 79161.105 | DC28: 66060.736 | DD28: 52001.822 | DE28: 27833.903 | DF28: 36061.23 | DG28: 36489.4 | DH28: 32594.472 | DI28: 38185.657 | DJ28: 31999.216 | DK28: 43482.359 | DL28: 58635.015 | DM28: 77101.897 | DN28: 80387.589 | DO28: 57873.42 | DP28: 47588.997 | DQ28: 40863.166 | DR28: 36936.794 | DS28: 47667.171 | DT28: 19844.912 | DU28: 13369.73 | DV28: 9070.588 | DW28: 18358.821 | DX28: 33002.702 | DY28: 46443.63 | DZ28: 55165.45 | EA28: 43433.79 | EB28: 18338.486 | EC28: 20288.044 | ED28: 13304.507 | EE28: 13253.123 | EF28: 10760.688 | EG28: 22196.99 | EH28: 14153.174 | EI28: 29329.019 | EJ28: 39526.796 | EK28: 59315.127 | EL28: 82009.631 | EM28: 81625.908 | EN28: 74939.63 | EO28: 62142.019 | EP28: 64867.775 | EQ28: 59556.202 | ER28: 59632.27 | ES28: 61588.868 | ET28: - | EU28: - | EV28: - | EW28: - | EX28: - | EY28: - | EZ28: - | FA28: - | FB28: -
B29: Fuel + Gas | C29: 86156 | D29: 79267 | E29: 93552 | F29: 78287 | G29: 94681 | H29: 114169 | I29: 160186 | J29: 142224 | K29: 125118 | L29: 109205.952 | M29: 81961 | N29: 92150 | O29: 101720 | P29: 86955 | Q29: 95292 | R29: 88622 | S29: 121219 | T29: 124334 | U29: 143936 | V29: 143617 | W29: 117933 | X29: 100137 | Y29: 94767 | Z29: 98515 | AA29: 98010 | AB29: 90855 | AC29: 95400 | AD29: 85135 | AE29: 99378 | AF29: 119135 | AG29: 150560 | AH29: 156800 | AI29: 130015 | AJ29: 99145 | AK29: 92041 | AL29: 103109 | AM29: 103999 | AN29: 88764 | AO29: 91218 | AP29: 86543 | AQ29: 100229 | AR29: 125669 | AS29: 158616 | AT29: 158994 | AU29: 123294 | AV29: 95359 | AW29: 83185 | AX29: 95324 | AY29: 103524.162 | AZ29: 96667.698 | BA29: 100146.026 | BB29: 87009.042 | BC29: 98718.451 | BD29: 114630.196 | BE29: 154415.257 | BF29: 155972.478 | BG29: 124759.895 | BH29: 99246.033 | BI29: 88452.029 | BJ29: 103493.145 | BK29: 98365.567 | BL29: 85664.807 | BM29: 94891.604 | BN29: 84757.75 | BO29: 100666.521 | BP29: 117767.257 | BQ29: 146203.543 | BR29: 157633.076 | BS29: 129019.344 | BT29: 94401.711 | BU29: 80605.278 | BV29: 84724.294 | BW29: 93152.739 | BX29: 99265.108 | BY29: 88335.456 | BZ29: 80458.86 | CA29: 96365.622 | CB29: 124579.786 | CC29: 147716.987 | CD29: 165484.837 | CE29: 120579.405 | CF29: 96165.925 | CG29: 76304.243 | CH29: 87305.526 | CI29: 89773.665 | CJ29: 86165.228 | CK29: 84595.002 | CL29: 80241.836 | CM29: 99473.702 | CN29: 109330.887 | CO29: 151467.797 | CP29: 154785.694 | CQ29: 123296.561 | CR29: 100886.097 | CS29: 80534.712 | CT29: 92707.616 | CU29: 86363.325 | CV29: 79366.681 | CW29: 81404.97 | CX29: 81568.697 | CY29: 98597.155 | CZ29: 118640.989 | DA29: 145547.378 | DB29: 156236.101 | DC29: 135779.54 | DD29: 102953.702 | DE29: 79131.034 | DF29: 87386.462 | DG29: 92925.576 | DH29: 86964.576 | DI29: 89432.336 | DJ29: 85388.155 | DK29: 107277.658 | DL29: 123597.427 | DM29: 170065.552 | DN29: 164068.052 | DO29: 125641.402 | DP29: 100565.816 | DQ29: 78915.575 | DR29: 87061.731 | DS29: 86110.613 | DT29: 83141.869 | DU29: 90782.896 | DV29: 84174.915 | DW29: 105774.047 | DX29: 125670.064 | DY29: 154005.349 | DZ29: 162764.67 | EA29: 135988.673 | EB29: 106936.442 | EC29: 82541.661 | ED29: 83800.776 | EE29: 97570.552 | EF29: 81636.355 | EG29: 84598.041 | EH29: 86882.843 | EI29: 117359.062 | EJ29: 136375.329 | EK29: 166346.077 | EL29: 170502.621 | EM29: 124129.486 | EN29: 102192.574 | EO29: 87397.019 | EP29: 98023.964 | EQ29: 94930.305 | ER29: 98877.567 | ES29: 101865.209 | ET29: - | EU29: - | EV29: - | EW29: - | EX29: - | EY29: - | EZ29: - | FA29: - | FB29: -
B30: Ciclo combinado | C30: 115133 | D30: 112851 | E30: 71802 | F30: 58291 | G30: 79596 | H30: 107515 | I30: 173341 | J30: 167753 | K30: 132665 | L30: 163572 | M30: 80257 | N30: 79139 | O30: 109535 | P30: 97337 | Q30: 133306 | R30: 66630 | S30: 113287 | T30: 174631 | U30: 186393 | V30: 169251 | W30: 141173 | X30: 143962 | Y30: 135271 | Z30: 113219 | AA30: 92464 | AB30: 91614 | AC30: 97252 | AD30: 120602 | AE30: 114746 | AF30: 106773 | AG30: 178739 | AH30: 177899 | AI30: 121342 | AJ30: 111682 | AK30: 111297 | AL30: 199080 | AM30: 206459 | AN30: 81850 | AO30: 132809 | AP30: 89788 | AQ30: 70003 | AR30: 97131 | AS30: 175334 | AT30: 166521 | AU30: 120693 | AV30: 57370 | AW30: 29377 | AX30: 64848 | AY30: 83745.201 | AZ30: 90692.047 | BA30: 69947.986 | BB30: 35630.943 | BC30: 87840.324 | BD30: 61960.638 | BE30: 159205.11 | BF30: 145959.232 | BG30: 74275.329 | BH30: 107178.246 | BI30: 98555.294 | BJ30: 120643.372 | BK30: 87325.832 | BL30: 101278.758 | BM30: 204244.842 | BN30: 87108.139 | BO30: 89672.712 | BP30: 94536.337 | BQ30: 118352.707 | BR30: 152014.503 | BS30: 115098.602 | BT30: 118552.891 | BU30: 95594.106 | BV30: 62958.957 | BW30: 68913.752 | BX30: 134285.436 | BY30: 53854.985 | BZ30: 51852.373 | CA30: 56400.712 | CB30: 94530.843 | CC30: 109975.276 | CD30: 123495.865 | CE30: 47459.367 | CF30: 71343.37 | CG30: 43422 | CH30: 35026.341 | CI30: 37837 | CJ30: 51552.052 | CK30: 39448.04 | CL30: 25643.305 | CM30: 38630.023 | CN30: 16346 | CO30: 35588.272 | CP30: 29770 | CQ30: 3965 | CR30: 53247.095 | CS30: 34705.778 | CT30: 46843.259 | CU30: 33410 | CV30: 44603 | CW30: 51991.088 | CX30: 15938.374 | CY30: 33331.38 | CZ30: 16418 | DA30: 18189.412 | DB30: 27263.169 | DC30: 16977.943 | DD30: 52913.581 | DE30: 82131.794 | DF30: 33756.963 | DG30: 37290.882 | DH30: 37658.481 | DI30: 38154.075 | DJ30: 110890.848 | DK30: 103324.583 | DL30: 47975.309 | DM30: 79053.868 | DN30: 26774.831 | DO30: 35536.51 | DP30: 123453.669 | DQ30: 75824.937 | DR30: 93301.375 | DS30: 92999.952 | DT30: 108546.993 | DU30: 109982.738 | DV30: 51876.43 | DW30: 19259.798 | DX30: 12974.432 | DY30: 15678.454 | DZ30: 25123.046 | EA30: 27082.419 | EB30: 16743.469 | EC30: 35138.471 | ED30: 27146.894 | EE30: 37932.816 | EF30: 35459.598 | EG30: 32702.779 | EH30: 37339.869 | EI30: 26810.833 | EJ30: 13028.306 | EK30: 35387.375 | EL30: 56263.61 | EM30: 13675.324 | EN30: 40854.672 | EO30: 60509.489 | EP30: 36224 | EQ30: 31199.051 | ER30: 48598.584 | ES30: 38884.349 | ET30: - | EU30: - | EV30: - | EW30: - | EX30: - | EY30: - | EZ30: - | FA30: - | FB30: -
B31: Generación auxiliar | C31: 0 | D31: 0 | E31: 0 | F31: 0 | G31: 0 | H31: 0 | I31: 213 | J31: 3531 | K31: 2469 | L31: 1 | M31: 0 | N31: 136.22 | O31: 0 | P31: 0 | Q31: 0 | R31: 0 | S31: 0 | T31: 0 | U31: 2447 | V31: 8618 | W31: 1547 | X31: 0 | Y31: 0 | Z31: 0 | AA31: 0 | AB31: 0 | AC31: 0 | AD31: 0 | AE31: 0 | AF31: 0 | AG31: 2048 | AH31: 2600 | AI31: 1282 | AJ31: 1 | AK31: 0 | AL31: 0 | AM31: 0 | AN31: 0 | AO31: 0 | AP31: 0 | AQ31: 0 | AR31: 0 | AS31: 1489 | AT31: 3042 | AU31: 1037 | AV31: -2 | AW31: 0 | AX31: 0 | AY31: 0 | AZ31: 0 | BA31: 0 | BB31: 0 | BC31: 0 | BD31: 45.686 | BE31: 2619.537 | BF31: 2927.97 | BG31: 1100.336 | BH31: 0.803 | BI31: 0 | BJ31: 0 | BK31: 0 | BL31: 0 | BM31: 0 | BN31: 0 | BO31: 0 | BP31: 1061.171 | BQ31: 2481.41 | BR31: 3645.407 | BS31: 1536.693 | BT31: 0 | BU31: 0 | BV31: 0 | BW31: 0 | BX31: 0 | BY31: 0 | BZ31: 0 | CA31: 0 | CB31: 984.287 | CC31: 2564 | CD31: 3950.438 | CE31: 1310 | CF31: 1 | CG31: 0 | CH31: 0 | CI31: 0 | CJ31: 0 | CK31: 0 | CL31: 0 | CM31: 1 | CN31: 625 | CO31: 2313.25 | CP31: 3044.55 | CQ31: 917 | CR31: 0.002 | CS31: 0 | CT31: 0 | CU31: 0 | CV31: 0 | CW31: 0 | CX31: 0 | CY31: 0 | CZ31: 0 | DA31: 2542 | DB31: 3212.201 | DC31: 1940 | DD31: 1 | DE31: 0 | DF31: 0 | DG31: 0 | DH31: 0 | DI31: 0 | DJ31: 0 | DK31: 0 | DL31: 337 | DM31: 3682.482 | DN31: 4194.614 | DO31: 2367.759 | DP31: 0 | DQ31: 0 | DR31: 0 | DS31: 0 | DT31: 0 | DU31: 0 | DV31: 0 | DW31: 0 | DX31: 1214 | DY31: 2921.631 | DZ31: 3386.124 | EA31: 2144 | EB31: 426 | EC31: 0 | ED31: 0 | EE31: 0 | EF31: 0 | EG31: 0 | EH31: 0 | EI31: 1338 | EJ31: 1706 | EK31: 3128 | EL31: 4554.847 | EM31: 2377 | EN31: 1642 | EO31: 0 | EP31: 0 | EQ31: 0 | ER31: 0 | ES31: 0 | ET31: - | EU31: - | EV31: - | EW31: - | EX31: - | EY31: - | EZ31: - | FA31: - | FB31: -
B32: Régimen ordinario | C32: 482874 | D32: 437922 | E32: 445416 | F32: 376243 | G32: 446113 | H32: 508735 | I32: 626511 | J32: 594830 | K32: 514751 | L32: 449800.952 | M32: 363260 | N32: 436076.22 | O32: 464514 | P32: 411817 | Q32: 448972 | R32: 418752 | S32: 462633 | T32: 521640 | U32: 611699 | V32: 614173 | W32: 524065 | X32: 473246 | Y32: 431796 | Z32: 474202 | AA32: 478090 | AB32: 452355 | AC32: 458271 | AD32: 421960 | AE32: 460895 | AF32: 505274 | AG32: 625945 | AH32: 639137 | AI32: 538805 | AJ32: 455411 | AK32: 421291 | AL32: 490396 | AM32: 496856 | AN32: 438216 | AO32: 454191 | AP32: 418421 | AQ32: 440556 | AR32: 514127 | AS32: 634038 | AT32: 636136 | AU32: 504965 | AV32: 434431 | AW32: 366683 | AX32: 440786 | AY32: 475898.327 | AZ32: 440490.182 | BA32: 454237.592 | BB32: 393425.095 | BC32: 415882.883 | BD32: 455682.682 | BE32: 608329.904 | BF32: 591613.608 | BG32: 485429.385 | BH32: 423721.183 | BI32: 379210.99 | BJ32: 446798.201 | BK32: 456730.493 | BL32: 409496.089 | BM32: 432263.898 | BN32: 365168.45 | BO32: 430867.729 | BP32: 468538.609 | BQ32: 559319.389 | BR32: 598824.24 | BS32: 515495.874 | BT32: 412177.231 | BU32: 342961.788 | BV32: 383186.88 | BW32: 427132.133 | BX32: 452717.381 | BY32: 366335.585 | BZ32: 336281.356 | CA32: 380385.156 | CB32: 463515.916 | CC32: 532316.263 | CD32: 564976.14 | CE32: 404246.772 | CF32: 353066.295 | CG32: 280374.243 | CH32: 296268.867 | CI32: 309910.665 | CJ32: 310480.28 | CK32: 310576.042 | CL32: 281363.141 | CM32: 326001.725 | CN32: 326908.887 | CO32: 436036.319 | CP32: 435852.244 | CQ32: 357595.561 | CR32: 323823.364 | CS32: 283491.092 | CT32: 322376.875 | CU32: - | CV32: - | CW32: - | CX32: - | CY32: - | CZ32: - | DA32: - | DB32: - | DC32: - | DD32: - | DE32: - | DF32: - | DG32: - | DH32: - | DI32: - | DJ32: - | DK32: - | DL32: - | DM32: - | DN32: - | DO32: - | DP32: - | DQ32: - | DR32: - | DS32: - | DT32: - | DU32: - | DV32: - | DW32: - | DX32: - | DY32: - | DZ32: - | EA32: - | EB32: - | EC32: - | ED32: - | EE32: - | EF32: - | EG32: - | EH32: - | EI32: - | EJ32: - | EK32: - | EL32: - | EM32: - | EN32: - | EO32: - | EP32: - | EQ32: - | ER32: - | ES32: - | ET32: - | EU32: - | EV32: - | EW32: - | EX32: - | EY32: - | EZ32: - | FA32: - | FB32: -
B33: Eólica | C33: 514.35 | D33: 371.374 | E33: 548.188 | F33: 366.096 | G33: 438.988 | H33: 366.65 | I33: 202.55 | J33: 548.332 | K33: 264.468 | L33: 347.647 | M33: 407.408 | N33: 501.305 | O33: 402 | P33: 480 | Q33: 585 | R33: 246 | S33: 392 | T33: 334 | U33: 358 | V33: 444 | W33: 320 | X33: 541 | Y33: 784 | Z33: 770 | AA33: 415 | AB33: 420 | AC33: 575 | AD33: 741 | AE33: 212 | AF33: 290 | AG33: 272 | AH33: 328 | AI33: 462 | AJ33: 470 | AK33: 620 | AL33: 692 | AM33: 472 | AN33: 688 | AO33: 529 | AP33: 482 | AQ33: 477 | AR33: 383 | AS33: 126 | AT33: 147 | AU33: 346 | AV33: 531 | AW33: 538 | AX33: 824 | AY33: 599 | AZ33: 689 | BA33: 590 | BB33: 377 | BC33: 312 | BD33: 275 | BE33: 322 | BF33: 395 | BG33: 303 | BH33: 477 | BI33: 529 | BJ33: 703 | BK33: 472 | BL33: 638 | BM33: 627 | BN33: 553 | BO33: 435 | BP33: 359 | BQ33: 432 | BR33: 356 | BS33: 229 | BT33: 587 | BU33: 549 | BV33: 592 | BW33: 479 | BX33: 1092 | BY33: 557 | BZ33: 570 | CA33: 377 | CB33: 358 | CC33: 430 | CD33: 261 | CE33: 666 | CF33: 424 | CG33: 540 | CH33: 751 | CI33: 687 | CJ33: 674 | CK33: 767 | CL33: 552 | CM33: 439 | CN33: 391 | CO33: 211 | CP33: 355 | CQ33: 349 | CR33: 477 | CS33: 772 | CT33: 486 | CU33: 587 | CV33: 635 | CW33: 749 | CX33: 441 | CY33: 509 | CZ33: 342 | DA33: 354 | DB33: 302 | DC33: 236 | DD33: 371 | DE33: 552 | DF33: 761 | DG33: 600 | DH33: 696 | DI33: 580 | DJ33: 434.88 | DK33: 636 | DL33: 253 | DM33: 309 | DN33: 231 | DO33: 509 | DP33: 555.89 | DQ33: 415.25 | DR33: 97 | DS33: 530 | DT33: 661 | DU33: 708 | DV33: 665.25 | DW33: 486 | DX33: 239 | DY33: 471.2 | DZ33: 478 | EA33: 222 | EB33: 292.19 | EC33: 402 | ED33: 260 | EE33: 469 | EF33: 283 | EG33: 227 | EH33: 238 | EI33: 127 | EJ33: 130 | EK33: 176 | EL33: 172 | EM33: 183 | EN33: 195 | EO33: 343 | EP33: 382 | EQ33: 253 | ER33: 324 | ES33: 368.49 | ET33: - | EU33: - | EV33: - | EW33: - | EX33: - | EY33: - | EZ33: - | FA33: - | FB33: -
B34: Solar fotovoltaica | C34: 43.973 | D34: 50.86 | E34: 83.446 | F34: 87.707 | G34: 102.911 | H34: 110.639 | I34: 126.145 | J34: 120.868 | K34: 111.756 | L34: 105.835 | M34: 84.201 | N34: 72.454 | O34: 95 | P34: 122 | Q34: 165 | R34: 156 | S34: 211 | T34: 207 | U34: 226 | V34: 209 | W34: 180 | X34: 139 | Y34: 119 | Z34: 123 | AA34: 134 | AB34: 194 | AC34: 416 | AD34: 664 | AE34: 955 | AF34: 1807 | AG34: 2659 | AH34: 4719 | AI34: 4821 | AJ34: 4337 | AK34: 3391 | AL34: 4283 | AM34: 3838 | AN34: 5190 | AO34: 7556 | AP34: 7099 | AQ34: 8802 | AR34: 9040 | AS34: 8898 | AT34: 8709 | AU34: 6680 | AV34: 6538 | AW34: 5096 | AX34: 3487 | AY34: 3845 | AZ34: 4810 | BA34: 6958 | BB34: 8061 | BC34: 9047 | BD34: 8957 | BE34: 10437 | BF34: 10003 | BG34: 8360 | BH34: 6793 | BI34: 5600 | BJ34: 4886 | BK34: 5358 | BL34: 6378 | BM34: 8047 | BN34: 9928 | BO34: 10914 | BP34: 10324 | BQ34: 10211 | BR34: 11535 | BS34: 9702 | BT34: 8434 | BU34: 4998 | BV34: 5392 | BW34: 6183 | BX34: 6956 | BY34: 10152 | BZ34: 10230 | CA34: 12309 | CB34: 11697 | CC34: 12533 | CD34: 12420 | CE34: 10873 | CF34: 9500 | CG34: 6016 | CH34: 6725 | CI34: 7273 | CJ34: 7404 | CK34: 11494 | CL34: 11209 | CM34: 12639 | CN34: 13817 | CO34: 14316 | CP34: 12847 | CQ34: 10745 | CR34: 8781 | CS34: 5602 | CT34: 5971 | CU34: 5828 | CV34: 8461 | CW34: 11098 | CX34: 12721 | CY34: 12507 | CZ34: 13247 | DA34: 13533 | DB34: 12560 | DC34: 10352 | DD34: 10338 | DE34: 6491 | DF34: 5637 | DG34: 6880 | DH34: 7213 | DI34: 10111 | DJ34: 12577.61 | DK34: 13499 | DL34: 13458 | DM34: 13857 | DN34: 12164 | DO34: 9669.87 | DP34: 8932 | DQ34: 8008 | DR34: 6276 | DS34: 7084 | DT34: 7540 | DU34: 10664.3 | DV34: 11177.5 | DW34: 12596 | DX34: 13172 | DY34: 13850 | DZ34: 13342 | EA34: 10360 | EB34: 8448 | EC34: 6552 | ED34: 5748 | EE34: 5799 | EF34: 7159 | EG34: 12166 | EH34: 12672 | EI34: 13655 | EJ34: 13302 | EK34: 13300 | EL34: 12437 | EM34: 10180 | EN34: 9721 | EO34: 7258 | EP34: 5556 | EQ34: 7015 | ER34: 5358 | ES34: 9721 | ET34: - | EU34: - | EV34: - | EW34: - | EX34: - | EY34: - | EZ34: - | FA34: - | FB34: -
B35: Térmica renovable/Otras renovables | C35: - | D35: - | E35: - | F35: - | G35: - | H35: - | I35: - | J35: - | K35: - | L35: - | M35: - | N35: - | O35: - | P35: - | Q35: - | R35: - | S35: - | T35: - | U35: - | V35: - | W35: - | X35: - | Y35: - | Z35: - | AA35: - | AB35: - | AC35: - | AD35: - | AE35: - | AF35: - | AG35: - | AH35: - | AI35: - | AJ35: - | AK35: - | AL35: - | AM35: - | AN35: - | AO35: - | AP35: - | AQ35: - | AR35: - | AS35: - | AT35: - | AU35: - | AV35: - | AW35: - | AX35: - | AY35: - | AZ35: - | BA35: - | BB35: - | BC35: - | BD35: - | BE35: - | BF35: - | BG35: - | BH35: - | BI35: - | BJ35: - | BK35: - | BL35: - | BM35: - | BN35: - | BO35: - | BP35: - | BQ35: - | BR35: - | BS35: - | BT35: - | BU35: - | BV35: - | BW35: 45 | BX35: 23 | BY35: 79 | BZ35: 49 | CA35: 42 | CB35: 39 | CC35: 36 | CD35: 47 | CE35: 53 | CF35: 57 | CG35: 55 | CH35: 44 | CI35: 73 | CJ35: 47 | CK35: 75 | CL35: 93 | CM35: 16 | CN35: 73 | CO35: 75 | CP35: 30 | CQ35: 44 | CR35: 65 | CS35: 60 | CT35: 92 | CU35: 123 | CV35: 172 | CW35: 228 | CX35: 199 | CY35: 261 | CZ35: 167 | DA35: 89 | DB35: 121 | DC35: 92 | DD35: 132 | DE35: 185 | DF35: 175 | DG35: 229.29 | DH35: 171.29 | DI35: 164 | DJ35: 221 | DK35: 173 | DL35: 100 | DM35: 181 | DN35: 109 | DO35: 119 | DP35: 130.97 | DQ35: 148 | DR35: 226 | DS35: 176 | DT35: 164.92 | DU35: 176.14 | DV35: 153.4 | DW35: 126 | DX35: 32 | DY35: 35 | DZ35: 42.72 | EA35: 33 | EB35: 93.34 | EC35: 139 | ED35: 138 | EE35: 159 | EF35: 170 | EG35: 104 | EH35: 198 | EI35: 224 | EJ35: 164 | EK35: 76 | EL35: 73 | EM35: 87 | EN35: 106 | EO35: 127 | EP35: 137 | EQ35: 219 | ER35: 166 | ES35: 221.07 | ET35: - | EU35: - | EV35: - | EW35: - | EX35: - | EY35: - | EZ35: - | FA35: - | FB35: -
B36: Térmica no renovable/Cogeneración y resto/Cogeneración | C36: 13134.677 | D36: 11651.766 | E36: 12757.366 | F36: 12126.197 | G36: 9241.101 | H36: 11667.711 | I36: 11282.305 | J36: 11336.8 | K36: 10957.776 | L36: 11996.518 | M36: 10537.391 | N36: 12423.241 | O36: 10231 | P36: 11272 | Q36: 12861 | R36: 12018 | S36: 8170 | T36: 9987 | U36: 8947 | V36: 9642 | W36: 9504 | X36: 1019 | Y36: 8067 | Z36: 12215 | AA36: 11005 | AB36: 12227 | AC36: 12415 | AD36: 11349 | AE36: 11758 | AF36: 11450 | AG36: 11883 | AH36: 11405 | AI36: 10678 | AJ36: 11820 | AK36: 11914 | AL36: 12428 | AM36: 12679 | AN36: 9600 | AO36: 972 | AP36: 11178 | AQ36: 12259 | AR36: 11199 | AS36: 11190 | AT36: 10723 | AU36: 11294 | AV36: 11475 | AW36: 11970 | AX36: 12503 | AY36: 10815 | AZ36: 9246 | BA36: 11253 | BB36: 11204 | BC36: 10903 | BD36: 10391 | BE36: 11522 | BF36: 22957 | BG36: 25904 | BH36: 13766 | BI36: 17545 | BJ36: 20738 | BK36: 15300 | BL36: 13950 | BM36: 13834 | BN36: 17844 | BO36: 12581 | BP36: 24337 | BQ36: 27559 | BR36: 28922 | BS36: 29380 | BT36: 27852 | BU36: 22326 | BV36: 26863 | BW36: 23089 | BX36: 18830 | BY36: 21757 | BZ36: 18602 | CA36: 25063 | CB36: 22209 | CC36: 29853 | CD36: 28907 | CE36: 23443 | CF36: 16726 | CG36: 16004 | CH36: 27593 | CI36: 19631 | CJ36: 14416 | CK36: 18168 | CL36: 15890 | CM36: 19024 | CN36: 26233 | CO36: 24865 | CP36: 25589 | CQ36: 30297 | CR36: 19897 | CS36: 17598 | CT36: 20007 | CU36: 17963 | CV36: 14698 | CW36: 20661 | CX36: 23967 | CY36: 11904 | CZ36: 28025 | DA36: 32114 | DB36: 24993 | DC36: 30718 | DD36: 30760 | DE36: 19807 | DF36: 25780 | DG36: 3123 | DH36: 2527 | DI36: 2771 | DJ36: 1697.16 | DK36: 2205 | DL36: 1133.16 | DM36: 2922 | DN36: 2816 | DO36: 2464 | DP36: 3140 | DQ36: 3260 | DR36: 3461 | DS36: 3302 | DT36: 3209.64 | DU36: 3098.93 | DV36: 3052.58 | DW36: 2121 | DX36: 3355 | DY36: 2924.9 | DZ36: 2930.8 | EA36: 2901 | EB36: 2744 | EC36: 2387 | ED36: 2672 | EE36: 3018 | EF36: 3106 | EG36: 3515 | EH36: 1953 | EI36: 1988 | EJ36: 2777 | EK36: 3059 | EL36: 3488 | EM36: 3216 | EN36: 3350 | EO36: 3099 | EP36: 3600 | EQ36: 3183 | ER36: 3084 | ES36: 2395.49 | ET36: - | EU36: - | EV36: - | EW36: - | EX36: - | EY36: - | EZ36: - | FA36: - | FB36: -
B37: Residuos no renovables | C37: - | D37: - | E37: - | F37: - | G37: - | H37: - | I37: - | J37: - | K37: - | L37: - | M37: - | N37: - | O37: - | P37: - | Q37: - | R37: - | S37: - | T37: - | U37: - | V37: - | W37: - | X37: - | Y37: - | Z37: - | AA37: - | AB37: - | AC37: - | AD37: - | AE37: - | AF37: - | AG37: - | AH37: - | AI37: - | AJ37: - | AK37: - | AL37: - | AM37: - | AN37: - | AO37: - | AP37: - | AQ37: - | AR37: - | AS37: - | AT37: - | AU37: - | AV37: - | AW37: - | AX37: - | AY37: - | AZ37: - | BA37: - | BB37: - | BC37: - | BD37: - | BE37: - | BF37: - | BG37: - | BH37: - | BI37: - | BJ37: - | BK37: - | BL37: - | BM37: - | BN37: - | BO37: - | BP37: - | BQ37: - | BR37: - | BS37: - | BT37: - | BU37: - | BV37: - | BW37: - | BX37: - | BY37: - | BZ37: - | CA37: - | CB37: - | CC37: - | CD37: - | CE37: - | CF37: - | CG37: - | CH37: - | CI37: - | CJ37: - | CK37: - | CL37: - | CM37: - | CN37: - | CO37: - | CP37: - | CQ37: - | CR37: - | CS37: - | CT37: - | CU37: - | CV37: - | CW37: - | CX37: - | CY37: - | CZ37: - | DA37: - | DB37: - | DC37: - | DD37: - | DE37: - | DF37: - | DG37: 9163.5 | DH37: 6908.5 | DI37: 11394 | DJ37: 13639 | DK37: 14790 | DL37: 13704.5 | DM37: 12853 | DN37: 12487.5 | DO37: 14777 | DP37: 14664.5 | DQ37: 14318 | DR37: 12398.5 | DS37: 8564.5 | DT37: 4968 | DU37: 8612 | DV37: 12110 | DW37: 14510 | DX37: 13617 | DY37: 11266.5 | DZ37: 12685 | EA37: 12613.5 | EB37: 13662.5 | EC37: 9271 | ED37: 8925.5 | EE37: 7544 | EF37: 7222 | EG37: 10518 | EH37: 14686 | EI37: 11210 | EJ37: 14046.5 | EK37: 14056 | EL37: 14325.5 | EM37: 15026.5 | EN37: 13983 | EO37: 11279 | EP37: 9982 | EQ37: 7481.5 | ER37: 4456 | ES37: 11877 | ET37: - | EU37: - | EV37: - | EW37: - | EX37: - | EY37: - | EZ37: - | FA37: - | FB37: -
B38: Residuos renovables | C38: - | D38: - | E38: - | F38: - | G38: - | H38: - | I38: - | J38: - | K38: - | L38: - | M38: - | N38: - | O38: - | P38: - | Q38: - | R38: - | S38: - | T38: - | U38: - | V38: - | W38: - | X38: - | Y38: - | Z38: - | AA38: - | AB38: - | AC38: - | AD38: - | AE38: - | AF38: - | AG38: - | AH38: - | AI38: - | AJ38: - | AK38: - | AL38: - | AM38: - | AN38: - | AO38: - | AP38: - | AQ38: - | AR38: - | AS38: - | AT38: - | AU38: - | AV38: - | AW38: - | AX38: - | AY38: - | AZ38: - | BA38: - | BB38: - | BC38: - | BD38: - | BE38: - | BF38: - | BG38: - | BH38: - | BI38: - | BJ38: - | BK38: - | BL38: - | BM38: - | BN38: - | BO38: - | BP38: - | BQ38: - | BR38: - | BS38: - | BT38: - | BU38: - | BV38: - | BW38: - | BX38: - | BY38: - | BZ38: - | CA38: - | CB38: - | CC38: - | CD38: - | CE38: - | CF38: - | CG38: - | CH38: - | CI38: - | CJ38: - | CK38: - | CL38: - | CM38: - | CN38: - | CO38: - | CP38: - | CQ38: - | CR38: - | CS38: - | CT38: - | CU38: - | CV38: - | CW38: - | CX38: - | CY38: - | CZ38: - | DA38: - | DB38: - | DC38: - | DD38: - | DE38: - | DF38: - | DG38: 9163.5 | DH38: 6908.5 | DI38: 11394 | DJ38: 13639 | DK38: 14790 | DL38: 13704.5 | DM38: 12853 | DN38: 12487.5 | DO38: 14777 | DP38: 14664.5 | DQ38: 14318 | DR38: 12398.5 | DS38: 8564.5 | DT38: 4968 | DU38: 8612 | DV38: 12110 | DW38: 14510 | DX38: 13617 | DY38: 11266.5 | DZ38: 12685 | EA38: 12613.5 | EB38: 13662.5 | EC38: 9271 | ED38: 8925.5 | EE38: 7544 | EF38: 7222 | EG38: 10518 | EH38: 14686 | EI38: 11210 | EJ38: 14046.5 | EK38: 14056 | EL38: 14325.5 | EM38: 15026.5 | EN38: 13983 | EO38: 11279 | EP38: 9982 | EQ38: 7481.5 | ER38: 4456 | ES38: 11877 | ET38: - | EU38: - | EV38: - | EW38: - | EX38: - | EY38: - | EZ38: - | FA38: - | FB38: -
B39: Régimen especial | C39: 13693 | D39: 12074 | E39: 13389 | F39: 12580 | G39: 9783 | H39: 12145 | I39: 11611 | J39: 12006 | K39: 11334 | L39: 12450 | M39: 11029 | N39: 12997 | O39: 10728 | P39: 11874 | Q39: 13611 | R39: 12420 | S39: 8773 | T39: 10528 | U39: 9531 | V39: 10295 | W39: 10004 | X39: 1699 | Y39: 8970 | Z39: 13108 | AA39: 11554 | AB39: 12841 | AC39: 13406 | AD39: 12754 | AE39: 12925 | AF39: 13547 | AG39: 14814 | AH39: 16452 | AI39: 15961 | AJ39: 16627 | AK39: 15925 | AL39: 17403 | AM39: 16989 | AN39: 15478 | AO39: 9057 | AP39: 18759 | AQ39: 21538 | AR39: 20622 | AS39: 20214 | AT39: 19579 | AU39: 18320 | AV39: 18544 | AW39: 17604 | AX39: 16814 | AY39: 15259 | AZ39: 14745 | BA39: 18801 | BB39: 19642 | BC39: 20262 | BD39: 19623 | BE39: 22281 | BF39: 33355 | BG39: 34567 | BH39: 21036 | BI39: 23674 | BJ39: 26327 | BK39: 21130 | BL39: 20966 | BM39: 22508 | BN39: 28325 | BO39: 23930 | BP39: 35020 | BQ39: 38202 | BR39: 40813 | BS39: 39311 | BT39: 36873 | BU39: 27873 | BV39: 32847 | BW39: 29796 | BX39: 26901 | BY39: 32545 | BZ39: 29451 | CA39: 37791 | CB39: 34303 | CC39: 42852 | CD39: 41635 | CE39: 35035 | CF39: 26707 | CG39: 22615 | CH39: 35113 | CI39: 27664 | CJ39: 22541 | CK39: 30504 | CL39: 27744 | CM39: 32118 | CN39: 40514 | CO39: 39467 | CP39: 38821 | CQ39: 41435 | CR39: 29220 | CS39: 24032 | CT39: 26556 | CU39: - | CV39: - | CW39: - | CX39: - | CY39: - | CZ39: - | DA39: - | DB39: - | DC39: - | DD39: - | DE39: - | DF39: - | DG39: - | DH39: - | DI39: - | DJ39: - | DK39: - | DL39: - | DM39: - | DN39: - | DO39: - | DP39: - | DQ39: - | DR39: - | DS39: - | DT39: - | DU39: - | DV39: - | DW39: - | DX39: - | DY39: - | DZ39: - | EA39: - | EB39: - | EC39: - | ED39: - | EE39: - | EF39: - | EG39: - | EH39: - | EI39: - | EJ39: - | EK39: - | EL39: - | EM39: - | EN39: - | EO39: - | EP39: - | EQ39: - | ER39: - | ES39: - | ET39: - | EU39: - | EV39: - | EW39: - | EX39: - | EY39: - | EZ39: - | FA39: - | FB39: -
B40: Generación | C40: 496567 | D40: 449996 | E40: 458805 | F40: 388823 | G40: 455896 | H40: 520880 | I40: 638122 | J40: 606836 | K40: 526085 | L40: 462250.952 | M40: 374289 | N40: 449073.22 | O40: 475242 | P40: 423691 | Q40: 462583 | R40: 431172 | S40: 471406 | T40: 532168 | U40: 621230 | V40: 624468 | W40: 534069 | X40: 474945 | Y40: 440766 | Z40: 487310 | AA40: 489644 | AB40: 465196 | AC40: 471677 | AD40: 434714 | AE40: 473820 | AF40: 518821 | AG40: 640759 | AH40: 655589 | AI40: 554766 | AJ40: 472038 | AK40: 437216 | AL40: 507799 | AM40: 513845 | AN40: 453694 | AO40: 463248 | AP40: 437180 | AQ40: 462094 | AR40: 534749 | AS40: 654252 | AT40: 655715 | AU40: 523285 | AV40: 452975 | AW40: 384287 | AX40: 457600 | AY40: 491157.327 | AZ40: 455235.182 | BA40: 473038.592 | BB40: 413067.095 | BC40: 436144.883 | BD40: 475305.682 | BE40: 630610.904 | BF40: 624968.608 | BG40: 519996.385 | BH40: 444757.183 | BI40: 402884.99 | BJ40: 473125.201 | BK40: 477860.493 | BL40: 430462.089 | BM40: 454771.898 | BN40: 393493.45 | BO40: 454797.729 | BP40: 503558.609 | BQ40: 597521.389 | BR40: 639637.24 | BS40: 554806.874 | BT40: 449050.231 | BU40: 370834.788 | BV40: 416033.88 | BW40: 456928.133 | BX40: 479618.381 | BY40: 398880.585 | BZ40: 365732.356 | CA40: 418176.156 | CB40: 497818.916 | CC40: 575168.263 | CD40: 606611.14 | CE40: 439281.772 | CF40: 379773.295 | CG40: 302989.243 | CH40: 331381.867 | CI40: 337574.665 | CJ40: 333021.28 | CK40: 341080.042 | CL40: 309107.141 | CM40: 358119.725 | CN40: 367422.887 | CO40: 475503.319 | CP40: 474673.244 | CQ40: 399030.561 | CR40: 353043.364 | CS40: 307523.092 | CT40: 348932.875 | CU40: 327363.325 | CV40: 298018.681 | CW40: 326388.058 | CX40: 308848.071 | CY40: 351604.339 | CZ40: 383409.989 | DA40: 446981.79 | DB40: 463196.471 | DC40: 423798.483 | DD40: 353665.283 | DE40: 275127.828 | DF40: 328765.425 | DG40: 340155.828 | DH40: 320757.387 | DI40: 337706.411 | DJ40: 309267.762 | DK40: 384392.695 | DL40: 399740.436 | DM40: 514616.724 | DN40: 486272.269 | DO40: 405013.597 | DP40: 349114.324 | DQ40: 298958.952 | DR40: 314647.361 | DS40: 322478.806 | DT40: 313009.277 | DU40: 337675.977 | DV40: 326817.061 | DW40: 366558.932 | DX40: 409375.968 | DY40: 498553.465 | DZ40: 498916.468 | EA40: 460727.423 | EB40: 387352.936 | EC40: 326306.343 | ED40: 333900.282 | EE40: 381094.582 | EF40: 331714.352 | EG40: 331990.232 | EH40: 358164.333 | EI40: 408754.871 | EJ40: 465024.459 | EK40: 523316.152 | EL40: 540701.127 | EM40: 422026.298 | EN40: 383315.152 | EO40: 334543.622 | EP40: 368328.225 | EQ40: 350317.342 | ER40: 358115.042 | ES40: 377425.516 | ET40: - | EU40: - | EV40: - | EW40: - | EX40: - | EY40: - | EZ40: - | FA40: - | FB40: -
B41: Enlace Península-Baleares | C41: - | D41: - | E41: - | F41: - | G41: - | H41: - | I41: - | J41: - | K41: - | L41: - | M41: - | N41: - | O41: - | P41: - | Q41: - | R41: - | S41: - | T41: - | U41: - | V41: - | W41: - | X41: - | Y41: - | Z41: - | AA41: - | AB41: - | AC41: - | AD41: - | AE41: - | AF41: - | AG41: - | AH41: - | AI41: - | AJ41: - | AK41: - | AL41: - | AM41: - | AN41: - | AO41: - | AP41: - | AQ41: - | AR41: - | AS41: - | AT41: - | AU41: - | AV41: - | AW41: - | AX41: - | AY41: 0 | AZ41: 0 | BA41: 0 | BB41: 0 | BC41: 0 | BD41: 0 | BE41: 0 | BF41: 0 | BG41: 0 | BH41: 0 | BI41: 0 | BJ41: 0 | BK41: 0 | BL41: 0 | BM41: 0 | BN41: 0 | BO41: 0 | BP41: 0 | BQ41: 0 | BR41: 0 | BS41: 0 | BT41: 0 | BU41: -43.891 | BV41: 520.3 | BW41: 2681.381 | BX41: 25375.897 | BY41: 36694.079 | BZ41: 35112.659 | CA41: 27254.534 | CB41: 35803.857 | CC41: 36379.672 | CD41: 68014.382 | CE41: 74016.633 | CF41: 70230.888 | CG41: 67437.619 | CH41: 91247.602 | CI41: 108822.873 | CJ41: 90838.239 | CK41: 84296.937 | CL41: 88234.445 | CM41: 83693.952 | CN41: 112811.098 | CO41: 145595.967 | CP41: 157387.881 | CQ41: 113878.526 | CR41: 108856.743 | CS41: 86136.35 | CT41: 87955.589 | CU41: 98644.522 | CV41: 86919.696 | CW41: 88249.651 | CX41: 80404.574 | CY41: 85669.402 | CZ41: 124876.598 | DA41: 153191.786 | DB41: 165070.705 | DC41: 146829.629 | DD41: 101058.571 | DE41: 79551.937 | DF41: 87790.395 | DG41: 110897.596 | DH41: 111884.631 | DI41: 100736.395 | DJ41: 87606.187 | DK41: 65670.035 | DL41: 123291.107 | DM41: 181060.099 | DN41: 170384.126 | DO41: 119558.349 | DP41: 99376.747 | DQ41: 71777.664 | DR41: 93548.866 | DS41: 89213.443 | DT41: 91217.189 | DU41: 111467.448 | DV41: 86955.768 | DW41: 105354.345 | DX41: 124743.759 | DY41: 144841.694 | DZ41: 152538.68 | EA41: 109260.447 | EB41: 90882.304 | EC41: 58978.757 | ED41: 85128.667 | EE41: 96651.403 | EF41: 64562.012 | EG41: 78352.012 | EH41: 57068.237 | EI41: 75027.427 | EJ41: 114233.415 | EK41: 155211.459 | EL41: 166876.245 | EM41: 116104.623 | EN41: 93285.021 | EO41: 70161.934 | EP41: 91766.865 | EQ41: 86203.829 | ER41: 99993.399 | ES41: 90106.7 | ET41: - | EU41: - | EV41: - | EW41: - | EX41: - | EY41: - | EZ41: - | FA41: - | FB41: -
B42: Demanda transporte (b.c.) | C42: 496567 | D42: 449996 | E42: 458805 | F42: 388823 | G42: 455896 | H42: 520880 | I42: 638122 | J42: 606836 | K42: 526085 | L42: 462250.952 | M42: 374289 | N42: 449073.22 | O42: 475242 | P42: 423691 | Q42: 462583 | R42: 431172 | S42: 471406 | T42: 532168 | U42: 621230 | V42: 624468 | W42: 534069 | X42: 474945 | Y42: 440766 | Z42: 487310 | AA42: 489644 | AB42: 465196 | AC42: 471677 | AD42: 434714 | AE42: 473820 | AF42: 518821 | AG42: 640759 | AH42: 655589 | AI42: 554766 | AJ42: 472038 | AK42: 437216 | AL42: 507799 | AM42: 513845 | AN42: 453694 | AO42: 463248 | AP42: 437180 | AQ42: 462094 | AR42: 534749 | AS42: 654252 | AT42: 655715 | AU42: 523285 | AV42: 452975 | AW42: 384287 | AX42: 457600 | AY42: 491157.327 | AZ42: 455235.182 | BA42: 473038.592 | BB42: 413067.095 | BC42: 436144.883 | BD42: 475305.682 | BE42: 630610.904 | BF42: 624968.608 | BG42: 519996.385 | BH42: 444757.183 | BI42: 402884.99 | BJ42: 473125.201 | BK42: 477860.493 | BL42: 430462.089 | BM42: 454771.898 | BN42: 393493.45 | BO42: 454797.729 | BP42: 503558.609 | BQ42: 597521.389 | BR42: 639637.24 | BS42: 554806.874 | BT42: 449050.231 | BU42: 370790.897 | BV42: 416554.18 | BW42: 459609.514 | BX42: 504994.278 | BY42: 435574.664 | BZ42: 400845.015 | CA42: 445430.69 | CB42: 533622.773 | CC42: 611547.935 | CD42: 674625.522 | CE42: 513298.405 | CF42: 450004.183 | CG42: 370426.862 | CH42: 422629.469 | CI42: 446397.538 | CJ42: 423859.519 | CK42: 425376.979 | CL42: 397341.586 | CM42: 441813.677 | CN42: 480233.985 | CO42: 621099.286 | CP42: 632061.125 | CQ42: 512909.087 | CR42: 461900.107 | CS42: 393659.442 | CT42: 436888.464 | CU42: 426007.847 | CV42: 384938.377 | CW42: 414637.709 | CX42: 389252.645 | CY42: 437273.741 | CZ42: 508286.587 | DA42: 600173.576 | DB42: 628267.176 | DC42: 570628.112 | DD42: 454723.854 | DE42: 354679.765 | DF42: 416555.82 | DG42: 451053.424 | DH42: 432642.018 | DI42: 438442.806 | DJ42: 396873.949 | DK42: 450062.73 | DL42: 523031.543 | DM42: 695676.823 | DN42: 656656.395 | DO42: 524571.946 | DP42: 448491.071 | DQ42: 370736.616 | DR42: 408196.227 | DS42: 411692.249 | DT42: 404226.466 | DU42: 449143.425 | DV42: 413772.829 | DW42: 471913.277 | DX42: 534119.727 | DY42: 643395.159 | DZ42: 651455.148 | EA42: 569987.87 | EB42: 478235.24 | EC42: 385285.1 | ED42: 419028.949 | EE42: 477745.985 | EF42: 396276.364 | EG42: 410342.244 | EH42: 415232.57 | EI42: 483782.298 | EJ42: 579257.874 | EK42: 678527.611 | EL42: 707577.372 | EM42: 538130.921 | EN42: 476600.173 | EO42: 404705.556 | EP42: 460095.09 | EQ42: 436521.171 | ER42: 458108.441 | ES42: 467532.216 | ET42: - | EU42: - | EV42: - | EW42: - | EX42: - | EY42: - | EZ42: - | FA42: - | FB42: -
B44: Balance eléctrico mensual Islas Canarias (MWh) | C44: 2006-01-01 | D44: 2006-02-01 | E44: 2006-03-01 | F44: 2006-04-01 | G44: 2006-05-01 | H44: 2006-06-01 | I44: 2006-07-01 | J44: 2006-08-01 | K44: 2006-09-01 | L44: 2006-10-01 | M44: 2006-11-01 | N44: 2006-12-01 | O44: 2007-01-01 | P44: 2007-02-01 | Q44: 2007-03-01 | R44: 2007-04-01 | S44: 2007-05-01 | T44: 2007-06-01 | U44: 2007-07-01 | V44: 2007-08-01 | W44: 2007-09-01 | X44: 2007-10-01 | Y44: 2007-11-01 | Z44: 2007-12-01 | AA44: 2008-01-01 | AB44: 2008-02-01 | AC44: 2008-03-01 | AD44: 2008-04-01 | AE44: 2008-05-01 | AF44: 2008-06-01 | AG44: 2008-07-01 | AH44: 2008-08-01 | AI44: 2008-09-01 | AJ44: 2008-10-01 | AK44: 2008-11-01 | AL44: 2008-12-01 | AM44: 2009-01-01 | AN44: 2009-02-01 | AO44: 2009-03-01 | AP44: 2009-04-01 | AQ44: 2009-05-01 | AR44: 2009-06-01 | AS44: 2009-07-01 | AT44: 2009-08-01 | AU44: 2009-09-01 | AV44: 2009-10-01 | AW44: 2009-11-01 | AX44: 2009-12-01 | AY44: 2010-01-01 | AZ44: 2010-02-01 | BA44: 2010-03-01 | BB44: 2010-04-01 | BC44: 2010-05-01 | BD44: 2010-06-01 | BE44: 2010-07-01 | BF44: 2010-08-01 | BG44: 2010-09-01 | BH44: 2010-10-01 | BI44: 2010-11-01 | BJ44: 2010-12-01 | BK44: 2011-01-01 | BL44: 2011-02-01 | BM44: 2011-03-01 | BN44: 2011-04-01 | BO44: 2011-05-01 | BP44: 2011-06-01 | BQ44: 2011-07-01 | BR44: 2011-08-01 | BS44: 2011-09-01 | BT44: 2011-10-01 | BU44: 2011-11-01 | BV44: 2011-12-01 | BW44: 2012-01-01 | BX44: 2012-02-01 | BY44: 2012-03-01 | BZ44: 2012-04-01 | CA44: 2012-05-01 | CB44: 2012-06-01 | CC44: 2012-07-01 | CD44: 2012-08-01 | CE44: 2012-09-01 | CF44: 2012-10-01 | CG44: 2012-11-01 | CH44: 2012-12-01 | CI44: 2013-01-01 | CJ44: 2013-02-01 | CK44: 2013-03-01 | CL44: 2013-04-01 | CM44: 2013-05-01 | CN44: 2013-06-01 | CO44: 2013-07-01 | CP44: 2013-08-01 | CQ44: 2013-09-01 | CR44: 2013-10-01 | CS44: 2013-11-01 | CT44: 2013-12-01 | CU44: 2014-01-01 | CV44: 2014-02-01 | CW44: 2014-03-01 | CX44: 2014-04-01 | CY44: 2014-05-01 | CZ44: 2014-06-01 | DA44: 2014-07-01 | DB44: 2014-08-01 | DC44: 2014-09-01 | DD44: 2014-10-01 | DE44: 2014-11-01 | DF44: 2014-12-01 | DG44: 2015-01-01 | DH44: 2015-02-01 | DI44: 2015-03-01 | DJ44: 2015-04-01 | DK44: 2015-05-01 | DL44: 2015-06-01 | DM44: 2015-07-01 | DN44: 2015-08-01 | DO44: 2015-09-01 | DP44: 2015-10-01 | DQ44: 2015-11-01 | DR44: 2015-12-01 | DS44: 2016-01-01 | DT44: 2016-02-01 | DU44: 2016-03-01 | DV44: 2016-04-01 | DW44: 2016-05-01 | DX44: 2016-06-01 | DY44: 2016-07-01 | DZ44: 2016-08-01 | EA44: 2016-09-01 | EB44: 2016-10-01 | EC44: 2016-11-01 | ED44: 2016-12-01 | EE44: 2017-01-01 | EF44: 2017-02-01 | EG44: 2017-03-01 | EH44: 2017-04-01 | EI44: 2017-05-01 | EJ44: 2017-06-01 | EK44: 2017-07-01 | EL44: 2017-08-01 | EM44: 2017-09-01 | EN44: 2017-10-01 | EO44: 2017-11-01 | EP44: 2017-12-01 | EQ44: 2018-01-01 | ER44: 2018-02-01 | ES44: 2018-03-01 | ET44: 2018-04-01 | EU44: 2018-05-01 | EV44: 2018-06-01 | EW44: 2018-07-01 | EX44: 2018-08-01 | EY44: 2018-09-01 | EZ44: 2018-10-01 | FA44: 2018-11-01 | FB44: 2018-12-01
B45: Hidráulica | C45: 0 | D45: 0 | E45: 0 | F45: 0 | G45: 0 | H45: 0 | I45: 0 | J45: 0 | K45: 0 | L45: 0 | M45: 0 | N45: 0 | O45: 0 | P45: 0 | Q45: 0 | R45: 0 | S45: 0 | T45: 0 | U45: 0 | V45: 0 | W45: 0 | X45: 0 | Y45: 0 | Z45: 0 | AA45: 0 | AB45: 0 | AC45: 0 | AD45: 0 | AE45: 0 | AF45: 0 | AG45: 0 | AH45: 0 | AI45: 0 | AJ45: 0 | AK45: 0 | AL45: 0 | AM45: 0 | AN45: 0 | AO45: 0 | AP45: 0 | AQ45: 0 | AR45: 0 | AS45: 0 | AT45: 0 | AU45: 0 | AV45: 0 | AW45: 0 | AX45: 0 | AY45: 0 | AZ45: 0 | BA45: 0 | BB45: 0 | BC45: 0 | BD45: 0 | BE45: 0 | BF45: 0 | BG45: 0 | BH45: 0 | BI45: 0 | BJ45: 0 | BK45: 0 | BL45: 0 | BM45: 0 | BN45: 0 | BO45: 0 | BP45: 0 | BQ45: 0 | BR45: 0 | BS45: 0 | BT45: 0 | BU45: 0 | BV45: 0 | BW45: 0 | BX45: 0 | BY45: 0 | BZ45: 0 | CA45: 0 | CB45: 0 | CC45: 0 | CD45: 0 | CE45: 0 | CF45: 0 | CG45: 0 | CH45: 0 | CI45: 0 | CJ45: 0 | CK45: 0 | CL45: 0 | CM45: 0 | CN45: 0 | CO45: 0 | CP45: 0 | CQ45: 0 | CR45: 0 | CS45: 0 | CT45: 0 | CU45: 0 | CV45: 0 | CW45: 0 | CX45: 0 | CY45: 0 | CZ45: 0 | DA45: 0 | DB45: 0 | DC45: 0 | DD45: 0 | DE45: 0 | DF45: 0 | DG45: 303.6 | DH45: 270 | DI45: 304.6 | DJ45: 292 | DK45: 295 | DL45: 296 | DM45: 304 | DN45: 303 | DO45: 296 | DP45: 311 | DQ45: 301 | DR45: 309 | DS45: 309 | DT45: 282 | DU45: 311 | DV45: 299 | DW45: 308 | DX45: 301 | DY45: 313 | DZ45: 266 | EA45: 282 | EB45: 271 | EC45: 260 | ED45: 270 | EE45: 264 | EF45: 239 | EG45: 265 | EH45: 262 | EI45: 271 | EJ45: 271 | EK45: 275 | EL45: 288 | EM45: 267 | EN45: 294 | EO45: 274 | EP45: 312 | EQ45: 279 | ER45: 35 | ES45: 0 | ET45: - | EU45: - | EV45: - | EW45: - | EX45: - | EY45: - | EZ45: - | FA45: - | FB45: -
B46: Motores diesel | C46: 165513 | D46: 148359 | E46: 156468 | F46: 143502 | G46: 170858 | H46: 177722 | I46: 176016 | J46: 179233 | K46: 182517 | L46: 179648 | M46: 157979 | N46: 169849 | O46: 187608 | P46: 153155 | Q46: 170227 | R46: 158998 | S46: 161066 | T46: 167755 | U46: 183062 | V46: 178646 | W46: 169801 | X46: 172067 | Y46: 170171 | Z46: 169446 | AA46: 169904 | AB46: 169953 | AC46: 164609 | AD46: 171005 | AE46: 184619 | AF46: 170736 | AG46: 180381 | AH46: 181406 | AI46: 184435 | AJ46: 177595 | AK46: 169810 | AL46: 179313 | AM46: 175499 | AN46: 161432 | AO46: 167927 | AP46: 161723 | AQ46: 174920 | AR46: 177098 | AS46: 181952 | AT46: 183950 | AU46: 185161 | AV46: 193478 | AW46: 183078 | AX46: 194481 | AY46: 187860.426 | AZ46: 166955.349 | BA46: 187977.302 | BB46: 173369.214 | BC46: 162133.906 | BD46: 164800.029 | BE46: 181346.471 | BF46: 198336.867 | BG46: 189919.536 | BH46: 200384.633 | BI46: 184885.126 | BJ46: 185418.913 | BK46: 188502.864 | BL46: 169922.075 | BM46: 187482.117 | BN46: 176962.428 | BO46: 170170.944 | BP46: 179381.941 | BQ46: 187314.6 | BR46: 185824.936 | BS46: 188071.837 | BT46: 178369.316 | BU46: 172999.694 | BV46: 178373.343 | BW46: 179500.235 | BX46: 176820.426 | BY46: 179805.496 | BZ46: 178161.291 | CA46: 179655.167 | CB46: 163882.432 | CC46: 172623.939 | CD46: 197998.946 | CE46: 172035.132 | CF46: 174704.734 | CG46: 163848.488 | CH46: 171094.643 | CI46: 179868.34 | CJ46: 166432.496 | CK46: 179991.954 | CL46: 156656.79 | CM46: 166958.146 | CN46: 161808.769 | CO46: 167404.838 | CP46: 183067.236 | CQ46: 171801.899 | CR46: 179535.081 | CS46: 180393.312 | CT46: 184639.325 | CU46: 182041.559 | CV46: 166724.26 | CW46: 184161.931 | CX46: 173494.461 | CY46: 173886.989 | CZ46: 175680.004 | DA46: 177884.168 | DB46: 192713.803 | DC46: 182878.91 | DD46: 182334.088 | DE46: 165752.552 | DF46: 187559.179 | DG46: 183398.663 | DH46: 167418.437 | DI46: 185448.82 | DJ46: 175172.701 | DK46: 184138.624 | DL46: 162753.298 | DM46: 184557.635 | DN46: 199833.994 | DO46: 198140.223 | DP46: 191165.393 | DQ46: 181351.798 | DR46: 194312.774 | DS46: 191382.783 | DT46: 171121.665 | DU46: 189600.554 | DV46: 179374.398 | DW46: 182068.072 | DX46: 175199.829 | DY46: 195773.457 | DZ46: 199399.29 | EA46: 172730.772 | EB46: 198093.171 | EC46: 184851.452 | ED46: 188070.083 | EE46: 188283.132 | EF46: 166413.076 | EG46: 199642.388 | EH46: 210397.635 | EI46: 214526.661 | EJ46: 195945.864 | EK46: 212740.626 | EL46: 224846.722 | EM46: 211955.039 | EN46: 232636.309 | EO46: 209595.621 | EP46: 201731.161 | EQ46: 213634.499 | ER46: 192487.907 | ES46: 181035.595 | ET46: - | EU46: - | EV46: - | EW46: - | EX46: - | EY46: - | EZ46: - | FA46: - | FB46: -
B47: Turbina de gas | C47: 52857 | D47: 58444 | E47: 91260 | F47: 61071 | G47: 57809 | H47: 75033 | I47: 67196 | J47: 68751 | K47: 76471.12 | L47: 83282 | M47: 74117 | N47: 58140 | O47: 64149 | P47: 63769 | Q47: 68930 | R47: 63759 | S47: 61840 | T47: 50272 | U47: 47789 | V47: 55948 | W47: 62897 | X47: 57361 | Y47: 55111 | Z47: 47645 | AA47: 49303 | AB47: 38729 | AC47: 28799 | AD47: 32804 | AE47: 40343 | AF47: 47105 | AG47: 47074 | AH47: 42237 | AI47: 50914 | AJ47: 36660 | AK47: 29392 | AL47: 30166 | AM47: 34805 | AN47: 21886 | AO47: 30042 | AP47: 11292 | AQ47: 38398 | AR47: 37443 | AS47: 25400 | AT47: 29481 | AU47: 39778.542 | AV47: 31205 | AW47: 25237.512 | AX47: 17204 | AY47: 13491.04 | AZ47: 18753.394 | BA47: 20108.357 | BB47: 13928.882 | BC47: 30855.156 | BD47: 31941.35 | BE47: 29817.828 | BF47: 24986.524 | BG47: 28373.724 | BH47: 46582.515 | BI47: 44841.278 | BJ47: 39601.609 | BK47: 34501.047 | BL47: 37022.041 | BM47: 48996.798 | BN47: 30090.472 | BO47: 33696.629 | BP47: 29253.318 | BQ47: 46053.293 | BR47: 43711.142 | BS47: 56663.614 | BT47: 57351.207 | BU47: 58097.327 | BV47: 53609.259 | BW47: 49954.794 | BX47: 46945.324 | BY47: 50673.429 | BZ47: 43039.486 | CA47: 43644.055 | CB47: 41616.254 | CC47: 41444.798 | CD47: 49387.208 | CE47: 59150.887 | CF47: 62477.418 | CG47: 48260.309 | CH47: 53988.732 | CI47: 33759.934 | CJ47: 27745.124 | CK47: 31738.947 | CL47: 35768.232 | CM47: 25760.226 | CN47: 22539.748 | CO47: 31573.401 | CP47: 33220.502 | CQ47: 28044.228 | CR47: 35123.301 | CS47: 32417.244 | CT47: 28837.824 | CU47: 26534.568 | CV47: 32861.774 | CW47: 19596.029 | CX47: 21361.484 | CY47: 24865.671 | CZ47: 29044.709 | DA47: 26256.525 | DB47: 19704.468 | DC47: 50295.97 | DD47: 36660.589 | DE47: 36644.1 | DF47: 39940.959 | DG47: 28149.965 | DH47: 28792.431 | DI47: 24246.496 | DJ47: 23841.565 | DK47: 37191.685 | DL47: 35424.378 | DM47: 28336.128 | DN47: 25334.37 | DO47: 32683.006 | DP47: 24129.388 | DQ47: 22541.905 | DR47: 20232.469 | DS47: 18719.83 | DT47: 21856.049 | DU47: 18621.349 | DV47: 19322.266 | DW47: 17715.981 | DX47: 14422.895 | DY47: 15882.528 | DZ47: 31498.591 | EA47: 37833.684 | EB47: 27452.88 | EC47: 26044.13 | ED47: 29769.361 | EE47: 31339.258 | EF47: 23523.017 | EG47: 18987.773 | EH47: 12640.722 | EI47: 17181.505 | EJ47: 14314.57 | EK47: 22105.947 | EL47: 21770.814 | EM47: 23422.579 | EN47: 22577.284 | EO47: 20472.2 | EP47: 18992.006 | EQ47: 16383.045 | ER47: 17868.262 | ES47: 16518.833 | ET47: - | EU47: - | EV47: - | EW47: - | EX47: - | EY47: - | EZ47: - | FA47: - | FB47: -
B48: Turbina de vapor | C48: 348359 | D48: 305913 | E48: 351244 | F48: 298246 | G48: 274223 | H48: 249935 | I48: 254565 | J48: 265884 | K48: 284703 | L48: 261074 | M48: 270998 | N48: 264847 | O48: 267716 | P48: 244594 | Q48: 270944 | R48: 295087 | S48: 222900 | T48: 280003 | U48: 253974 | V48: 300035 | W48: 289769 | X48: 297640 | Y48: 280624 | Z48: 303519 | AA48: 325375 | AB48: 311290 | AC48: 288853 | AD48: 271239 | AE48: 285962 | AF48: 228474 | AG48: 273542 | AH48: 273013 | AI48: 285098 | AJ48: 298907 | AK48: 282718 | AL48: 289770 | AM48: 283886 | AN48: 246215 | AO48: 277471 | AP48: 250511 | AQ48: 289749 | AR48: 254556 | AS48: 266775 | AT48: 281781 | AU48: 281193 | AV48: 297557 | AW48: 249395 | AX48: 264539 | AY48: 275233.605 | AZ48: 239085.291 | BA48: 258003.025 | BB48: 233931.054 | BC48: 254626.209 | BD48: 255627.035 | BE48: 246393.45 | BF48: 264783.539 | BG48: 255925.195 | BH48: 219068.06 | BI48: 221691.146 | BJ48: 248219.496 | BK48: 239152.19 | BL48: 224589.211 | BM48: 264589.247 | BN48: 228431.985 | BO48: 220646.289 | BP48: 180534.772 | BQ48: 228077.559 | BR48: 216593.977 | BS48: 207647.786 | BT48: 232308.245 | BU48: 184270.279 | BV48: 210977.703 | BW48: 234910.729 | BX48: 199336.314 | BY48: 227404.865 | BZ48: 205202.234 | CA48: 198111.728 | CB48: 221665.346 | CC48: 237362.986 | CD48: 233682.876 | CE48: 221969.495 | CF48: 235563.274 | CG48: 244573.822 | CH48: 226155.134 | CI48: 194241.535 | CJ48: 194878.789 | CK48: 217861 | CL48: 205723.488 | CM48: 195840 | CN48: 176159.163 | CO48: 213945.362 | CP48: 213545 | CQ48: 203418 | CR48: 222976.216 | CS48: 206361 | CT48: 220100 | CU48: 216734.185 | CV48: 176820.284 | CW48: 150580.233 | CX48: 152882.112 | CY48: 146331.71 | CZ48: 168933.789 | DA48: 183295.434 | DB48: 180439.144 | DC48: 162676.411 | DD48: 170399.293 | DE48: 169086.92 | DF48: 195856.557 | DG48: 202078.565 | DH48: 176220.301 | DI48: 182024.827 | DJ48: 159738.793 | DK48: 150618.451 | DL48: 185584.929 | DM48: 204266.866 | DN48: 206409.507 | DO48: 216761.283 | DP48: 163670.586 | DQ48: 156374.23 | DR48: 221565.191 | DS48: 229365.613 | DT48: 206627.829 | DU48: 219237.899 | DV48: 193798.73 | DW48: 173434.728 | DX48: 204683.361 | DY48: 222433.549 | DZ48: 236381.934 | EA48: 224084.522 | EB48: 208666.932 | EC48: 172369.114 | ED48: 245579.436 | EE48: 210604.085 | EF48: 197055 | EG48: 204998.987 | EH48: 218563.316 | EI48: 191062.651 | EJ48: 236220.382 | EK48: 222604.919 | EL48: 223524.225 | EM48: 208860.49 | EN48: 203117.301 | EO48: 191091.445 | EP48: 216134.106 | EQ48: 212818.004 | ER48: 190979.338 | ES48: 193576.767 | ET48: - | EU48: - | EV48: - | EW48: - | EX48: - | EY48: - | EZ48: - | FA48: - | FB48: -
B49: Fuel + Gas | C49: 566729 | D49: 512716 | E49: 598972 | F49: 502819 | G49: 502890 | H49: 502690 | I49: 497777 | J49: 513868 | K49: 543691.12 | L49: 524004 | M49: 503094 | N49: 492836 | O49: 519473 | P49: 461518 | Q49: 510101 | R49: 517844 | S49: 445806 | T49: 498030 | U49: 484825 | V49: 534629 | W49: 522467 | X49: 527068 | Y49: 505906 | Z49: 520610 | AA49: 544582 | AB49: 519972 | AC49: 482261 | AD49: 475048 | AE49: 510924 | AF49: 446315 | AG49: 500997 | AH49: 496656 | AI49: 520447 | AJ49: 513162 | AK49: 481920 | AL49: 499249 | AM49: 494190 | AN49: 429533 | AO49: 475440 | AP49: 423526 | AQ49: 503067 | AR49: 469097 | AS49: 474127 | AT49: 495212 | AU49: 506132.542 | AV49: 522240 | AW49: 457710.512 | AX49: 476224 | AY49: 476585.071 | AZ49: 424794.034 | BA49: 466088.684 | BB49: 421229.15 | BC49: 447615.271 | BD49: 452368.414 | BE49: 457557.749 | BF49: 488106.93 | BG49: 474218.455 | BH49: 466035.208 | BI49: 451417.55 | BJ49: 473240.018 | BK49: 462156.101 | BL49: 431533.327 | BM49: 501068.162 | BN49: 435484.885 | BO49: 424513.862 | BP49: 389170.031 | BQ49: 461445.452 | BR49: 446130.055 | BS49: 452383.237 | BT49: 468028.768 | BU49: 415367.3 | BV49: 442960.305 | BW49: 464365.758 | BX49: 423102.064 | BY49: 457883.79 | BZ49: 426403.011 | CA49: 421410.95 | CB49: 427164.032 | CC49: 451431.723 | CD49: 481069.03 | CE49: 453155.514 | CF49: 472745.426 | CG49: 456682.619 | CH49: 451238.509 | CI49: 407869.809 | CJ49: 389056.409 | CK49: 429591.901 | CL49: 398148.51 | CM49: 388558.372 | CN49: 360507.68 | CO49: 412923.601 | CP49: 429832.738 | CQ49: 403264.127 | CR49: 437634.598 | CS49: 419171.556 | CT49: 433577.149 | CU49: 425310.312 | CV49: 376406.318 | CW49: 354338.193 | CX49: 347738.057 | CY49: 345084.37 | CZ49: 373658.502 | DA49: 387436.127 | DB49: 392857.415 | DC49: 395851.291 | DD49: 389393.97 | DE49: 371483.572 | DF49: 423356.695 | DG49: 413627.193 | DH49: 372431.169 | DI49: 391720.143 | DJ49: 358753.059 | DK49: 371948.76 | DL49: 383762.605 | DM49: 417160.629 | DN49: 431577.871 | DO49: 447584.512 | DP49: 378965.367 | DQ49: 360267.933 | DR49: 436110.434 | DS49: 439468.226 | DT49: 399605.543 | DU49: 427459.802 | DV49: 392495.394 | DW49: 373218.781 | DX49: 394306.085 | DY49: 434089.534 | DZ49: 467279.815 | EA49: 434648.978 | EB49: 434212.983 | EC49: 383264.696 | ED49: 463418.88 | EE49: 430226.475 | EF49: 386991.093 | EG49: 423629.148 | EH49: 441601.673 | EI49: 422770.817 | EJ49: 446480.816 | EK49: 457451.492 | EL49: 470141.761 | EM49: 444238.108 | EN49: 458330.894 | EO49: 421159.266 | EP49: 436857.273 | EQ49: 442835.548 | ER49: 401335.507 | ES49: 391131.195 | ET49: - | EU49: - | EV49: - | EW49: - | EX49: - | EY49: - | EZ49: - | FA49: - | FB49: -
B50: Ciclo combinado | C50: 125939 | D50: 107765 | E50: 79372 | F50: 139320 | G50: 154766 | H50: 168017 | I50: 187960 | J50: 206155 | K50: 200181 | L50: 216209 | M50: 204172 | N50: 217541 | O50: 203577 | P50: 170340 | Q50: 199354 | R50: 152118 | S50: 243924 | T50: 185380 | U50: 229495 | V50: 189228 | W50: 195544 | X50: 230632 | Y50: 226835 | Z50: 216848 | AA50: 199787 | AB50: 167592 | AC50: 219679 | AD50: 215393 | AE50: 194309 | AF50: 240047 | AG50: 218649 | AH50: 221342 | AI50: 228900 | AJ50: 217782 | AK50: 219404 | AL50: 230433 | AM50: 218103 | AN50: 205178 | AO50: 222643 | AP50: 198070 | AQ50: 148582 | AR50: 202502 | AS50: 234690 | AT50: 211977 | AU50: 201745 | AV50: 231922 | AW50: 241597 | AX50: 235319 | AY50: 230101.864 | AZ50: 203031.708 | BA50: 228450.678 | BB50: 216494.734 | BC50: 193292.748 | BD50: 190320.309 | BE50: 218682.102 | BF50: 224299.341 | BG50: 235057.37 | BH50: 266936.906 | BI50: 253781.819 | BJ50: 247960.606 | BK50: 252928.866 | BL50: 190920.098 | BM50: 187526.745 | BN50: 212566.242 | BO50: 245524.253 | BP50: 275132.26 | BQ50: 221773.292 | BR50: 252862.683 | BS50: 256339.487 | BT50: 268452.367 | BU50: 290455.415 | BV50: 264393.529 | BW50: 258410.931 | BX50: 234103.447 | BY50: 227913.742 | BZ50: 212401.385 | CA50: 248853.609 | CB50: 229398.869 | CC50: 233205.38 | CD50: 233457.065 | CE50: 272722.639 | CF50: 254754.651 | CG50: 229874.659 | CH50: 242675.197 | CI50: 278031.613 | CJ50: 223389 | CK50: 245774 | CL50: 243841 | CM50: 250123 | CN50: 244898 | CO50: 263512.415 | CP50: 270469 | CQ50: 270577 | CR50: 264188 | CS50: 246468 | CT50: 251409 | CU50: 248686.911 | CV50: 228402.058 | CW50: 280046.83 | CX50: 274981.906 | CY50: 280289.396 | CZ50: 252045.922 | DA50: 271160.345 | DB50: 264740.079 | DC50: 318190.978 | DD50: 336165.953 | DE50: 298564.982 | DF50: 258173.584 | DG50: 256340.419 | DH50: 226895.344 | DI50: 255027.685 | DJ50: 261373.916 | DK50: 260976.972 | DL50: 242886.79 | DM50: 257449.173 | DN50: 257210.086 | DO50: 261505.807 | DP50: 350690.368 | DQ50: 311693.576 | DR50: 270991.934 | DS50: 247044.882 | DT50: 217849.751 | DU50: 233400.213 | DV50: 247033.402 | DW50: 271015.081 | DX50: 238084.596 | DY50: 241073.81 | DZ50: 247232.457 | EA50: 240643.528 | EB50: 294696.653 | EC50: 304199.903 | ED50: 249425.235 | EE50: 282319.563 | EF50: 235324 | EG50: 250923.376 | EH50: 219690.934 | EI50: 255536.929 | EJ50: 214873.892 | EK50: 231391.768 | EL50: 261576.271 | EM50: 236369.613 | EN50: 290262.85 | EO50: 281882.196 | EP50: 255620.624 | EQ50: 235479.923 | ER50: 216348.336 | ES50: 266353.991 | ET50: - | EU50: - | EV50: - | EW50: - | EX50: - | EY50: - | EZ50: - | FA50: - | FB50: -
B51: Generación auxiliar | C51: 0 | D51: 0 | E51: 0 | F51: 0 | G51: 0 | H51: 0 | I51: 0 | J51: 0 | K51: 0 | L51: 0 | M51: 0 | N51: 0 | O51: 12171 | P51: 11523 | Q51: 11651 | R51: 11641 | S51: 10919 | T51: 9438 | U51: 10685 | V51: 12461 | W51: 11325 | X51: 11933 | Y51: 10055 | Z51: 9038 | AA51: 10202 | AB51: 9659 | AC51: 10861 | AD51: 10032 | AE51: 6829 | AF51: 6410 | AG51: 7670 | AH51: 7858 | AI51: 5141 | AJ51: 4729 | AK51: 5487 | AL51: 4869 | AM51: 4385 | AN51: 3909 | AO51: 4661 | AP51: 2586 | AQ51: 2823 | AR51: 3208 | AS51: 5305 | AT51: 3351 | AU51: 1680 | AV51: 811 | AW51: 899 | AX51: 170 | AY51: 0 | AZ51: 0 | BA51: 0 | BB51: 0 | BC51: 0 | BD51: 0 | BE51: 0 | BF51: 0 | BG51: 0 | BH51: 0 | BI51: 0 | BJ51: 0 | BK51: 0 | BL51: 0 | ET51: - | EU51: - | EV51: - | EW51: - | EX51: - | EY51: - | EZ51: - | FA51: - | FB51: -
B52: Régimen ordinario | C52: 692668 | D52: 620481 | E52: 678344 | F52: 642139 | G52: 657656 | H52: 670707 | I52: 685737 | J52: 720023 | K52: 743872.12 | L52: 740213 | M52: 707266 | N52: 710377 | O52: 735221 | P52: 643381 | Q52: 721106 | R52: 681603 | S52: 700649 | T52: 692848 | U52: 725005 | V52: 736318 | W52: 729336 | X52: 769633 | Y52: 742796 | Z52: 746496 | AA52: 754571 | AB52: 697223 | AC52: 712801 | AD52: 700473 | AE52: 712062 | AF52: 692772 | AG52: 727316 | AH52: 725856 | AI52: 754488 | AJ52: 735673 | AK52: 706811 | AL52: 734551 | AM52: 716678 | AN52: 638620 | AO52: 702744 | AP52: 624182 | AQ52: 654472 | AR52: 674807 | AS52: 714122 | AT52: 710540 | AU52: 709557.542 | AV52: 754973 | AW52: 700206.512 | AX52: 711713 | AY52: 706686.935 | AZ52: 627825.742 | BA52: 694539.362 | BB52: 637723.884 | BC52: 640908.019 | BD52: 642688.723 | BE52: 676239.851 | BF52: 712406.271 | BG52: 709275.825 | BH52: 732972.114 | BI52: 705199.369 | BJ52: 721200.624 | BK52: 715084.967 | BL52: 622453.425 | BM52: 688594.907 | BN52: 648051.127 | BO52: 670038.115 | BP52: 664302.291 | BQ52: 683218.744 | BR52: 698992.738 | BS52: 708722.724 | BT52: 736481.135 | BU52: 705822.715 | BV52: 707353.834 | BW52: 722776.689 | BX52: 657205.511 | BY52: 685797.532 | BZ52: 638804.396 | CA52: 670264.559 | CB52: 656562.901 | CC52: 684637.103 | CD52: 714526.095 | CE52: 725878.153 | CF52: 727500.077 | CG52: 686557.278 | CH52: 693913.706 | CI52: 685901.422 | CJ52: 612445.409 | CK52: 675365.901 | CL52: 641989.51 | CM52: 638681.372 | CN52: 605405.68 | CO52: 676436.016 | CP52: 700301.738 | CQ52: 673841.127 | CR52: 701822.598 | CS52: 665639.556 | CT52: 684986.149 | CU52: - | CV52: - | CW52: - | CX52: - | CY52: - | CZ52: - | DA52: - | DB52: - | DC52: - | DD52: - | DE52: - | DF52: - | DG52: - | DH52: - | DI52: - | DJ52: - | DK52: - | DL52: - | DM52: - | DN52: - | DO52: - | DP52: - | DQ52: - | DR52: - | DS52: - | DT52: - | DU52: - | DV52: - | DW52: - | DX52: - | DY52: - | DZ52: - | EA52: - | EB52: - | EC52: - | ED52: - | EE52: - | EF52: - | EG52: - | EH52: - | EI52: - | EJ52: - | EK52: - | EL52: - | EM52: - | EN52: - | EO52: - | EP52: - | EQ52: - | ER52: - | ES52: - | ET52: - | EU52: - | EV52: - | EW52: - | EX52: - | EY52: - | EZ52: - | FA52: - | FB52: -
B53: Hidroeólica | C53: 0 | D53: 0 | E53: 0 | F53: 0 | G53: 0 | H53: 0 | I53: 0 | J53: 0 | K53: 0 | L53: 0 | M53: 0 | N53: 0 | O53: 0 | P53: 0 | Q53: 0 | R53: 0 | S53: 0 | T53: 0 | U53: 0 | V53: 0 | W53: 0 | X53: 0 | Y53: 0 | Z53: 0 | AA53: 0 | AB53: 0 | AC53: 0 | AD53: 0 | AE53: 0 | AF53: 0 | AG53: 0 | AH53: 0 | AI53: 0 | AJ53: 0 | AK53: 0 | AL53: 0 | AM53: 0 | AN53: 0 | AO53: 0 | AP53: 0 | AQ53: 0 | AR53: 0 | AS53: 0 | AT53: 0 | AU53: 0 | AV53: 0 | AW53: 0 | AX53: 0 | AY53: 0 | AZ53: 0 | BA53: 0 | BB53: 0 | BC53: 0 | BD53: 0 | BE53: 0 | BF53: 0 | BG53: 0 | BH53: 0 | BI53: 0 | BJ53: 0 | BK53: 0 | BL53: 0 | BM53: 0 | BN53: 0 | BO53: 0 | BP53: 0 | BQ53: 0 | BR53: 0 | BS53: 0 | BT53: 0 | BU53: 0 | BV53: 0 | BW53: 0 | BX53: 0 | BY53: 0 | BZ53: 0 | CA53: 0 | CB53: 0 | CC53: 0 | CD53: 0 | CE53: 0 | CF53: 0 | CG53: 0 | CH53: 0 | CI53: 0 | CJ53: 0 | CK53: 0 | CL53: 0 | CM53: 0 | CN53: 0 | CO53: 0 | CP53: 0 | CQ53: 0 | CR53: 0 | CS53: 0 | CT53: 0 | CU53: 0 | CV53: 0 | CW53: 0 | CX53: 0 | CY53: 0 | CZ53: 0 | DA53: 0.311 | DB53: 314.813 | DC53: 161.525 | DD53: 195.471 | DE53: 201.015 | DF53: 198.726 | DG53: 416.176 | DH53: 374.873 | DI53: 243.784 | DJ53: 125.636 | DK53: 242.058 | DL53: 362.421 | DM53: 2082.991 | DN53: 1928.824 | DO53: 742 | DP53: 484.646 | DQ53: 882.971 | DR53: 670.686 | DS53: 814.1 | DT53: 1779.526 | DU53: 1522.376 | DV53: 1303.018 | DW53: 923.463 | DX53: 2002.62 | DY53: 2580.273 | DZ53: 2223.9 | EA53: 2171.967 | EB53: 733.354 | EC53: 1012.851 | ED53: 1035.191 | EE53: 1084.578 | EF53: 1447.992 | EG53: 2129.755 | EH53: 994.516 | EI53: 1495.018 | EJ53: 2229.195 | EK53: 3114.313 | EL53: 2458.338 | EM53: 2340.878 | EN53: 990.895 | EO53: 811.37 | EP53: 1301.668 | EQ53: 2262.851 | ER53: 1768.028 | ES53: 1685.079 | ET53: - | EU53: - | EV53: - | EW53: - | EX53: - | EY53: - | EZ53: - | FA53: - | FB53: -
B54: Hidráulica/Resto hidráulica | C54: 0 | D54: 0 | E54: 0 | F54: 0 | G54: 0 | H54: 0 | I54: 0 | J54: 0 | K54: 0 | L54: 0 | M54: 0 | N54: 0 | O54: 0 | P54: 0 | Q54: 0 | R54: 0 | S54: 0 | T54: 0 | U54: 82 | V54: 190 | W54: 247 | X54: 92 | Y54: 278 | Z54: 287 | AA54: 287 | AB54: 244 | AC54: 240 | AD54: 0 | AE54: 185 | AF54: 315 | AG54: 305 | AH54: 97 | AI54: 0 | AJ54: 0 | AK54: 0 | AL54: 0 | AM54: 9 | AN54: 164 | AO54: 175 | AP54: 50 | AQ54: 0 | AR54: 0 | AS54: 0 | AT54: 0 | AU54: 0 | AV54: 0 | AW54: 0 | AX54: 0 | AY54: 0 | AZ54: 0 | BA54: 0 | BB54: 0 | BC54: 0 | BD54: 0 | BE54: 0 | BF54: 0 | BG54: 0 | BH54: 0 | BI54: 0 | BJ54: 0 | BK54: 0 | BL54: 0 | BM54: 2 | BN54: 239 | BO54: 165 | BP54: 131 | BQ54: 245 | BR54: 179 | BS54: 201 | BT54: 238 | BU54: 164 | BV54: 111.408 | BW54: 116.439 | BX54: 0.075 | BY54: 163.001 | BZ54: 246.879 | CA54: 218.845 | CB54: 207.497 | CC54: 62.735 | CD54: 231.002 | CE54: 221.7 | CF54: 205.726 | CG54: 40.073 | CH54: 75.364 | CI54: 222.602 | CJ54: 204.523 | CK54: 136.682 | CL54: 136.99 | CM54: 292.267 | CN54: 286.388 | CO54: 286.267 | CP54: 286.374 | CQ54: 292.338 | CR54: 303.712 | CS54: 293.163 | CT54: 306 | CU54: 305 | CV54: 276 | CW54: 301 | CX54: 290 | CY54: 300 | CZ54: 283 | DA54: 308 | DB54: 310.021 | DC54: 296 | DD54: 272 | DE54: 261 | DF54: 277 | DG54: - | DH54: - | DI54: - | DJ54: - | DK54: - | DL54: - | DM54: - | DN54: - | DO54: - | DP54: - | DQ54: - | DR54: - | DS54: - | DT54: - | DU54: - | DV54: - | DW54: - | DX54: - | DY54: - | DZ54: - | EA54: - | EB54: - | EC54: - | ED54: - | EE54: - | EF54: - | EG54: - | EH54: - | EI54: - | EJ54: - | EK54: - | EL54: - | EM54: - | EN54: - | EO54: - | EP54: - | EQ54: - | ER54: - | ES54: - | ET54: - | EU54: - | EV54: - | EW54: - | EX54: - | EY54: - | EZ54: - | FA54: - | FB54: -
B55: Eólica | C55: 17431.845 | D55: 18906.552 | E55: 22433.485 | F55: 28613.578 | G55: 35233.5 | H55: 25590.253 | I55: 56231.544 | J55: 38386.534 | K55: 22680.768 | L55: 19552.139 | M55: 15309.171 | N55: 25694.21 | O55: 17536 | P55: 22919 | Q55: 37045 | R55: 26057 | S55: 34949 | T55: 31706 | U55: 57951 | V55: 48557 | W55: 26273 | X55: 19181 | Y55: 16085 | Z55: 18581 | AA55: 12697 | AB55: 16352 | AC55: 39237 | AD55: 36025 | AE55: 31842 | AF55: 39889 | AG55: 59648 | AH55: 61491 | AI55: 17713 | AJ55: 33991 | AK55: 22016 | AL55: 25574 | AM55: 23706 | AN55: 17290 | AO55: 24349 | AP55: 46455 | AQ55: 32116 | AR55: 20734 | AS55: 55995 | AT55: 57105 | AU55: 22914 | AV55: 12762 | AW55: 24732 | AX55: 20549 | AY55: 11740 | AZ55: 14778 | BA55: 23015 | BB55: 32147 | BC55: 36251 | BD55: 38838 | BE55: 47304 | BF55: 42622 | BG55: 35769 | BH55: 14015 | BI55: 17956 | BJ55: 16928 | BK55: 11345 | BL55: 24277 | BM55: 22847 | BN55: 23944 | BO55: 19554 | BP55: 37648 | BQ55: 55422 | BR55: 51939 | BS55: 31495 | BT55: 25599 | BU55: 15790 | BV55: 34295 | BW55: 18963.88 | BX55: 33726.285 | BY55: 33681.697 | BZ55: 30021.198 | CA55: 26774.771 | CB55: 44057.214 | CC55: 57535.39 | CD55: 54601 | CE55: 12813.212 | CF55: 17087.318 | CG55: 16904.712 | CH55: 15601.112 | CI55: 24542.069 | CJ55: 28387.059 | CK55: 13294 | CL55: 27647.999 | CM55: 38088.171 | CN55: 48342 | CO55: 41479 | CP55: 42314 | CQ55: 24540 | CR55: 24190 | CS55: 27763 | CT55: 22147 | CU55: 29456 | CV55: 32606 | CW55: 45694 | CX55: 27506 | CY55: 42525 | CZ55: 35026 | DA55: 45220 | DB55: 59362 | DC55: 12482 | DD55: 15750 | DE55: 20599 | DF55: 23738 | DG55: 41442 | DH55: 43677 | DI55: 41792.052 | DJ55: 28967 | DK55: 40094 | DL55: 30389 | DM55: 59611 | DN55: 49740 | DO55: 17421 | DP55: 10614 | DQ55: 24303 | DR55: 8611 | DS55: 19204 | DT55: 40727 | DU55: 33663 | DV55: 25978 | DW55: 30431 | DX55: 44239 | DY55: 56792 | DZ55: 48605 | EA55: 46717 | EB55: 13315 | EC55: 17702 | ED55: 15713 | EE55: 15115.174 | EF55: 22686 | EG55: 36312 | EH55: 18569 | EI55: 25520 | EJ55: 40162 | EK55: 50389 | EL55: 47397 | EM55: 54584 | EN55: 21312 | EO55: 24044 | EP55: 39853 | EQ55: 57039 | ER55: 46216 | ES55: 54166.252 | ET55: - | EU55: - | EV55: - | EW55: - | EX55: - | EY55: - | EZ55: - | FA55: - | FB55: -
B56: Solar fotovoltaica | C56: 36.402 | D56: 46.196 | E56: 66.179 | F56: 67.328 | G56: 76.62 | H56: 77.053 | I56: 98.995 | J56: 430.708 | K56: 484.04 | L56: 533.362 | M56: 462.502 | N56: 536.165 | O56: 610 | P56: 833 | Q56: 1268 | R56: 1459 | S56: 1737 | T56: 1692 | U56: 2046 | V56: 2433 | W56: 2017 | X56: 2022 | Y56: 1635 | Z56: 1621 | AA56: 2022 | AB56: 2658 | AC56: 3713 | AD56: 4145 | AE56: 4312 | AF56: 4894 | AG56: 5548 | AH56: 5693 | AI56: 6152 | AJ56: 9825 | AK56: 7689 | AL56: 6849 | AM56: 8709 | AN56: 10847 | AO56: 12492 | AP56: 16156 | AQ56: 16219 | AR56: 16256 | AS56: 17530 | AT56: 17568 | AU56: 12555 | AV56: 13377 | AW56: 11497 | AX56: 9124 | AY56: 10698 | AZ56: 10306 | BA56: 16328 | BB56: 16499 | BC56: 19138 | BD56: 19607 | BE56: 22480 | BF56: 21526 | BG56: 17621 | BH56: 15830 | BI56: 12519 | BJ56: 12614 | BK56: 15178 | BL56: 16843 | BM56: 19656 | BN56: 19729 | BO56: 20773 | BP56: 23349 | BQ56: 23817 | BR56: 24739 | BS56: 20929 | BT56: 17684 | BU56: 14494 | BV56: 14948 | BW56: 15819 | BX56: 17853 | BY56: 23039 | BZ56: 20676 | CA56: 24978 | CB56: 25023 | CC56: 26449 | CD56: 26299 | CE56: 23158 | CF56: 19232 | CG56: 16071 | CH56: 17914 | CI56: 20253 | CJ56: 19458 | CK56: 23739 | CL56: 27152 | CM56: 27710 | CN56: 30875 | CO56: 30903 | CP56: 26948 | CQ56: 24098 | CR56: 22190 | CS56: 17740 | CT56: 15636 | CU56: 18995 | CV56: 20132 | CW56: 27162 | CX56: 25919 | CY56: 29372 | CZ56: 27594 | DA56: 27933 | DB56: 29920 | DC56: 21433 | DD56: 20634 | DE56: 16824 | DF56: 16373 | DG56: 18338.863 | DH56: 17768 | DI56: 25470.298 | DJ56: 25100 | DK56: 29874 | DL56: 27309 | DM56: 30356 | DN56: 26058 | DO56: 20796 | DP56: 17895 | DQ56: 18495 | DR56: 18094 | DS56: 19687 | DT56: 20003 | DU56: 24028 | DV56: 24143 | DW56: 25216 | DX56: 29415 | DY56: 29166 | DZ56: 27400 | EA56: 25684 | EB56: 20209 | EC56: 17007 | ED56: 15716 | EE56: 18014 | EF56: 18976 | EG56: 25350 | EH56: 25781 | EI56: 25232 | EJ56: 27578 | EK56: 29026 | EL56: 26878 | EM56: 22960 | EN56: 19759 | EO56: 16476 | EP56: 17509 | EQ56: 18989 | ER56: 17868 | ES56: 24642.07 | ET56: - | EU56: - | EV56: - | EW56: - | EX56: - | EY56: - | EZ56: - | FA56: - | FB56: -
